Workbook

Sheet downloads (hidden)
A1: UAG TEAMS DOWNLOAD | J1: YDL 2017 Latest League Records | AC1: Blackheath & Bromley Harriers | AG1: Blackheath & Bromley Harriers
A2: clubname: | B2: Blackheath & Bromley Harriers | G2: =MatchDay!O9 -> 23 | J2: eventcode | K2: eventname | L2: name | M2: club | N2: perf | O2: venue | P2: monthday | Q2: year | T2: athlete | U2: agegroup | Y2: athlete | Z2: agegroup | AC2: 1 | AD2: POPE George X | AE2: Pole Vault | AG2: 1 | AH2: IBIDUNNI Elizabeth | AI2: 100m
A3: AW_abbr: | B3: B&B | J3: LT13 | K3: 100m | L3: Jona Efoloko | M3: Sale Harriers | N3: 11 | O3: Leeds | P3: May 31st | Q3: 2014 | S3: 11 | T3: ABBOTT Robert | U3: U17 Men | X3: 11 | Y3: ADENIJI Mary | Z3: U20 Women | AD3: FARLEY Keiron X | AE3: 400m | AH3: FULLERTON Grace X | AI3: Sprint Hurdles
A4: agegroup: | B4: U20 Men | J4: LT16 | K4: 100m NS | L4: Jona Efoloko | M4: Sale Harriers | N4: 11 | O4: Leeds | P4: May 31st | Q4: 2014 | S4: 21 | T4: ADAMS Edward | U4: U20 Men | X4: 21 | Y4: ALAPAFUJA Antonia | Z4: U17 Women | AD4: FARLEY Keiron X | AE4: 200m | AH4: - | AI4: -
A5: bib | B5: 1 | C5: 11 | J5: LT08 | K5: 200m | L5: Jona Efoloko | M5: Sale Harriers | N5: 22.2 | O5: Liverpool | P5: June 22nd | Q5: 2014 | S5: 31 | T5: ADENIRAN Adeyinka | U5: U20 Men | X5: 31 | Y5: ALIU Immanuela | Z5: U20 Women | AD5: SWINFEN Chris X | AE5: 1500m | AH5: - | AI5: -
A6: 75/100 | B6: LYTTLE Camron | C6: FRANCIS Rhys | J6: LT18 | K6: 300m | L6: Charles Hilliard | M6: Halesowen A & CC | N6: 36.2 | O6: Stoke | P6: May 31st | Q6: 2014 | S6: 41 | T6: ADESINA Theo | U6: U17 Men | X6: 41 | Y6: ALLAN Genni | Z6: U20 Women | AD6: SOFOLARIN Femi | AE6: 100m | AH6: - | AI6: -
A7: 100M NS | J7: LTD84 | K7: 800m | L7: Keelan Wilson | M7: Rotherham Harriers | N7: 00:01:59.700 | O7: Cleckheaton | P7: June 22nd | Q7: 2014 | S7: 51 | T7: ADEYEYE William | U7: U17 Men | X7: 51 | Y7: AUSTRIDGE Yasmin | Z7: U20 Women | AD7: SUTTON Ben X | AE7: 200m | AH7: - | AI7: -
A8: 200 | B8: KNIGHT Matthew | C8: POPE William | J8: LTD88 | K8: 800m NS | L8: Keelan Wilson | M8: Rotherham Harriers | N8: 00:01:59.700 | O8: Cleckheaton | P8: June 22nd | Q8: 2014 | S8: 61 | T8: ALADESE Dele | U8: U20 Men | X8: 61 | Y8: AUSTRIDGE Zoe | Z8: U17 Women | AC8: Crawley AC | AG8: Crawley AC
A9: 400 | B9: KNIGHT Matthew | C9: POPE William | J9: LTD04 | K9: 1500m | L9: Mohamed Mohamud | M9: Herne Hill Harriers | N9: 00:04:13.600 | O9: Lee Valley | P9: June 21st | Q9: 2015 | S9: 71 | T9: ARCURI Marco | U9: U20 Men | X9: 71 | Y9: BARNETT Anna | Z9: U20 Women | AC9: 2 | AD9: HORROD-WILSON Warren | AE9: 100m | AG9: 2 | AH9: - | AI9: -
A10: 800 | B10: LUTAKOME Ricky | C10: HUSSEY Oscar | J10: LT04 | K10: 80mH | L10: Joseph Harding | M10: Basildon AC | N10: 11 | O10: Gillingham | P10: April 22nd | Q10: 2017 | S10: 81 | T10: BARBER Joss | U10: U20 Men | X10: 81 | Y10: BARRETT Eleanor | Z10: U17 Women | AD10: - | AE10: - | AH10: - | AI10: -
A11: 800M NS | J11: LFH06 | K11: High Jump | L11: Steven Jones | M11: Liverpool Harriers | N11: 1.87 | O11: Liverpool | P11: June 22nd | Q11: 2014 | S11: 91 | T11: BRANNAN Finlay | U11: U20 Men | X11: 91 | Y11: BENNETT Natasha | Z11: U17 Women | AD11: - | AE11: - | AH11: - | AI11: -
A12: 1500 | B12: MILLS Lewis | C12: BRANNAN Finlay | J12: LFH04 | K12: Pole Vault | L12: Frankie Johnson | M12: Bedford & County AC | N12: 4.32 | O12: Lee Valley | P12: June 21st | Q12: 2015 | S12: 101 | T12: CAHILL Will | U12: U17 Men | X12: 101 | Y12: BRIDSON HUBBARD Niamh | Z12: U20 Women | AD12: - | AE12: - | AH12: - | AI12: -
A13: Sp H | B13: ADAMS Edward | C13: SOFOLARIN Femi | J13: LFW04 | K13: Long Jump | L13: Patrick Sylla | M13: Bournemouth A.C. | N13: 6.82 | O13: Kingston | P13: May 4th | Q13: 2013 | S13: 111 | T13: CORRY Coleman | U13: U17 Men | X13: 111 | Y13: BROOKS Mhairi | Z13: U17 Women | AD13: - | AE13: - | AH13: - | AI13: -
A14: 3000 | B14: ARCURI Marco | C14: CRAWLEY James | J14: LFD06 | K14: Shot Put | L14: Thomas Hanson | M14: Cardiff AAC | N14: 15.49 | O14: Birmingham | P14: Sept 5th | Q14: 2015 | S14: 121 | T14: COTTELL Rico | U14: U17 Men | X14: 121 | Y14: BRUNEY Maya | Z14: U20 Women | AD14: - | AE14: - | AH14: - | AI14: -
A15: SChase | B15: BARBER Joss | C15: MILLS Lewis | J15: LFD04 | K15: Discus | L15: Alfie Scopes | M15: Tonbridge AC | N15: 49.53 | O15: Reading | P15: May 31st | Q15: 2014 | S15: 131 | T15: COWIE Henry-James | U15: U17 Men | X15: 131 | Y15: CHICK Caitlin | Z15: U17 Women | AC15: Reading AC | AG15: Reading AC
A16: 400mH | B16: ADAMS Edward | C16: SCRIVENER Frankie | J16: LFD01 | K16: Hammer | L16: Jake Norris | M16: Windsor Slough Eton & Hounslow | N16: 59.79 | O16: Eton | P16: July 13th | Q16: 2013 | S16: 141 | T16: CRAWLEY James | U16: U20 Men | X16: 141 | Y16: CIENCIALA Katia | Z16: U17 Women | AC16: 3 | AD16: SPRATLEY-KEMP Alex | AE16: Discus | AG16: 3 | AH16: - | AI16: -
A17: Discus | B17: ALADESE Dele | C17: - | J17: LFD07 | K17: Javelin | L17: Max Law | M17: Havering AC | N17: 61.4 | O17: Hornchurch | P17: June 19th | Q17: 2016 | S17: 151 | T17: DAMOAH Michael | U17: U20 Men | X17: 151 | Y17: CIENCIALA Magda | Z17: U20 Women | AD17: - | AE17: - | AH17: - | AI17: -
A18: Hammer | B18: REEVES-FELLOWS Dylan | J18: LTR4 | K18: 4 x 100 Relay | L18: - | M18: Croydon Harriers | N18: 45.4 | O18: Hornchurch | P18: July 19th | Q18: 2014 | S18: 161 | T18: DAVIS Charlie | U18: U20 Men | X18: 161 | Y18: CLARK Belinda | Z18: U20 Women | AD18: - | AE18: - | AH18: - | AI18: -
A19: Javelin | B19: ADAMS Edward | C19: - | J19: LTDR2 | K19: 4 X 300 Relay | L19: - | M19: Rugby & Northampton AC | N19: 00:02:35.800 | O19: Birmingham | P19: Sept 6th | Q19: 2014 | S19: 171 | T19: DURANT Luc | U19: U20 Men | X19: 171 | Y19: CLOWES Jo | Z19: U20 Women | AD19: - | AE19: - | AH19: - | AI19: -
A20: Shot | B20: ALADESE Dele | C20: - | J20: LT11 | K20: 100m | L20: Kareem Jerome | M20: Havering AC | N20: 12 | O20: Basildon | P20: June 21st | Q20: 2015 | S20: 181 | T20: ENSER Aaron | U20: U17 Men | X20: 181 | Y20: CORNISH Kelsi | Z20: U17 Women | AD20: - | AE20: - | AH20: - | AI20: -
A21: Long J | B21: ADESINA Theo X | J21: LT14 | K21: 100m | L21: Kareem Jerome | M21: Havering AC | N21: 12 | O21: Basildon | P21: June 21st | Q21: 2015 | S21: 191 | T21: FARLEY Keiron | U21: U17 Men | X21: 191 | Y21: CRAWFORD Jazz | Z21: U20 Women | AD21: - | AE21: - | AH21: - | AI21: -
A22: Triple J | B22: REEVES-FELLOWS Dylan | J22: LT14 | K22: 100m NS | L22: Abraham Fobil | M22: Sale Harriers | N22: 12 | O22: Liverpool | P22: July 16th | Q22: 2016 | S22: 201 | T22: FRANCIS Matthew | U22: U17 Men | X22: 201 | Y22: DAVIES Anastasia | Z22: U20 Women | AC22: Shaftesbury Barnet Harriers | AG22: Shaftesbury Barnet Harriers
A23: High J | B23: THORNE Harrison X | J23: LT06 | K23: 200m | L23: Abraham Fobil | M23: Sale Harriers | N23: 24.4 | O23: Liverpool | P23: July 16th | Q23: 2016 | S23: 211 | T23: FRANCIS Rhys | U23: U20 Men | X23: 211 | Y23: DOWLING Daisy | Z23: U17 Women | AC23: 4 | AD23: ELLINGTON Aaron | AE23: Long Jump | AG23: 4 | AH23: - | AI23: -
A24: Pole V | B24: SCRIVENER Frankie | J24: LTD82 | K24: 800m | L24: Jaden Kennedy | M24: Herne Hill Harriers | N24: 00:02:09.500 | O24: Hornchurch | P24: June 19th | Q24: 2016 | S24: 221 | T24: GARDINER Benjamin | U24: U17 Men | X24: 221 | Y24: DOWSON Sophie | Z24: U20 Women | AD24: LYON Phoenix | AE24: 100m | AH24: - | AI24: -
A25: r4x11/2: | B25: FRANCIS Rhys | C25: KNIGHT Matthew | J25: LTD86 | K25: 800m NS | L25: Jaden Kennedy | M25: Herne Hill Harriers | N25: 00:02:09.500 | O25: Hornchurch | P25: June 19th | Q25: 2016 | S25: 231 | T25: GBAGBO Joshua | U25: U17 Men | X25: 231 | Y25: EMMETT Shaye | Z25: U20 Women | AD25: ELLINGTON Aaron | AE25: 100m | AH25: PITSIALIS Louisa | AI25: Hammer
A26: r4x13/4: | B26: DAMOAH Michael | C26: LYTTLE Camron | J26: LTD02 | K26: 1500m | L26: Jaden Kennedy | M26: Herne Hill Harriers | N26: 00:04:28.600 | O26: Croydon | P26: July 16th | Q26: 2016 | S26: 241 | T26: GEORGIADIS Joseph | U26: U17 Men | X26: 241 | Y26: FARLEY Lauren | Z26: U17 Women | AD26: ADEBAKIN Michael X | AE26: 100m | AH26: APOOLA Dara X | AI26: 100m
A27: r4x41/2: | B27: POPE William | C27: HARRINGTON Angus X | J27: LT02 | K27: 75mH | L27: Oliver Lambert | M27: Rugby & Northampton A.C. | N27: 11.9 | O27: Cardiff | P27: July 13th | Q27: 2013 | S27: 251 | T27: GLEADALL Pedro | U27: U17 Men | X27: 251 | Y27: FARMER Nicole | Z27: U20 Women | AD27: JAIDEE Shinawat X | AE27: 100m | AH27: JONES Simone | AI27: 100m
A28: r4x43/4: | B28: GBAGBO Joshua X | C28: LUTAKOME Ricky | J28: LFH02 | K28: High Jump | L28: Luke Cressay | M28: Thanet AC | N28: 1.63 | O28: Kingston | P28: July 19th | Q28: 2014 | S28: 261 | T28: GUY Peter | U28: U17 Men | X28: 261 | Y28: FISHER Stephanie | Z28: U20 Women | AD28: LYON Phoenix | AE28: 200m | AH28: WALKER-LAWRENCE Layla | AI28: 100m
A29: clubname: | B29: Crawley AC | J29: LFH02 | K29: High Jump | L29: Lionel Owona | M29: Windsor Slough Eton & Hounslow | N29: 1.63 | O29: Eton | P29: July 18th | Q29: 2015 | S29: 271 | T29: HARRINGTON Angus | U29: U17 Men | X29: 271 | Y29: FULLERTON Grace | Z29: U17 Women | AC29: Team Norfolk © | AG29: Team Norfolk ©
A30: AW_abbr: | B30: Craw | J30: LFW01 | K30: Long Jump | L30: Zachary Elliott | M30: Birchfield Harriers | N30: 5.3 | O30: Rugby | P30: July 19th | Q30: 2014 | S30: 281 | T30: HEANEY-BRUFAL Oscar | U30: U17 Men | X30: 281 | Y30: FUSS Kelsey | Z30: U20 Women | AC30: 5 | AD30: WHITING Edward X | AE30: 800m | AG30: 5 | AH30: JALO Mariama X | AI30: 100m
A31: agegroup: | B31: U20 Men | J31: LFW01 | K31: Long Jump | L31: Morgan Frith | M31: Macclesfield Harriers | N31: 5.3 | O31: Ashton-U-Lyne | P31: July 18th | Q31: 2015 | S31: 291 | T31: HUSSEY Oscar | U31: U20 Men | X31: 291 | Y31: GALLEY Kareena | Z31: U17 Women | AD31: - | AE31: - | AH31: - | AI31: -
A32: bib | B32: 2 | C32: 22 | J32: LFD09 | K32: Shot Put | L32: Sam Mace | M32: Walton A.C. | N32: 12.35 | O32: Sutton | P32: May 4th | Q32: 2013 | S32: 301 | T32: KNIGHT Matthew | U32: U20 Men | X32: 301 | Y32: GRACE Goddard | Z32: U17 Women | AD32: JENNINGS John X | AE32: 100m | AH32: - | AI32: -
A33: 75/100 | B33: MASSIMO Joseph | C33: HOLME Jamie | J33: LFD10 | K33: Javelin | L33: Archie Goodliff | M33: Windsor Slough Eton & Hounslow | N33: 48.28 | O33: Eton | P33: July 18th | Q33: 2015 | S33: 311 | T33: LANCASTER James | U33: U17 Men | X33: 311 | Y33: GUY Mary | Z33: U20 Women | AD33: GREENACRE Jamie X | AE33: 100m | AH33: - | AI33: -
A34: 100M NS | J34: LTR2 | K34: 4 x 100 Relay | L34: - | M34: Croydon Harriers | N34: 51.3 | O34: Hornchurch | P34: July 19th | Q34: 2014 | S34: 321 | T34: LUNDY Keir | U34: U17 Men | X34: 321 | Y34: HARPER Sophia | Z34: U17 Women | AD34: VINCENT Luke | AE34: 100m | AH34: - | AI34: -
A35: 200 | B35: MASSIMO Joseph | J35: LT12 | K35: 100m | L35: Modupe Shokunbi | M35: Havering AC | N35: 12.1 | O35: Woodford | P35: June 22nd | Q35: 2013 | S35: 331 | T35: LUTAKOME Ricky | U35: U20 Men | X35: 331 | Y35: HARRIS Karina | Z35: U17 Women | AD35: SMYTHE Joseph X | AE35: 400m | AH35: - | AI35: -
A36: 400 | B36: CROCKER George | C36: MORGAN-SMITH Charlie | J36: LT15 | K36: 100m NS | L36: Modupe Shokunbi | M36: Havering AC | N36: 12.1 | O36: Woodford | P36: June 22nd | Q36: 2013 | S36: 341 | T36: LYTTLE Camron | U36: U20 Men | X36: 341 | Y36: HILDITCH Isabella | Z36: U20 Women | AC36: Windsor Slough Eton & Hounslow AC | AG36: Windsor Slough Eton & Hounslow AC
A37: 800 | B37: CROCKER George | C37: ANDREWS James | J37: LT07 | K37: 200m | L37: Ashlyn Bland | M37: Gateshead Harriers | N37: 24.6 | O37: Preston | P37: June 22nd | Q37: 2013 | S37: 351 | T37: MILLS Lewis | U37: U20 Men | X37: 351 | Y37: HOARE Sophie | Z37: U17 Women | AC37: 6 | AD37: BLACKWOOD Dean | AE37: Discus | AG37: 6 | AH37: WILLIAMS Jessica | AI37: Discus
A38: 800M NS | J38: LT17 | K38: 300m | L38: Amber Anning | M38: Brighton & Hove | N38: 40.3 | O38: Brighton | P38: May 30th | Q38: 2015 | S38: 361 | T38: MYATT Callum | U38: U17 Men | X38: 361 | Y38: IBIDUNNI Elizabeth | Z38: U20 Women | AD38: SMITH George X | AE38: Javelin | AH38: FREEMAN Julia | AI38: Pole Vault
A39: 1500 | J39: LTD83 | K39: 800m | L39: Tilly Simpson | M39: Hallamshire Harriers | N39: 00:02:07.800 | O39: Rotherham | P39: June 21st | Q39: 2015 | S39: 371 | T39: OGBEDEH Chizute | U39: U17 Men | X39: 371 | Y39: JOHNSON Parris | Z39: U20 Women | AD39: BROOKLING Daniel X | AE39: 400m | AH39: NOWERS Kaliska X | AI39: Pole Vault
A40: Sp H | J40: LTD87 | K40: 800m NS | L40: Tilly Simpson | M40: Hallamshire Harriers | N40: 00:02:07.800 | O40: Rotherham | P40: June 21st | Q40: 2015 | S40: 381 | T40: OKWESA Nana | U40: U17 Men | X40: 381 | Y40: KEENE Jessica | Z40: U20 Women | AD40: - | AE40: - | AH40: KREFTING Ellie X | AI40: 400m Hurdles
A41: 3000 | B41: HOYTE Reuben | J41: LTD03 | K41: 1500m | L41: Josie Czura | M41: C of Portsmouth | N41: 00:04:35.900 | O41: Guildford | P41: May 30th | Q41: 2015 | S41: 391 | T41: POPE George | U41: U17 Men | X41: 391 | Y41: KEITH Eve | Z41: U17 Women | AD41: OJORA Tade | AE41: 100m | AH41: - | AI41: -
A42: SChase | J42: LT03 | K42: 75mH | L42: Niamh McGuigan | M42: Hillingdon AC | N42: 11.1 | O42: Uxbridge | P42: June 1st | Q42: 2013 | S42: 401 | T42: POPE William | U42: U20 Men | X42: 401 | Y42: LEACH Amy | Z42: U20 Women | AD42: OMAR Ridwaan X | AE42: 200m | AH42: FAGAN Alanna | AI42: 400m Hurdles
A43: 400mH | J43: LFH01 | K43: High Jump | L43: Phoebe Harland | M43: Birchfield Harriers | N43: 1.73 | O43: Loughborough | P43: June 21st | Q43: 2015 | S43: 411 | T43: RAJU Caelan | U43: U17 Men | X43: 411 | Y43: LISCIOTTO Tabitha | Z43: U20 Women | AC43: St Helens Sutton AC | AG43: St Helens Sutton AC
A44: Discus | J44: LFH01 | K44: High Jump | L44: Amelia Bateman | M44: Gateshead Harriers | N44: 1.73 | O44: Hull | P44: July 18th | Q44: 2015 | S44: 421 | T44: REEVES-FELLOWS Dylan | U44: U20 Men | X44: 421 | Y44: LOCKE Eloise | Z44: U17 Women | AC44: 7 | AD44: - | AE44: - | AG44: 7 | AH44: - | AI44: -
A45: Hammer | J45: LFH05 | K45: Pole Vault | L45: Jade Spencer Smith | M45: Harrow AC | N45: 3.41 | O45: Reading | P45: June 21st | Q45: 2015 | S45: 431 | T45: REID Prince | U45: U17 Men | X45: 431 | Y45: MACAULAY Hannah | Z45: U17 Women | AD45: - | AE45: - | AH45: - | AI45: -
A46: Javelin | J46: LFW02 | K46: Long Jump | L46: Ore Adamson | M46: Herne Hill Harriers | N46: 5.6 | O46: Tooting Bec | P46: May 21st | Q46: 2016 | S46: 441 | T46: REYNOLDS-WARMINGTON Kyle | U46: U17 Men | X46: 441 | Y46: MARGHINI Yasmin | Z46: U17 Women | AD46: - | AE46: - | AH46: - | AI46: -
A47: Shot | J47: LFD11 | K47: Shot Put | L47: Ellie Hodgson | M47: Southampton AC | N47: 12.94 | O47: Bournemouth | P47: June 22nd | Q47: 2014 | S47: 451 | T47: SCHWARTZ Ocean | U47: U20 Men | X47: 451 | Y47: MARSDEN Carys | Z47: U20 Women | AD47: - | AE47: - | AH47: - | AI47: -
A48: Long J | B48: BISHOP David | J48: LFD05 | K48: Discus | L48: Sophie Mace | M48: Walton AC | N48: 39.94 | O48: Sutton | P48: May 4th | Q48: 2013 | S48: 461 | T48: SCRIVENER Frankie | U48: U20 Men | X48: 461 | Y48: MARTIAL Zoe | Z48: U17 Women | AD48: - | AE48: - | AH48: - | AI48: -
A49: Triple J | B49: BISHOP David | J49: LFD02 | K49: Hammer | L49: Phoebe Baggott | M49: Wolverhampton & Bilston | N49: 55.15 | O49: Telford | P49: July 16th | Q49: 2016 | S49: 471 | T49: SHORT Charlie | U49: U17 Men | X49: 471 | Y49: MCDONALD Katy-Ann | Z49: U20 Women | AD49: - | AE49: - | AH49: - | AI49: -
A50: High J | B50: BISHOP David | J50: LFD08 | K50: Javelin | L50: Bethany Moule | M50: Neath Harriers | N50: 45.76 | O50: Gloucester | P50: Apr 23rd | Q50: 2016 | S50: 481 | T50: SOFOLARIN Femi | U50: U20 Men | X50: 481 | Y50: MILLS Holly | Z50: U20 Women | AC50: Stockport Harriers & AC | AG50: Stockport Harriers & AC
A51: Pole V | J51: LTR3 | K51: 4 x 100 Relay | L51: - | M51: Enfield & Haringey AC | N51: 48.61 | O51: Lee Valley | P51: June 21st | Q51: 2015 | S51: 491 | T51: STICKINGS Bailey | U51: U20 Men | X51: 491 | Y51: MURPHY Catrin | Z51: U20 Women | AC51: 8 | AD51: - | AE51: - | AG51: 8 | AH51: - | AI51: -
A52: r4x11/2: | B52: MASSIMO Joseph | C52: HOLME Jamie | J52: LTDR1 | K52: 4 X 300 Relay | L52: - | M52: Sale Harriers | N52: 00:02:51.300 | O52: Liverpool | P52: July 16th | Q52: 2016 | S52: 501 | T52: STICKINGS Lewis | U52: U17 Men | X52: 501 | Y52: OLADIPO Divine | Z52: U20 Women | AD52: - | AE52: - | AH52: - | AI52: -
A53: r4x13/4: | J53: LT09 | K53: 75m | L53: Alicia Regis | M53: Enfield & Haringey AC | N53: 9.7 | O53: Southampton | P53: May 3rd | Q53: 2014 | S53: 511 | T53: SUCKLING Robert | U53: U17 Men | X53: 511 | Y53: OLAJIDE Funminiyi | Z53: U17 Women | AD53: - | AE53: - | AH53: - | AI53: -
A54: r4x41/2: | B54: CROCKER George | C54: ANDREWS James | J54: LT10 | K54: 75m | L54: Alicia Regis | M54: Enfield & Haringey AC | N54: 9.7 | O54: Southampton | P54: May 3rd | Q54: 2014 | S54: 521 | T54: SUTTON Ben | U54: U17 Men | X54: 521 | Y54: OLALERE Anika | Z54: U20 Women | AD54: - | AE54: - | AH54: - | AI54: -
A55: r4x43/4: | B55: MORGAN-SMITH Charlie | J55: LT10 | K55: 75m NS | L55: Lauryn Walker | M55: Birchfield Harriers | N55: 9.7 | O55: Rugby | P55: July 19th | Q55: 2014 | S55: 531 | T55: SWATTON Cameron | U55: U17 Men | X55: 531 | Y55: ORELAJA Toyin | Z55: U20 Women | AD55: - | AE55: - | AH55: - | AI55: -
A56: clubname: | B56: Reading AC | J56: LT05 | K56: 150m | L56: Alicia Regis | M56: Enfield & Haringey AC | N56: 18.7 | O56: Tooting Bec | P56: July 19th | Q56: 2014 | S56: 541 | T56: SWINFEN Chris | U56: U17 Men | X56: 541 | Y56: OROGUN Isio | Z56: U20 Women | AD56: - | AE56: - | AH56: - | AI56: -
A57: AW_abbr: | B57: Read | J57: LTD81 | K57: 800m | L57: Elizabeth Wilkinson | M57: City of Sheffield | N57: 00:02:20.100 | O57: Doncaster | P57: May 31st | Q57: 2014 | S57: 551 | T57: THORNE Harrison | U57: U17 Men | X57: 551 | Y57: O'SHAUGHNESSY Eloise | Z57: U17 Women
A58: agegroup: | B58: U20 Men | J58: LTD85 | K58: 800m NS | L58: Elizabeth Wilkinson | M58: City of Sheffield | N58: 00:02:20.100 | O58: Doncaster | P58: May 31st | Q58: 2014 | S58: 561 | T58: WARREN Lewis | U58: U17 Men | X58: 561 | Y58: PRENTICE Alice | Z58: U17 Women
A59: bib | B59: 3 | C59: 33 | J59: LTD01 | K59: 1200m | L59: Keeley Hodgkinson | M59: Leigh Harriers | N59: 00:03:43.200 | O59: Litherland | P59: July 19th | Q59: 2014 | S59: 571 | T59: WATSON Joshua | U59: U17 Men | X59: 571 | Y59: PURSER Kate | Z59: U20 Women
A60: 75/100 | B60: JORDAN Ramone | C60: HEGGARTY Tom X | J60: LT01 | K60: 70mH | L60: Cleo Martin-Evans | M60: Daventry AC | N60: 10.9 | O60: Nuneaton | P60: July 18th | Q60: 2015 | S60: 581 | T60: WHITEAKER James | U60: U20 Men | X60: 581 | Y60: RADUS Lia | Z60: U17 Women
A61: 100M NS | J61: LFH03 | K61: High Jump | L61: Jade Curtis | M61: Ashford AC | N61: 1.6 | O61: Kingston | P61: July 19th | Q61: 2014 | S61: 591 | T61: XAVIER Myles | U61: U17 Men | X61: 591 | Y61: RICHER Olivia | Z61: U20 Women
A62: 200 | B62: LEWIS-SHALLOW Blaine | C62: JORDAN Ramone | J62: LFW03 | K62: Long Jump | L62: Ore Adamson | M62: Herne Hill Harriers | N62: 5.16 | O62: Reading | P62: May 31st | Q62: 2014 | T62: athlete | U62: agegroup | X62: 601 | Y62: RISKEY Shannon | Z62: U20 Women
A63: 400 | B63: LEWIS-SHALLOW Blaine | J63: LFD03 | K63: Shot Put | L63: Kirsty Finlay | M63: Leicester Coritanian AC | N63: 10.8 | O63: Sutton Coldfield | P63: June 22nd | Q63: 2014 | S63: 12 | T63: ANDREWS James | U63: U20 Men | X63: 611 | Y63: ROBINSON-PASCAL Jamiyla | Z63: U20 Women
A64: 800 | B64: KANYADY Shreyas | C64: RAY Daniel | J64: LFD12 | K64: Javelin | L64: Anouska Fairhurst | M64: Lewes AC | N64: 37.37 | O64: Lewes | P64: June 19th | Q64: 2016 | S64: 22 | T64: ARONSON HENRY | U64: U17 Men | X64: 621 | Y64: ROBINSON-PASCAL Kamiyla | Z64: U17 Women
A65: 800M NS | J65: LTR1 | K65: 4 x 100 Relay | L65: - | M65: Croydon Harriers | N65: 52.2 | O65: Hornchurch | P65: July 19th | Q65: 2014 | S65: 32 | T65: BERRISFORD OLIVER | U65: U17 Men | X65: 631 | Y65: SAMOILA Madalina | Z65: U17 Women
A66: 1500 | B66: COOK Peter | C66: KANYADY Shreyas | J66: LTR1 | K66: 4 x 100 Relay | L66: - | M66: Thames Valley Harriers | N66: 52.2 | O66: Guildford | P66: May 30th | Q66: 2015 | S66: 42 | T66: BISHOP David | U66: U20 Men | X66: 641 | Y66: SCOPES Grace | Z66: U17 Women
A67: Sp H | J67: UT05 | K67: 100m | L67: Rio Mitcham | M67: Birchfield Harriers | N67: 10.3 | O67: Nottingham | P67: April 30th | Q67: 2017 | S67: 52 | T67: BLANCHARD James | U67: U20 Men | X67: 651 | Y67: SEARS Imogen | Z67: U17 Women
A68: 3000 | B68: RAY Daniel | C68: SUTTON Alex | J68: UT17 | K68: 200m | L68: Thomas Somers | M68: City of York | N68: 20.9 | O68: Spinkhill | P68: April 27th | Q68: 2014 | S68: 62 | T68: BOXALL Matthew | U68: U20 Men | X68: 661 | Y68: SELLAR Jessica | Z68: U17 Women
A69: SChase | J69: UT09 | K69: 400m | L69: Jack Crosby | M69: Middlesbrough A.C. (Mandale) | N69: 48 | O69: Doncaster | P69: June 2nd | Q69: 2013 | S69: 72 | T69: BURNETT Alfie | U69: U20 Men | X69: 671 | Y69: SHEASBY Jennifer | Z69: U20 Women
A70: 400mH | B70: MILLAR Jack | J70: UTD81 | K70: 800m | L70: Theo Blundell | M70: Birchfield Harriers | N70: 00:01:51.500 | O70: Birmingham | P70: Sept 8th | Q70: 2013 | S70: 82 | T70: CLAYTON Joseph | U70: U17 Men | X70: 681 | Y70: SHOKUNBI Modupe | Z70: U20 Women
A71: Discus | B71: HEWITT Oliver | J71: UTD01 | K71: 1500m | L71: Josh Kerr | M71: Team Edinburgh | N71: 00:03:48.300 | O71: Manchester | P71: May 16th | Q71: 2015 | S71: 92 | T71: COOK George | U71: U20 Men | X71: 691 | Y71: SHOKUNBI Yinka | Z71: U17 Women
A72: Hammer | B72: HEWITT Oliver | C72: WEBB Daniel | J72: UTD06 | K72: 3000m | L72: Abel Tsegay | M72: Invicta's Paddock | N72: 00:08:27.300 | O72: Ashford | P72: June 29th | Q72: 2014 | S72: 102 | T72: COOPER Maxwell | U72: U17 Men | X72: 701 | Y72: SMITH Millie | Z72: U17 Women
A73: Javelin | B73: HEWITT Oliver | J73: UT16 | K73: 110mH | L73: Jason Nicholson | M73: Gateshead Harriers | N73: 13.9 | O73: Hull | P73: April 30th | Q73: 2017 | S73: 112 | T73: CROCKER George | U73: U20 Men | X73: 711 | Y73: SWATTON Elise | Z73: U17 Women
A74: Shot | B74: SPRATLEY-KEMP Alex | C74: HEWITT Oliver | J74: UT01 | K74: 400mH | L74: Jacob Paul | M74: Windsor Slough Eton & Hounslow | N74: 52.03 | O74: Basildon | P74: April 28th | Q74: 2013 | S74: 122 | T74: DALLIMORE Jacob | U74: U17 Men | X74: 721 | Y74: TAPPENDEN Lily | Z74: U17 Women
A75: Long J | B75: NAWAH David | J75: UTD11 | K75: 2000m S/C | L75: Jarmaine Coleman | M75: Preston Harriers | N75: 00:05:59.090 | O75: Manchester | P75: June 2nd | Q75: 2013 | S75: 132 | T75: DOWDING Oliver | U75: U17 Men | X75: 731 | Y75: TAYLOR Georgina | Z75: U20 Women
A76: Triple J | B76: NAWAH David | J76: UFH03 | K76: High Jump | L76: Chris Kandu | M76: Enfield & Haringey | N76: 2.14 | O76: Bromley | P76: June 2nd | Q76: 2013 | S76: 142 | T76: EVANS Reuben | U76: U17 Men | X76: 741 | Y76: TAYLOR Stephanie | Z76: U17 Women
A77: High J | B77: OGUNLELA Sanmi | C77: NAWAH David | J77: UFH05 | K77: Pole Vault | L77: Adam Hague | M77: City of Sheffield | N77: 5.25 | O77: Birmingham | P77: Sept 6th | Q77: 2015 | S77: 152 | T77: GADSDON Samuel | U77: U17 Men | X77: 751 | Y77: TOFT Nicole | Z77: U20 Women
A78: Pole V | J78: UFW01 | K78: Long Jump | L78: Michael Causer | M78: St. Helens Sutton A.C. | N78: 7.37 | O78: Salford | P78: June 2nd | Q78: 2013 | S78: 162 | T78: GILL Noel | U78: U17 Men | X78: 761 | Y78: WALSH Megan | Z78: U20 Women
A79: r4x11/2: | B79: JORDAN Ramone | C79: MILLAR Jack | J79: UFW05 | K79: Triple Jump | L79: Montel Nevers | M79: Notts A.C. | N79: 14.76 | O79: Abingdon | P79: June 30th | Q79: 2013 | S79: 172 | T79: GREEN Alex | U79: U17 Men | X79: 771 | Y79: WALTON Bekah | Z79: U20 Women
A80: r4x13/4: | B80: NAWAH David | C80: NORTH Harry X | J80: UFD11 | K80: Shot Put | L80: George Evans | M80: Shaftesbury Barnet Harriers | N80: 17.79 | O80: Hendon | P80: June 26th | Q80: 2016 | S80: 182 | T80: GREENLAND Luke | U80: U17 Men | X80: 781 | Y80: WEBSTER-TAPE Charmont | Z80: U20 Women
A81: r4x41/2: | B81: LEWIS-SHALLOW Blaine | C81: MILLAR Jack | J81: UFD15 | K81: Discus | L81: Nick Percy | M81: Shaftesbury Barnet Harriers | N81: 60.75 | O81: Basildon | P81: April 28th | Q81: 2013 | S81: 192 | T81: GRIFFIN Ben | U81: U17 Men | X81: 791 | Y81: WEITZEL Carlotta | Z81: U20 Women
A82: r4x43/4: | B82: KANYADY Shreyas | C82: COOK Peter | J82: UFD01 | K82: Hammer | L82: Jake Norris | M82: Windsor Slough Eton & Hounslow | N82: 72.94 | O82: Norwich | P82: April 30th | Q82: 2017 | S82: 202 | T82: HAINES Jonny | U82: U20 Men | X82: 801 | Y82: WILTSHIRE Victoria | Z82: U20 Women
A83: clubname: | B83: Shaftesbury Barnet Harriers | J83: UFD05 | K83: Javelin | L83: James Whiteaker | M83: Blackheath & Bromley Harriers A.C. | N83: 73.4 | O83: Norwich | P83: April 30th | Q83: 2017 | S83: 212 | T83: HAWES Hugo | U83: U17 Men | X83: 811 | Y83: WOOLCOTT Katie | Z83: U17 Women
A84: AW_abbr: | B84: SB | J84: UTR4 | K84: 4 x 100 Relay | L84: - | M84: Croydon Harriers | N84: 42 | O84: Dartford | P84: April 30th | Q84: 2017 | S84: 222 | T84: HAYWARD MORGAN | U84: U17 Men | Y84: athlete | Z84: agegroup
A85: agegroup: | B85: U20 Men | J85: UTDR4 | K85: 4 X 400 Relay | L85: - | M85: Liverpool Harriers | N85: 00:03:20.800 | O85: Meadowbank | P85: June 30th | Q85: 2013 | S85: 232 | T85: HEAP Stanley | U85: U17 Men | X85: 12 | Y85: AKOACHERE Johanna | Z85: U17 Women
A86: bib | B86: 4 | C86: 44 | J86: UT06 | K86: 100m | L86: Ryan Gorman | M86: Notts AC | N86: 10.76 | O86: Birmingham/Stevenage/Bedford | P86: April 27th | Q86: 2014 | S86: 242 | T86: HEWITT Hugo | U86: U17 Men | X86: 22 | Y86: ALEXANDER Charlotte | Z86: U17 Women
A87: 75/100 | B87: JAJA Dita | C87: BERKELEY Jacob | J87: UT06 | K87: 100m | L87: Dominic Ashwell | M87: Shaftesbury Barnet Harriers | N87: 10.76 | O87: Stevenage | P87: April 18th | Q87: 2015 | S87: 252 | T87: HOBBS Monty | U87: U20 Men | X87: 32 | Y87: ALLEN Alicia | Z87: U17 Women
A88: 100M NS | J88: UT06 | K88: 100m | L88: Dita Jaja | M88: Shaftesbury Barnet Harriers | N88: 10.76 | O88: Bedford | P88: Sept 4th | Q88: 2016 | S88: 262 | T88: HOLME Jamie | U88: U20 Men | X88: 42 | Y88: ANDERSON Eden | Z88: U17 Women
A89: 200 | B89: SMITH Luke | C89: OKOH Chenna | J89: UT18 | K89: 200m | L89: Ryan Gorman | M89: Notts AC | N89: 21.64 | O89: Birmingham | P89: April 27th | Q89: 2014 | S89: 272 | T89: HORROD-WILSON Warren | U89: U20 Men | X89: 52 | Y89: ARCHARD Jasmine | Z89: U17 Women
A90: 400 | B90: PAGAN Matthew | C90: LEWIS Matthew | J90: UT10 | K90: 400m | L90: George Mills | M90: Harrogate Scarborough & Wetherby | N90: 49.13 | O90: Gateshead | P90: June 28th | Q90: 2015 | S90: 282 | T90: HOYTE Reuben | U90: U20 Men | X90: 62 | Y90: ASANTE Brittany | Z90: U20 Women
A91: 800 | B91: FULTON Thomas | C91: ARBE Najibe X | J91: UTD82 | K91: 800m | L91: Ben Read | M91: Wakefield | N91: 00:01:55.500 | O91: Stretford | P91: June 29th | Q91: 2014 | S91: 292 | T91: JENKINS Alex | U91: U20 Men | X91: 72 | Y91: ASLETT Kiera | Z91: U17 Women
A92: 800M NS | J92: UTD02 | K92: 1500m | L92: Josh Kerr | M92: Team Edinburgh | N92: 00:03:56.700 | O92: Stretford | P92: June 29th | Q92: 2014 | S92: 302 | T92: JONES Marcus | U92: U17 Men | X92: 82 | Y92: BISHOP Sian | Z92: U20 Women
A93: 1500 | B93: KADIR Hamza | C93: KENT Rufus | J93: UTD05 | K93: 3000m | L93: Isaac Akers | M93: Rugby & Northants | N93: 00:08:49.230 | O93: Birmingham | P93: May 16th | Q93: 2015 | S93: 312 | T93: KEALEY Jamie | U93: U17 Men | X93: 92 | Y93: BOXALL Joanna | Z93: U20 Women
A94: Sp H | B94: GOMES Edson | C94: DAVIS James | J94: UT15 | K94: 100mH | L94: Tre Thomas | M94: Charnwood AC | N94: 12.8 | O94: Banbury | P94: May 1st | Q94: 2016 | S94: 322 | T94: KEWLEY Callum | U94: U20 Men | X94: 102 | Y94: BRISTOWE Katie | Z94: U17 Women
A95: 3000 | B95: BUTLER Tom | C95: CROSS Louis | J95: UT02 | K95: 400mH | L95: Bailey Stickings | M95: Blackheath & Bromley Harriers A.C. | N95: 54.05 | O95: Birmingham | P95: Sept 7th | Q95: 2014 | S95: 332 | T95: LEACH Harrison | U95: U17 Men | X95: 112 | Y95: BRITTAIN Emma | Z95: U17 Women
A96: SChase | B96: GROOM George | C96: BUTLER Tom | J96: UTD12 | K96: 1500m S/C | L96: Chey Blatchford Kemp | M96: Reading AC | N96: 00:04:22.400 | O96: Eton | P96: May 1st | Q96: 2016 | S96: 342 | T96: LEWIS Aaron | U96: U20 Men | X96: 122 | Y96: BRITTAIN Katie | Z96: U17 Women
A97: 400mH | B97: GROOM George | C97: DAVIS James | J97: UFH04 | K97: High Jump | L97: Joel Khan | M97: Rugby & Northants | N97: 2.08 | O97: Stoke on Trent | P97: June 26th | Q97: 2016 | S97: 352 | T97: LOACH Joshua | U97: U17 Men | X97: 132 | Y97: BROTHERS Orla | Z97: U20 Women
A98: Discus | B98: EVANS George | C98: THOMAS Nathan | J98: UFH06 | K98: Pole Vault | L98: Frankie Johnson | M98: Bedford & County | N98: 4.8 | O98: Bedford | P98: June 26th | Q98: 2016 | S98: 362 | T98: MASSIMO Joseph | U98: U20 Men | X98: 142 | Y98: CAMPBELL Tamsin | Z98: U20 Women
A99: Hammer | B99: EVANS George | C99: PRAIM-SINGH Billy | J99: UFW02 | K99: Long Jump | L99: Jacob Fincham Dukes | M99: Leeds City A.C. | N99: 6.92 | O99: Leeds | P99: June 2nd | Q99: 2013 | S99: 372 | T99: MORGAN-SMITH Charlie | U99: U20 Men | X99: 152 | Y99: CARLETON-SMITH Katinka | Z99: U17 Women
A100: Javelin | B100: EVANS George | C100: PRAIM-SINGH Billy | J100: UFW06 | K100: Triple Jump | L100: Stefan Amokwandoh | M100: Blackheath & Bromley Harriers A.C. | N100: 14.62 | O100: Birmingham | P100: Sept 8th | Q100: 2013 | S100: 382 | T100: PACKHAM Nathan | U100: U20 Men | X100: 162 | Y100: CHEESEMAN Melissa | Z100: U20 Women
A101: Shot | B101: EVANS George | C101: PRAIM-SINGH Billy | J101: UFD12 | K101: Shot Put | L101: Daniel Cartwright | M101: Birchfield Harriers | N101: 17.58 | O101: Milton Keynes | P101: April 18th | Q101: 2015 | S101: 392 | T101: PERANA Anold | U101: U17 Men | X101: 172 | Y101: COLE Cicely | Z101: U20 Women
A102: Long J | B102: GOMES Edson | J102: UFD16 | K102: Discus | L102: James Tomlinson | M102: West Wales | N102: 57.43 | O102: Newport | P102: May 29th | Q102: 2016 | S102: 402 | T102: PERSAD Joshua | U102: U20 Men | X102: 182 | Y102: CROCKER Alison | Z102: U20 Women
A103: Triple J | B103: ADEJONWO Abbas | C103: ELLINGTON Aaron | J103: UFD02 | K103: Hammer | L103: Jake Norris | M103: Windsor Slough Eton & Hounslow | N103: 73.25 | O103: Lee Valley | P103: May 16th | Q103: 2015 | S103: 412 | T103: PITTS Tom | U103: U17 Men | X103: 192 | Y103: DOWLE Olivia | Z103: U20 Women
A104: High J | B104: WEBSTER Scott | C104: HARPER Jamie X | J104: UFD06 | K104: Javelin | L104: George Davis | M104: City of York A.C. | N104: 69.96 | O104: Spinkhill | P104: April 27th | Q104: 2014 | S104: 422 | T104: POWELL Cole | U104: U17 Men | X104: 202 | Y104: DOWLE Sophie | Z104: U20 Women
A105: Pole V | B105: HAJIPANAYI Ross | J105: UTR2 | K105: 4 x 100 Relay | L105: - | M105: Croydon Harriers | N105: 43.2 | O105: Croydon | P105: July 28th | Q105: 2013 | S105: 432 | T105: PRINCE Harry | U105: U17 Men | X105: 212 | Y105: EMENS Jessica | Z105: U20 Women
A106: r4x11/2: | B106: SMITH Luke | C106: LYON Phoenix | J106: UTDR2 | K106: 4 X 400 Relay | L106: - | M106: Blackheath & Bromley Harriers A.C. | N106: 00:03:26.490 | O106: Birmingham | P106: Sept 7th | Q106: 2014 | S106: 442 | T106: RITCHIE Munroe | U106: U20 Men | X106: 222 | Y106: FORDE Tia | Z106: U20 Women
A107: r4x13/4: | B107: BERKELEY Jacob | C107: OKOH Chenna | J107: UT07 | K107: 100m | L107: Dina Asher-Smith | M107: Blackheath & Bromley Harriers A.C. | N107: 11.49 | O107: Norwich | P107: April 27th | Q107: 2014 | S107: 452 | T107: ROBINSON Jamie | U107: U20 Men | X107: 232 | Y107: FRANKLIN Ellie | Z107: U17 Women
A108: r4x41/2: | B108: LEWIS Matthew | C108: KADIR Hamza | J108: UT19 | K108: 200m | L108: Dina Asher-Smith | M108: Blackheath & Bromley Harriers A.C. | N108: 23.08 | O108: Norwich | P108: April 27th | Q108: 2014 | S108: 462 | T108: SAIDY Modou Lamin | U108: U17 Men | X108: 242 | Y108: FRANKS Lillie | Z108: U20 Women
A109: r4x43/4: | B109: FULTON Thomas | C109: PAGAN Matthew | J109: UT11 | K109: 400m | L109: Lina Nielson | M109: Enfield & Haringey A.C. | N109: 54.38 | O109: Stevenage | P109: April 18th | Q109: 2015 | S109: 472 | T109: SAIT Aaron | U109: U17 Men | X109: 252 | Y109: HAIGH Ellie | Z109: U17 Women
A110: clubname: | B110: Team Norfolk © | J110: UTD83 | K110: 800m | L110: Victoria Weir | M110: Team DC | N110: 00:02:10.700 | O110: Newport | P110: May 29th | Q110: 2016 | S110: 482 | T110: SAUNDERS Ben | U110: U17 Men | X110: 262 | Y110: HANSLOW April | Z110: U20 Women
A111: AW_abbr: | B111: Norfolk | J111: UTD03 | K111: 1500m | L111: Niamh Bridson-Hubbard | M111: Blackheath & Bromley Harriers A.C. | N111: 00:04:29.900 | O111: Hendon | P111: June 26th | Q111: 2016 | S111: 492 | T111: SMITH joe | U111: U17 Men | X111: 272 | Y111: HAWKSLEY Aimee | Z111: U17 Women
A112: agegroup: | B112: U20 Men | J112: UTD08 | K112: 3000m | L112: Victoria Weir | M112: Team DC | N112: 00:09:37.560 | O112: Yeovil | P112: July 24th | Q112: 2016 | S112: 502 | T112: STIDDER Daniel | U112: U20 Men | X112: 282 | Y112: HUXSTEP Sarah | Z112: U20 Women
A113: bib | B113: 5 | C113: 55 | J113: UT14 | K113: 100mH | L113: Jessica Hunter | M113: Vale of Aylesbury | N113: 14 | O113: Guildford | P113: July 27th | Q113: 2014 | S113: 512 | T113: STONE Jordan | U113: U17 Men | X113: 292 | Y113: IRELAND Estelle | Z113: U17 Women
A114: 75/100 | B114: MATSUKA-WILLIAMS Ben | C114: COOPER Ashley | J114: UT03 | K114: 400mH | L114: Shona Richards | M114: Windsor Slough Eton & Hounslow | N114: 57.91 | O114: Norwich | P114: April 27th | Q114: 2014 | S114: 522 | T114: STOREY Oliver | U114: U17 Men | X114: 302 | Y114: JAMES Sasha | Z114: U17 Women
A115: 100M NS | J115: UTD10 | K115: 1500m S/C | L115: Aimee Pratt | M115: Sale Harriers | N115: 00:04:51.700 | O115: Blackburn | P115: May 1st | Q115: 2016 | S115: 532 | T115: THAYRE Thomas | U115: U17 Men | X115: 312 | Y115: LAMBERT Jessica | Z115: U17 Women
A116: 200 | B116: MATSUKA-WILLIAMS Ben | C116: COOPER Ashley | J116: UFH07 | K116: High Jump | L116: Ada'oro Chigbo | M116: Team Avon | N116: 1.8 | O116: Yate | P116: April 18th | Q116: 2015 | S116: 542 | T116: TURNER George | U116: U20 Men | X116: 322 | Y116: LANGHAM Georgia | Z116: U20 Women
A117: 400 | J117: UFH01 | K117: Pole Vault | L117: Abigail Roberts | M117: City of Sheffield | N117: 3.95 | O117: Preston | P117: June 28th | Q117: 2015 | S117: 552 | T117: TURNER Rhys | U117: U20 Men | X117: 332 | Y117: LETHBRIDGE Lauren | Z117: U17 Women
A118: 800 | J118: UFW03 | K118: Long Jump | L118: Eleanor Broome | M118: Rugby & Northants | N118: 6.26 | O118: Worcester | P118: May 29th | Q118: 2016 | S118: 562 | T118: WOODFORD Jack | U118: U17 Men | X118: 342 | Y118: LINTURN Abigail | Z118: U20 Women
A119: 800M NS | J119: UFW07 | K119: Triple Jump | L119: Emily Gargan | M119: Gateshead Harriers | N119: 12.68 | O119: Hull | P119: April 30th | Q119: 2017 | S119: 572 | T119: WYETH Owen | U119: U20 Men | X119: 352 | Y119: LINTURN Sophie | Z119: U20 Women
A120: 1500 | J120: UFD07 | K120: Shot Put | L120: Adele Nicoll | M120: Birchfield Harriers | N120: 14.9 | O120: Wolverhampton | P120: July 26th | Q120: 2015 | T120: athlete | U120: agegroup | X120: 362 | Y120: MARSHALL Kaujaruruamo | Z120: U17 Women
A121: Sp H | B121: GREENHALGH James | C121: PROTHEROE Nathan | J121: UFD13 | K121: Discus | L121: Amy Holder | M121: Windsor Slough Eton & Hounslow | N121: 51.89 | O121: Stevenage | P121: April 18th | Q121: 2015 | S121: 13 | T121: ANIMASHAUN Daniel | U121: U17 Men | X121: 372 | Y121: MAURICE-JONES Freya | Z121: U17 Women
A122: 3000 | J122: UFD03 | K122: Hammer | L122: Kimberley Reed | M122: Team Edinburgh | N122: 60.48 | O122: Edinburgh | P122: April 27th | Q122: 2014 | S122: 23 | T122: ASHDOWN-TAYLOR Charlie | U122: U20 Men | X122: 382 | Y122: MCMURRAY Jasmine | Z122: U20 Women
A123: SChase | J123: UFD09 | K123: Javelin | L123: Natasha Wilson | M123: Sale Harriers | N123: 46.92 | O123: Preston | P123: July 28th | Q123: 2013 | S123: 33 | T123: BLATCHFORD-KEMP Chey | U123: U20 Men | X123: 392 | Y123: MCQUILLIN Isabel | Z123: U20 Women
A124: 400mH | B124: GREENHALGH James | C124: BENSON Rahim | J124: UTR3 | K124: 4 x 100 Relay | L124: - | M124: Blackheath & Bromley Harriers A.C. | N124: 46.43 | O124: Bromley | P124: June 1st | Q124: 2014 | S124: 43 | T124: CABLE Joel | U124: U17 Men | X124: 402 | Y124: MULLAN Olivia | Z124: U17 Women
A125: Discus | B125: MASSINGHAM Oliver | J125: UTDR3 | K125: 4 X 400 Relay | L125: - | M125: Enfield & Haringey A.C. | N125: 00:03:49.690 | O125: Hendon | P125: June 28th | Q125: 2015 | S125: 53 | T125: CLIFFORD Danny | U125: U20 Men | X125: 412 | Y125: PACKHAM Madison | Z125: U17 Women
A126: Hammer | B126: NICHOLSON Joseph | J126: UT08 | K126: 100m | L126: Gina Akpe-Moses | M126: Birchfield Harriers | N126: 11.85 | O126: Birmingham | P126: May 16th | Q126: 2015 | S126: 63 | T126: COOK Peter | U126: U20 Men | X126: 422 | Y126: PELLETT Vicki | Z126: U20 Women
A127: Javelin | B127: MASSINGHAM Oliver | J127: UT20 | K127: 200m | L127: Charlotte McLennaghan | M127: Notts AC | N127: 23.92 | O127: Birmingham | P127: April 27th | Q127: 2014 | S127: 73 | T127: FENWICK Phoebe | U127: U20 Men | X127: 432 | Y127: PETERS Kathy | Z127: U20 Women
A128: Shot | B128: MASSINGHAM Oliver | J128: UT12 | K128: 300m | L128: Cheriece Hylton | M128: Blackheath & Bromley Harriers A.C. | N128: 38.47 | O128: Birmingham | P128: Sept 8th | Q128: 2013 | S128: 83 | T128: GARDENER james | U128: U17 Men | X128: 442 | Y128: PRATT Emily | Z128: U20 Women
A129: Long J | B129: MATSUKA-WILLIAMS Wesley | C129: COOPER Ashley | J129: UTD84 | K129: 800m | L129: Katy-Ann McDonald | M129: Blackheath & Bromley Harriers A.C. | N129: 00:02:06.800 | O129: Bedford | P129: Sept 4th | Q129: 2016 | S129: 93 | T129: GURUNG Chritish | U129: U17 Men | X129: 452 | Y129: PRESTON Adeline | Z129: U17 Women
A130: Triple J | B130: BENSON Rahim | J130: UTD04 | K130: 1500m | L130: Sabrina Sinha | M130: Cambridge Harriers | N130: 00:04:31 | O130: Mile End | P130: April 27th | Q130: 2014 | S130: 103 | T130: HANNAWIN Patrick | U130: U20 Men | X130: 462 | Y130: PURCHAS Natasha | Z130: U17 Women
A131: High J | B131: PROTHEROE Nathan | J131: UTD07 | K131: 3000m | L131: Claudia Lance-Jones | M131: Guildford & Godalming AC | N131: 00:09:56 | O131: Guildford | P131: April 30th | Q131: 2017 | S131: 113 | T131: HEGGARTY Tom | U131: U17 Men | X131: 472 | Y131: RIDGWELL TAMSYN | Z131: U17 Women
A132: Pole V | J132: UT13 | K132: 80mH | L132: Alicia Barrett | M132: Chesterfield | N132: 11.2 | O132: Grimsby | P132: June 29th | Q132: 2014 | S132: 123 | T132: HENRY Malachi | U132: U17 Men | X132: 482 | Y132: ROBINSON Jessica | Z132: U20 Women
A133: r4x11/2: | B133: COOPER Ashley | C133: VINCENT Luke | J133: UT04 | K133: 300mH | L133: Abigail Bowers | M133: Border Olympians | N133: 43.2 | O133: Banbury | P133: June 1st | Q133: 2014 | S133: 133 | T133: HEWITT Oliver | U133: U20 Men | X133: 492 | Y133: SAUNDERS Louisa | Z133: U17 Women
A134: r4x13/4: | B134: GREENHALGH James | C134: MATSUKA-WILLIAMS Ben | J134: UTD09 | K134: 1500m S/C | L134: Holly Page | M134: Dartford Harriers | N134: 00:04:59.500 | O134: Dartford | P134: May 1st | Q134: 2016 | S134: 143 | T134: HOLT Peter | U134: U17 Men | X134: 502 | Y134: SEXTON Katie | Z134: U20 Women
A135: r4x41/2: | B135: WILLIAMS Charlie X | C135: WHITING Edward X | J135: UFH08 | K135: High Jump | L135: Morgan Lake | M135: Windsor Slough Eton & Hounslow | N135: 1.8 | O135: Allianz Park | P135: July 28th | Q135: 2013 | S135: 153 | T135: JORDAN Ramone | U135: U20 Men | X135: 512 | Y135: SMART Becky | Z135: U20 Women
A136: r4x43/4: | B136: MAHONEY William X | C136: BENSON Rahim | J136: UFH02 | K136: Pole Vault | L136: Molly Caudery | M136: Team DC | N136: 4.06 | O136: Yeovil | P136: July 24th | Q136: 2016 | S136: 163 | T136: KANYADY Shreyas | U136: U20 Men | X136: 522 | Y136: STEER Alice | Z136: U17 Women
A137: clubname: | B137: Windsor Slough Eton & Hounslow AC | J137: UFW04 | K137: Long Jump | L137: Holly Mills | M137: Blackheath & Bromley Harriers A.C. | N137: 6.17 | O137: Eton | P137: May 1st | Q137: 2016 | S137: 173 | T137: KING Tyrese | U137: U20 Men | X137: 532 | Y137: TEALE Emily | Z137: U20 Women
A138: AW_abbr: | B138: WSEH | J138: UFW08 | K138: Triple Jump | L138: Morgan Lake | M138: Windsor Slough Eton & Hounslow | N138: 12.17 | O138: Allianz Park | P138: July 28th | Q138: 2013 | S138: 183 | T138: LENNON Michael | U138: U20 Men | X138: 542 | Y138: TEWOGBADE Esther | Z138: U17 Women
A139: agegroup: | B139: U20 Men | J139: UFD08 | K139: Shot Put | L139: Serena Vincent | M139: City of Portsmouth | N139: 15.13 | O139: Portsmouth | P139: April 30th | Q139: 2017 | S139: 193 | T139: LEWIS-SHALLOW Blaine | U139: U20 Men | X139: 552 | Y139: VANS AGNEW Grace | Z139: U17 Women
A140: bib | B140: 6 | C140: 66 | J140: UFD14 | K140: Discus | L140: Georgie Taylor | M140: Havering AC | N140: 45.41 | O140: Welwyn | P140: June 2nd | Q140: 2013 | S140: 203 | T140: LOCKHART Taylor | U140: U17 Men | X140: 562 | Y140: WESTWOOD Hannah | Z140: U20 Women
A141: 75/100 | B141: PRINCEWELL Teepee | C141: AHANON Frank | J141: UFD04 | K141: Hammer | L141: Katie Head | M141: Basildon Beagles | N141: 61.76 | O141: Sutcliffe Park | P141: May 29th | Q141: 2016 | S141: 213 | T141: MATTHEWS Oliver | U141: U17 Men | Y141: athlete | Z141: agegroup
A142: 100M NS | J142: UFD10 | K142: Javelin | L142: Emma Hamplett | M142: Cannock & Stafford | N142: 57.14 | O142: Loughborough | P142: June 1st | Q142: 2014 | S142: 223 | T142: MILLAR Jack | U142: U20 Men | X142: 13 | Y142: BARNES Ceri | Z142: U17 Women
A143: 200 | B143: AHANON Frank | C143: LAWRENCE Aaron | J143: UTR1 | K143: 4 x 100 Relay | L143: - | M143: Blackheath & Bromley Harriers A.C. | N143: 46.71 | O143: Birmingham | P143: Sept 8th | Q143: 2013 | S143: 233 | T143: MOTT Joseph | U143: U17 Men | X143: 23 | Y143: BASARABA Naomi | Z143: U17 Women
A144: 400 | B144: OSEI-TUTU Isaac | C144: NAYLOR Rory X | J144: UTDR1 | K144: 4 X 300 Relay | L144: - | M144: Enfield & Haringey AC | N144: 00:02:45.970 | O144: Lee Valley | P144: May 16th | Q144: 2015 | S144: 243 | T144: NAWAH David | U144: U20 Men | X144: 33 | Y144: BATES Molly | Z144: U20 Women
A145: 800 | B145: TCHANGWA Marvin X | J145: UTR1 | K145: 4 x 100 Relay | L145: - | M145: Blackheath & Bromley Harriers A.C. | N145: 46.71 | O145: Birmingham | P145: Sept 8th | Q145: 2013 | S145: 253 | T145: NORTH Harry | U145: U17 Men | X145: 43 | Y145: BATT Melody | Z145: U17 Women
A146: 800M NS | J146: UTDR1 | K146: 4 X 300 Relay | L146: - | M146: Enfield & Haringey AC | N146: 00:02:45.970 | O146: Lee Valley | P146: May 16th | Q146: 2015 | S146: 263 | T146: OGUNLELA Sanmi | U146: U20 Men | X146: 53 | Y146: BEGLEY Aisling | Z146: U20 Women
A147: 1500 | B147: CLUTTERBUCK Matthew X | S147: 273 | T147: RAJKUMAR Jacob | U147: U20 Men | X147: 63 | Y147: BLYTHE Lydia | Z147: U20 Women
A148: Sp H | B148: OJORA Tade | C148: - | S148: 283 | T148: RAWLINGS Matthew | U148: U20 Men | X148: 73 | Y148: BOWLEY Nancie | Z148: U17 Women
A149: 3000 | B149: HINDE Matt | S149: 293 | T149: RAY Daniel | U149: U20 Men | X149: 83 | Y149: CHURCH Isabelle | Z149: U17 Women
A150: SChase | B150: KOPERNICKY Martin | C150: TATTERSALL Ethan | S150: 303 | T150: RODDA Sam | U150: U20 Men | X150: 93 | Y150: CHURCH Lauren | Z150: U20 Women
A151: 400mH | B151: SPELLMAN Thomas | S151: 313 | T151: RODDA Sam | U151: U20 Men | X151: 103 | Y151: FENWICK PHOEBE | Z151: U20 Women
A152: Discus | B152: NORRIS Jake | C152: CAMPBELL Bayley | S152: 323 | T152: ROLLINGS Ben | U152: U17 Men | X152: 113 | Y152: FENWICK PHOEBE | Z152: U20 Women
A153: Hammer | B153: NORRIS Jake | C153: CAMPBELL Bayley | S153: 333 | T153: ROLLINGS Ben | U153: U17 Men | X153: 123 | Y153: FENWICK PHOEBE | Z153: U20 Women
A154: Javelin | B154: NORRIS Jake | C154: PRICE Matt | S154: 343 | T154: RUSSELL Sam | U154: U20 Men | X154: 133 | Y154: GILKES Isabella | Z154: U17 Women
A155: Shot | B155: CAMPBELL Bayley | C155: SINGH Jiwandeep | S155: 353 | T155: SANTOS Christian | U155: U17 Men | X155: 143 | Y155: GLANVILLE Emily | Z155: U20 Women
A156: Long J | B156: CHALLIS Samuel | S156: 363 | T156: SAYER Oliver | U156: U17 Men | X156: 153 | Y156: HANNIBAL Kyra | Z156: U17 Women
A157: Triple J | B157: PRINCEWELL Teepee | C157: CHALLIS Samuel | S157: 373 | T157: SPRATLEY-KEMP Alex | U157: U20 Men | X157: 163 | Y157: HOLT Katie | Z157: U20 Women
A158: High J | S158: 383 | T158: STEVENI Eddie | U158: U17 Men | X158: 173 | Y158: HOYLE Eleanor | Z158: U17 Women
A159: Pole V | B159: MCARA Jack | S159: 393 | T159: SUTTON Alex | U159: U20 Men | X159: 183 | Y159: LOWE Angela | Z159: U17 Women
A160: r4x11/2: | B160: OJORA Tade | C160: PRINCEWELL Teepee | S160: 403 | T160: SUTTON Alex | U160: U20 Men | X160: 193 | Y160: MANASE Catharina | Z160: U17 Women
A161: r4x13/4: | B161: OSEI-TUTU Isaac | C161: AHANON Frank | S161: 413 | T161: TRESTON Matthew | U161: U20 Men | X161: 203 | Y161: MCCAFFERTY Connie | Z161: U17 Women
A162: r4x41/2: | B162: SPELLMAN Thomas | C162: OSEI-TUTU Isaac | S162: 423 | T162: WEBB Daniel | U162: U20 Men | X162: 213 | Y162: MCCALLUM Jasmine | Z162: U17 Women
A163: r4x43/4: | B163: BROOKLING Daniel X | C163: AHANON Frank | S163: 433 | T163: WILTSHIRE Nick | U163: U17 Men | X163: 223 | Y163: NIGHTINGALE Jasmine | Z163: U17 Women
A164: clubname: | B164: Blackheath & Bromley Harriers | S164: 443 | T164: YOUNG Max | U164: U17 Men | X164: 233 | Y164: NIGHTINGALE Jemma | Z164: U17 Women
A165: AW_abbr: | B165: B&B | S165: 453 | T165: YOUNG Max | U165: U17 Men | X165: 243 | Y165: PAYNE Charlotte | Z165: U17 Women
A166: agegroup: | B166: U20 Women | T166: athlete | U166: agegroup | X166: 253 | Y166: PRITCHARD Sophie | Z166: U17 Women
A167: bib | B167: 1 | C167: 11 | S167: 14 | T167: ADEBAKIN Michael | U167: U17 Men | X167: 263 | Y167: RAYFIELD Alanna | Z167: U20 Women
A168: 75/100 | B168: WEBSTER-TAPE Charmont | C168: SHOKUNBI Modupe | S168: 24 | T168: ADEJONWO Abbas | U168: U20 Men | X168: 273 | Y168: RICHARDSON Rebecca | Z168: U17 Women
A169: 100M NS | S169: 34 | T169: AGYEPONG Micah | U169: U17 Men | X169: 283 | Y169: RODDA Katie | Z169: U17 Women
A170: 200 | B170: ALIU Immanuela | C170: CIENCIALA Magda | S170: 44 | T170: AHMED Khalid Ali | U170: U20 Men | X170: 293 | Y170: RUNNACLES Leah | Z170: U20 Women
A171: 400 | B171: WALSH Megan | C171: CLARK Belinda | S171: 54 | T171: ALEXANDER Joel | U171: U17 Men | X171: 303 | Y171: SAUNDERS Ella | Z171: U20 Women
A172: 800 | B172: CORNISH Kelsi X | C172: SCOPES Grace X | S172: 64 | T172: ARBE Najibe | U172: U17 Men | X172: 313 | Y172: SLADE Kia | Z172: U17 Women
A173: 800M NS | S173: 74 | T173: ASHWELL Dominic | U173: U20 Men | X173: 323 | Y173: SMITH Darcey | Z173: U20 Women
A174: 1500 | B174: CORNISH Kelsi X | C174: SHEASBY Jennifer | S174: 84 | T174: AYODELE Femi | U174: U20 Men | X174: 333 | Y174: SPRATLEY-KEMP Leah | Z174: U17 Women
A175: Sp H | B175: HILDITCH Isabella | C175: FISHER Stephanie | S175: 94 | T175: BAINBRIDGE Daniel | U175: U20 Men | X175: 343 | Y175: STACEY Caitlin | Z175: U20 Women
A176: 3000 | B176: LEACH Amy | C176: - | S176: 104 | T176: BELLISARIO Ben | U176: U17 Men | X176: 353 | Y176: THOMAS Phoebe | Z176: U20 Women
A177: SChase | B177: AUSTRIDGE Yasmin | C177: - | S177: 114 | T177: BERKELEY Jacob | U177: U20 Men | X177: 363 | Y177: VYVYAN Charlotte | Z177: U17 Women
A178: 400mH | B178: FISHER Stephanie | C178: AUSTRIDGE Yasmin | S178: 124 | T178: BUTLER Tom | U178: U20 Men | X178: 373 | Y178: WALKER Kirsty | Z178: U20 Women
A179: Discus | B179: MARSDEN Carys | C179: BARNETT Anna | S179: 134 | T179: BYARD-CHAMBERS Kieran | U179: U17 Men | X179: 383 | Y179: WALTON Georgia | Z179: U20 Women
A180: Hammer | B180: WILTSHIRE Victoria | C180: MARSDEN Carys | S180: 144 | T180: CAHN Adam | U180: U17 Men | X180: 393 | Y180: WEST Charlotte | Z180: U17 Women
A181: Javelin | B181: MARSDEN Carys | S181: 154 | T181: CARLSSON-SMITH Dylan | U181: U20 Men | X181: 403 | Y181: WHITE Yvette | Z181: U20 Women
A182: Shot | B182: OLALERE Anika | S182: 164 | T182: CHOTT Joe | U182: U17 Men | X182: 413 | Y182: WHITTON Michaela | Z182: U20 Women
A183: Long J | B183: ROBINSON-PASCAL Jamiyla | S183: 174 | T183: CROSS Louis | U183: U20 Men | X183: 423 | Y183: WHYBROW Emily | Z183: U17 Women
A184: Triple J | B184: ADENIJI Mary | C184: FARMER Nicole | S184: 184 | T184: DAVIS James | U184: U20 Men | X184: 433 | Y184: YOUNG Emmanuella | Z184: U17 Women
A185: High J | B185: LISCIOTTO Tabitha | S185: 194 | T185: DAVIS Louis | U185: U17 Men | X185: 443 | Y185: YOUNG Princess | Z185: U20 Women
A186: Pole V | B186: DOWSON Sophie | C186: EMMETT Shaye | S186: 204 | T186: DEE Elliot | U186: U20 Men | X186: 453 | Y186: ZMUDA Chloe | Z186: U20 Women
A187: r4x11/2: | B187: CIENCIALA Magda | C187: WEBSTER-TAPE Charmont | S187: 214 | T187: DEMPSEY Jeremy | U187: U20 Men | Y187: athlete | Z187: agegroup
A188: r4x13/4: | B188: SHOKUNBI Modupe | C188: ALIU Immanuela | S188: 224 | T188: DIKEOCHA Alexander | U188: U17 Men | X188: 14 | Y188: ADJEI-OKWABI Blessing | Z188: U17 Women
A189: r4x41/2: | B189: CLARK Belinda | C189: FISHER Stephanie | S189: 234 | T189: DUDHIA Zamaan | U189: U17 Men | X189: 24 | Y189: ALLBUT Olivia | Z189: U17 Women
A190: r4x43/4: | B190: WALSH Megan | C190: MCDONALD Katy-Ann | S190: 244 | T190: EDWARDS Joshua | U190: U17 Men | X190: 34 | Y190: ANDREOU Rebecca | Z190: U20 Women
A191: clubname: | B191: Crawley AC | S191: 254 | T191: ELLINGTON Aaron | U191: U20 Men | X191: 44 | Y191: APOOLA Dara | Z191: U17 Women
A192: AW_abbr: | B192: Craw | S192: 264 | T192: EVANS George | U192: U20 Men | X192: 54 | Y192: BAKER Ellie | Z192: U20 Women
A193: agegroup: | B193: U20 Women | S193: 274 | T193: FITZPATRICK Jack | U193: U20 Men | X193: 64 | Y193: BANGURA Sarah | Z193: U20 Women
A194: bib | B194: 2 | C194: 22 | S194: 284 | T194: FLINN Louis | U194: U17 Men | X194: 74 | Y194: BAUER Carolin | Z194: U20 Women
A195: 75/100 | B195: LINTURN Sophie | C195: LINTURN Abigail | S195: 294 | T195: FORMBY Oliver | U195: U20 Men | X195: 84 | Y195: BUTLER Sarah | Z195: U17 Women
A196: 100M NS | S196: 304 | T196: FOSTER Triston | U196: U17 Men | X196: 94 | Y196: CARTER Rachel | Z196: U17 Women
A197: 200 | B197: LINTURN Sophie | C197: LINTURN Abigail | S197: 314 | T197: FULTON Henry | U197: U17 Men | X197: 104 | Y197: CHADWICK Josephine | Z197: U17 Women
A198: 400 | B198: ROBINSON Jessica | S198: 324 | T198: FULTON Thomas | U198: U20 Men | X198: 114 | Y198: COLES Olive | Z198: U20 Women
A199: 800 | B199: DOWLE Sophie | C199: FORDE Tia | S199: 334 | T199: GOMES Edson | U199: U20 Men | X199: 124 | Y199: CORNWELL Lile | Z199: U17 Women
A200: 800M NS | S200: 344 | T200: GRAHAM Oliver | U200: U17 Men | X200: 134 | Y200: DAVENALL Philippa | Z200: U20 Women
... 449 more rows

Sheet Dashboard
E1: =MatchDay!$C$2&" "&MatchDay!$C$3&" "&MatchDay!$C$4&" MATCH "&MatchDay!$C$5&" "&MatchDay!$C$8 -> UPPER SOUTH Premier 1 MATCH 2 @ Norman Park
B2: X | E2: =MatchDay!$C$7 -> 2017-05-28
B3: Y | E3: Team Declarations | F3: =IF(MatchDay!$C$2="LOWER","LAG Boys","UAG Men") -> UAG Men | G3: =IF(MatchDay!$C$2="LOWER","LAG Girls","UAG Women") -> UAG Women | I3: =IF(MatchDay!$C$2="Upper","UPPER","LOWER") -> UPPER | J3: PRINT Field Cards & Track Start Lists | K3: =IF(MatchDay!$C$2="Upper","UPPER","LOWER") -> UPPER | M3: RESULTS PACKS | O3: TIMETABLE | Q3: BY AGE GROUP
A4: A1 | B4: Hammer | E4: =MatchDay!C13 -> Blackheath & Bromley Harriers | F4: =IF(E4<>"",HYPERLINK("#"&"'"&$F$3&"'!"&A4,"X"),"") -> X | G4: =IF(E4<>"",HYPERLINK("#"&"'"&$G$3&"'!"&A4,"X"),"") -> X | J4: Distance | M4: Track1 | N4: =IF(MatchDay!C2="Lower",CONCATENATE(Track1!R1,"/",26),CONCATENATE(Track1!R1,"/",24)) -> 24/24 | Q4: =IF(MatchDay!$C$2="Upper", "U20M", "U15B") -> U20M | R4: =IF(MatchDay!C2="Lower",CONCATENATE(#REF!,"/",17),CONCATENATE(U20M!R1,"/",19)) -> 17/19 | U4: =IF(R4="19/19","Y","X") -> X
A5: AA1 | B5: Long Jump | E5: =MatchDay!C14 -> Crawley AC | F5: X | G5: X | J5: Height | M5: Page 1 | N5: =CONCATENATE(SUM(Track1!R4+Track1!R15+Track1!R26+Track1!R37),"/",4) -> 4/4 | V5: =IF(N5="4/4","Y","X") -> Y
A6: BA1 | B6: Pole Vault | E6: =MatchDay!C15 -> Reading AC | F6: X | G6: X | J6: =IFERROR(IF(MatchDay!$C$2="Upper",AB6,AC6),"") -> U20 Men & U17 Men HAMMER | M6: Page 2 | N6: =CONCATENATE(SUM(Track1!R48+Track1!R59+Track1!R70+Track1!R81),"/",4) -> 4/4 | Q6: =IF(MatchDay!$C$2="Upper", "U20W", "U15G") -> U20W | R6: =IF(MatchDay!C2="Lower",CONCATENATE(#REF!,"/",17),CONCATENATE(U20W!R1,"/",19)) -> 17/19 | U6: =IF(R6="19/19","Y","X") -> X | V6: =IF(N6="4/4","Y","X") -> Y | AB6: U20 Men & U17 Men HAMMER | AC6: U20 Men HAMMER
A7: CA1 | B7: High Jump | E7: =MatchDay!C16 -> Shaftesbury Barnet Harriers | F7: X | G7: X | J7: =IFERROR(IF(MatchDay!$C$2="Upper",AB7,AC7),"") -> U20 Men & U17 Men LONG JUMP | M7: Page 3 | N7: =CONCATENATE(SUM(Track1!R92+Track1!R103+Track1!R114+Track1!R125),"/",4) -> 4/4 | V7: Y | AB7: U20 Men & U17 Men LONG JUMP | AC7: U17 Men HAMMER
A8: DA1 | B8: Javelin | E8: =MatchDay!C17 -> Team Norfolk © | F8: X | G8: X | J8: =IFERROR(IF(MatchDay!$C$2="Upper",AB8,AC8),"") -> U20 Women & U17 Women POLE VAULT | M8: Page 4 | N8: =CONCATENATE(SUM(Track1!R136+Track1!R147+Track1!R158+Track1!R169),"/",4) -> 4/4 | Q8: =IF(MatchDay!$C$2="Upper", "U17M", "U13B") -> U17M | R8: =IF(MatchDay!C2="Lower",CONCATENATE(#REF!,"/",12),CONCATENATE(U17M!R1,"/",19)) -> 17/19 | U8: =IF(R8="19/19","Y","X") -> X | V8: Y | AB8: U20 Women & U17 Women POLE VAULT | AC8: U20 Men LONG JUMP
A9: EA1 | B9: Shot | E9: =MatchDay!C18 -> Windsor Slough Eton & Hounslow AC | F9: X | G9: X | J9: =IFERROR(IF(MatchDay!$C$2="Upper",AB9,AC9),"") -> U20 Women & U17 Women HAMMER | M9: Page 5 | N9: =CONCATENATE(SUM(Track1!R180+Track1!R191+Track1!R202+Track1!R213),"/",4) -> 4/4 | V9: Y | AB9: U20 Women & U17 Women HAMMER | AC9: U17 Men LONG JUMP
A10: FA1 | B10: Triple Jump | E10: =MatchDay!C19 ->  | J10: =IFERROR(IF(MatchDay!$C$2="Upper",AB10,AC10),"") -> U20 Men & U17 Men HIGH JUMP | M10: Page 6 | N10: =CONCATENATE(SUM(Track1!R224+Track1!R235+Track1!R246+Track1!R257),"/",4) -> 4/4 | Q10: =IF(MatchDay!$C$2="Upper", "U17W", "U13G") -> U17W | R10: =IF(MatchDay!C2="Lower",CONCATENATE(#REF!,"/",12),CONCATENATE(U17W!R1,"/",19)) -> 17/19 | U10: =IF(R10="19/19","Y","X") -> X | V10: Y | AB10: U20 Men & U17 Men HIGH JUMP | AC10: U20 Women POLE VAULT
A11: GA1 | B11: Discus | E11: =MatchDay!C20 ->  | J11: =IFERROR(IF(MatchDay!$C$2="Upper",AB11,AC11),"") -> U20 Women & U17 Women LONG JUMP | M11: Track2 | N11: =CONCATENATE(Track2!R1,"/",12) -> 12/12 | V11: X | AB11: U20 Women & U17 Women LONG JUMP | AC11: U17 Women POLE VAULT
J12: =IFERROR(IF(MatchDay!$C$2="Upper",AB12,AC12),"") -> U20 Men & U17 Men JAVELIN | M12: Page 1 | N12: =CONCATENATE(SUM(Track2!R4+Track2!R15+Track2!R26+Track2!R37),"/",4) -> 4/4 | Q12: Non Scorers | V12: Y | AB12: U20 Men & U17 Men JAVELIN | AC12: U20 Women HAMMER
A13: Lnk to T'table | B13: EventID | C13: Ht or Dist | E13: Input Results | F13: Go To | G13: Scored | J13: =IFERROR(IF(MatchDay!$C$2="Upper",AB13,AC13),"") -> U20 Women & U17 Women SHOT | M13: Page 2 | N13: =CONCATENATE(SUM(Track1!R56+Track1!R67+Track1!R78+Track1!R89),"/",4) -> 0/4 | V13: X | AB13: U20 Women & U17 Women SHOT | AC13: U17 Women HAMMER
A14: 3 | B14: UT01 | C14: FALSE | E14: U20 Men 400m Hurdles | F14: =IFERROR(HYPERLINK("#"&VLOOKUP(B14,timetables,128,FALSE),"X"),"") -> X | G14: =IFERROR(IF(INDIRECT(VLOOKUP(B14,timetables,133,FALSE))=1,"þ",""),"") -> þ | J14: =IFERROR(IF(MatchDay!$C$2="Upper",AB14,AC14),"") -> U20 Women & U17 Women JAVELIN | M14: Page 3 | N14: =CONCATENATE(SUM(Track2!R92+Track2!R103+Track2!R125),"/",4) -> 3/4 | Q14: FULL PACK | U14: =IF(AND(U4="y",U6="y",U8="y",U10="y"),"Y","X") -> X | V14: X | AB14: U20 Women & U17 Women JAVELIN | AC14: U20 Men HIGH JUMP
A15: 4 | B15: UT02 | C15: FALSE | E15: U17 Men 400m Hurdles | F15: =IFERROR(HYPERLINK("#"&VLOOKUP(B15,timetables,128,FALSE),"X"),"") -> X | G15: =IFERROR(IF(INDIRECT(VLOOKUP(B15,timetables,133,FALSE))=1,"þ",""),"") -> þ | J15: =IFERROR(IF(MatchDay!$C$2="Upper",AB15,AC15),"") -> U20 Men & U17 Men TRIPLE JUMP | M15: Relays | N15: =IF(MatchDay!C2="Lower",CONCATENATE(Relays!M1,"/",6),CONCATENATE(Relays!M1,"/",8)) -> 8/8 | V15: X | AB15: U20 Men & U17 Men TRIPLE JUMP | AC15: U17 Men HIGH JUMP
A16: 5 | B16: UT03 | C16: TRUE | E16: U20 Women 400m Hurdles | F16: X | G16: þ | J16: =IFERROR(IF(MatchDay!$C$2="Upper",AB16,AC16),"") -> U20 Men & U17 Men POLE VAULT | M16: Page 1 | N16: =CONCATENATE(SUM(Relays!M4+Relays!M15+Relays!M26+Relays!M37),"/",4) -> 4/4 | V16: Y | AB16: U20 Men & U17 Men POLE VAULT | AC16: U20 Women LONG JUMP
A17: 6 | B17: UT04 | C17: FALSE | E17: U17 Women 300m Hurdles | F17: X | G17: þ | J17: =IFERROR(IF(MatchDay!$C$2="Upper",AB17,AC17),"") -> U20 Women & U17 Women HIGH JUMP | M17: Page 2 | N17: =CONCATENATE(SUM(Relays!M48+Relays!M59+Relays!M70+Relays!M81),"/",4) -> 4/4 | V17: Y | AB17: U20 Women & U17 Women HIGH JUMP | AC17: U17 Women LONG JUMP
A18: 7 | B18: UTD01 | C18: TRUE | E18: U20 Men 1500m | F18: X | G18: þ | J18: =IFERROR(IF(MatchDay!$C$2="Upper",AB18,AC18),"") -> U20 Men & U17 Men SHOT | M18: Field | N18: =IF(MatchDay!C2="Lower",CONCATENATE(Field!R1,"/",22),CONCATENATE(Field!R1,"/",32)) -> 32/32 | V18: X | AB18: U20 Men & U17 Men SHOT | AC18: U20 Men JAVELIN
A19: 8 | B19: UTD02 | C19: FALSE | E19: U17 Men 1500m | F19: X | G19: þ | J19: =IFERROR(IF(MatchDay!$C$2="Upper",AB19,AC19),"") -> U20 Women & U17 Women DISCUS | M19: Page 1 | N19: =CONCATENATE(SUM(Field!R4+Field!R15+Field!R26+Field!R37),"/",4) -> 4/4 | V19: Y | AB19: U20 Women & U17 Women DISCUS | AC19: U17 Men JAVELIN
A20: 9 | B20: UTD03 | C20: FALSE | E20: U20 Women 1500m | F20: X | G20: þ | J20: =IFERROR(IF(MatchDay!$C$2="Upper",AB20,AC20),"") -> U20 Women & U17 Women TRIPLE JUMP | M20: Page 2 | N20: =CONCATENATE(SUM(Field!R48+Field!R59+Field!R70+Field!R81),"/",4) -> 4/4 | V20: Y | AB20: U20 Women & U17 Women TRIPLE JUMP | AC20: U20 Women SHOT
A21: 10 | B21: UTD04 | C21: FALSE | E21: U17 Women 1500m | F21: X | G21: þ | J21: =IFERROR(IF(MatchDay!$C$2="Upper",AB21,AC21),"") -> U20 Men & U17 Men DISCUS | M21: Page 3 | N21: =CONCATENATE(SUM(Field!R92+Field!R103+Field!R114+Field!R125),"/",4) -> 4/4 | V21: Y | AB21: U20 Men & U17 Men DISCUS | AC21: U17 Women SHOT
A22: 11 | B22: UT05 | C22: FALSE | E22: U20 Men 100m | F22: X | G22: þ | M22: Page 4 | N22: =CONCATENATE(SUM(Field!R136+Field!R147+Field!R158+Field!R169),"/",4) -> 4/4 | V22: Y | AC22: U20 Women JAVELIN
A23: 12 | B23: UT06 | C23: FALSE | E23: U17 Men 100m | F23: X | G23: þ | I23: =I3 -> UPPER | J23: Track Lists | K23: =K3 -> UPPER | M23: Page 5 | N23: =CONCATENATE(SUM(Field!R180+Field!R191+Field!R202+Field!R213),"/",4) -> 4/4 | V23: Y | AC23: U17 Women JAVELIN
A24: 13 | B24: UT07 | C24: TRUE | E24: U20 Women 100m | F24: X | G24: þ | J24: ALL TRACK EVENTS | M24: Page 6 | N24: =CONCATENATE(SUM(Field!R224+Field!R235+Field!R246+Field!R257),"/",4) -> 4/4 | V24: Y | AC24: U20 Men TRIPLE JUMP
A25: 14 | B25: UT08 | C25: TRUE | E25: U17 Women 100m | F25: X | G25: þ | M25: Page 7 | N25: =CONCATENATE(SUM(Field!R268+Field!R279+Field!R290+Field!R301),"/",4) -> 4/4 | V25: Y | AC25: U17 Men TRIPLE JUMP
A26: 15 | B26: UT09 | C26: FALSE | E26: U20 Men 400m | F26: X | G26: þ | J26: =E14&", "&E15&", "&E16&", "&E17 -> U20 Men 400m Hurdles, U17 Men 400m Hurdles, U20 Women 400m Hurdles, U17 Women 300m Hurdles | M26: Page 8 | N26: =CONCATENATE(SUM(Field!R312+Field!R323+Field!R334+Field!R345),"/",4) -> 4/4 | V26: Y | AC26: U20 Men POLE VAULT
A27: 16 | B27: UT10 | C27: FALSE | E27: U17 Men 400m | F27: X | G27: þ | AC27: U17 Men POLE VAULT
A28: 17 | B28: UT11 | C28: FALSE | E28: U20 Women 400m | F28: X | G28: þ | J28: =E18&", "&E19&", "&E20&", "&E21 -> U20 Men 1500m, U17 Men 1500m, U20 Women 1500m, U17 Women 1500m
A29: 18 | B29: UT12 | C29: FALSE | E29: U17 Women 300m | F29: X | G29: þ
A30: 19 | B30: UT13 | C30: FALSE | E30: U17 Women 80m Hurdles | F30: X | G30: þ | J30: =E22&", "&E23&", "&E24&", "&E25 -> U20 Men 100m, U17 Men 100m, U20 Women 100m, U17 Women 100m
A31: 20 | B31: UTD05 | C31: FALSE | E31: U17 Men 3000m | F31: X | G31: þ
A32: 21 | B32: UTD06 | C32: FALSE | E32: U20 Men 3000m | F32: X | G32: þ | J32: =E26&", "&E27&", "&E28&", "&E29 -> U20 Men 400m, U17 Men 400m, U20 Women 400m, U17 Women 300m
A33: 22 | B33: UT14 | C33: FALSE | E33: U20 Women 100m Hurdles | F33: X | G33: þ
A34: 23 | B34: UT15 | C34: FALSE | E34: U17 Men 100m Hurdles | F34: X | G34: þ | J34: =E30&", "&E31&", "&E32&", "&E33 -> U17 Women 80m Hurdles, U17 Men 3000m, U20 Men 3000m, U20 Women 100m Hurdles
A35: 24 | B35: UTD07 | C35: FALSE | E35: U17 Women 3000m | F35: X | G35: þ
A36: 25 | B36: UTD08 | C36: FALSE | E36: U20 Women 3000m | F36: X | G36: þ | J36: =E34&", "&E35&", "&E36&", "&E37 -> U17 Men 100m Hurdles, U17 Women 3000m, U20 Women 3000m, U20 Men 110m Hurdles
A37: 26 | B37: UT16 | C37: FALSE | E37: U20 Men 110m Hurdles | F37: X | G37: þ
A38: 27 | B38: UT17 | C38: FALSE | E38: U20 Men 200m | F38: X | G38: þ | J38: =IF(MatchDay!C2="Lower",E38&", "&E39,E38&", "&E39&", "&E40&", "&E41) -> U20 Men 200m, U17 Men 200m, U20 Women 200m, U17 Women 200m
A39: 28 | B39: UT18 | C39: FALSE | E39: U17 Men 200m | F39: X | G39: þ
A40: 29 | B40: UT19 | C40: FALSE | E40: U20 Women 200m | F40: X | G40: þ | J40: =IF(MatchDay!C2="Lower",E40&", "&E41&", "&E42&", "&E43,E42&", "&E43&", "&E44&", "&E45) -> U20 Men 800m, U17 Men 800m, U20 Women 800m, U17 Women 800m
A41: 30 | B41: UT20 | C41: FALSE | E41: U17 Women 200m | F41: X | G41: þ
A42: 31 | B42: UTD81 | C42: FALSE | E42: U20 Men 800m | F42: X | G42: þ | J42: =IF(MatchDay!C2="Lower","-",E46&", "&E47&", "&E52&", "&E53) -> U17 Women 1500m s/c, U20 Women 1500m s/c, U20 Men 2000m s/c, U17 Men 1500m s/c
A43: 32 | B43: UTD82 | C43: FALSE | E43: U17 Men 800m | F43: X | G43: þ
A44: 33 | B44: UTD83 | C44: FALSE | E44: U20 Women 800m | F44: X | G44: þ | J44: =IF(MatchDay!C2="Lower",E44&", "&E45&", "&E46&", "&E47,E48&", "&E49&", "&E50&", "&E51) -> U17 Women 4 x 100m, U17 Men 4 x 100m, U20 Women 4 x 100m, U20 Men 4 x 100m
A45: 34 | B45: UTD84 | C45: FALSE | E45: U17 Women 800m | F45: X | G45: þ
A46: 35 | B46: UTD09 | C46: FALSE | E46: U17 Women 1500m s/c | F46: =IFERROR(HYPERLINK("#"&VLOOKUP(B46,timetables,128,FALSE),"X"),"") -> X | G46: =IFERROR(IF(INDIRECT(VLOOKUP(B46,timetables,133,FALSE))=1,"þ",""),"") -> þ | J46: =IF(MatchDay!C2="Lower",E48&", "&E49,E54&", "&E55&", "&E56&", "&E57) -> U17 Women 4 x 300m, U17 Men 4 x 400m, U20 Women 4 x 400m, U20 Men 4 x 400m
A47: 36 | B47: UTD10 | C47: FALSE | E47: U20 Women 1500m s/c | F47: X | G47: þ
A48: 37 | B48: UTR1 | E48: U17 Women 4 x 100m | F48: X | G48: þ
A49: 38 | B49: UTR2 | E49: U17 Men 4 x 100m | F49: X | G49: þ
A50: 39 | B50: UTR3 | E50: U20 Women 4 x 100m | F50: X | G50: þ
A51: 40 | B51: UTR4 | E51: U20 Men 4 x 100m | F51: X | G51: þ
A52: 41 | B52: UTD11 | E52: U20 Men 2000m s/c | F52: X | G52: þ
A53: 42 | B53: UTD12 | E53: U17 Men 1500m s/c | F53: X | G53: þ
A54: 43 | B54: UTDR1 | E54: U17 Women 4 x 300m | F54: X | G54: þ
A55: 44 | B55: UTDR2 | E55: U17 Men 4 x 400m | F55: X | G55: þ
A56: 45 | B56: UTDR3 | E56: U20 Women 4 x 400m | F56: X | G56: þ
A57: 46 | B57: UTDR4 | E57: U20 Men 4 x 400m | F57: X | G57: þ
A58: 47 | B58: UFD01 | E58: U20 Men Hammer | F58: X | G58: þ
A59: 48 | B59: UFD02 | E59: U17 Men Hammer | F59: X | G59: þ
A60: 49 | B60: UFW01 | E60: U20 Men Long Jump | F60: X | G60: =IFERROR(IF(INDIRECT(VLOOKUP(B60,timetables,133,FALSE))=1,"þ",""),"") -> þ
A61: 50 | B61: UFW02 | E61: U17 Men Long Jump | F61: X | G61: =IFERROR(IF(INDIRECT(VLOOKUP(B61,timetables,133,FALSE))=1,"þ",""),"") -> þ
A62: 51 | B62: UFH01 | E62: U20 Women Pole Vault | F62: X | G62: þ
A63: 52 | B63: UFH02 | E63: U17 Women Pole Vault | F63: X | G63: þ
A64: 53 | B64: UFD03 | E64: U20 Women Hammer | F64: X | G64: þ
A65: 54 | B65: UFD04 | E65: U17 Women Hammer | F65: X | G65: þ
A66: 55 | B66: UFH03 | E66: U20 Men High Jump | F66: X | G66: þ
A67: 56 | B67: UFH04 | E67: U17 Men High Jump | F67: X | G67: þ
A68: 57 | B68: UFW03 | E68: U20 Women Long Jump | F68: X | G68: þ
A69: 58 | B69: UFW04 | E69: U17 Women Long Jump | F69: X | G69: þ
A70: 59 | B70: UFD05 | E70: U20 Men Javelin | F70: X | G70: þ
A71: 60 | B71: UFD06 | E71: U17 Men Javelin | F71: X | G71: þ
A72: 61 | B72: UFD07 | E72: U20 Women Shot | F72: X | G72: þ
A73: 62 | B73: UFD08 | E73: U17 Women Shot | F73: X | G73: þ
A74: 63 | B74: UFD09 | E74: U20 Women Javelin | F74: X | G74: þ
A75: 64 | B75: UFD10 | E75: U17 Women Javelin | F75: X | G75: þ
A76: 65 | B76: UFW05 | E76: U20 Men Triple Jump | F76: X | G76: þ
A77: 66 | B77: UFW06 | E77: U17 Men Triple Jump | F77: X | G77: þ
A78: 67 | B78: UFH05 | E78: U20 Men Pole Vault | F78: =IFERROR(HYPERLINK("#"&VLOOKUP(B78,timetables,128,FALSE),"X"),"") -> X | G78: =IFERROR(IF(INDIRECT(VLOOKUP(B78,timetables,133,FALSE))=1,"þ",""),"") -> þ
A79: 68 | B79: UFH06 | E79: U17 Men Pole Vault | F79: X | G79: þ
A80: 69 | B80: UFH07 | E80: U20 Women High Jump | F80: X | G80: þ
A81: 70 | B81: UFH08 | E81: U17 Women High Jump | F81: X | G81: þ
A82: 71 | B82: UFD11 | E82: U20 Men Shot | F82: X | G82: þ
A83: 72 | B83: UFD12 | E83: U17 Men Shot | F83: X | G83: þ
A84: 73 | B84: UFD13 | E84: U20 Women Discus | F84: X | G84: þ
A85: 74 | B85: UFD14 | E85: U17 Women Discus | F85: X | G85: þ
A86: 75 | B86: UFW07 | E86: U20 Women Triple Jump | F86: X | G86: þ
A87: 76 | B87: UFW08 | E87: U17 Women Triple Jump | F87: X | G87: þ
A88: 77 | B88: UFD15 | E88: U20 Men Discus | F88: X | G88: þ
A89: 78 | B89: UFD16 | E89: U17 Men Discus | F89: X | G89: þ

Sheet MatchDay
B2: LEVEL | C2: UPPER | M2: Level | N2: Region | O2: Match | S2: Number of Teams | U2: =IFERROR(COUNTIFS(Teams!$F:$F,MatchDay!C2,Teams!$G:$G,MatchDay!C3,Teams!$H:$H,MatchDay!C4),"X") -> 6 | W2: =IFERROR(CONCATENATE("points",U2),"") -> points6 | Y2: =LEFT(C2,1)&"AG"&LEFT(C3,2) -> UAGSO
B3: REGION | C3: SOUTH | M3: LOWER | N3: NORTH | O3: 1 | S3: Field Timetable Rows | U3: =IF(C2="Upper",44,36) -> 44
B4: DIVISION | C4: Premier 1 | M4: UPPER | N4: SOUTH | O4: 2 | S4: Lane Draws Start | U4: =IFERROR(VLOOKUP(U2*10+C5,Timetables!$DN$3:$DR$18,5,FALSE),"X") -> 77
B5: MATCH | C5: 2 | N5: MIDLAND | O5: 3
B6: P/FINISH | C6: YES | O6: 4 | S6: Premier Match | U6: =IFERROR(SEARCH("Premier",C4),"X") -> 1
B7: Date | C7: =IFERROR(VLOOKUP($C$2&$C$3&$C$4&"Match "&$C$5,'Dates & Venues'!$A:$H,6,FALSE),"") -> 2017-05-28 | S7: Time Starts | U7: =IFERROR(SEARCH("Premier",C4),"X") -> 1
B8: Venue | C8: =IFERROR(VLOOKUP($C$2&$C$3&$C$4&"Match "&$C$5,'Dates & Venues'!$A:$H,8,FALSE),"") -> @ Norman Park | S8: YES | U8: =IFERROR(VLOOKUP(S8,$C$6,1,FALSE),"X") -> YES
B9: Host Club | C9: =IFERROR(VLOOKUP($C$2&$C$3&$C$4&"Match "&$C$5,'Dates & Venues'!$A:$H,7,FALSE),"") -> Blackheath & Bromley Harriers | M9: FIXTURE ID | O9: =IFERROR(VLOOKUP($C$2&$C$3&$C$4&"Match "&$C$5,'Dates & Venues'!$A:$J,9,FALSE),"") -> 23 | S9: NO | U9: =IFERROR(VLOOKUP(S9,$C$6,1,FALSE),"X") -> X
B12: Bib | C12: Team Name | D12: Abbrev. | E12: Officials | F12: Track1 | G12: Track2 | H12: Relays | I12: Field | J12: Total | K12: Posn
A13: =IFERROR(RANK(L13,$L$13:$L$20),"") -> 1 | B13: 1 | C13: =IFERROR(VLOOKUP($C$2&$C$3&$C$4&$B13,Teams!$A:$E,3,FALSE),"") -> Blackheath & Bromley Harriers | D13: =IFERROR(VLOOKUP($C$2&$C$3&$C$4&$B13,Teams!$A:$E,4,FALSE),"") -> B&B | E13: 55 | F13: =SUMIF(Track1!$E:$E,MatchDay!D13,Track1!$P:$P)+SUMIF(Track1!$L:$L,MatchDay!D13,Track1!$Q:$Q) -> 281 | G13: =SUMIF(Track2!$E:$E,MatchDay!D13,Track2!$P:$P)+SUMIF(Track2!$L:$L,MatchDay!D13,Track2!$Q:$Q) -> 157 | H13: =SUMIF(Relays!$D:$D,MatchDay!D13,Relays!$L:$L) -> 56 | I13: =SUMIF(Field!$E:$E,MatchDay!D13,Field!$P:$P)+SUMIF(Field!$L:$L,MatchDay!D13,Field!$Q:$Q) -> 319.5 | J13: =IFERROR(IF(F13+I13+G13+H13+I13=0,"",F13+I13+G13+H13+E13),"") -> 868.5 | K13: =IFERROR(RANK(J13,$J$13:$J$20,0),"") -> 1 | L13: =IFERROR(J13+B13/100000,"") -> 868.50001 | M13: =C13 -> Blackheath & Bromley Harriers | Q13: A
A14: 6 | B14: 2 | C14: =IFERROR(VLOOKUP($C$2&$C$3&$C$4&$B14,Teams!$A:$E,3,FALSE),"") -> Crawley AC | D14: =IFERROR(VLOOKUP($C$2&$C$3&$C$4&$B14,Teams!$A:$E,4,FALSE),"") -> Craw | E14: 55 | F14: =SUMIF(Track1!$E:$E,MatchDay!D14,Track1!$P:$P)+SUMIF(Track1!$L:$L,MatchDay!D14,Track1!$Q:$Q) -> 149 | G14: =SUMIF(Track2!$E:$E,MatchDay!D14,Track2!$P:$P)+SUMIF(Track2!$L:$L,MatchDay!D14,Track2!$Q:$Q) -> 24 | H14: =SUMIF(Relays!$D:$D,MatchDay!D14,Relays!$L:$L) -> 24 | I14: =SUMIF(Field!$E:$E,MatchDay!D14,Field!$P:$P)+SUMIF(Field!$L:$L,MatchDay!D14,Field!$Q:$Q) -> 99 | J14: =IFERROR(IF(F14+I14+G14+H14+I14=0,"",F14+I14+G14+H14+E14),"") -> 351 | K14: =IFERROR(RANK(J14,$J$13:$J$20,0),"") -> 6 | L14: 351.00002 | M14: Crawley AC | Q14: B
A15: 4 | B15: 3 | C15: =IFERROR(VLOOKUP($C$2&$C$3&$C$4&$B15,Teams!$A:$E,3,FALSE),"") -> Reading AC | D15: =IFERROR(VLOOKUP($C$2&$C$3&$C$4&$B15,Teams!$A:$E,4,FALSE),"") -> Read | E15: 55 | F15: =SUMIF(Track1!$E:$E,MatchDay!D15,Track1!$P:$P)+SUMIF(Track1!$L:$L,MatchDay!D15,Track1!$Q:$Q) -> 168 | G15: =SUMIF(Track2!$E:$E,MatchDay!D15,Track2!$P:$P)+SUMIF(Track2!$L:$L,MatchDay!D15,Track2!$Q:$Q) -> 44 | H15: =SUMIF(Relays!$D:$D,MatchDay!D15,Relays!$L:$L) -> 34 | I15: =SUMIF(Field!$E:$E,MatchDay!D15,Field!$P:$P)+SUMIF(Field!$L:$L,MatchDay!D15,Field!$Q:$Q) -> 243 | J15: 544 | K15: 4 | L15: 544.00003 | M15: Reading AC | Q15: C
A16: 2 | B16: 4 | C16: =IFERROR(VLOOKUP($C$2&$C$3&$C$4&$B16,Teams!$A:$E,3,FALSE),"") -> Shaftesbury Barnet Harriers | D16: =IFERROR(VLOOKUP($C$2&$C$3&$C$4&$B16,Teams!$A:$E,4,FALSE),"") -> SB | E16: 55 | F16: =SUMIF(Track1!$E:$E,MatchDay!D16,Track1!$P:$P)+SUMIF(Track1!$L:$L,MatchDay!D16,Track1!$Q:$Q) -> 256 | G16: =SUMIF(Track2!$E:$E,MatchDay!D16,Track2!$P:$P)+SUMIF(Track2!$L:$L,MatchDay!D16,Track2!$Q:$Q) -> 70 | H16: =SUMIF(Relays!$D:$D,MatchDay!D16,Relays!$L:$L) -> 56 | I16: =SUMIF(Field!$E:$E,MatchDay!D16,Field!$P:$P)+SUMIF(Field!$L:$L,MatchDay!D16,Field!$Q:$Q) -> 273 | J16: 710 | K16: 2 | L16: 710.00004 | M16: Shaftesbury Barnet Harriers | Q16: D
A17: 5 | B17: 5 | C17: =IFERROR(VLOOKUP($C$2&$C$3&$C$4&$B17,Teams!$A:$E,3,FALSE),"") -> Team Norfolk © | D17: =IFERROR(VLOOKUP($C$2&$C$3&$C$4&$B17,Teams!$A:$E,4,FALSE),"") -> Norfolk | E17: 55 | F17: =SUMIF(Track1!$E:$E,MatchDay!D17,Track1!$P:$P)+SUMIF(Track1!$L:$L,MatchDay!D17,Track1!$Q:$Q) -> 133 | G17: =SUMIF(Track2!$E:$E,MatchDay!D17,Track2!$P:$P)+SUMIF(Track2!$L:$L,MatchDay!D17,Track2!$Q:$Q) -> 56 | H17: =SUMIF(Relays!$D:$D,MatchDay!D17,Relays!$L:$L) -> 29 | I17: =SUMIF(Field!$E:$E,MatchDay!D17,Field!$P:$P)+SUMIF(Field!$L:$L,MatchDay!D17,Field!$Q:$Q) -> 151 | J17: 424 | K17: 5 | L17: 424.00005 | M17: Team Norfolk © | Q17: E
A18: 3 | B18: =IF(6>U2,"-",6) -> 6 | C18: =IFERROR(VLOOKUP($C$2&$C$3&$C$4&$B18,Teams!$A:$E,3,FALSE),"") -> Windsor Slough Eton & Hounslow AC | D18: =IFERROR(VLOOKUP($C$2&$C$3&$C$4&$B18,Teams!$A:$E,4,FALSE),"") -> WSEH | E18: 55 | F18: =SUMIF(Track1!$E:$E,MatchDay!D18,Track1!$P:$P)+SUMIF(Track1!$L:$L,MatchDay!D18,Track1!$Q:$Q) -> 242 | G18: =SUMIF(Track2!$E:$E,MatchDay!D18,Track2!$P:$P)+SUMIF(Track2!$L:$L,MatchDay!D18,Track2!$Q:$Q) -> 87 | H18: =SUMIF(Relays!$D:$D,MatchDay!D18,Relays!$L:$L) -> 51 | I18: =SUMIF(Field!$E:$E,MatchDay!D18,Field!$P:$P)+SUMIF(Field!$L:$L,MatchDay!D18,Field!$Q:$Q) -> 271.5 | J18: 706.5 | K18: 3 | L18: 706.50006 | M18: Windsor Slough Eton & Hounslow AC | Q18: F
B19: =IF(7>U2,"-",7) -> - | C19: =IFERROR(VLOOKUP($C$2&$C$3&$C$4&$B19,Teams!$A:$E,3,FALSE),"") ->  | D19: =IFERROR(VLOOKUP($C$2&$C$3&$C$4&$B19,Teams!$A:$E,4,FALSE),"") ->  | E19: 0 | F19: =SUMIF(Track1!$E:$E,MatchDay!D19,Track1!$P:$P)+SUMIF(Track1!$L:$L,MatchDay!D19,Track1!$Q:$Q) -> 0 | G19: =SUMIF(Track2!$E:$E,MatchDay!D19,Track2!$P:$P)+SUMIF(Track2!$L:$L,MatchDay!D19,Track2!$Q:$Q) -> 0 | H19: =SUMIF(Relays!$D:$D,MatchDay!D19,Relays!$L:$L) -> 0 | I19: =SUMIF(Field!$E:$E,MatchDay!D19,Field!$P:$P)+SUMIF(Field!$L:$L,MatchDay!D19,Field!$Q:$Q) -> 0 | Q19: G
A20: =IFERROR(RANK(L20,$L$13:$L$20),"") ->  | B20: =IF(8>U2,"-",8) -> - | C20: =IFERROR(VLOOKUP($C$2&$C$3&$C$4&$B20,Teams!$A:$E,3,FALSE),"") ->  | D20: =IFERROR(VLOOKUP($C$2&$C$3&$C$4&$B20,Teams!$A:$E,4,FALSE),"") ->  | E20: 0 | F20: =SUMIF(Track1!$E:$E,MatchDay!D20,Track1!$P:$P)+SUMIF(Track1!$L:$L,MatchDay!D20,Track1!$Q:$Q) -> 0 | G20: =SUMIF(Track2!$E:$E,MatchDay!D20,Track2!$P:$P)+SUMIF(Track2!$L:$L,MatchDay!D20,Track2!$Q:$Q) -> 0 | H20: =SUMIF(Relays!$D:$D,MatchDay!D20,Relays!$L:$L) -> 0 | I20: =SUMIF(Field!$E:$E,MatchDay!D20,Field!$P:$P)+SUMIF(Field!$L:$L,MatchDay!D20,Field!$Q:$Q) -> 0 | Q20: H
B22: Posn | C22: Team Name | D22: Points | E22: League | F22: B/fwd L | G22: B/fwd M | H22: Total L | I22: Total M
A23: 1 | B23: =IFERROR(VLOOKUP(A23,$A$13:$M$20,11,FALSE),"-") -> 1 | C23: =IFERROR(VLOOKUP($A23,$A$13:$M$20,3,FALSE),"") -> Blackheath & Bromley Harriers | D23: =IFERROR(VLOOKUP($A23,$A$13:$M$20,10,FALSE),"") -> 868.5
A24: 2 | B24: =IFERROR(VLOOKUP(A24,$A$13:$M$20,11,FALSE),"-") -> 2 | C24: Shaftesbury Barnet Harriers | D24: 710
A25: 3 | B25: 3 | C25: Windsor Slough Eton & Hounslow AC | D25: 706.5
A26: 4 | B26: 4 | C26: Reading AC | D26: 544
A27: 5 | B27: 5 | C27: Team Norfolk © | D27: 424
A28: 6 | B28: 6 | C28: Crawley AC | D28: 351
A29: 7 | B29: -
A30: 8 | B30: -
C32: TOTAL EVENTS | D32: 76
C33: NO COMPETITORS/EVENT CANCELLED/NMR | D33: =Track1!V1+'Middle D'!J1+'Height Input'!AF1+'Distance Input'!AB1+Relays!O1 -> 0
C34: EVENT SCORED | D34: =Track1!R1+Track2!R1+Relays!M1+Field!R1 -> 76
C35: REMAINING | D35: =D32-D33-D34 -> 0

Sheet U20Me
A1: UK ATHLETICS :: YOUTH DEVELOPMENT LEAGUE 2017 | B1: =Dashboard!E1 -> UPPER SOUTH Premier 1 MATCH 2 @ Norman Park | L1: =Dashboard!E2 -> 2017-05-28 | R1: =SUM(R2:R300) -> 17
A2: UT05 | B2: =IFERROR(INDIRECT(CONCATENATE("Track1!B",A3)),"") -> 100m U20 Men A | E2: Wind | F2: =Track1!F46 -> 0.2 | I2: =IFERROR(INDIRECT(CONCATENATE("Track1!I",A3)),"") -> 100m U20 Men B | L2: Wind | M2: =Track1!M46 -> -1.4
A3: =IFERROR(MATCH(A2,Track1!A:A,0),"") -> 46 | B3: =IFERROR(INDIRECT(CONCATENATE("Track1!B",A3+1)),"") -> Posn | C3: =IFERROR(INDIRECT(CONCATENATE("Track1!C",A3+1)),"") -> No. | D3: =IFERROR(INDIRECT(CONCATENATE("Track1!D",A3+1)),"") -> Athlete | E3: =IFERROR(INDIRECT(CONCATENATE("Track1!E",A3+1)),"") -> Club | F3: =IFERROR(INDIRECT(CONCATENATE("Track1!F",A3+1)),"") -> Perf | G3: =IFERROR(INDIRECT(CONCATENATE("Track1!G",A3+1)),"") -> AAA | I3: =IFERROR(INDIRECT(CONCATENATE("Track1!I",A3+1)),"") -> Posn | J3: =IFERROR(INDIRECT(CONCATENATE("Track1!J",A3+1)),"") -> No. | K3: =IFERROR(INDIRECT(CONCATENATE("Track1!K",A3+1)),"") -> Athlete | L3: =IFERROR(INDIRECT(CONCATENATE("Track1!L",A3+1)),"") -> Club | M3: =IFERROR(INDIRECT(CONCATENATE("Track1!M",A3+1)),"") -> Perf | N3: =IFERROR(INDIRECT(CONCATENATE("Track1!N",A3+1)),"") -> AAA
B4: =IFERROR(INDIRECT(CONCATENATE("Track1!B",A3+2)),"") -> 1 | C4: =IFERROR(INDIRECT(CONCATENATE("Track1!C",A3+2)),"") -> 1 | D4: =IFERROR(INDIRECT(CONCATENATE("Track1!D",A3+2)),"") -> LYTTLE Camron | E4: =IFERROR(INDIRECT(CONCATENATE("Track1!E",A3+2)),"") -> B&B | F4: =IFERROR(INDIRECT(CONCATENATE("Track1!F",A3+2)),"") -> 10.81 | G4: =IFERROR(INDIRECT(CONCATENATE("Track1!G",A3+2)),"") -> 2 | I4: =IFERROR(INDIRECT(CONCATENATE("Track1!I",A3+2)),"") -> 1 | J4: =IFERROR(INDIRECT(CONCATENATE("Track1!J",A3+2)),"") -> 66 | K4: =IFERROR(INDIRECT(CONCATENATE("Track1!K",A3+2)),"") -> AHANON Frank | L4: =IFERROR(INDIRECT(CONCATENATE("Track1!L",A3+2)),"") -> WSEH | M4: =IFERROR(INDIRECT(CONCATENATE("Track1!M",A3+2)),"") -> 11.27 | N4: =IFERROR(INDIRECT(CONCATENATE("Track1!N",$A$3+2)),"") ->  | R4: =IFERROR(INDIRECT(CONCATENATE("Track1!R",$A3+2)),"") -> 1
B5: =IFERROR(INDIRECT(CONCATENATE("Track1!B",A3+3)),"") -> 2 | C5: =IFERROR(INDIRECT(CONCATENATE("Track1!C",A3+3)),"") -> 4 | D5: =IFERROR(INDIRECT(CONCATENATE("Track1!D",A3+3)),"") -> BERKELEY Jacob | E5: =IFERROR(INDIRECT(CONCATENATE("Track1!E",A3+3)),"") -> SB | F5: =IFERROR(INDIRECT(CONCATENATE("Track1!F",A3+3)),"") -> 11.2 | G5: =IFERROR(INDIRECT(CONCATENATE("Track1!G",A3+3)),"") -> 3 | I5: =IFERROR(INDIRECT(CONCATENATE("Track1!I",A3+3)),"") -> 2 | J5: =IFERROR(INDIRECT(CONCATENATE("Track1!J",A3+3)),"") -> 11 | K5: =IFERROR(INDIRECT(CONCATENATE("Track1!K",A3+3)),"") -> FRANCIS Rhys | L5: =IFERROR(INDIRECT(CONCATENATE("Track1!L",A3+3)),"") -> B&B | M5: =IFERROR(INDIRECT(CONCATENATE("Track1!M",A3+3)),"") -> 11.66 | N5: =IFERROR(INDIRECT(CONCATENATE("Track1!N",A3+3)),"") -> 
B6: =IFERROR(INDIRECT(CONCATENATE("Track1!B",A3+4)),"") -> 3 | C6: =IFERROR(INDIRECT(CONCATENATE("Track1!C",A3+4)),"") -> 5 | D6: =IFERROR(INDIRECT(CONCATENATE("Track1!D",A3+4)),"") -> MATSUKA-WILLIAMS Ben | E6: =IFERROR(INDIRECT(CONCATENATE("Track1!E",A3+4)),"") -> Norfolk | F6: =IFERROR(INDIRECT(CONCATENATE("Track1!F",A3+4)),"") -> 11.35 | G6: =IFERROR(INDIRECT(CONCATENATE("Track1!G",A3+4)),"") ->  | I6: =IFERROR(INDIRECT(CONCATENATE("Track1!I",A3+4)),"") -> 3 | J6: =IFERROR(INDIRECT(CONCATENATE("Track1!J",A3+4)),"") -> 44 | K6: =IFERROR(INDIRECT(CONCATENATE("Track1!K",A3+4)),"") -> JAIDEE Shinawat | L6: =IFERROR(INDIRECT(CONCATENATE("Track1!L",A3+4)),"") -> SB | M6: =IFERROR(INDIRECT(CONCATENATE("Track1!M",A3+4)),"") -> 11.78 | N6: =IFERROR(INDIRECT(CONCATENATE("Track1!N",A3+4)),"") -> 
B7: =IFERROR(INDIRECT(CONCATENATE("Track1!B",A3+5)),"") -> 4 | C7: =IFERROR(INDIRECT(CONCATENATE("Track1!C",A3+5)),"") -> 2 | D7: =IFERROR(INDIRECT(CONCATENATE("Track1!D",A3+5)),"") -> MASSIMO Joseph | E7: =IFERROR(INDIRECT(CONCATENATE("Track1!E",A3+5)),"") -> Craw | F7: =IFERROR(INDIRECT(CONCATENATE("Track1!F",A3+5)),"") -> 11.46 | G7: =IFERROR(INDIRECT(CONCATENATE("Track1!G",A3+5)),"") ->  | I7: =IFERROR(INDIRECT(CONCATENATE("Track1!I",A3+5)),"") -> 4 | J7: =IFERROR(INDIRECT(CONCATENATE("Track1!J",A3+5)),"") -> 55 | K7: =IFERROR(INDIRECT(CONCATENATE("Track1!K",A3+5)),"") -> COOPER Ashley | L7: =IFERROR(INDIRECT(CONCATENATE("Track1!L",A3+5)),"") -> Norfolk | M7: =IFERROR(INDIRECT(CONCATENATE("Track1!M",A3+5)),"") -> 11.92 | N7: =IFERROR(INDIRECT(CONCATENATE("Track1!N",A3+5)),"") -> 
B8: =IFERROR(INDIRECT(CONCATENATE("Track1!B",A3+6)),"") -> 5 | C8: =IFERROR(INDIRECT(CONCATENATE("Track1!C",A3+6)),"") -> 3 | D8: =IFERROR(INDIRECT(CONCATENATE("Track1!D",A3+6)),"") -> JORDAN Ramone | E8: =IFERROR(INDIRECT(CONCATENATE("Track1!E",A3+6)),"") -> Read | F8: =IFERROR(INDIRECT(CONCATENATE("Track1!F",A3+6)),"") -> 11.52 | G8: =IFERROR(INDIRECT(CONCATENATE("Track1!G",A3+6)),"") ->  | I8: =IFERROR(INDIRECT(CONCATENATE("Track1!I",A3+6)),"") -> 5 | J8: =IFERROR(INDIRECT(CONCATENATE("Track1!J",A3+6)),"") -> 22 | K8: =IFERROR(INDIRECT(CONCATENATE("Track1!K",A3+6)),"") -> HOLME Jamie | L8: =IFERROR(INDIRECT(CONCATENATE("Track1!L",A3+6)),"") -> Craw | M8: =IFERROR(INDIRECT(CONCATENATE("Track1!M",A3+6)),"") -> 11.99 | N8: =IFERROR(INDIRECT(CONCATENATE("Track1!N",A3+6)),"") -> 
B9: =IFERROR(INDIRECT(CONCATENATE("Track1!B",A3+7)),"") -> 6 | C9: =IFERROR(INDIRECT(CONCATENATE("Track1!C",A3+7)),"") -> 0 | D9: =IFERROR(INDIRECT(CONCATENATE("Track1!D",A3+7)),"") ->  | E9: =IFERROR(INDIRECT(CONCATENATE("Track1!E",A3+7)),"") ->  | F9: =IFERROR(INDIRECT(CONCATENATE("Track1!F",A3+7)),"") -> 0 | G9: =IFERROR(INDIRECT(CONCATENATE("Track1!G",A3+7)),"") ->  | I9: =IFERROR(INDIRECT(CONCATENATE("Track1!I",A3+7)),"") -> 6 | J9: =IFERROR(INDIRECT(CONCATENATE("Track1!J",A3+7)),"") -> 33 | K9: =IFERROR(INDIRECT(CONCATENATE("Track1!K",A3+7)),"") -> HEGGARTY Tom X | L9: =IFERROR(INDIRECT(CONCATENATE("Track1!L",A3+7)),"") -> Read | M9: =IFERROR(INDIRECT(CONCATENATE("Track1!M",A3+7)),"") -> 13.02 | N9: =IFERROR(INDIRECT(CONCATENATE("Track1!N",A3+7)),"") -> 
B10: =IFERROR(INDIRECT(CONCATENATE("Track1!B",A3+8)),"") -> 7 | C10: =IFERROR(INDIRECT(CONCATENATE("Track1!C",A3+8)),"") -> 0 | D10: =IFERROR(INDIRECT(CONCATENATE("Track1!D",A3+8)),"") ->  | E10: =IFERROR(INDIRECT(CONCATENATE("Track1!E",A3+8)),"") ->  | F10: =IFERROR(INDIRECT(CONCATENATE("Track1!F",A3+8)),"") -> 0 | G10: =IFERROR(INDIRECT(CONCATENATE("Track1!G",A3+8)),"") ->  | I10: =IFERROR(INDIRECT(CONCATENATE("Track1!I",A3+8)),"") -> 7 | J10: =IFERROR(INDIRECT(CONCATENATE("Track1!J",A3+8)),"") -> 0 | K10: =IFERROR(INDIRECT(CONCATENATE("Track1!K",A3+8)),"") ->  | L10: =IFERROR(INDIRECT(CONCATENATE("Track1!L",A3+8)),"") ->  | M10: =IFERROR(INDIRECT(CONCATENATE("Track1!M",A3+8)),"") -> 0 | N10: =IFERROR(INDIRECT(CONCATENATE("Track1!N",A3+8)),"") -> 
B11: =IFERROR(INDIRECT(CONCATENATE("Track1!B",A3+9)),"") -> 8 | C11: =IFERROR(INDIRECT(CONCATENATE("Track1!C",A3+9)),"") -> 0 | D11: =IFERROR(INDIRECT(CONCATENATE("Track1!D",A3+9)),"") ->  | E11: =IFERROR(INDIRECT(CONCATENATE("Track1!E",A3+9)),"") ->  | F11: =IFERROR(INDIRECT(CONCATENATE("Track1!F",A3+9)),"") -> 0 | G11: =IFERROR(INDIRECT(CONCATENATE("Track1!G",A3+9)),"") ->  | I11: =IFERROR(INDIRECT(CONCATENATE("Track1!I",A3+9)),"") -> 8 | J11: =IFERROR(INDIRECT(CONCATENATE("Track1!J",A3+9)),"") -> 0 | K11: =IFERROR(INDIRECT(CONCATENATE("Track1!K",A3+9)),"") ->  | L11: =IFERROR(INDIRECT(CONCATENATE("Track1!L",A3+9)),"") ->  | M11: =IFERROR(INDIRECT(CONCATENATE("Track1!M",A3+9)),"") -> 0 | N11: =IFERROR(INDIRECT(CONCATENATE("Track1!N",A3+9)),"") -> 
A13: UT17 | B13: =IFERROR(INDIRECT(CONCATENATE("Track1!B",A14)),"") -> 200m U20 Men A | E13: Wind | F13: =Track1!F178 -> -0.5 | I13: =IFERROR(INDIRECT(CONCATENATE("Track1!I",A14)),"") -> 200m U20 Men B | L13: Wind | M13: =Track1!M178 -> 0.2
A14: =IFERROR(MATCH(A13,Track1!A:A,0),"") -> 178 | B14: =IFERROR(INDIRECT(CONCATENATE("Track1!B",A14+1)),"") -> Posn | C14: =IFERROR(INDIRECT(CONCATENATE("Track1!C",A14+1)),"") -> No. | D14: =IFERROR(INDIRECT(CONCATENATE("Track1!D",A14+1)),"") -> Athlete | E14: =IFERROR(INDIRECT(CONCATENATE("Track1!E",A14+1)),"") -> Club | F14: =IFERROR(INDIRECT(CONCATENATE("Track1!F",A14+1)),"") -> Perf | G14: =IFERROR(INDIRECT(CONCATENATE("Track1!G",A14+1)),"") -> AAA | I14: =IFERROR(INDIRECT(CONCATENATE("Track1!I",A14+1)),"") -> Posn | J14: =IFERROR(INDIRECT(CONCATENATE("Track1!J",A14+1)),"") -> No. | K14: =IFERROR(INDIRECT(CONCATENATE("Track1!K",A14+1)),"") -> Athlete | L14: =IFERROR(INDIRECT(CONCATENATE("Track1!L",A14+1)),"") -> Club | M14: =IFERROR(INDIRECT(CONCATENATE("Track1!M",A14+1)),"") -> Perf | N14: =IFERROR(INDIRECT(CONCATENATE("Track1!N",A14+1)),"") -> AAA
B15: =IFERROR(INDIRECT(CONCATENATE("Track1!B",A14+2)),"") -> 1 | C15: =IFERROR(INDIRECT(CONCATENATE("Track1!C",A14+2)),"") -> 1 | D15: =IFERROR(INDIRECT(CONCATENATE("Track1!D",A14+2)),"") -> KNIGHT Matthew | E15: =IFERROR(INDIRECT(CONCATENATE("Track1!E",A14+2)),"") -> B&B | F15: =IFERROR(INDIRECT(CONCATENATE("Track1!F",A14+2)),"") -> 22.2 | G15: =IFERROR(INDIRECT(CONCATENATE("Track1!G",A14+2)),"") -> 2 | I15: =IFERROR(INDIRECT(CONCATENATE("Track1!I",A14+2)),"") -> 1 | J15: =IFERROR(INDIRECT(CONCATENATE("Track1!J",A14+2)),"") -> 44 | K15: =IFERROR(INDIRECT(CONCATENATE("Track1!K",A14+2)),"") -> OKOH Chenna | L15: =IFERROR(INDIRECT(CONCATENATE("Track1!L",A14+2)),"") -> SB | M15: =IFERROR(INDIRECT(CONCATENATE("Track1!M",A14+2)),"") -> 23.05 | N15: =IFERROR(INDIRECT(CONCATENATE("Track1!N",A14+2)),"") ->  | R15: =IFERROR(INDIRECT(CONCATENATE("Track1!R",$A14+2)),"") -> 1
B16: =IFERROR(INDIRECT(CONCATENATE("Track1!B",A14+3)),"") -> 2 | C16: =IFERROR(INDIRECT(CONCATENATE("Track1!C",A14+3)),"") -> 3 | D16: =IFERROR(INDIRECT(CONCATENATE("Track1!D",A14+3)),"") -> LEWIS-SHALLOW Blaine | E16: =IFERROR(INDIRECT(CONCATENATE("Track1!E",A14+3)),"") -> Read | F16: =IFERROR(INDIRECT(CONCATENATE("Track1!F",A14+3)),"") -> 22.44 | G16: =IFERROR(INDIRECT(CONCATENATE("Track1!G",A14+3)),"") -> 3 | I16: =IFERROR(INDIRECT(CONCATENATE("Track1!I",A14+3)),"") -> 2 | J16: =IFERROR(INDIRECT(CONCATENATE("Track1!J",A14+3)),"") -> 66 | K16: =IFERROR(INDIRECT(CONCATENATE("Track1!K",A14+3)),"") -> LAWRENCE Aaron | L16: =IFERROR(INDIRECT(CONCATENATE("Track1!L",A14+3)),"") -> WSEH | M16: =IFERROR(INDIRECT(CONCATENATE("Track1!M",A14+3)),"") -> 23.24 | N16: =IFERROR(INDIRECT(CONCATENATE("Track1!N",A14+3)),"") -> 
B17: =IFERROR(INDIRECT(CONCATENATE("Track1!B",A14+4)),"") -> 3 | C17: =IFERROR(INDIRECT(CONCATENATE("Track1!C",A14+4)),"") -> 6 | D17: =IFERROR(INDIRECT(CONCATENATE("Track1!D",A14+4)),"") -> AHANON Frank | E17: =IFERROR(INDIRECT(CONCATENATE("Track1!E",A14+4)),"") -> WSEH | F17: =IFERROR(INDIRECT(CONCATENATE("Track1!F",A14+4)),"") -> 22.58 | G17: =IFERROR(INDIRECT(CONCATENATE("Track1!G",A14+4)),"") -> 3 | I17: =IFERROR(INDIRECT(CONCATENATE("Track1!I",A14+4)),"") -> 3 | J17: =IFERROR(INDIRECT(CONCATENATE("Track1!J",A14+4)),"") -> 33 | K17: =IFERROR(INDIRECT(CONCATENATE("Track1!K",A14+4)),"") -> JORDAN Ramone | L17: =IFERROR(INDIRECT(CONCATENATE("Track1!L",A14+4)),"") -> Read | M17: =IFERROR(INDIRECT(CONCATENATE("Track1!M",A14+4)),"") -> 23.27 | N17: =IFERROR(INDIRECT(CONCATENATE("Track1!N",A14+4)),"") -> 
B18: =IFERROR(INDIRECT(CONCATENATE("Track1!B",A14+5)),"") -> 4 | C18: =IFERROR(INDIRECT(CONCATENATE("Track1!C",A14+5)),"") -> 4 | D18: =IFERROR(INDIRECT(CONCATENATE("Track1!D",A14+5)),"") -> SMITH Luke | E18: =IFERROR(INDIRECT(CONCATENATE("Track1!E",A14+5)),"") -> SB | F18: =IFERROR(INDIRECT(CONCATENATE("Track1!F",A14+5)),"") -> 22.63 | G18: =IFERROR(INDIRECT(CONCATENATE("Track1!G",A14+5)),"") -> 3 | I18: =IFERROR(INDIRECT(CONCATENATE("Track1!I",A14+5)),"") -> 4 | J18: =IFERROR(INDIRECT(CONCATENATE("Track1!J",A14+5)),"") -> 11 | K18: =IFERROR(INDIRECT(CONCATENATE("Track1!K",A14+5)),"") -> POPE William | L18: =IFERROR(INDIRECT(CONCATENATE("Track1!L",A14+5)),"") -> B&B | M18: =IFERROR(INDIRECT(CONCATENATE("Track1!M",A14+5)),"") -> 23.29 | N18: =IFERROR(INDIRECT(CONCATENATE("Track1!N",A14+5)),"") -> 
B19: =IFERROR(INDIRECT(CONCATENATE("Track1!B",A14+6)),"") -> 5 | C19: =IFERROR(INDIRECT(CONCATENATE("Track1!C",A14+6)),"") -> 5 | D19: =IFERROR(INDIRECT(CONCATENATE("Track1!D",A14+6)),"") -> MATSUKA-WILLIAMS Ben | E19: =IFERROR(INDIRECT(CONCATENATE("Track1!E",A14+6)),"") -> Norfolk | F19: =IFERROR(INDIRECT(CONCATENATE("Track1!F",A14+6)),"") -> 22.7 | G19: =IFERROR(INDIRECT(CONCATENATE("Track1!G",A14+6)),"") -> 3 | I19: =IFERROR(INDIRECT(CONCATENATE("Track1!I",A14+6)),"") -> 5 | J19: =IFERROR(INDIRECT(CONCATENATE("Track1!J",A14+6)),"") -> 55 | K19: =IFERROR(INDIRECT(CONCATENATE("Track1!K",A14+6)),"") -> BENSON Rahim | L19: =IFERROR(INDIRECT(CONCATENATE("Track1!L",A14+6)),"") -> Norfolk | M19: =IFERROR(INDIRECT(CONCATENATE("Track1!M",A14+6)),"") -> 24.23 | N19: =IFERROR(INDIRECT(CONCATENATE("Track1!N",A14+6)),"") -> 
B20: =IFERROR(INDIRECT(CONCATENATE("Track1!B",A14+7)),"") -> 6 | C20: =IFERROR(INDIRECT(CONCATENATE("Track1!C",A14+7)),"") -> 2 | D20: =IFERROR(INDIRECT(CONCATENATE("Track1!D",A14+7)),"") -> HOLME Jamie | E20: =IFERROR(INDIRECT(CONCATENATE("Track1!E",A14+7)),"") -> Craw | F20: =IFERROR(INDIRECT(CONCATENATE("Track1!F",A14+7)),"") -> 24.19 | G20: =IFERROR(INDIRECT(CONCATENATE("Track1!G",A14+7)),"") ->  | I20: =IFERROR(INDIRECT(CONCATENATE("Track1!I",A14+7)),"") -> 6 | J20: =IFERROR(INDIRECT(CONCATENATE("Track1!J",A14+7)),"") -> 22 | K20: =IFERROR(INDIRECT(CONCATENATE("Track1!K",A14+7)),"") -> MORGAN-SMITH Charlie | L20: =IFERROR(INDIRECT(CONCATENATE("Track1!L",A14+7)),"") -> Craw | M20: =IFERROR(INDIRECT(CONCATENATE("Track1!M",A14+7)),"") -> 24.63 | N20: =IFERROR(INDIRECT(CONCATENATE("Track1!N",A14+7)),"") -> 
B21: =IFERROR(INDIRECT(CONCATENATE("Track1!B",A14+8)),"") -> 7 | C21: =IFERROR(INDIRECT(CONCATENATE("Track1!C",A14+8)),"") -> 0 | D21: =IFERROR(INDIRECT(CONCATENATE("Track1!D",A14+8)),"") ->  | E21: =IFERROR(INDIRECT(CONCATENATE("Track1!E",A14+8)),"") ->  | F21: =IFERROR(INDIRECT(CONCATENATE("Track1!F",A14+8)),"") -> 0 | G21: =IFERROR(INDIRECT(CONCATENATE("Track1!G",A14+8)),"") ->  | I21: =IFERROR(INDIRECT(CONCATENATE("Track1!I",A14+8)),"") -> 7 | J21: =IFERROR(INDIRECT(CONCATENATE("Track1!J",A14+8)),"") -> 0 | K21: =IFERROR(INDIRECT(CONCATENATE("Track1!K",A14+8)),"") ->  | L21: =IFERROR(INDIRECT(CONCATENATE("Track1!L",A14+8)),"") ->  | M21: =IFERROR(INDIRECT(CONCATENATE("Track1!M",A14+8)),"") -> 0 | N21: =IFERROR(INDIRECT(CONCATENATE("Track1!N",A14+8)),"") -> 
B22: =IFERROR(INDIRECT(CONCATENATE("Track1!B",A14+9)),"") -> 8 | C22: =IFERROR(INDIRECT(CONCATENATE("Track1!C",A14+9)),"") -> 0 | D22: =IFERROR(INDIRECT(CONCATENATE("Track1!D",A14+9)),"") ->  | E22: =IFERROR(INDIRECT(CONCATENATE("Track1!E",A14+9)),"") ->  | F22: =IFERROR(INDIRECT(CONCATENATE("Track1!F",A14+9)),"") -> 0 | G22: =IFERROR(INDIRECT(CONCATENATE("Track1!G",A14+9)),"") ->  | I22: =IFERROR(INDIRECT(CONCATENATE("Track1!I",A14+9)),"") -> 8 | J22: =IFERROR(INDIRECT(CONCATENATE("Track1!J",A14+9)),"") -> 0 | K22: =IFERROR(INDIRECT(CONCATENATE("Track1!K",A14+9)),"") ->  | L22: =IFERROR(INDIRECT(CONCATENATE("Track1!L",A14+9)),"") ->  | M22: =IFERROR(INDIRECT(CONCATENATE("Track1!M",A14+9)),"") -> 0 | N22: =IFERROR(INDIRECT(CONCATENATE("Track1!N",A14+9)),"") -> 
A24: UT09 | B24: =IFERROR(INDIRECT(CONCATENATE("Track1!B",A25)),"") -> 400m U20 Men A | I24: =IFERROR(INDIRECT(CONCATENATE("Track1!I",A25)),"") -> T09 400m U20 Men B
A25: =IFERROR(MATCH(A24,Track1!A:A,0),"") -> 90 | B25: =IFERROR(INDIRECT(CONCATENATE("Track1!B",A25+1)),"") -> Posn | C25: =IFERROR(INDIRECT(CONCATENATE("Track1!C",A25+1)),"") -> No. | D25: =IFERROR(INDIRECT(CONCATENATE("Track1!D",A25+1)),"") -> Athlete | E25: =IFERROR(INDIRECT(CONCATENATE("Track1!E",A25+1)),"") -> Club | F25: =IFERROR(INDIRECT(CONCATENATE("Track1!F",A25+1)),"") -> Perf | G25: =IFERROR(INDIRECT(CONCATENATE("Track1!G",A25+1)),"") -> AAA | I25: =IFERROR(INDIRECT(CONCATENATE("Track1!I",A25+1)),"") -> Posn | J25: =IFERROR(INDIRECT(CONCATENATE("Track1!J",A25+1)),"") -> No. | K25: =IFERROR(INDIRECT(CONCATENATE("Track1!K",A25+1)),"") -> Athlete | L25: =IFERROR(INDIRECT(CONCATENATE("Track1!L",A25+1)),"") -> Club | M25: =IFERROR(INDIRECT(CONCATENATE("Track1!M",A25+1)),"") -> Perf | N25: =IFERROR(INDIRECT(CONCATENATE("Track1!N",A25+1)),"") -> AAA
B26: =IFERROR(INDIRECT(CONCATENATE("Track1!B",A25+2)),"") -> 1 | C26: =IFERROR(INDIRECT(CONCATENATE("Track1!C",A25+2)),"") -> 4 | D26: =IFERROR(INDIRECT(CONCATENATE("Track1!D",A25+2)),"") -> PAGAN Matthew | E26: =IFERROR(INDIRECT(CONCATENATE("Track1!E",A25+2)),"") -> SB | F26: =IFERROR(INDIRECT(CONCATENATE("Track1!F",A25+2)),"") -> 48.3 | G26: =IFERROR(INDIRECT(CONCATENATE("Track1!G",A25+2)),"") -> 1 | I26: =IFERROR(INDIRECT(CONCATENATE("Track1!I",A25+2)),"") -> 1 | J26: =IFERROR(INDIRECT(CONCATENATE("Track1!J",A25+2)),"") -> 11 | K26: =IFERROR(INDIRECT(CONCATENATE("Track1!K",A25+2)),"") -> POPE William | L26: =IFERROR(INDIRECT(CONCATENATE("Track1!L",A25+2)),"") -> B&B | M26: =IFERROR(INDIRECT(CONCATENATE("Track1!M",A25+2)),"") -> 52.15 | N26: =IFERROR(INDIRECT(CONCATENATE("Track1!N",A25+2)),"") ->  | R26: =IFERROR(INDIRECT(CONCATENATE("Track1!R",$A25+2)),"") -> 1
B27: =IFERROR(INDIRECT(CONCATENATE("Track1!B",A25+3)),"") -> 2 | C27: =IFERROR(INDIRECT(CONCATENATE("Track1!C",A25+3)),"") -> 1 | D27: =IFERROR(INDIRECT(CONCATENATE("Track1!D",A25+3)),"") -> KNIGHT Matthew | E27: =IFERROR(INDIRECT(CONCATENATE("Track1!E",A25+3)),"") -> B&B | F27: =IFERROR(INDIRECT(CONCATENATE("Track1!F",A25+3)),"") -> 49.81 | G27: =IFERROR(INDIRECT(CONCATENATE("Track1!G",A25+3)),"") -> 2 | I27: =IFERROR(INDIRECT(CONCATENATE("Track1!I",A25+3)),"") -> 2 | J27: =IFERROR(INDIRECT(CONCATENATE("Track1!J",A25+3)),"") -> 44 | K27: =IFERROR(INDIRECT(CONCATENATE("Track1!K",A25+3)),"") -> LEWIS Matthew | L27: =IFERROR(INDIRECT(CONCATENATE("Track1!L",A25+3)),"") -> SB | M27: =IFERROR(INDIRECT(CONCATENATE("Track1!M",A25+3)),"") -> 54.26 | N27: =IFERROR(INDIRECT(CONCATENATE("Track1!N",A25+3)),"") -> 
B28: =IFERROR(INDIRECT(CONCATENATE("Track1!B",A25+4)),"") -> 3 | C28: =IFERROR(INDIRECT(CONCATENATE("Track1!C",A25+4)),"") -> 3 | D28: =IFERROR(INDIRECT(CONCATENATE("Track1!D",A25+4)),"") -> LEWIS-SHALLOW Blaine | E28: =IFERROR(INDIRECT(CONCATENATE("Track1!E",A25+4)),"") -> Read | F28: =IFERROR(INDIRECT(CONCATENATE("Track1!F",A25+4)),"") -> 50.61 | G28: =IFERROR(INDIRECT(CONCATENATE("Track1!G",A25+4)),"") -> 3 | I28: =IFERROR(INDIRECT(CONCATENATE("Track1!I",A25+4)),"") -> 3 | J28: =IFERROR(INDIRECT(CONCATENATE("Track1!J",A25+4)),"") -> 22 | K28: =IFERROR(INDIRECT(CONCATENATE("Track1!K",A25+4)),"") -> MORGAN-SMITH Charlie | L28: =IFERROR(INDIRECT(CONCATENATE("Track1!L",A25+4)),"") -> Craw | M28: =IFERROR(INDIRECT(CONCATENATE("Track1!M",A25+4)),"") -> 54.76 | N28: =IFERROR(INDIRECT(CONCATENATE("Track1!N",A25+4)),"") -> 
B29: =IFERROR(INDIRECT(CONCATENATE("Track1!B",A25+5)),"") -> 4 | C29: =IFERROR(INDIRECT(CONCATENATE("Track1!C",A25+5)),"") -> 2 | D29: =IFERROR(INDIRECT(CONCATENATE("Track1!D",A25+5)),"") -> CROCKER George | E29: =IFERROR(INDIRECT(CONCATENATE("Track1!E",A25+5)),"") -> Craw | F29: =IFERROR(INDIRECT(CONCATENATE("Track1!F",A25+5)),"") -> 53.02 | G29: =IFERROR(INDIRECT(CONCATENATE("Track1!G",A25+5)),"") ->  | I29: =IFERROR(INDIRECT(CONCATENATE("Track1!I",A25+5)),"") -> 4 | J29: =IFERROR(INDIRECT(CONCATENATE("Track1!J",A25+5)),"") -> 33 | K29: =IFERROR(INDIRECT(CONCATENATE("Track1!K",A25+5)),"") -> HENRY Malachi | L29: =IFERROR(INDIRECT(CONCATENATE("Track1!L",A25+5)),"") -> Read | M29: =IFERROR(INDIRECT(CONCATENATE("Track1!M",A25+5)),"") -> 56.65 | N29: =IFERROR(INDIRECT(CONCATENATE("Track1!N",A25+5)),"") -> 
B30: =IFERROR(INDIRECT(CONCATENATE("Track1!B",A25+6)),"") -> 5 | C30: =IFERROR(INDIRECT(CONCATENATE("Track1!C",A25+6)),"") -> 5 | D30: =IFERROR(INDIRECT(CONCATENATE("Track1!D",A25+6)),"") -> BEADLE Kai | E30: =IFERROR(INDIRECT(CONCATENATE("Track1!E",A25+6)),"") -> Norfolk | F30: =IFERROR(INDIRECT(CONCATENATE("Track1!F",A25+6)),"") -> 54.49 | G30: =IFERROR(INDIRECT(CONCATENATE("Track1!G",A25+6)),"") ->  | I30: =IFERROR(INDIRECT(CONCATENATE("Track1!I",A25+6)),"") -> 5 | J30: =IFERROR(INDIRECT(CONCATENATE("Track1!J",A25+6)),"") -> 55 | K30: =IFERROR(INDIRECT(CONCATENATE("Track1!K",A25+6)),"") -> VINCENT Luke | L30: =IFERROR(INDIRECT(CONCATENATE("Track1!L",A25+6)),"") -> Norfolk | M30: =IFERROR(INDIRECT(CONCATENATE("Track1!M",A25+6)),"") -> 70.31 | N30: =IFERROR(INDIRECT(CONCATENATE("Track1!N",A25+6)),"") -> 
B31: =IFERROR(INDIRECT(CONCATENATE("Track1!B",A25+7)),"") -> 6 | C31: =IFERROR(INDIRECT(CONCATENATE("Track1!C",A25+7)),"") -> 6 | D31: =IFERROR(INDIRECT(CONCATENATE("Track1!D",A25+7)),"") -> SPELLMAN Thomas | E31: =IFERROR(INDIRECT(CONCATENATE("Track1!E",A25+7)),"") -> WSEH | F31: =IFERROR(INDIRECT(CONCATENATE("Track1!F",A25+7)),"") -> 57.49 | G31: =IFERROR(INDIRECT(CONCATENATE("Track1!G",A25+7)),"") ->  | I31: =IFERROR(INDIRECT(CONCATENATE("Track1!I",A25+7)),"") -> 6 | J31: =IFERROR(INDIRECT(CONCATENATE("Track1!J",A25+7)),"") -> 0 | K31: =IFERROR(INDIRECT(CONCATENATE("Track1!K",A25+7)),"") ->  | L31: =IFERROR(INDIRECT(CONCATENATE("Track1!L",A25+7)),"") ->  | M31: =IFERROR(INDIRECT(CONCATENATE("Track1!M",A25+7)),"") -> 0 | N31: =IFERROR(INDIRECT(CONCATENATE("Track1!N",A25+7)),"") -> 
B32: =IFERROR(INDIRECT(CONCATENATE("Track1!B",A25+8)),"") -> 7 | C32: =IFERROR(INDIRECT(CONCATENATE("Track1!C",A25+8)),"") -> 0 | D32: =IFERROR(INDIRECT(CONCATENATE("Track1!D",A25+8)),"") ->  | E32: =IFERROR(INDIRECT(CONCATENATE("Track1!E",A25+8)),"") ->  | F32: =IFERROR(INDIRECT(CONCATENATE("Track1!F",A25+8)),"") -> 0 | G32: =IFERROR(INDIRECT(CONCATENATE("Track1!G",A25+8)),"") ->  | I32: =IFERROR(INDIRECT(CONCATENATE("Track1!I",A25+8)),"") -> 7 | J32: =IFERROR(INDIRECT(CONCATENATE("Track1!J",A25+8)),"") -> 0 | K32: =IFERROR(INDIRECT(CONCATENATE("Track1!K",A25+8)),"") ->  | L32: =IFERROR(INDIRECT(CONCATENATE("Track1!L",A25+8)),"") ->  | M32: =IFERROR(INDIRECT(CONCATENATE("Track1!M",A25+8)),"") -> 0 | N32: =IFERROR(INDIRECT(CONCATENATE("Track1!N",A25+8)),"") -> 
B33: =IFERROR(INDIRECT(CONCATENATE("Track1!B",A25+9)),"") -> 8 | C33: =IFERROR(INDIRECT(CONCATENATE("Track1!C",A25+9)),"") -> 0 | D33: =IFERROR(INDIRECT(CONCATENATE("Track1!D",A25+9)),"") ->  | E33: =IFERROR(INDIRECT(CONCATENATE("Track1!E",A25+9)),"") ->  | F33: =IFERROR(INDIRECT(CONCATENATE("Track1!F",A25+9)),"") -> 0 | G33: =IFERROR(INDIRECT(CONCATENATE("Track1!G",A25+9)),"") ->  | I33: =IFERROR(INDIRECT(CONCATENATE("Track1!I",A25+9)),"") -> 8 | J33: =IFERROR(INDIRECT(CONCATENATE("Track1!J",A25+9)),"") -> 0 | K33: =IFERROR(INDIRECT(CONCATENATE("Track1!K",A25+9)),"") ->  | L33: =IFERROR(INDIRECT(CONCATENATE("Track1!L",A25+9)),"") ->  | M33: =IFERROR(INDIRECT(CONCATENATE("Track1!M",A25+9)),"") -> 0 | N33: =IFERROR(INDIRECT(CONCATENATE("Track1!N",A25+9)),"") -> 
A35: UTD81 | B35: =IFERROR(INDIRECT(CONCATENATE("Track1!B",A36)),"") -> 800m U20 Men A | I35: =IFERROR(INDIRECT(CONCATENATE("Track1!I",A36)),"") -> 800m U20 Men B
A36: =IFERROR(MATCH(A35,Track1!A:A,0),"") -> 222 | B36: =IFERROR(INDIRECT(CONCATENATE("Track1!B",A36+1)),"") -> Posn | C36: =IFERROR(INDIRECT(CONCATENATE("Track1!C",A36+1)),"") -> No. | D36: =IFERROR(INDIRECT(CONCATENATE("Track1!D",A36+1)),"") -> Athlete | E36: =IFERROR(INDIRECT(CONCATENATE("Track1!E",A36+1)),"") -> Club | F36: =IFERROR(INDIRECT(CONCATENATE("Track1!F",A36+1)),"") -> Perf | G36: =IFERROR(INDIRECT(CONCATENATE("Track1!G",A36+1)),"") -> AAA | I36: =IFERROR(INDIRECT(CONCATENATE("Track1!I",A36+1)),"") -> Posn | J36: =IFERROR(INDIRECT(CONCATENATE("Track1!J",A36+1)),"") -> No. | K36: =IFERROR(INDIRECT(CONCATENATE("Track1!K",A36+1)),"") -> Athlete | L36: =IFERROR(INDIRECT(CONCATENATE("Track1!L",A36+1)),"") -> Club | M36: =IFERROR(INDIRECT(CONCATENATE("Track1!M",A36+1)),"") -> Perf | N36: =IFERROR(INDIRECT(CONCATENATE("Track1!N",A36+1)),"") -> AAA
B37: =IFERROR(INDIRECT(CONCATENATE("Track1!B",A36+2)),"") -> 1 | C37: =IFERROR(INDIRECT(CONCATENATE("Track1!C",A36+2)),"") -> 1 | D37: =IFERROR(INDIRECT(CONCATENATE("Track1!D",A36+2)),"") -> LUTAKOME Ricky | E37: =IFERROR(INDIRECT(CONCATENATE("Track1!E",A36+2)),"") -> B&B | F37: =IFERROR(INDIRECT(CONCATENATE("Track1!T",A36+2)),"") -> 00:01:54.310 | G37: =IFERROR(INDIRECT(CONCATENATE("Track1!G",A36+2)),"") ->  | I37: =IFERROR(INDIRECT(CONCATENATE("Track1!I",A36+2)),"") -> 1 | J37: =IFERROR(INDIRECT(CONCATENATE("Track1!J",A36+2)),"") -> 11 | K37: =IFERROR(INDIRECT(CONCATENATE("Track1!K",A36+2)),"") -> HUSSEY Oscar | L37: =IFERROR(INDIRECT(CONCATENATE("Track1!L",A36+2)),"") -> B&B | M37: =IFERROR(INDIRECT(CONCATENATE("Track1!U",A36+2)),"") -> 00:02:03.730 | N37: =IFERROR(INDIRECT(CONCATENATE("Track1!N",A36+2)),"") ->  | R37: =IFERROR(INDIRECT(CONCATENATE("Track1!R",$A36+2)),"") -> 1
B38: =IFERROR(INDIRECT(CONCATENATE("Track1!B",A36+3)),"") -> 2 | C38: =IFERROR(INDIRECT(CONCATENATE("Track1!C",A36+3)),"") -> 4 | D38: =IFERROR(INDIRECT(CONCATENATE("Track1!D",A36+3)),"") -> FULTON Thomas | E38: =IFERROR(INDIRECT(CONCATENATE("Track1!E",A36+3)),"") -> SB | F38: =IFERROR(INDIRECT(CONCATENATE("Track1!T",A36+3)),"") -> 00:01:55.320 | G38: =IFERROR(INDIRECT(CONCATENATE("Track1!G",A36+3)),"") ->  | I38: =IFERROR(INDIRECT(CONCATENATE("Track1!I",A36+3)),"") -> 2 | J38: =IFERROR(INDIRECT(CONCATENATE("Track1!J",A36+3)),"") -> 22 | K38: =IFERROR(INDIRECT(CONCATENATE("Track1!K",A36+3)),"") -> ANDREWS James | L38: =IFERROR(INDIRECT(CONCATENATE("Track1!L",A36+3)),"") -> Craw | M38: =IFERROR(INDIRECT(CONCATENATE("Track1!U",A36+3)),"") -> 00:02:03.810 | N38: =IFERROR(INDIRECT(CONCATENATE("Track1!N",A36+3)),"") -> 
B39: =IFERROR(INDIRECT(CONCATENATE("Track1!B",A36+4)),"") -> 3 | C39: =IFERROR(INDIRECT(CONCATENATE("Track1!C",A36+4)),"") -> 2 | D39: =IFERROR(INDIRECT(CONCATENATE("Track1!D",A36+4)),"") -> CROCKER George | E39: =IFERROR(INDIRECT(CONCATENATE("Track1!E",A36+4)),"") -> Craw | F39: =IFERROR(INDIRECT(CONCATENATE("Track1!T",A36+4)),"") -> 00:02:00.860 | G39: =IFERROR(INDIRECT(CONCATENATE("Track1!G",A36+4)),"") ->  | I39: =IFERROR(INDIRECT(CONCATENATE("Track1!I",A36+4)),"") -> 3 | J39: =IFERROR(INDIRECT(CONCATENATE("Track1!J",A36+4)),"") -> 44 | K39: =IFERROR(INDIRECT(CONCATENATE("Track1!K",A36+4)),"") -> ARBE Najibe X | L39: =IFERROR(INDIRECT(CONCATENATE("Track1!L",A36+4)),"") -> SB | M39: =IFERROR(INDIRECT(CONCATENATE("Track1!U",A36+4)),"") -> 00:02:05.640 | N39: =IFERROR(INDIRECT(CONCATENATE("Track1!N",A36+4)),"") -> 
B40: =IFERROR(INDIRECT(CONCATENATE("Track1!B",A36+5)),"") -> 4 | C40: =IFERROR(INDIRECT(CONCATENATE("Track1!C",A36+5)),"") -> 3 | D40: =IFERROR(INDIRECT(CONCATENATE("Track1!D",A36+5)),"") -> RAY Daniel | E40: =IFERROR(INDIRECT(CONCATENATE("Track1!E",A36+5)),"") -> Read | F40: =IFERROR(INDIRECT(CONCATENATE("Track1!T",A36+5)),"") -> 00:02:01.430 | G40: =IFERROR(INDIRECT(CONCATENATE("Track1!G",A36+5)),"") ->  | I40: =IFERROR(INDIRECT(CONCATENATE("Track1!I",A36+5)),"") -> 4 | J40: =IFERROR(INDIRECT(CONCATENATE("Track1!J",A36+5)),"") -> 33 | K40: =IFERROR(INDIRECT(CONCATENATE("Track1!K",A36+5)),"") -> KANYADY Shreyas | L40: =IFERROR(INDIRECT(CONCATENATE("Track1!L",A36+5)),"") -> Read | M40: =IFERROR(INDIRECT(CONCATENATE("Track1!U",A36+5)),"") -> 00:02:05.810 | N40: =IFERROR(INDIRECT(CONCATENATE("Track1!N",A36+5)),"") -> 
B41: =IFERROR(INDIRECT(CONCATENATE("Track1!B",A36+6)),"") -> 5 | C41: =IFERROR(INDIRECT(CONCATENATE("Track1!C",A36+6)),"") -> 6 | D41: =IFERROR(INDIRECT(CONCATENATE("Track1!D",A36+6)),"") -> TCHANGWA Marvin X | E41: =IFERROR(INDIRECT(CONCATENATE("Track1!E",A36+6)),"") -> WSEH | F41: =IFERROR(INDIRECT(CONCATENATE("Track1!T",A36+6)),"") -> 00:02:02.260 | G41: =IFERROR(INDIRECT(CONCATENATE("Track1!G",A36+6)),"") ->  | I41: =IFERROR(INDIRECT(CONCATENATE("Track1!I",A36+6)),"") -> 5 | J41: =IFERROR(INDIRECT(CONCATENATE("Track1!J",A36+6)),"") -> 0 | K41: =IFERROR(INDIRECT(CONCATENATE("Track1!K",A36+6)),"") ->  | L41: =IFERROR(INDIRECT(CONCATENATE("Track1!L",A36+6)),"") ->  | M41: =IFERROR(INDIRECT(CONCATENATE("Track1!U",A36+6)),"") -> 00:00:00 | N41: =IFERROR(INDIRECT(CONCATENATE("Track1!N",A36+6)),"") -> 
B42: =IFERROR(INDIRECT(CONCATENATE("Track1!B",A36+7)),"") -> 6 | C42: =IFERROR(INDIRECT(CONCATENATE("Track1!C",A36+7)),"") -> 0 | D42: =IFERROR(INDIRECT(CONCATENATE("Track1!D",A36+7)),"") ->  | E42: =IFERROR(INDIRECT(CONCATENATE("Track1!E",A36+7)),"") ->  | F42: =IFERROR(INDIRECT(CONCATENATE("Track1!T",A36+7)),"") -> 00:00:00 | G42: =IFERROR(INDIRECT(CONCATENATE("Track1!G",A36+7)),"") ->  | I42: =IFERROR(INDIRECT(CONCATENATE("Track1!I",A36+7)),"") -> 6 | J42: =IFERROR(INDIRECT(CONCATENATE("Track1!J",A36+7)),"") -> 0 | K42: =IFERROR(INDIRECT(CONCATENATE("Track1!K",A36+7)),"") ->  | L42: =IFERROR(INDIRECT(CONCATENATE("Track1!L",A36+7)),"") ->  | M42: =IFERROR(INDIRECT(CONCATENATE("Track1!U",A36+7)),"") -> 00:00:00 | N42: =IFERROR(INDIRECT(CONCATENATE("Track1!N",A36+7)),"") -> 
B43: =IFERROR(INDIRECT(CONCATENATE("Track1!B",A36+8)),"") -> 7 | C43: =IFERROR(INDIRECT(CONCATENATE("Track1!C",A36+8)),"") -> 0 | D43: =IFERROR(INDIRECT(CONCATENATE("Track1!D",A36+8)),"") ->  | E43: =IFERROR(INDIRECT(CONCATENATE("Track1!E",A36+8)),"") ->  | F43: =IFERROR(INDIRECT(CONCATENATE("Track1!T",A36+8)),"") -> 00:00:00 | G43: =IFERROR(INDIRECT(CONCATENATE("Track1!G",A36+8)),"") ->  | I43: =IFERROR(INDIRECT(CONCATENATE("Track1!I",A36+8)),"") -> 7 | J43: =IFERROR(INDIRECT(CONCATENATE("Track1!J",A36+8)),"") -> 0 | K43: =IFERROR(INDIRECT(CONCATENATE("Track1!K",A36+8)),"") ->  | L43: =IFERROR(INDIRECT(CONCATENATE("Track1!L",A36+8)),"") ->  | M43: =IFERROR(INDIRECT(CONCATENATE("Track1!U",A36+8)),"") -> 00:00:00 | N43: =IFERROR(INDIRECT(CONCATENATE("Track1!N",A36+8)),"") -> 
B44: =IFERROR(INDIRECT(CONCATENATE("Track1!B",A36+9)),"") -> 8 | C44: =IFERROR(INDIRECT(CONCATENATE("Track1!C",A36+9)),"") -> 0 | D44: =IFERROR(INDIRECT(CONCATENATE("Track1!D",A36+9)),"") ->  | E44: =IFERROR(INDIRECT(CONCATENATE("Track1!E",A36+9)),"") ->  | F44: =IFERROR(INDIRECT(CONCATENATE("Track1!T",A36+9)),"") -> 00:00:00 | G44: =IFERROR(INDIRECT(CONCATENATE("Track1!G",A36+9)),"") ->  | I44: =IFERROR(INDIRECT(CONCATENATE("Track1!I",A36+9)),"") -> 8 | J44: =IFERROR(INDIRECT(CONCATENATE("Track1!J",A36+9)),"") -> 0 | K44: =IFERROR(INDIRECT(CONCATENATE("Track1!K",A36+9)),"") ->  | L44: =IFERROR(INDIRECT(CONCATENATE("Track1!L",A36+9)),"") ->  | M44: =IFERROR(INDIRECT(CONCATENATE("Track1!U",A36+9)),"") -> 00:00:00 | N44: =IFERROR(INDIRECT(CONCATENATE("Track1!N",A36+9)),"") -> 
A46: UTD01 | B46: =IFERROR(INDIRECT(CONCATENATE("Track2!B",A47)),"") -> 1500m U20 Men A | I46: =IFERROR(INDIRECT(CONCATENATE("Track2!I",A47)),"") -> 1500m U20 Men B
A47: =IFERROR(MATCH(A46,Track2!A:A,0),"") -> 2 | B47: =IFERROR(INDIRECT(CONCATENATE("Track2!B",A47+1)),"") -> Posn | C47: =IFERROR(INDIRECT(CONCATENATE("Track2!C",A47+1)),"") -> No. | D47: =IFERROR(INDIRECT(CONCATENATE("Track2!D",A47+1)),"") -> Athlete | E47: =IFERROR(INDIRECT(CONCATENATE("Track2!E",A47+1)),"") -> Club | F47: =IFERROR(INDIRECT(CONCATENATE("Track2!F",A47+1)),"") -> Perf | G47: =IFERROR(INDIRECT(CONCATENATE("Track2!G",A47+1)),"") -> AAA | I47: =IFERROR(INDIRECT(CONCATENATE("Track2!I",A47+1)),"") -> Posn | J47: =IFERROR(INDIRECT(CONCATENATE("Track2!J",A47+1)),"") -> No. | K47: =IFERROR(INDIRECT(CONCATENATE("Track2!K",A47+1)),"") -> Athlete | L47: =IFERROR(INDIRECT(CONCATENATE("Track2!L",A47+1)),"") -> Club | M47: =IFERROR(INDIRECT(CONCATENATE("Track2!M",A47+1)),"") -> Perf | N47: =IFERROR(INDIRECT(CONCATENATE("Track2!N",A47+1)),"") -> AAA
B48: =IFERROR(INDIRECT(CONCATENATE("Track2!B",A47+2)),"") -> 1 | C48: =IFERROR(INDIRECT(CONCATENATE("Track2!C",A47+2)),"") -> 4 | D48: =IFERROR(INDIRECT(CONCATENATE("Track2!D",A47+2)),"") -> KADIR Hamza | E48: =IFERROR(INDIRECT(CONCATENATE("Track2!E",A47+2)),"") -> SB | F48: =IFERROR(INDIRECT(CONCATENATE("Track2!F",A47+2)),"") -> 00:04:16 | G48: =IFERROR(INDIRECT(CONCATENATE("Track2!G",A47+2)),"") ->  | I48: =IFERROR(INDIRECT(CONCATENATE("Track2!I",A47+2)),"") -> 1 | J48: =IFERROR(INDIRECT(CONCATENATE("Track2!J",A47+2)),"") -> 11 | K48: =IFERROR(INDIRECT(CONCATENATE("Track2!K",A47+2)),"") -> BRANNAN Finlay | L48: =IFERROR(INDIRECT(CONCATENATE("Track2!L",A47+2)),"") -> B&B | M48: =IFERROR(INDIRECT(CONCATENATE("Track2!M",A47+2)),"") -> 00:04:25.740 | N48: =IFERROR(INDIRECT(CONCATENATE("Track2!N",A47+2)),"") ->  | R48: =IFERROR(INDIRECT(CONCATENATE("Track2!R",$A47+2)),"") -> 1
B49: =IFERROR(INDIRECT(CONCATENATE("Track2!B",A47+3)),"") -> 2 | C49: =IFERROR(INDIRECT(CONCATENATE("Track2!C",A47+3)),"") -> 3 | D49: =IFERROR(INDIRECT(CONCATENATE("Track2!D",A47+3)),"") -> COOK Peter | E49: =IFERROR(INDIRECT(CONCATENATE("Track2!E",A47+3)),"") -> Read | F49: =IFERROR(INDIRECT(CONCATENATE("Track2!F",A47+3)),"") -> 00:04:18.280 | G49: =IFERROR(INDIRECT(CONCATENATE("Track2!G",A47+3)),"") ->  | I49: =IFERROR(INDIRECT(CONCATENATE("Track2!I",A47+3)),"") -> 2 | J49: =IFERROR(INDIRECT(CONCATENATE("Track2!J",A47+3)),"") -> 33 | K49: =IFERROR(INDIRECT(CONCATENATE("Track2!K",A47+3)),"") -> KANYADY Shreyas | L49: =IFERROR(INDIRECT(CONCATENATE("Track2!L",A47+3)),"") -> Read | M49: =IFERROR(INDIRECT(CONCATENATE("Track2!M",A47+3)),"") -> 00:04:26.250 | N49: =IFERROR(INDIRECT(CONCATENATE("Track2!N",A47+3)),"") -> 
B50: =IFERROR(INDIRECT(CONCATENATE("Track2!B",A47+4)),"") -> 3 | C50: =IFERROR(INDIRECT(CONCATENATE("Track2!C",A47+4)),"") -> 1 | D50: =IFERROR(INDIRECT(CONCATENATE("Track2!D",A47+4)),"") -> MILLS Lewis | E50: =IFERROR(INDIRECT(CONCATENATE("Track2!E",A47+4)),"") -> B&B | F50: =IFERROR(INDIRECT(CONCATENATE("Track2!F",A47+4)),"") -> 00:04:25.490 | G50: =IFERROR(INDIRECT(CONCATENATE("Track2!G",A47+4)),"") ->  | I50: =IFERROR(INDIRECT(CONCATENATE("Track2!I",A47+4)),"") -> 3 | J50: =IFERROR(INDIRECT(CONCATENATE("Track2!J",A47+4)),"") -> 44 | K50: =IFERROR(INDIRECT(CONCATENATE("Track2!K",A47+4)),"") -> KENT Rufus | L50: =IFERROR(INDIRECT(CONCATENATE("Track2!L",A47+4)),"") -> SB | M50: =IFERROR(INDIRECT(CONCATENATE("Track2!M",A47+4)),"") -> 00:04:37.370 | N50: =IFERROR(INDIRECT(CONCATENATE("Track2!N",A47+4)),"") -> 
B51: =IFERROR(INDIRECT(CONCATENATE("Track2!B",A47+5)),"") -> 4 | C51: =IFERROR(INDIRECT(CONCATENATE("Track2!C",A47+5)),"") -> 6 | D51: =IFERROR(INDIRECT(CONCATENATE("Track2!D",A47+5)),"") -> CLUTTERBUCK Matthew X | E51: =IFERROR(INDIRECT(CONCATENATE("Track2!E",A47+5)),"") -> WSEH | F51: =IFERROR(INDIRECT(CONCATENATE("Track2!F",A47+5)),"") -> 00:04:37.760 | G51: =IFERROR(INDIRECT(CONCATENATE("Track2!G",A47+5)),"") ->  | I51: =IFERROR(INDIRECT(CONCATENATE("Track2!I",A47+5)),"") -> 4 | J51: =IFERROR(INDIRECT(CONCATENATE("Track2!J",A47+5)),"") ->  | K51: =IFERROR(INDIRECT(CONCATENATE("Track2!K",A47+5)),"") ->  | L51: =IFERROR(INDIRECT(CONCATENATE("Track2!L",A47+5)),"") ->  | M51: =IFERROR(INDIRECT(CONCATENATE("Track2!M",A47+5)),"") -> X | N51: =IFERROR(INDIRECT(CONCATENATE("Track2!N",A47+5)),"") -> 
B52: =IFERROR(INDIRECT(CONCATENATE("Track2!B",A47+6)),"") -> 5 | C52: =IFERROR(INDIRECT(CONCATENATE("Track2!C",A47+6)),"") ->  | D52: =IFERROR(INDIRECT(CONCATENATE("Track2!D",A47+6)),"") ->  | E52: =IFERROR(INDIRECT(CONCATENATE("Track2!E",A47+6)),"") ->  | F52: =IFERROR(INDIRECT(CONCATENATE("Track2!F",A47+6)),"") -> X | G52: =IFERROR(INDIRECT(CONCATENATE("Track2!G",A47+6)),"") ->  | I52: =IFERROR(INDIRECT(CONCATENATE("Track2!I",A47+6)),"") -> 5 | J52: =IFERROR(INDIRECT(CONCATENATE("Track2!J",A47+6)),"") ->  | K52: =IFERROR(INDIRECT(CONCATENATE("Track2!K",A47+6)),"") ->  | L52: =IFERROR(INDIRECT(CONCATENATE("Track2!L",A47+6)),"") ->  | M52: =IFERROR(INDIRECT(CONCATENATE("Track2!M",A47+6)),"") -> X | N52: =IFERROR(INDIRECT(CONCATENATE("Track2!N",A47+6)),"") -> 
B53: =IFERROR(INDIRECT(CONCATENATE("Track2!B",A47+7)),"") -> 6 | C53: =IFERROR(INDIRECT(CONCATENATE("Track2!C",A47+7)),"") ->  | D53: =IFERROR(INDIRECT(CONCATENATE("Track2!D",A47+7)),"") ->  | E53: =IFERROR(INDIRECT(CONCATENATE("Track2!E",A47+7)),"") ->  | F53: =IFERROR(INDIRECT(CONCATENATE("Track2!F",A47+7)),"") -> X | G53: =IFERROR(INDIRECT(CONCATENATE("Track2!G",A47+7)),"") ->  | I53: =IFERROR(INDIRECT(CONCATENATE("Track2!I",A47+7)),"") -> 6 | J53: =IFERROR(INDIRECT(CONCATENATE("Track2!J",A47+7)),"") ->  | K53: =IFERROR(INDIRECT(CONCATENATE("Track2!K",A47+7)),"") ->  | L53: =IFERROR(INDIRECT(CONCATENATE("Track2!L",A47+7)),"") ->  | M53: =IFERROR(INDIRECT(CONCATENATE("Track2!M",A47+7)),"") -> X | N53: =IFERROR(INDIRECT(CONCATENATE("Track2!N",A47+7)),"") -> 
B54: =IFERROR(INDIRECT(CONCATENATE("Track2!B",A47+8)),"") -> 7 | C54: =IFERROR(INDIRECT(CONCATENATE("Track2!C",A47+8)),"") ->  | D54: =IFERROR(INDIRECT(CONCATENATE("Track2!D",A47+8)),"") ->  | E54: =IFERROR(INDIRECT(CONCATENATE("Track2!E",A47+8)),"") ->  | F54: =IFERROR(INDIRECT(CONCATENATE("Track2!F",A47+8)),"") -> X | G54: =IFERROR(INDIRECT(CONCATENATE("Track2!G",A47+8)),"") ->  | I54: =IFERROR(INDIRECT(CONCATENATE("Track2!I",A47+8)),"") -> 7 | J54: =IFERROR(INDIRECT(CONCATENATE("Track2!J",A47+8)),"") ->  | K54: =IFERROR(INDIRECT(CONCATENATE("Track2!K",A47+8)),"") ->  | L54: =IFERROR(INDIRECT(CONCATENATE("Track2!L",A47+8)),"") ->  | M54: =IFERROR(INDIRECT(CONCATENATE("Track2!M",A47+8)),"") -> X | N54: =IFERROR(INDIRECT(CONCATENATE("Track2!N",A47+8)),"") -> 
B55: =IFERROR(INDIRECT(CONCATENATE("Track2!B",A47+9)),"") -> 8 | C55: =IFERROR(INDIRECT(CONCATENATE("Track2!C",A47+9)),"") ->  | D55: =IFERROR(INDIRECT(CONCATENATE("Track2!D",A47+9)),"") ->  | E55: =IFERROR(INDIRECT(CONCATENATE("Track2!E",A47+9)),"") ->  | F55: =IFERROR(INDIRECT(CONCATENATE("Track2!F",A47+9)),"") -> X | G55: =IFERROR(INDIRECT(CONCATENATE("Track2!G",A47+9)),"") ->  | I55: =IFERROR(INDIRECT(CONCATENATE("Track2!I",A47+9)),"") -> 8 | J55: =IFERROR(INDIRECT(CONCATENATE("Track2!J",A47+9)),"") ->  | K55: =IFERROR(INDIRECT(CONCATENATE("Track2!K",A47+9)),"") ->  | L55: =IFERROR(INDIRECT(CONCATENATE("Track2!L",A47+9)),"") ->  | M55: =IFERROR(INDIRECT(CONCATENATE("Track2!M",A47+9)),"") -> X | N55: =IFERROR(INDIRECT(CONCATENATE("Track2!N",A47+9)),"") -> 
A57: UTD06 | B57: =IFERROR(INDIRECT(CONCATENATE("Track2!B",A58)),"") -> 3000m U20 Men A | I57: =IFERROR(INDIRECT(CONCATENATE("Track2!I",A58)),"") -> 3000m U20 Men B
A58: =IFERROR(MATCH(A57,Track2!A:A,0),"") -> 57 | B58: =IFERROR(INDIRECT(CONCATENATE("Track2!B",A58+1)),"") -> Posn | C58: =IFERROR(INDIRECT(CONCATENATE("Track2!C",A58+1)),"") -> No. | D58: =IFERROR(INDIRECT(CONCATENATE("Track2!D",A58+1)),"") -> Athlete | E58: =IFERROR(INDIRECT(CONCATENATE("Track2!E",A58+1)),"") -> Club | F58: =IFERROR(INDIRECT(CONCATENATE("Track2!F",A58+1)),"") -> Perf | G58: =IFERROR(INDIRECT(CONCATENATE("Track2!G",A58+1)),"") -> AAA | I58: =IFERROR(INDIRECT(CONCATENATE("Track2!I",A58+1)),"") -> Posn | J58: =IFERROR(INDIRECT(CONCATENATE("Track2!J",A58+1)),"") -> No. | K58: =IFERROR(INDIRECT(CONCATENATE("Track2!K",A58+1)),"") -> Athlete | L58: =IFERROR(INDIRECT(CONCATENATE("Track2!L",A58+1)),"") -> Club | M58: =IFERROR(INDIRECT(CONCATENATE("Track2!M",A58+1)),"") -> Perf | N58: =IFERROR(INDIRECT(CONCATENATE("Track2!N",A58+1)),"") -> AAA
B59: =IFERROR(INDIRECT(CONCATENATE("Track2!B",A58+2)),"") -> 1 | C59: =IFERROR(INDIRECT(CONCATENATE("Track2!C",A58+2)),"") -> 4 | D59: =IFERROR(INDIRECT(CONCATENATE("Track2!D",A58+2)),"") -> BUTLER Tom | E59: =IFERROR(INDIRECT(CONCATENATE("Track2!E",A58+2)),"") -> SB | F59: =IFERROR(INDIRECT(CONCATENATE("Track2!F",A58+2)),"") -> 00:08:49.520 | G59: =IFERROR(INDIRECT(CONCATENATE("Track2!G",A58+2)),"") ->  | I59: =IFERROR(INDIRECT(CONCATENATE("Track2!I",A58+2)),"") -> 1 | J59: =IFERROR(INDIRECT(CONCATENATE("Track2!J",A58+2)),"") -> 11 | K59: =IFERROR(INDIRECT(CONCATENATE("Track2!K",A58+2)),"") -> CRAWLEY James | L59: =IFERROR(INDIRECT(CONCATENATE("Track2!L",A58+2)),"") -> B&B | M59: =IFERROR(INDIRECT(CONCATENATE("Track2!M",A58+2)),"") -> 00:09:53.060 | N59: =IFERROR(INDIRECT(CONCATENATE("Track2!N",A58+2)),"") ->  | R59: =IFERROR(INDIRECT(CONCATENATE("Track2!R",$A58+2)),"") -> 1
B60: =IFERROR(INDIRECT(CONCATENATE("Track2!B",A58+3)),"") -> 2 | C60: =IFERROR(INDIRECT(CONCATENATE("Track2!C",A58+3)),"") -> 3 | D60: =IFERROR(INDIRECT(CONCATENATE("Track2!D",A58+3)),"") -> RAY Daniel | E60: =IFERROR(INDIRECT(CONCATENATE("Track2!E",A58+3)),"") -> Read | F60: =IFERROR(INDIRECT(CONCATENATE("Track2!F",A58+3)),"") -> 00:08:57.080 | G60: =IFERROR(INDIRECT(CONCATENATE("Track2!G",A58+3)),"") ->  | I60: =IFERROR(INDIRECT(CONCATENATE("Track2!I",A58+3)),"") -> 2 | J60: =IFERROR(INDIRECT(CONCATENATE("Track2!J",A58+3)),"") -> 44 | K60: =IFERROR(INDIRECT(CONCATENATE("Track2!K",A58+3)),"") -> CROSS Louis | L60: =IFERROR(INDIRECT(CONCATENATE("Track2!L",A58+3)),"") -> SB | M60: =IFERROR(INDIRECT(CONCATENATE("Track2!M",A58+3)),"") -> 00:09:53.890 | N60: =IFERROR(INDIRECT(CONCATENATE("Track2!N",A58+3)),"") -> 
B61: =IFERROR(INDIRECT(CONCATENATE("Track2!B",A58+4)),"") -> 3 | C61: =IFERROR(INDIRECT(CONCATENATE("Track2!C",A58+4)),"") -> 2 | D61: =IFERROR(INDIRECT(CONCATENATE("Track2!D",A58+4)),"") -> HOYTE Reuben | E61: =IFERROR(INDIRECT(CONCATENATE("Track2!E",A58+4)),"") -> Craw | F61: =IFERROR(INDIRECT(CONCATENATE("Track2!F",A58+4)),"") -> 00:09:04.660 | G61: =IFERROR(INDIRECT(CONCATENATE("Track2!G",A58+4)),"") ->  | I61: =IFERROR(INDIRECT(CONCATENATE("Track2!I",A58+4)),"") -> 3 | J61: =IFERROR(INDIRECT(CONCATENATE("Track2!J",A58+4)),"") ->  | K61: =IFERROR(INDIRECT(CONCATENATE("Track2!K",A58+4)),"") ->  | L61: =IFERROR(INDIRECT(CONCATENATE("Track2!L",A58+4)),"") ->  | M61: =IFERROR(INDIRECT(CONCATENATE("Track2!M",A58+4)),"") -> X | N61: =IFERROR(INDIRECT(CONCATENATE("Track2!N",A58+4)),"") -> 
B62: =IFERROR(INDIRECT(CONCATENATE("Track2!B",A58+5)),"") -> 4 | C62: =IFERROR(INDIRECT(CONCATENATE("Track2!C",A58+5)),"") -> 1 | D62: =IFERROR(INDIRECT(CONCATENATE("Track2!D",A58+5)),"") -> ARCURI Marco | E62: =IFERROR(INDIRECT(CONCATENATE("Track2!E",A58+5)),"") -> B&B | F62: =IFERROR(INDIRECT(CONCATENATE("Track2!F",A58+5)),"") -> 00:09:32.710 | G62: =IFERROR(INDIRECT(CONCATENATE("Track2!G",A58+5)),"") ->  | I62: =IFERROR(INDIRECT(CONCATENATE("Track2!I",A58+5)),"") -> 4 | J62: =IFERROR(INDIRECT(CONCATENATE("Track2!J",A58+5)),"") ->  | K62: =IFERROR(INDIRECT(CONCATENATE("Track2!K",A58+5)),"") ->  | L62: =IFERROR(INDIRECT(CONCATENATE("Track2!L",A58+5)),"") ->  | M62: =IFERROR(INDIRECT(CONCATENATE("Track2!M",A58+5)),"") -> X | N62: =IFERROR(INDIRECT(CONCATENATE("Track2!N",A58+5)),"") -> 
B63: =IFERROR(INDIRECT(CONCATENATE("Track2!B",A58+6)),"") -> 5 | C63: =IFERROR(INDIRECT(CONCATENATE("Track2!C",A58+6)),"") -> 6 | D63: =IFERROR(INDIRECT(CONCATENATE("Track2!D",A58+6)),"") -> HINDE Matt | E63: =IFERROR(INDIRECT(CONCATENATE("Track2!E",A58+6)),"") -> WSEH | F63: =IFERROR(INDIRECT(CONCATENATE("Track2!F",A58+6)),"") -> 00:09:37.350 | G63: =IFERROR(INDIRECT(CONCATENATE("Track2!G",A58+6)),"") ->  | I63: =IFERROR(INDIRECT(CONCATENATE("Track2!I",A58+6)),"") -> 5 | J63: =IFERROR(INDIRECT(CONCATENATE("Track2!J",A58+6)),"") ->  | K63: =IFERROR(INDIRECT(CONCATENATE("Track2!K",A58+6)),"") ->  | L63: =IFERROR(INDIRECT(CONCATENATE("Track2!L",A58+6)),"") ->  | M63: =IFERROR(INDIRECT(CONCATENATE("Track2!M",A58+6)),"") -> X | N63: =IFERROR(INDIRECT(CONCATENATE("Track2!N",A58+6)),"") -> 
B64: =IFERROR(INDIRECT(CONCATENATE("Track2!B",A58+7)),"") -> 6 | C64: =IFERROR(INDIRECT(CONCATENATE("Track2!C",A58+7)),"") ->  | D64: =IFERROR(INDIRECT(CONCATENATE("Track2!D",A58+7)),"") ->  | E64: =IFERROR(INDIRECT(CONCATENATE("Track2!E",A58+7)),"") ->  | F64: =IFERROR(INDIRECT(CONCATENATE("Track2!F",A58+7)),"") -> X | G64: =IFERROR(INDIRECT(CONCATENATE("Track2!G",A58+7)),"") ->  | I64: =IFERROR(INDIRECT(CONCATENATE("Track2!I",A58+7)),"") -> 6 | J64: =IFERROR(INDIRECT(CONCATENATE("Track2!J",A58+7)),"") ->  | K64: =IFERROR(INDIRECT(CONCATENATE("Track2!K",A58+7)),"") ->  | L64: =IFERROR(INDIRECT(CONCATENATE("Track2!L",A58+7)),"") ->  | M64: =IFERROR(INDIRECT(CONCATENATE("Track2!M",A58+7)),"") -> X | N64: =IFERROR(INDIRECT(CONCATENATE("Track2!N",A58+7)),"") -> 
B65: =IFERROR(INDIRECT(CONCATENATE("Track2!B",A58+8)),"") -> 7 | C65: =IFERROR(INDIRECT(CONCATENATE("Track2!C",A58+8)),"") ->  | D65: =IFERROR(INDIRECT(CONCATENATE("Track2!D",A58+8)),"") ->  | E65: =IFERROR(INDIRECT(CONCATENATE("Track2!E",A58+8)),"") ->  | F65: =IFERROR(INDIRECT(CONCATENATE("Track2!F",A58+8)),"") -> X | G65: =IFERROR(INDIRECT(CONCATENATE("Track2!G",A58+8)),"") ->  | I65: =IFERROR(INDIRECT(CONCATENATE("Track2!I",A58+8)),"") -> 7 | J65: =IFERROR(INDIRECT(CONCATENATE("Track2!J",A58+8)),"") ->  | K65: =IFERROR(INDIRECT(CONCATENATE("Track2!K",A58+8)),"") ->  | L65: =IFERROR(INDIRECT(CONCATENATE("Track2!L",A58+8)),"") ->  | M65: =IFERROR(INDIRECT(CONCATENATE("Track2!M",A58+8)),"") -> X | N65: =IFERROR(INDIRECT(CONCATENATE("Track2!N",A58+8)),"") -> 
B66: =IFERROR(INDIRECT(CONCATENATE("Track2!B",A58+9)),"") -> 8 | C66: =IFERROR(INDIRECT(CONCATENATE("Track2!C",A58+9)),"") ->  | D66: =IFERROR(INDIRECT(CONCATENATE("Track2!D",A58+9)),"") ->  | E66: =IFERROR(INDIRECT(CONCATENATE("Track2!E",A58+9)),"") ->  | F66: =IFERROR(INDIRECT(CONCATENATE("Track2!F",A58+9)),"") -> X | G66: =IFERROR(INDIRECT(CONCATENATE("Track2!G",A58+9)),"") ->  | I66: =IFERROR(INDIRECT(CONCATENATE("Track2!I",A58+9)),"") -> 8 | J66: =IFERROR(INDIRECT(CONCATENATE("Track2!J",A58+9)),"") ->  | K66: =IFERROR(INDIRECT(CONCATENATE("Track2!K",A58+9)),"") ->  | L66: =IFERROR(INDIRECT(CONCATENATE("Track2!L",A58+9)),"") ->  | M66: =IFERROR(INDIRECT(CONCATENATE("Track2!M",A58+9)),"") -> X | N66: =IFERROR(INDIRECT(CONCATENATE("Track2!N",A58+9)),"") -> 
A68: UT16 | B68: =IFERROR(INDIRECT(CONCATENATE("Track1!B",A69)),"") -> 110m Hurdles U20 Men A | E68: Wind | F68: =Track1!F167 -> 0.3 | I68: =IFERROR(INDIRECT(CONCATENATE("Track1!I",A69)),"") -> 110m Hurdles U20 Men B | L68: Wind | M68: =Track1!M167 -> 0.3
A69: =IFERROR(MATCH(A68,Track1!A:A,0),"") -> 167 | B69: =IFERROR(INDIRECT(CONCATENATE("Track1!B",A69+1)),"") -> Posn | C69: =IFERROR(INDIRECT(CONCATENATE("Track1!C",A69+1)),"") -> No. | D69: =IFERROR(INDIRECT(CONCATENATE("Track1!D",A69+1)),"") -> Athlete | E69: =IFERROR(INDIRECT(CONCATENATE("Track1!E",A69+1)),"") -> Club | F69: =IFERROR(INDIRECT(CONCATENATE("Track1!F",A69+1)),"") -> Perf | G69: =IFERROR(INDIRECT(CONCATENATE("Track1!G",A69+1)),"") -> AAA | I69: =IFERROR(INDIRECT(CONCATENATE("Track1!I",A69+1)),"") -> Posn | J69: =IFERROR(INDIRECT(CONCATENATE("Track1!J",A69+1)),"") -> No. | K69: =IFERROR(INDIRECT(CONCATENATE("Track1!K",A69+1)),"") -> Athlete | L69: =IFERROR(INDIRECT(CONCATENATE("Track1!L",A69+1)),"") -> Club | M69: =IFERROR(INDIRECT(CONCATENATE("Track1!M",A69+1)),"") -> Perf | N69: =IFERROR(INDIRECT(CONCATENATE("Track1!N",A69+1)),"") -> AAA
B70: =IFERROR(INDIRECT(CONCATENATE("Track1!B",A69+2)),"") -> 1 | C70: =IFERROR(INDIRECT(CONCATENATE("Track1!C",A69+2)),"") -> 6 | D70: =IFERROR(INDIRECT(CONCATENATE("Track1!D",A69+2)),"") -> OJORA Tade | E70: =IFERROR(INDIRECT(CONCATENATE("Track1!E",A69+2)),"") -> WSEH | F70: =IFERROR(INDIRECT(CONCATENATE("Track1!F",A69+2)),"") -> 14.2 | G70: =IFERROR(INDIRECT(CONCATENATE("Track1!G",A69+2)),"") -> 1 | I70: =IFERROR(INDIRECT(CONCATENATE("Track1!I",A69+2)),"") -> 1 | J70: =IFERROR(INDIRECT(CONCATENATE("Track1!J",A69+2)),"") -> 44 | K70: =IFERROR(INDIRECT(CONCATENATE("Track1!K",A69+2)),"") -> DAVIS James | L70: =IFERROR(INDIRECT(CONCATENATE("Track1!L",A69+2)),"") -> SB | M70: =IFERROR(INDIRECT(CONCATENATE("Track1!M",A69+2)),"") -> 19.09 | N70: =IFERROR(INDIRECT(CONCATENATE("Track1!N",A69+2)),"") ->  | R70: =IFERROR(INDIRECT(CONCATENATE("Track1!R",$A69+2)),"") -> 1
B71: =IFERROR(INDIRECT(CONCATENATE("Track1!B",A69+3)),"") -> 2 | C71: =IFERROR(INDIRECT(CONCATENATE("Track1!C",A69+3)),"") -> 4 | D71: =IFERROR(INDIRECT(CONCATENATE("Track1!D",A69+3)),"") -> GOMES Edson | E71: =IFERROR(INDIRECT(CONCATENATE("Track1!E",A69+3)),"") -> SB | F71: =IFERROR(INDIRECT(CONCATENATE("Track1!F",A69+3)),"") -> 14.48 | G71: =IFERROR(INDIRECT(CONCATENATE("Track1!G",A69+3)),"") -> 2 | I71: =IFERROR(INDIRECT(CONCATENATE("Track1!I",A69+3)),"") -> 2 | J71: =IFERROR(INDIRECT(CONCATENATE("Track1!J",A69+3)),"") -> 0 | K71: =IFERROR(INDIRECT(CONCATENATE("Track1!K",A69+3)),"") ->  | L71: =IFERROR(INDIRECT(CONCATENATE("Track1!L",A69+3)),"") ->  | M71: =IFERROR(INDIRECT(CONCATENATE("Track1!M",A69+3)),"") -> 0 | N71: =IFERROR(INDIRECT(CONCATENATE("Track1!N",A69+3)),"") -> 
B72: =IFERROR(INDIRECT(CONCATENATE("Track1!B",A69+4)),"") -> 3 | C72: =IFERROR(INDIRECT(CONCATENATE("Track1!C",A69+4)),"") -> 5 | D72: =IFERROR(INDIRECT(CONCATENATE("Track1!D",A69+4)),"") -> GREENHALGH James | E72: =IFERROR(INDIRECT(CONCATENATE("Track1!E",A69+4)),"") -> Norfolk | F72: =IFERROR(INDIRECT(CONCATENATE("Track1!F",A69+4)),"") -> 15.89 | G72: =IFERROR(INDIRECT(CONCATENATE("Track1!G",A69+4)),"") ->  | I72: =IFERROR(INDIRECT(CONCATENATE("Track1!I",A69+4)),"") -> 3 | J72: =IFERROR(INDIRECT(CONCATENATE("Track1!J",A69+4)),"") -> 0 | K72: =IFERROR(INDIRECT(CONCATENATE("Track1!K",A69+4)),"") ->  | L72: =IFERROR(INDIRECT(CONCATENATE("Track1!L",A69+4)),"") ->  | M72: =IFERROR(INDIRECT(CONCATENATE("Track1!M",A69+4)),"") -> 0 | N72: =IFERROR(INDIRECT(CONCATENATE("Track1!N",A69+4)),"") -> 
B73: =IFERROR(INDIRECT(CONCATENATE("Track1!B",A69+5)),"") -> 4 | C73: =IFERROR(INDIRECT(CONCATENATE("Track1!C",A69+5)),"") -> 1 | D73: =IFERROR(INDIRECT(CONCATENATE("Track1!D",A69+5)),"") -> ADAMS Edward | E73: =IFERROR(INDIRECT(CONCATENATE("Track1!E",A69+5)),"") -> B&B | F73: =IFERROR(INDIRECT(CONCATENATE("Track1!F",A69+5)),"") -> 16.07 | G73: =IFERROR(INDIRECT(CONCATENATE("Track1!G",A69+5)),"") ->  | I73: =IFERROR(INDIRECT(CONCATENATE("Track1!I",A69+5)),"") -> 4 | J73: =IFERROR(INDIRECT(CONCATENATE("Track1!J",A69+5)),"") -> 0 | K73: =IFERROR(INDIRECT(CONCATENATE("Track1!K",A69+5)),"") ->  | L73: =IFERROR(INDIRECT(CONCATENATE("Track1!L",A69+5)),"") ->  | M73: =IFERROR(INDIRECT(CONCATENATE("Track1!M",A69+5)),"") -> 0 | N73: =IFERROR(INDIRECT(CONCATENATE("Track1!N",A69+5)),"") -> 
B74: =IFERROR(INDIRECT(CONCATENATE("Track1!B",A69+6)),"") -> 5 | C74: =IFERROR(INDIRECT(CONCATENATE("Track1!C",A69+6)),"") -> 0 | D74: =IFERROR(INDIRECT(CONCATENATE("Track1!D",A69+6)),"") ->  | E74: =IFERROR(INDIRECT(CONCATENATE("Track1!E",A69+6)),"") ->  | F74: =IFERROR(INDIRECT(CONCATENATE("Track1!F",A69+6)),"") -> 0 | G74: =IFERROR(INDIRECT(CONCATENATE("Track1!G",A69+6)),"") ->  | I74: =IFERROR(INDIRECT(CONCATENATE("Track1!I",A69+6)),"") -> 5 | J74: =IFERROR(INDIRECT(CONCATENATE("Track1!J",A69+6)),"") -> 0 | K74: =IFERROR(INDIRECT(CONCATENATE("Track1!K",A69+6)),"") ->  | L74: =IFERROR(INDIRECT(CONCATENATE("Track1!L",A69+6)),"") ->  | M74: =IFERROR(INDIRECT(CONCATENATE("Track1!M",A69+6)),"") -> 0 | N74: =IFERROR(INDIRECT(CONCATENATE("Track1!N",A69+6)),"") -> 
B75: =IFERROR(INDIRECT(CONCATENATE("Track1!B",A69+7)),"") -> 6 | C75: =IFERROR(INDIRECT(CONCATENATE("Track1!C",A69+7)),"") -> 0 | D75: =IFERROR(INDIRECT(CONCATENATE("Track1!D",A69+7)),"") ->  | E75: =IFERROR(INDIRECT(CONCATENATE("Track1!E",A69+7)),"") ->  | F75: =IFERROR(INDIRECT(CONCATENATE("Track1!F",A69+7)),"") -> 0 | G75: =IFERROR(INDIRECT(CONCATENATE("Track1!G",A69+7)),"") ->  | I75: =IFERROR(INDIRECT(CONCATENATE("Track1!I",A69+7)),"") -> 6 | J75: =IFERROR(INDIRECT(CONCATENATE("Track1!J",A69+7)),"") -> 0 | K75: =IFERROR(INDIRECT(CONCATENATE("Track1!K",A69+7)),"") ->  | L75: =IFERROR(INDIRECT(CONCATENATE("Track1!L",A69+7)),"") ->  | M75: =IFERROR(INDIRECT(CONCATENATE("Track1!M",A69+7)),"") -> 0 | N75: =IFERROR(INDIRECT(CONCATENATE("Track1!N",A69+7)),"") -> 
B76: =IFERROR(INDIRECT(CONCATENATE("Track1!B",A69+8)),"") -> 7 | C76: =IFERROR(INDIRECT(CONCATENATE("Track1!C",A69+8)),"") -> 0 | D76: =IFERROR(INDIRECT(CONCATENATE("Track1!D",A69+8)),"") ->  | E76: =IFERROR(INDIRECT(CONCATENATE("Track1!E",A69+8)),"") ->  | F76: =IFERROR(INDIRECT(CONCATENATE("Track1!F",A69+8)),"") -> 0 | G76: =IFERROR(INDIRECT(CONCATENATE("Track1!G",A69+8)),"") ->  | I76: =IFERROR(INDIRECT(CONCATENATE("Track1!I",A69+8)),"") -> 7 | J76: =IFERROR(INDIRECT(CONCATENATE("Track1!J",A69+8)),"") -> 0 | K76: =IFERROR(INDIRECT(CONCATENATE("Track1!K",A69+8)),"") ->  | L76: =IFERROR(INDIRECT(CONCATENATE("Track1!L",A69+8)),"") ->  | M76: =IFERROR(INDIRECT(CONCATENATE("Track1!M",A69+8)),"") -> 0 | N76: =IFERROR(INDIRECT(CONCATENATE("Track1!N",A69+8)),"") -> 
B77: =IFERROR(INDIRECT(CONCATENATE("Track1!B",A69+9)),"") -> 8 | C77: =IFERROR(INDIRECT(CONCATENATE("Track1!C",A69+9)),"") -> 0 | D77: =IFERROR(INDIRECT(CONCATENATE("Track1!D",A69+9)),"") ->  | E77: =IFERROR(INDIRECT(CONCATENATE("Track1!E",A69+9)),"") ->  | F77: =IFERROR(INDIRECT(CONCATENATE("Track1!F",A69+9)),"") -> 0 | G77: =IFERROR(INDIRECT(CONCATENATE("Track1!G",A69+9)),"") ->  | I77: =IFERROR(INDIRECT(CONCATENATE("Track1!I",A69+9)),"") -> 8 | J77: =IFERROR(INDIRECT(CONCATENATE("Track1!J",A69+9)),"") -> 0 | K77: =IFERROR(INDIRECT(CONCATENATE("Track1!K",A69+9)),"") ->  | L77: =IFERROR(INDIRECT(CONCATENATE("Track1!L",A69+9)),"") ->  | M77: =IFERROR(INDIRECT(CONCATENATE("Track1!M",A69+9)),"") -> 0 | N77: =IFERROR(INDIRECT(CONCATENATE("Track1!N",A69+9)),"") -> 
A79: UT01 | B79: =IFERROR(INDIRECT(CONCATENATE("Track1!B",A80)),"") -> 400m Hurdles U20 Men A | I79: =IFERROR(INDIRECT(CONCATENATE("Track1!I",A80)),"") -> 400m Hurdles U20 Men B
A80: =IFERROR(MATCH(A79,Track1!A:A,0),"") -> 2 | B80: =IFERROR(INDIRECT(CONCATENATE("Track1!B",A80+1)),"") -> Posn | C80: =IFERROR(INDIRECT(CONCATENATE("Track1!C",A80+1)),"") -> No. | D80: =IFERROR(INDIRECT(CONCATENATE("Track1!D",A80+1)),"") -> Athlete | E80: =IFERROR(INDIRECT(CONCATENATE("Track1!E",A80+1)),"") -> Club | F80: =IFERROR(INDIRECT(CONCATENATE("Track1!F",A80+1)),"") -> Perf | G80: =IFERROR(INDIRECT(CONCATENATE("Track1!G",A80+1)),"") -> AAA | I80: =IFERROR(INDIRECT(CONCATENATE("Track1!I",A80+1)),"") -> Posn | J80: =IFERROR(INDIRECT(CONCATENATE("Track1!J",A80+1)),"") -> No. | K80: =IFERROR(INDIRECT(CONCATENATE("Track1!K",A80+1)),"") -> Athlete | L80: =IFERROR(INDIRECT(CONCATENATE("Track1!L",A80+1)),"") -> Club | M80: =IFERROR(INDIRECT(CONCATENATE("Track1!M",A80+1)),"") -> Perf | N80: =IFERROR(INDIRECT(CONCATENATE("Track1!N",A80+1)),"") -> AAA
B81: =IFERROR(INDIRECT(CONCATENATE("Track1!B",A80+2)),"") -> 1 | C81: =IFERROR(INDIRECT(CONCATENATE("Track1!C",A80+2)),"") -> 5 | D81: =IFERROR(INDIRECT(CONCATENATE("Track1!D",A80+2)),"") -> GREENHALGH James | E81: =IFERROR(INDIRECT(CONCATENATE("Track1!E",A80+2)),"") -> Norfolk | F81: =IFERROR(INDIRECT(CONCATENATE("Track1!F",A80+2)),"") -> 60.24 | G81: =IFERROR(INDIRECT(CONCATENATE("Track1!G",A80+2)),"") ->  | I81: =IFERROR(INDIRECT(CONCATENATE("Track1!I",A80+2)),"") -> 1 | J81: =IFERROR(INDIRECT(CONCATENATE("Track1!J",A80+2)),"") -> 55 | K81: =IFERROR(INDIRECT(CONCATENATE("Track1!K",A80+2)),"") -> BENSON Rahim | L81: =IFERROR(INDIRECT(CONCATENATE("Track1!L",A80+2)),"") -> Norfolk | M81: =IFERROR(INDIRECT(CONCATENATE("Track1!M",A80+2)),"") -> 62.48 | N81: =IFERROR(INDIRECT(CONCATENATE("Track1!N",A80+2)),"") ->  | R81: =IFERROR(INDIRECT(CONCATENATE("Track1!R",$A80+2)),"") -> 1
B82: =IFERROR(INDIRECT(CONCATENATE("Track1!B",A80+3)),"") -> 2 | C82: =IFERROR(INDIRECT(CONCATENATE("Track1!C",A80+3)),"") -> 4 | D82: =IFERROR(INDIRECT(CONCATENATE("Track1!D",A80+3)),"") -> GROOM George | E82: =IFERROR(INDIRECT(CONCATENATE("Track1!E",A80+3)),"") -> SB | F82: =IFERROR(INDIRECT(CONCATENATE("Track1!F",A80+3)),"") -> 61.14 | G82: =IFERROR(INDIRECT(CONCATENATE("Track1!G",A80+3)),"") ->  | I82: =IFERROR(INDIRECT(CONCATENATE("Track1!I",A80+3)),"") -> 2 | J82: =IFERROR(INDIRECT(CONCATENATE("Track1!J",A80+3)),"") -> 11 | K82: =IFERROR(INDIRECT(CONCATENATE("Track1!K",A80+3)),"") -> SCRIVENER Frankie | L82: =IFERROR(INDIRECT(CONCATENATE("Track1!L",A80+3)),"") -> B&B | M82: =IFERROR(INDIRECT(CONCATENATE("Track1!M",A80+3)),"") -> 62.62 | N82: =IFERROR(INDIRECT(CONCATENATE("Track1!N",A80+3)),"") -> 
B83: =IFERROR(INDIRECT(CONCATENATE("Track1!B",A80+4)),"") -> 3 | C83: =IFERROR(INDIRECT(CONCATENATE("Track1!C",A80+4)),"") -> 1 | D83: =IFERROR(INDIRECT(CONCATENATE("Track1!D",A80+4)),"") -> ADAMS Edward | E83: =IFERROR(INDIRECT(CONCATENATE("Track1!E",A80+4)),"") -> B&B | F83: =IFERROR(INDIRECT(CONCATENATE("Track1!F",A80+4)),"") -> 61.69 | G83: =IFERROR(INDIRECT(CONCATENATE("Track1!G",A80+4)),"") ->  | I83: =IFERROR(INDIRECT(CONCATENATE("Track1!I",A80+4)),"") -> 3 | J83: =IFERROR(INDIRECT(CONCATENATE("Track1!J",A80+4)),"") -> 44 | K83: =IFERROR(INDIRECT(CONCATENATE("Track1!K",A80+4)),"") -> DAVIS James | L83: =IFERROR(INDIRECT(CONCATENATE("Track1!L",A80+4)),"") -> SB | M83: =IFERROR(INDIRECT(CONCATENATE("Track1!M",A80+4)),"") -> 63.93 | N83: =IFERROR(INDIRECT(CONCATENATE("Track1!N",A80+4)),"") -> 
B84: =IFERROR(INDIRECT(CONCATENATE("Track1!B",A80+5)),"") -> 4 | C84: =IFERROR(INDIRECT(CONCATENATE("Track1!C",A80+5)),"") -> 6 | D84: =IFERROR(INDIRECT(CONCATENATE("Track1!D",A80+5)),"") -> SPELLMAN Thomas | E84: =IFERROR(INDIRECT(CONCATENATE("Track1!E",A80+5)),"") -> WSEH | F84: =IFERROR(INDIRECT(CONCATENATE("Track1!F",A80+5)),"") -> 62.36 | G84: =IFERROR(INDIRECT(CONCATENATE("Track1!G",A80+5)),"") ->  | I84: =IFERROR(INDIRECT(CONCATENATE("Track1!I",A80+5)),"") -> 4 | J84: =IFERROR(INDIRECT(CONCATENATE("Track1!J",A80+5)),"") -> 0 | K84: =IFERROR(INDIRECT(CONCATENATE("Track1!K",A80+5)),"") ->  | L84: =IFERROR(INDIRECT(CONCATENATE("Track1!L",A80+5)),"") ->  | M84: =IFERROR(INDIRECT(CONCATENATE("Track1!M",A80+5)),"") -> 0 | N84: =IFERROR(INDIRECT(CONCATENATE("Track1!N",A80+5)),"") -> 
B85: =IFERROR(INDIRECT(CONCATENATE("Track1!B",A80+6)),"") -> 5 | C85: =IFERROR(INDIRECT(CONCATENATE("Track1!C",A80+6)),"") -> 0 | D85: =IFERROR(INDIRECT(CONCATENATE("Track1!D",A80+6)),"") ->  | E85: =IFERROR(INDIRECT(CONCATENATE("Track1!E",A80+6)),"") ->  | F85: =IFERROR(INDIRECT(CONCATENATE("Track1!F",A80+6)),"") -> 0 | G85: =IFERROR(INDIRECT(CONCATENATE("Track1!G",A80+6)),"") ->  | I85: =IFERROR(INDIRECT(CONCATENATE("Track1!I",A80+6)),"") -> 5 | J85: =IFERROR(INDIRECT(CONCATENATE("Track1!J",A80+6)),"") -> 0 | K85: =IFERROR(INDIRECT(CONCATENATE("Track1!K",A80+6)),"") ->  | L85: =IFERROR(INDIRECT(CONCATENATE("Track1!L",A80+6)),"") ->  | M85: =IFERROR(INDIRECT(CONCATENATE("Track1!M",A80+6)),"") -> 0 | N85: =IFERROR(INDIRECT(CONCATENATE("Track1!N",A80+6)),"") -> 
B86: =IFERROR(INDIRECT(CONCATENATE("Track1!B",A80+7)),"") -> 6 | C86: =IFERROR(INDIRECT(CONCATENATE("Track1!C",A80+7)),"") -> 0 | D86: =IFERROR(INDIRECT(CONCATENATE("Track1!D",A80+7)),"") ->  | E86: =IFERROR(INDIRECT(CONCATENATE("Track1!E",A80+7)),"") ->  | F86: =IFERROR(INDIRECT(CONCATENATE("Track1!F",A80+7)),"") -> 0 | G86: =IFERROR(INDIRECT(CONCATENATE("Track1!G",A80+7)),"") ->  | I86: =IFERROR(INDIRECT(CONCATENATE("Track1!I",A80+7)),"") -> 6 | J86: =IFERROR(INDIRECT(CONCATENATE("Track1!J",A80+7)),"") -> 0 | K86: =IFERROR(INDIRECT(CONCATENATE("Track1!K",A80+7)),"") ->  | L86: =IFERROR(INDIRECT(CONCATENATE("Track1!L",A80+7)),"") ->  | M86: =IFERROR(INDIRECT(CONCATENATE("Track1!M",A80+7)),"") -> 0 | N86: =IFERROR(INDIRECT(CONCATENATE("Track1!N",A80+7)),"") -> 
B87: =IFERROR(INDIRECT(CONCATENATE("Track1!B",A80+8)),"") -> 7 | C87: =IFERROR(INDIRECT(CONCATENATE("Track1!C",A80+8)),"") -> 0 | D87: =IFERROR(INDIRECT(CONCATENATE("Track1!D",A80+8)),"") ->  | E87: =IFERROR(INDIRECT(CONCATENATE("Track1!E",A80+8)),"") ->  | F87: =IFERROR(INDIRECT(CONCATENATE("Track1!F",A80+8)),"") -> 0 | G87: =IFERROR(INDIRECT(CONCATENATE("Track1!G",A80+8)),"") ->  | I87: =IFERROR(INDIRECT(CONCATENATE("Track1!I",A80+8)),"") -> 7 | J87: =IFERROR(INDIRECT(CONCATENATE("Track1!J",A80+8)),"") -> 0 | K87: =IFERROR(INDIRECT(CONCATENATE("Track1!K",A80+8)),"") ->  | L87: =IFERROR(INDIRECT(CONCATENATE("Track1!L",A80+8)),"") ->  | M87: =IFERROR(INDIRECT(CONCATENATE("Track1!M",A80+8)),"") -> 0 | N87: =IFERROR(INDIRECT(CONCATENATE("Track1!N",A80+8)),"") -> 
B88: =IFERROR(INDIRECT(CONCATENATE("Track1!B",A80+9)),"") -> 8 | C88: =IFERROR(INDIRECT(CONCATENATE("Track1!C",A80+9)),"") -> 0 | D88: =IFERROR(INDIRECT(CONCATENATE("Track1!D",A80+9)),"") ->  | E88: =IFERROR(INDIRECT(CONCATENATE("Track1!E",A80+9)),"") ->  | F88: =IFERROR(INDIRECT(CONCATENATE("Track1!F",A80+9)),"") -> 0 | G88: =IFERROR(INDIRECT(CONCATENATE("Track1!G",A80+9)),"") ->  | I88: =IFERROR(INDIRECT(CONCATENATE("Track1!I",A80+9)),"") -> 8 | J88: =IFERROR(INDIRECT(CONCATENATE("Track1!J",A80+9)),"") -> 0 | K88: =IFERROR(INDIRECT(CONCATENATE("Track1!K",A80+9)),"") ->  | L88: =IFERROR(INDIRECT(CONCATENATE("Track1!L",A80+9)),"") ->  | M88: =IFERROR(INDIRECT(CONCATENATE("Track1!M",A80+9)),"") -> 0 | N88: =IFERROR(INDIRECT(CONCATENATE("Track1!N",A80+9)),"") -> 
A90: UTD11 | B90: =IFERROR(INDIRECT(CONCATENATE("Track2!B",A91)),"") -> 2000m s/c U20 Men A | I90: =IFERROR(INDIRECT(CONCATENATE("Track2!I",A91)),"") -> 2000m s/c U20 Men B
A91: =IFERROR(MATCH(A90,Track2!A:A,0),"") -> 112 | B91: =IFERROR(INDIRECT(CONCATENATE("Track2!B",A91+1)),"") -> Posn | C91: =IFERROR(INDIRECT(CONCATENATE("Track2!C",A91+1)),"") -> No. | D91: =IFERROR(INDIRECT(CONCATENATE("Track2!D",A91+1)),"") -> Athlete | E91: =IFERROR(INDIRECT(CONCATENATE("Track2!E",A91+1)),"") -> Club | F91: =IFERROR(INDIRECT(CONCATENATE("Track2!F",A91+1)),"") -> Perf | G91: =IFERROR(INDIRECT(CONCATENATE("Track2!G",A91+1)),"") -> AAA | I91: =IFERROR(INDIRECT(CONCATENATE("Track2!I",A91+1)),"") -> Posn | J91: =IFERROR(INDIRECT(CONCATENATE("Track2!J",A91+1)),"") -> No. | K91: =IFERROR(INDIRECT(CONCATENATE("Track2!K",A91+1)),"") -> Athlete | L91: =IFERROR(INDIRECT(CONCATENATE("Track2!L",A91+1)),"") -> Club | M91: =IFERROR(INDIRECT(CONCATENATE("Track2!M",A91+1)),"") -> Perf | N91: =IFERROR(INDIRECT(CONCATENATE("Track2!N",A91+1)),"") -> AAA
B92: =IFERROR(INDIRECT(CONCATENATE("Track2!B",A91+2)),"") -> 1 | C92: =IFERROR(INDIRECT(CONCATENATE("Track2!C",A91+2)),"") -> 4 | D92: =IFERROR(INDIRECT(CONCATENATE("Track2!D",A91+2)),"") -> GROOM George | E92: =IFERROR(INDIRECT(CONCATENATE("Track2!E",A91+2)),"") -> SB | F92: =IFERROR(INDIRECT(CONCATENATE("Track2!F",A91+2)),"") -> 00:06:05.970 | G92: =IFERROR(INDIRECT(CONCATENATE("Track2!G",A91+2)),"") ->  | I92: =IFERROR(INDIRECT(CONCATENATE("Track2!I",A91+2)),"") -> 1 | J92: =IFERROR(INDIRECT(CONCATENATE("Track2!J",A91+2)),"") -> 11 | K92: =IFERROR(INDIRECT(CONCATENATE("Track2!K",A91+2)),"") -> MILLS Lewis | L92: =IFERROR(INDIRECT(CONCATENATE("Track2!L",A91+2)),"") -> B&B | M92: =IFERROR(INDIRECT(CONCATENATE("Track2!M",A91+2)),"") -> 00:06:34 | N92: =IFERROR(INDIRECT(CONCATENATE("Track2!N",A91+2)),"") ->  | R92: =IFERROR(INDIRECT(CONCATENATE("Track2!R",$A91+2)),"") -> 1
B93: =IFERROR(INDIRECT(CONCATENATE("Track2!B",A91+3)),"") -> 2 | C93: =IFERROR(INDIRECT(CONCATENATE("Track2!C",A91+3)),"") -> 1 | D93: =IFERROR(INDIRECT(CONCATENATE("Track2!D",A91+3)),"") -> BARBER Joss | E93: =IFERROR(INDIRECT(CONCATENATE("Track2!E",A91+3)),"") -> B&B | F93: =IFERROR(INDIRECT(CONCATENATE("Track2!F",A91+3)),"") -> 00:06:06.550 | G93: =IFERROR(INDIRECT(CONCATENATE("Track2!G",A91+3)),"") ->  | I93: =IFERROR(INDIRECT(CONCATENATE("Track2!I",A91+3)),"") -> 2 | J93: =IFERROR(INDIRECT(CONCATENATE("Track2!J",A91+3)),"") -> 66 | K93: =IFERROR(INDIRECT(CONCATENATE("Track2!K",A91+3)),"") -> TATTERSALL Ethan | L93: =IFERROR(INDIRECT(CONCATENATE("Track2!L",A91+3)),"") -> WSEH | M93: =IFERROR(INDIRECT(CONCATENATE("Track2!M",A91+3)),"") -> 00:06:54.590 | N93: =IFERROR(INDIRECT(CONCATENATE("Track2!N",A91+3)),"") -> 
B94: =IFERROR(INDIRECT(CONCATENATE("Track2!B",A91+4)),"") -> 3 | C94: =IFERROR(INDIRECT(CONCATENATE("Track2!C",A91+4)),"") -> 6 | D94: =IFERROR(INDIRECT(CONCATENATE("Track2!D",A91+4)),"") -> KOPERNICKY Martin | E94: =IFERROR(INDIRECT(CONCATENATE("Track2!E",A91+4)),"") -> WSEH | F94: =IFERROR(INDIRECT(CONCATENATE("Track2!F",A91+4)),"") -> 00:06:40.830 | G94: =IFERROR(INDIRECT(CONCATENATE("Track2!G",A91+4)),"") ->  | I94: =IFERROR(INDIRECT(CONCATENATE("Track2!I",A91+4)),"") -> 3 | J94: =IFERROR(INDIRECT(CONCATENATE("Track2!J",A91+4)),"") ->  | K94: =IFERROR(INDIRECT(CONCATENATE("Track2!K",A91+4)),"") ->  | L94: =IFERROR(INDIRECT(CONCATENATE("Track2!L",A91+4)),"") ->  | M94: =IFERROR(INDIRECT(CONCATENATE("Track2!M",A91+4)),"") -> X | N94: =IFERROR(INDIRECT(CONCATENATE("Track2!N",A91+4)),"") -> 
B95: =IFERROR(INDIRECT(CONCATENATE("Track2!B",A91+5)),"") -> 4 | C95: =IFERROR(INDIRECT(CONCATENATE("Track2!C",A91+5)),"") ->  | D95: =IFERROR(INDIRECT(CONCATENATE("Track2!D",A91+5)),"") ->  | E95: =IFERROR(INDIRECT(CONCATENATE("Track2!E",A91+5)),"") ->  | F95: =IFERROR(INDIRECT(CONCATENATE("Track2!F",A91+5)),"") -> X | G95: =IFERROR(INDIRECT(CONCATENATE("Track2!G",A91+5)),"") ->  | I95: =IFERROR(INDIRECT(CONCATENATE("Track2!I",A91+5)),"") -> 4 | J95: =IFERROR(INDIRECT(CONCATENATE("Track2!J",A91+5)),"") ->  | K95: =IFERROR(INDIRECT(CONCATENATE("Track2!K",A91+5)),"") ->  | L95: =IFERROR(INDIRECT(CONCATENATE("Track2!L",A91+5)),"") ->  | M95: =IFERROR(INDIRECT(CONCATENATE("Track2!M",A91+5)),"") -> X | N95: =IFERROR(INDIRECT(CONCATENATE("Track2!N",A91+5)),"") -> 
B96: =IFERROR(INDIRECT(CONCATENATE("Track2!B",A91+6)),"") -> 5 | C96: =IFERROR(INDIRECT(CONCATENATE("Track2!C",A91+6)),"") ->  | D96: =IFERROR(INDIRECT(CONCATENATE("Track2!D",A91+6)),"") ->  | E96: =IFERROR(INDIRECT(CONCATENATE("Track2!E",A91+6)),"") ->  | F96: =IFERROR(INDIRECT(CONCATENATE("Track2!F",A91+6)),"") -> X | G96: =IFERROR(INDIRECT(CONCATENATE("Track2!G",A91+6)),"") ->  | I96: =IFERROR(INDIRECT(CONCATENATE("Track2!I",A91+6)),"") -> 5 | J96: =IFERROR(INDIRECT(CONCATENATE("Track2!J",A91+6)),"") ->  | K96: =IFERROR(INDIRECT(CONCATENATE("Track2!K",A91+6)),"") ->  | L96: =IFERROR(INDIRECT(CONCATENATE("Track2!L",A91+6)),"") ->  | M96: =IFERROR(INDIRECT(CONCATENATE("Track2!M",A91+6)),"") -> X | N96: =IFERROR(INDIRECT(CONCATENATE("Track2!N",A91+6)),"") -> 
B97: =IFERROR(INDIRECT(CONCATENATE("Track2!B",A91+7)),"") -> 6 | C97: =IFERROR(INDIRECT(CONCATENATE("Track2!C",A91+7)),"") ->  | D97: =IFERROR(INDIRECT(CONCATENATE("Track2!D",A91+7)),"") ->  | E97: =IFERROR(INDIRECT(CONCATENATE("Track2!E",A91+7)),"") ->  | F97: =IFERROR(INDIRECT(CONCATENATE("Track2!F",A91+7)),"") -> X | G97: =IFERROR(INDIRECT(CONCATENATE("Track2!G",A91+7)),"") ->  | I97: =IFERROR(INDIRECT(CONCATENATE("Track2!I",A91+7)),"") -> 6 | J97: =IFERROR(INDIRECT(CONCATENATE("Track2!J",A91+7)),"") ->  | K97: =IFERROR(INDIRECT(CONCATENATE("Track2!K",A91+7)),"") ->  | L97: =IFERROR(INDIRECT(CONCATENATE("Track2!L",A91+7)),"") ->  | M97: =IFERROR(INDIRECT(CONCATENATE("Track2!M",A91+7)),"") -> X | N97: =IFERROR(INDIRECT(CONCATENATE("Track2!N",A91+7)),"") -> 
B98: =IFERROR(INDIRECT(CONCATENATE("Track2!B",A91+8)),"") -> 7 | C98: =IFERROR(INDIRECT(CONCATENATE("Track2!C",A91+8)),"") ->  | D98: =IFERROR(INDIRECT(CONCATENATE("Track2!D",A91+8)),"") ->  | E98: =IFERROR(INDIRECT(CONCATENATE("Track2!E",A91+8)),"") ->  | F98: =IFERROR(INDIRECT(CONCATENATE("Track2!F",A91+8)),"") -> X | G98: =IFERROR(INDIRECT(CONCATENATE("Track2!G",A91+8)),"") ->  | I98: =IFERROR(INDIRECT(CONCATENATE("Track2!I",A91+8)),"") -> 7 | J98: =IFERROR(INDIRECT(CONCATENATE("Track2!J",A91+8)),"") ->  | K98: =IFERROR(INDIRECT(CONCATENATE("Track2!K",A91+8)),"") ->  | L98: =IFERROR(INDIRECT(CONCATENATE("Track2!L",A91+8)),"") ->  | M98: =IFERROR(INDIRECT(CONCATENATE("Track2!M",A91+8)),"") -> X | N98: =IFERROR(INDIRECT(CONCATENATE("Track2!N",A91+8)),"") -> 
B99: =IFERROR(INDIRECT(CONCATENATE("Track2!B",A91+9)),"") -> 8 | C99: =IFERROR(INDIRECT(CONCATENATE("Track2!C",A91+9)),"") ->  | D99: =IFERROR(INDIRECT(CONCATENATE("Track2!D",A91+9)),"") ->  | E99: =IFERROR(INDIRECT(CONCATENATE("Track2!E",A91+9)),"") ->  | F99: =IFERROR(INDIRECT(CONCATENATE("Track2!F",A91+9)),"") -> X | G99: =IFERROR(INDIRECT(CONCATENATE("Track2!G",A91+9)),"") ->  | I99: =IFERROR(INDIRECT(CONCATENATE("Track2!I",A91+9)),"") -> 8 | J99: =IFERROR(INDIRECT(CONCATENATE("Track2!J",A91+9)),"") ->  | K99: =IFERROR(INDIRECT(CONCATENATE("Track2!K",A91+9)),"") ->  | L99: =IFERROR(INDIRECT(CONCATENATE("Track2!L",A91+9)),"") ->  | M99: =IFERROR(INDIRECT(CONCATENATE("Track2!M",A91+9)),"") -> X | N99: =IFERROR(INDIRECT(CONCATENATE("Track2!N",A91+9)),"") -> 
A101: UFW01 | B101: =IFERROR(INDIRECT(CONCATENATE("Field!B",A102)),"") -> Long Jump U20 Men A | I101: =IFERROR(INDIRECT(CONCATENATE("Field!I",A102)),"") -> Long Jump U20 Men B
A102: =IFERROR(MATCH(A101,Field!A:A,0),"") -> 178 | B102: =IFERROR(INDIRECT(CONCATENATE("Field!B",A102+1)),"") -> Posn | C102: =IFERROR(INDIRECT(CONCATENATE("Field!C",A102+1)),"") -> Bib | D102: =IFERROR(INDIRECT(CONCATENATE("Field!D",A102+1)),"") -> Athlete | E102: =IFERROR(INDIRECT(CONCATENATE("Field!E",A102+1)),"") -> Club | F102: =IFERROR(INDIRECT(CONCATENATE("Field!F",A102+1)),"") -> Perf | G102: =IFERROR(INDIRECT(CONCATENATE("Field!G",A102+1)),"") -> AAA | I102: =IFERROR(INDIRECT(CONCATENATE("Field!I",A102+1)),"") -> Posn | J102: =IFERROR(INDIRECT(CONCATENATE("Field!J",A102+1)),"") -> Bib | K102: =IFERROR(INDIRECT(CONCATENATE("Field!K",A102+1)),"") -> Athlete | L102: =IFERROR(INDIRECT(CONCATENATE("Field!L",A102+1)),"") -> Club | M102: =IFERROR(INDIRECT(CONCATENATE("Field!M",A102+1)),"") -> Perf | N102: =IFERROR(INDIRECT(CONCATENATE("Field!N",A102+1)),"") -> AAA
B103: =IFERROR(INDIRECT(CONCATENATE("Field!B",A102+2)),"") -> 1 | C103: =IFERROR(INDIRECT(CONCATENATE("Field!C",A102+2)),"") -> 6 | D103: =IFERROR(INDIRECT(CONCATENATE("Field!D",A102+2)),"") -> CHALLIS Samuel | E103: =IFERROR(INDIRECT(CONCATENATE("Field!E",A102+2)),"") -> WSEH | F103: =IFERROR(INDIRECT(CONCATENATE("Field!F",A102+2)),"") -> 6.93 | G103: =IFERROR(INDIRECT(CONCATENATE("Field!G",A102+2)),"") -> 1 | I103: =IFERROR(INDIRECT(CONCATENATE("Field!I",A102+2)),"") -> 1 | J103: =IFERROR(INDIRECT(CONCATENATE("Field!J",A102+2)),"") -> 55 | K103: =IFERROR(INDIRECT(CONCATENATE("Field!K",A102+2)),"") -> COOPER Ashley | L103: =IFERROR(INDIRECT(CONCATENATE("Field!L",A102+2)),"") -> Norfolk | M103: =IFERROR(INDIRECT(CONCATENATE("Field!M",A102+2)),"") -> 5.72 | N103: =IFERROR(INDIRECT(CONCATENATE("Field!N",A102+2)),"") ->  | R103: =IFERROR(INDIRECT(CONCATENATE("Field!R",$A102+2)),"") -> 1
B104: =IFERROR(INDIRECT(CONCATENATE("Field!B",A102+3)),"") -> 2 | C104: =IFERROR(INDIRECT(CONCATENATE("Field!C",A102+3)),"") -> 4 | D104: =IFERROR(INDIRECT(CONCATENATE("Field!D",A102+3)),"") -> GOMES Edson | E104: =IFERROR(INDIRECT(CONCATENATE("Field!E",A102+3)),"") -> SB | F104: =IFERROR(INDIRECT(CONCATENATE("Field!F",A102+3)),"") -> 6.79 | G104: =IFERROR(INDIRECT(CONCATENATE("Field!G",A102+3)),"") -> 2 | I104: =IFERROR(INDIRECT(CONCATENATE("Field!I",A102+3)),"") -> 2 | J104: =IFERROR(INDIRECT(CONCATENATE("Field!J",A102+3)),"") -> 66 | K104: =IFERROR(INDIRECT(CONCATENATE("Field!K",A102+3)),"") -> MABUMGU Victory | L104: =IFERROR(INDIRECT(CONCATENATE("Field!L",A102+3)),"") -> WSEH | M104: =IFERROR(INDIRECT(CONCATENATE("Field!M",A102+3)),"") -> 4.63 | N104: =IFERROR(INDIRECT(CONCATENATE("Field!N",A102+3)),"") -> 
B105: =IFERROR(INDIRECT(CONCATENATE("Field!B",A102+4)),"") -> 3 | C105: =IFERROR(INDIRECT(CONCATENATE("Field!C",A102+4)),"") -> 5 | D105: =IFERROR(INDIRECT(CONCATENATE("Field!D",A102+4)),"") -> MATSUKA-WILLIAMS Wesley | E105: =IFERROR(INDIRECT(CONCATENATE("Field!E",A102+4)),"") -> Norfolk | F105: =IFERROR(INDIRECT(CONCATENATE("Field!F",A102+4)),"") -> 6.78 | G105: =IFERROR(INDIRECT(CONCATENATE("Field!G",A102+4)),"") -> 2 | I105: =IFERROR(INDIRECT(CONCATENATE("Field!I",A102+4)),"") -> 3 | J105: =IFERROR(INDIRECT(CONCATENATE("Field!J",A102+4)),"") ->  | K105: =IFERROR(INDIRECT(CONCATENATE("Field!K",A102+4)),"") ->  | L105: =IFERROR(INDIRECT(CONCATENATE("Field!L",A102+4)),"") ->  | M105: =IFERROR(INDIRECT(CONCATENATE("Field!M",A102+4)),"") ->  | N105: =IFERROR(INDIRECT(CONCATENATE("Field!N",A102+4)),"") -> 
B106: =IFERROR(INDIRECT(CONCATENATE("Field!B",A102+5)),"") -> 4 | C106: =IFERROR(INDIRECT(CONCATENATE("Field!C",A102+5)),"") -> 3 | D106: =IFERROR(INDIRECT(CONCATENATE("Field!D",A102+5)),"") -> NAWAH David | E106: =IFERROR(INDIRECT(CONCATENATE("Field!E",A102+5)),"") -> Read | F106: =IFERROR(INDIRECT(CONCATENATE("Field!F",A102+5)),"") -> 6.29 | G106: =IFERROR(INDIRECT(CONCATENATE("Field!G",A102+5)),"") ->  | I106: =IFERROR(INDIRECT(CONCATENATE("Field!I",A102+5)),"") -> 4 | J106: =IFERROR(INDIRECT(CONCATENATE("Field!J",A102+5)),"") ->  | K106: =IFERROR(INDIRECT(CONCATENATE("Field!K",A102+5)),"") ->  | L106: =IFERROR(INDIRECT(CONCATENATE("Field!L",A102+5)),"") ->  | M106: =IFERROR(INDIRECT(CONCATENATE("Field!M",A102+5)),"") ->  | N106: =IFERROR(INDIRECT(CONCATENATE("Field!N",A102+5)),"") -> 
B107: =IFERROR(INDIRECT(CONCATENATE("Field!B",A102+6)),"") -> 5 | C107: =IFERROR(INDIRECT(CONCATENATE("Field!C",A102+6)),"") -> 1 | D107: =IFERROR(INDIRECT(CONCATENATE("Field!D",A102+6)),"") -> ADESINA Theo X | E107: =IFERROR(INDIRECT(CONCATENATE("Field!E",A102+6)),"") -> B&B | F107: =IFERROR(INDIRECT(CONCATENATE("Field!F",A102+6)),"") -> 6.05 | G107: =IFERROR(INDIRECT(CONCATENATE("Field!G",A102+6)),"") ->  | I107: =IFERROR(INDIRECT(CONCATENATE("Field!I",A102+6)),"") -> 5 | J107: =IFERROR(INDIRECT(CONCATENATE("Field!J",A102+6)),"") ->  | K107: =IFERROR(INDIRECT(CONCATENATE("Field!K",A102+6)),"") ->  | L107: =IFERROR(INDIRECT(CONCATENATE("Field!L",A102+6)),"") ->  | M107: =IFERROR(INDIRECT(CONCATENATE("Field!M",A102+6)),"") ->  | N107: =IFERROR(INDIRECT(CONCATENATE("Field!N",A102+6)),"") -> 
B108: =IFERROR(INDIRECT(CONCATENATE("Field!B",A102+7)),"") -> 6 | C108: =IFERROR(INDIRECT(CONCATENATE("Field!C",A102+7)),"") ->  | D108: =IFERROR(INDIRECT(CONCATENATE("Field!D",A102+7)),"") ->  | E108: =IFERROR(INDIRECT(CONCATENATE("Field!E",A102+7)),"") ->  | F108: =IFERROR(INDIRECT(CONCATENATE("Field!F",A102+7)),"") ->  | G108: =IFERROR(INDIRECT(CONCATENATE("Field!G",A102+7)),"") ->  | I108: =IFERROR(INDIRECT(CONCATENATE("Field!I",A102+7)),"") -> 6 | J108: =IFERROR(INDIRECT(CONCATENATE("Field!J",A102+7)),"") ->  | K108: =IFERROR(INDIRECT(CONCATENATE("Field!K",A102+7)),"") ->  | L108: =IFERROR(INDIRECT(CONCATENATE("Field!L",A102+7)),"") ->  | M108: =IFERROR(INDIRECT(CONCATENATE("Field!M",A102+7)),"") ->  | N108: =IFERROR(INDIRECT(CONCATENATE("Field!N",A102+7)),"") -> 
B109: =IFERROR(INDIRECT(CONCATENATE("Field!B",A102+8)),"") -> 7 | C109: =IFERROR(INDIRECT(CONCATENATE("Field!C",A102+8)),"") ->  | D109: =IFERROR(INDIRECT(CONCATENATE("Field!D",A102+8)),"") ->  | E109: =IFERROR(INDIRECT(CONCATENATE("Field!E",A102+8)),"") ->  | F109: =IFERROR(INDIRECT(CONCATENATE("Field!F",A102+8)),"") ->  | G109: =IFERROR(INDIRECT(CONCATENATE("Field!G",A102+8)),"") ->  | I109: =IFERROR(INDIRECT(CONCATENATE("Field!I",A102+8)),"") -> 7 | J109: =IFERROR(INDIRECT(CONCATENATE("Field!J",A102+8)),"") ->  | K109: =IFERROR(INDIRECT(CONCATENATE("Field!K",A102+8)),"") ->  | L109: =IFERROR(INDIRECT(CONCATENATE("Field!L",A102+8)),"") ->  | M109: =IFERROR(INDIRECT(CONCATENATE("Field!M",A102+8)),"") ->  | N109: =IFERROR(INDIRECT(CONCATENATE("Field!N",A102+8)),"") -> 
B110: =IFERROR(INDIRECT(CONCATENATE("Field!B",A102+9)),"") -> 8 | C110: =IFERROR(INDIRECT(CONCATENATE("Field!C",A102+9)),"") ->  | D110: =IFERROR(INDIRECT(CONCATENATE("Field!D",A102+9)),"") ->  | E110: =IFERROR(INDIRECT(CONCATENATE("Field!E",A102+9)),"") ->  | F110: =IFERROR(INDIRECT(CONCATENATE("Field!F",A102+9)),"") ->  | G110: =IFERROR(INDIRECT(CONCATENATE("Field!G",A102+9)),"") ->  | I110: =IFERROR(INDIRECT(CONCATENATE("Field!I",A102+9)),"") -> 8 | J110: =IFERROR(INDIRECT(CONCATENATE("Field!J",A102+9)),"") ->  | K110: =IFERROR(INDIRECT(CONCATENATE("Field!K",A102+9)),"") ->  | L110: =IFERROR(INDIRECT(CONCATENATE("Field!L",A102+9)),"") ->  | M110: =IFERROR(INDIRECT(CONCATENATE("Field!M",A102+9)),"") ->  | N110: =IFERROR(INDIRECT(CONCATENATE("Field!N",A102+9)),"") -> 
A112: UFH03 | B112: =IFERROR(INDIRECT(CONCATENATE("Field!B",A113)),"") -> High Jump U20 Men A | I112: =IFERROR(INDIRECT(CONCATENATE("Field!I",A113)),"") -> High Jump U20 Men B
A113: =IFERROR(MATCH(A112,Field!A:A,0),"") -> 288 | B113: =IFERROR(INDIRECT(CONCATENATE("Field!B",A113+1)),"") -> Posn | C113: =IFERROR(INDIRECT(CONCATENATE("Field!C",A113+1)),"") -> Bib | D113: =IFERROR(INDIRECT(CONCATENATE("Field!D",A113+1)),"") -> Athlete | E113: =IFERROR(INDIRECT(CONCATENATE("Field!E",A113+1)),"") -> Club | F113: =IFERROR(INDIRECT(CONCATENATE("Field!F",A113+1)),"") -> Perf | G113: =IFERROR(INDIRECT(CONCATENATE("Field!G",A113+1)),"") -> AAA | I113: =IFERROR(INDIRECT(CONCATENATE("Field!I",A113+1)),"") -> Posn | J113: =IFERROR(INDIRECT(CONCATENATE("Field!J",A113+1)),"") -> Bib | K113: =IFERROR(INDIRECT(CONCATENATE("Field!K",A113+1)),"") -> Athlete | L113: =IFERROR(INDIRECT(CONCATENATE("Field!L",A113+1)),"") -> Club | M113: =IFERROR(INDIRECT(CONCATENATE("Field!M",A113+1)),"") -> Perf | N113: =IFERROR(INDIRECT(CONCATENATE("Field!N",A113+1)),"") -> AAA
B114: =IFERROR(INDIRECT(CONCATENATE("Field!B",A113+2)),"") -> 1 | C114: =IFERROR(INDIRECT(CONCATENATE("Field!C",A113+2)),"") -> 2 | D114: =IFERROR(INDIRECT(CONCATENATE("Field!D",A113+2)),"") -> BISHOP David | E114: =IFERROR(INDIRECT(CONCATENATE("Field!E",A113+2)),"") -> Craw | F114: =IFERROR(INDIRECT(CONCATENATE("Field!F",A113+2)),"") -> 1.8 | G114: =IFERROR(INDIRECT(CONCATENATE("Field!G",A113+2)),"") ->  | I114: =IFERROR(INDIRECT(CONCATENATE("Field!I",A113+2)),"") -> 1 | J114: =IFERROR(INDIRECT(CONCATENATE("Field!J",A113+2)),"") -> 33 | K114: =IFERROR(INDIRECT(CONCATENATE("Field!K",A113+2)),"") -> NAWAH David | L114: =IFERROR(INDIRECT(CONCATENATE("Field!L",A113+2)),"") -> Read | M114: =IFERROR(INDIRECT(CONCATENATE("Field!M",A113+2)),"") -> 1.5 | N114: =IFERROR(INDIRECT(CONCATENATE("Field!N",A113+2)),"") ->  | R114: =IFERROR(INDIRECT(CONCATENATE("Field!R",$A113+2)),"") -> 1
B115: =IFERROR(INDIRECT(CONCATENATE("Field!B",A113+3)),"") -> 2 | C115: =IFERROR(INDIRECT(CONCATENATE("Field!C",A113+3)),"") -> 1 | D115: =IFERROR(INDIRECT(CONCATENATE("Field!D",A113+3)),"") -> THORNE Harrison X | E115: =IFERROR(INDIRECT(CONCATENATE("Field!E",A113+3)),"") -> B&B | F115: =IFERROR(INDIRECT(CONCATENATE("Field!F",A113+3)),"") -> 1.75 | G115: =IFERROR(INDIRECT(CONCATENATE("Field!G",A113+3)),"") ->  | I115: =IFERROR(INDIRECT(CONCATENATE("Field!I",A113+3)),"") ->  | J115: =IFERROR(INDIRECT(CONCATENATE("Field!J",A113+3)),"") ->  | K115: =IFERROR(INDIRECT(CONCATENATE("Field!K",A113+3)),"") ->  | L115: =IFERROR(INDIRECT(CONCATENATE("Field!L",A113+3)),"") ->  | M115: =IFERROR(INDIRECT(CONCATENATE("Field!M",A113+3)),"") -> 0 | N115: =IFERROR(INDIRECT(CONCATENATE("Field!N",A113+3)),"") -> 
B116: =IFERROR(INDIRECT(CONCATENATE("Field!B",A113+4)),"") -> 3 | C116: =IFERROR(INDIRECT(CONCATENATE("Field!C",A113+4)),"") -> 4 | D116: =IFERROR(INDIRECT(CONCATENATE("Field!D",A113+4)),"") -> WEBSTER Scott | E116: =IFERROR(INDIRECT(CONCATENATE("Field!E",A113+4)),"") -> SB | F116: =IFERROR(INDIRECT(CONCATENATE("Field!F",A113+4)),"") -> 1.75 | G116: =IFERROR(INDIRECT(CONCATENATE("Field!G",A113+4)),"") ->  | I116: =IFERROR(INDIRECT(CONCATENATE("Field!I",A113+4)),"") ->  | J116: =IFERROR(INDIRECT(CONCATENATE("Field!J",A113+4)),"") ->  | K116: =IFERROR(INDIRECT(CONCATENATE("Field!K",A113+4)),"") ->  | L116: =IFERROR(INDIRECT(CONCATENATE("Field!L",A113+4)),"") ->  | M116: =IFERROR(INDIRECT(CONCATENATE("Field!M",A113+4)),"") -> 0 | N116: =IFERROR(INDIRECT(CONCATENATE("Field!N",A113+4)),"") -> 
B117: =IFERROR(INDIRECT(CONCATENATE("Field!B",A113+5)),"") -> 4 | C117: =IFERROR(INDIRECT(CONCATENATE("Field!C",A113+5)),"") -> 3 | D117: =IFERROR(INDIRECT(CONCATENATE("Field!D",A113+5)),"") -> OGUNLELA Sanmi | E117: =IFERROR(INDIRECT(CONCATENATE("Field!E",A113+5)),"") -> Read | F117: =IFERROR(INDIRECT(CONCATENATE("Field!F",A113+5)),"") -> 1.65 | G117: =IFERROR(INDIRECT(CONCATENATE("Field!G",A113+5)),"") ->  | I117: =IFERROR(INDIRECT(CONCATENATE("Field!I",A113+5)),"") ->  | J117: =IFERROR(INDIRECT(CONCATENATE("Field!J",A113+5)),"") ->  | K117: =IFERROR(INDIRECT(CONCATENATE("Field!K",A113+5)),"") ->  | L117: =IFERROR(INDIRECT(CONCATENATE("Field!L",A113+5)),"") ->  | M117: =IFERROR(INDIRECT(CONCATENATE("Field!M",A113+5)),"") -> 0 | N117: =IFERROR(INDIRECT(CONCATENATE("Field!N",A113+5)),"") -> 
B118: =IFERROR(INDIRECT(CONCATENATE("Field!B",A113+6)),"") -> 5 | C118: =IFERROR(INDIRECT(CONCATENATE("Field!C",A113+6)),"") -> 66 | D118: =IFERROR(INDIRECT(CONCATENATE("Field!D",A113+6)),"") -> BLACKWOOD Dean | E118: =IFERROR(INDIRECT(CONCATENATE("Field!E",A113+6)),"") -> WSEH | F118: =IFERROR(INDIRECT(CONCATENATE("Field!F",A113+6)),"") -> 1.4 | G118: =IFERROR(INDIRECT(CONCATENATE("Field!G",A113+6)),"") ->  | I118: =IFERROR(INDIRECT(CONCATENATE("Field!I",A113+6)),"") ->  | J118: =IFERROR(INDIRECT(CONCATENATE("Field!J",A113+6)),"") ->  | K118: =IFERROR(INDIRECT(CONCATENATE("Field!K",A113+6)),"") ->  | L118: =IFERROR(INDIRECT(CONCATENATE("Field!L",A113+6)),"") ->  | M118: =IFERROR(INDIRECT(CONCATENATE("Field!M",A113+6)),"") -> 0 | N118: =IFERROR(INDIRECT(CONCATENATE("Field!N",A113+6)),"") -> 
B119: =IFERROR(INDIRECT(CONCATENATE("Field!B",A113+7)),"") ->  | C119: =IFERROR(INDIRECT(CONCATENATE("Field!C",A113+7)),"") ->  | D119: =IFERROR(INDIRECT(CONCATENATE("Field!D",A113+7)),"") ->  | E119: =IFERROR(INDIRECT(CONCATENATE("Field!E",A113+7)),"") ->  | F119: =IFERROR(INDIRECT(CONCATENATE("Field!F",A113+7)),"") -> 0 | G119: =IFERROR(INDIRECT(CONCATENATE("Field!G",A113+7)),"") ->  | I119: =IFERROR(INDIRECT(CONCATENATE("Field!I",A113+7)),"") ->  | J119: =IFERROR(INDIRECT(CONCATENATE("Field!J",A113+7)),"") ->  | K119: =IFERROR(INDIRECT(CONCATENATE("Field!K",A113+7)),"") ->  | L119: =IFERROR(INDIRECT(CONCATENATE("Field!L",A113+7)),"") ->  | M119: =IFERROR(INDIRECT(CONCATENATE("Field!M",A113+7)),"") -> 0 | N119: =IFERROR(INDIRECT(CONCATENATE("Field!N",A113+7)),"") -> 
B120: =IFERROR(INDIRECT(CONCATENATE("Field!B",A113+8)),"") ->  | C120: =IFERROR(INDIRECT(CONCATENATE("Field!C",A113+8)),"") ->  | D120: =IFERROR(INDIRECT(CONCATENATE("Field!D",A113+8)),"") ->  | E120: =IFERROR(INDIRECT(CONCATENATE("Field!E",A113+8)),"") ->  | F120: =IFERROR(INDIRECT(CONCATENATE("Field!F",A113+8)),"") -> 0 | G120: =IFERROR(INDIRECT(CONCATENATE("Field!G",A113+8)),"") ->  | I120: =IFERROR(INDIRECT(CONCATENATE("Field!I",A113+8)),"") ->  | J120: =IFERROR(INDIRECT(CONCATENATE("Field!J",A113+8)),"") ->  | K120: =IFERROR(INDIRECT(CONCATENATE("Field!K",A113+8)),"") ->  | L120: =IFERROR(INDIRECT(CONCATENATE("Field!L",A113+8)),"") ->  | M120: =IFERROR(INDIRECT(CONCATENATE("Field!M",A113+8)),"") -> 0 | N120: =IFERROR(INDIRECT(CONCATENATE("Field!N",A113+8)),"") -> 
B121: =IFERROR(INDIRECT(CONCATENATE("Field!B",A113+9)),"") ->  | C121: =IFERROR(INDIRECT(CONCATENATE("Field!C",A113+9)),"") ->  | D121: =IFERROR(INDIRECT(CONCATENATE("Field!D",A113+9)),"") ->  | E121: =IFERROR(INDIRECT(CONCATENATE("Field!E",A113+9)),"") ->  | F121: =IFERROR(INDIRECT(CONCATENATE("Field!F",A113+9)),"") -> 0 | G121: =IFERROR(INDIRECT(CONCATENATE("Field!G",A113+9)),"") ->  | I121: =IFERROR(INDIRECT(CONCATENATE("Field!I",A113+9)),"") ->  | J121: =IFERROR(INDIRECT(CONCATENATE("Field!J",A113+9)),"") ->  | K121: =IFERROR(INDIRECT(CONCATENATE("Field!K",A113+9)),"") ->  | L121: =IFERROR(INDIRECT(CONCATENATE("Field!L",A113+9)),"") ->  | M121: =IFERROR(INDIRECT(CONCATENATE("Field!M",A113+9)),"") -> 0 | N121: =IFERROR(INDIRECT(CONCATENATE("Field!N",A113+9)),"") -> 
A123: UFW05 | B123: =IFERROR(INDIRECT(CONCATENATE("Field!B",A124)),"") -> Triple Jump U20 Men A | I123: =IFERROR(INDIRECT(CONCATENATE("Field!I",A124)),"") -> Triple Jump U20 Men B
A124: =IFERROR(MATCH(A123,Field!A:A,0),"") -> 222 | B124: =IFERROR(INDIRECT(CONCATENATE("Field!B",A124+1)),"") -> Posn | C124: =IFERROR(INDIRECT(CONCATENATE("Field!C",A124+1)),"") -> Bib | D124: =IFERROR(INDIRECT(CONCATENATE("Field!D",A124+1)),"") -> Athlete | E124: =IFERROR(INDIRECT(CONCATENATE("Field!E",A124+1)),"") -> Club | F124: =IFERROR(INDIRECT(CONCATENATE("Field!F",A124+1)),"") -> Perf | G124: =IFERROR(INDIRECT(CONCATENATE("Field!G",A124+1)),"") -> AAA | I124: =IFERROR(INDIRECT(CONCATENATE("Field!I",A124+1)),"") -> Posn | J124: =IFERROR(INDIRECT(CONCATENATE("Field!J",A124+1)),"") -> Bib | K124: =IFERROR(INDIRECT(CONCATENATE("Field!K",A124+1)),"") -> Athlete | L124: =IFERROR(INDIRECT(CONCATENATE("Field!L",A124+1)),"") -> Club | M124: =IFERROR(INDIRECT(CONCATENATE("Field!M",A124+1)),"") -> Perf | N124: =IFERROR(INDIRECT(CONCATENATE("Field!N",A124+1)),"") -> AAA
B125: =IFERROR(INDIRECT(CONCATENATE("Field!B",A124+2)),"") -> 1 | C125: =IFERROR(INDIRECT(CONCATENATE("Field!C",A124+2)),"") -> 6 | D125: =IFERROR(INDIRECT(CONCATENATE("Field!D",A124+2)),"") -> PRINCEWELL Teepee | E125: =IFERROR(INDIRECT(CONCATENATE("Field!E",A124+2)),"") -> WSEH | F125: =IFERROR(INDIRECT(CONCATENATE("Field!F",A124+2)),"") -> 14 | G125: =IFERROR(INDIRECT(CONCATENATE("Field!G",A124+2)),"") -> 1 | I125: =IFERROR(INDIRECT(CONCATENATE("Field!I",A124+2)),"") -> 1 | J125: =IFERROR(INDIRECT(CONCATENATE("Field!J",A124+2)),"") -> 66 | K125: =IFERROR(INDIRECT(CONCATENATE("Field!K",A124+2)),"") -> CHALLIS Samuel | L125: =IFERROR(INDIRECT(CONCATENATE("Field!L",A124+2)),"") -> WSEH | M125: =IFERROR(INDIRECT(CONCATENATE("Field!M",A124+2)),"") -> 12.27 | N125: =IFERROR(INDIRECT(CONCATENATE("Field!N",A124+2)),"") ->  | R125: =IFERROR(INDIRECT(CONCATENATE("Field!R",$A124+2)),"") -> 1
B126: =IFERROR(INDIRECT(CONCATENATE("Field!B",A124+3)),"") -> 2 | C126: =IFERROR(INDIRECT(CONCATENATE("Field!C",A124+3)),"") -> 4 | D126: =IFERROR(INDIRECT(CONCATENATE("Field!D",A124+3)),"") -> ADEJONWO Abbas | E126: =IFERROR(INDIRECT(CONCATENATE("Field!E",A124+3)),"") -> SB | F126: =IFERROR(INDIRECT(CONCATENATE("Field!F",A124+3)),"") -> 13.07 | G126: =IFERROR(INDIRECT(CONCATENATE("Field!G",A124+3)),"") -> 3 | I126: =IFERROR(INDIRECT(CONCATENATE("Field!I",A124+3)),"") -> 2 | J126: =IFERROR(INDIRECT(CONCATENATE("Field!J",A124+3)),"") -> 44 | K126: =IFERROR(INDIRECT(CONCATENATE("Field!K",A124+3)),"") -> ELLINGTON Aaron | L126: =IFERROR(INDIRECT(CONCATENATE("Field!L",A124+3)),"") -> SB | M126: =IFERROR(INDIRECT(CONCATENATE("Field!M",A124+3)),"") -> 10.27 | N126: =IFERROR(INDIRECT(CONCATENATE("Field!N",A124+3)),"") -> 
B127: =IFERROR(INDIRECT(CONCATENATE("Field!B",A124+4)),"") -> 3 | C127: =IFERROR(INDIRECT(CONCATENATE("Field!C",A124+4)),"") -> 1 | D127: =IFERROR(INDIRECT(CONCATENATE("Field!D",A124+4)),"") -> REEVES-FELLOWS Dylan | E127: =IFERROR(INDIRECT(CONCATENATE("Field!E",A124+4)),"") -> B&B | F127: =IFERROR(INDIRECT(CONCATENATE("Field!F",A124+4)),"") -> 11.91 | G127: =IFERROR(INDIRECT(CONCATENATE("Field!G",A124+4)),"") ->  | I127: =IFERROR(INDIRECT(CONCATENATE("Field!I",A124+4)),"") -> 3 | J127: =IFERROR(INDIRECT(CONCATENATE("Field!J",A124+4)),"") ->  | K127: =IFERROR(INDIRECT(CONCATENATE("Field!K",A124+4)),"") ->  | L127: =IFERROR(INDIRECT(CONCATENATE("Field!L",A124+4)),"") ->  | M127: =IFERROR(INDIRECT(CONCATENATE("Field!M",A124+4)),"") ->  | N127: =IFERROR(INDIRECT(CONCATENATE("Field!N",A124+4)),"") -> 
B128: =IFERROR(INDIRECT(CONCATENATE("Field!B",A124+5)),"") -> 4 | C128: =IFERROR(INDIRECT(CONCATENATE("Field!C",A124+5)),"") -> 2 | D128: =IFERROR(INDIRECT(CONCATENATE("Field!D",A124+5)),"") -> BISHOP David | E128: =IFERROR(INDIRECT(CONCATENATE("Field!E",A124+5)),"") -> Craw | F128: =IFERROR(INDIRECT(CONCATENATE("Field!F",A124+5)),"") -> 11.82 | G128: =IFERROR(INDIRECT(CONCATENATE("Field!G",A124+5)),"") ->  | I128: =IFERROR(INDIRECT(CONCATENATE("Field!I",A124+5)),"") -> 4 | J128: =IFERROR(INDIRECT(CONCATENATE("Field!J",A124+5)),"") ->  | K128: =IFERROR(INDIRECT(CONCATENATE("Field!K",A124+5)),"") ->  | L128: =IFERROR(INDIRECT(CONCATENATE("Field!L",A124+5)),"") ->  | M128: =IFERROR(INDIRECT(CONCATENATE("Field!M",A124+5)),"") ->  | N128: =IFERROR(INDIRECT(CONCATENATE("Field!N",A124+5)),"") -> 
B129: =IFERROR(INDIRECT(CONCATENATE("Field!B",A124+6)),"") -> 5 | C129: =IFERROR(INDIRECT(CONCATENATE("Field!C",A124+6)),"") ->  | D129: =IFERROR(INDIRECT(CONCATENATE("Field!D",A124+6)),"") ->  | E129: =IFERROR(INDIRECT(CONCATENATE("Field!E",A124+6)),"") ->  | F129: =IFERROR(INDIRECT(CONCATENATE("Field!F",A124+6)),"") ->  | G129: =IFERROR(INDIRECT(CONCATENATE("Field!G",A124+6)),"") ->  | I129: =IFERROR(INDIRECT(CONCATENATE("Field!I",A124+6)),"") -> 5 | J129: =IFERROR(INDIRECT(CONCATENATE("Field!J",A124+6)),"") ->  | K129: =IFERROR(INDIRECT(CONCATENATE("Field!K",A124+6)),"") ->  | L129: =IFERROR(INDIRECT(CONCATENATE("Field!L",A124+6)),"") ->  | M129: =IFERROR(INDIRECT(CONCATENATE("Field!M",A124+6)),"") ->  | N129: =IFERROR(INDIRECT(CONCATENATE("Field!N",A124+6)),"") -> 
B130: =IFERROR(INDIRECT(CONCATENATE("Field!B",A124+7)),"") -> 6 | C130: =IFERROR(INDIRECT(CONCATENATE("Field!C",A124+7)),"") ->  | D130: =IFERROR(INDIRECT(CONCATENATE("Field!D",A124+7)),"") ->  | E130: =IFERROR(INDIRECT(CONCATENATE("Field!E",A124+7)),"") ->  | F130: =IFERROR(INDIRECT(CONCATENATE("Field!F",A124+7)),"") ->  | G130: =IFERROR(INDIRECT(CONCATENATE("Field!G",A124+7)),"") ->  | I130: =IFERROR(INDIRECT(CONCATENATE("Field!I",A124+7)),"") -> 6 | J130: =IFERROR(INDIRECT(CONCATENATE("Field!J",A124+7)),"") ->  | K130: =IFERROR(INDIRECT(CONCATENATE("Field!K",A124+7)),"") ->  | L130: =IFERROR(INDIRECT(CONCATENATE("Field!L",A124+7)),"") ->  | M130: =IFERROR(INDIRECT(CONCATENATE("Field!M",A124+7)),"") ->  | N130: =IFERROR(INDIRECT(CONCATENATE("Field!N",A124+7)),"") -> 
B131: =IFERROR(INDIRECT(CONCATENATE("Field!B",A124+8)),"") -> 7 | C131: =IFERROR(INDIRECT(CONCATENATE("Field!C",A124+8)),"") ->  | D131: =IFERROR(INDIRECT(CONCATENATE("Field!D",A124+8)),"") ->  | E131: =IFERROR(INDIRECT(CONCATENATE("Field!E",A124+8)),"") ->  | F131: =IFERROR(INDIRECT(CONCATENATE("Field!F",A124+8)),"") ->  | G131: =IFERROR(INDIRECT(CONCATENATE("Field!G",A124+8)),"") ->  | I131: =IFERROR(INDIRECT(CONCATENATE("Field!I",A124+8)),"") -> 7 | J131: =IFERROR(INDIRECT(CONCATENATE("Field!J",A124+8)),"") ->  | K131: =IFERROR(INDIRECT(CONCATENATE("Field!K",A124+8)),"") ->  | L131: =IFERROR(INDIRECT(CONCATENATE("Field!L",A124+8)),"") ->  | M131: =IFERROR(INDIRECT(CONCATENATE("Field!M",A124+8)),"") ->  | N131: =IFERROR(INDIRECT(CONCATENATE("Field!N",A124+8)),"") -> 
B132: =IFERROR(INDIRECT(CONCATENATE("Field!B",A124+9)),"") -> 8 | C132: =IFERROR(INDIRECT(CONCATENATE("Field!C",A124+9)),"") ->  | D132: =IFERROR(INDIRECT(CONCATENATE("Field!D",A124+9)),"") ->  | E132: =IFERROR(INDIRECT(CONCATENATE("Field!E",A124+9)),"") ->  | F132: =IFERROR(INDIRECT(CONCATENATE("Field!F",A124+9)),"") ->  | G132: =IFERROR(INDIRECT(CONCATENATE("Field!G",A124+9)),"") ->  | I132: =IFERROR(INDIRECT(CONCATENATE("Field!I",A124+9)),"") -> 8 | J132: =IFERROR(INDIRECT(CONCATENATE("Field!J",A124+9)),"") ->  | K132: =IFERROR(INDIRECT(CONCATENATE("Field!K",A124+9)),"") ->  | L132: =IFERROR(INDIRECT(CONCATENATE("Field!L",A124+9)),"") ->  | M132: =IFERROR(INDIRECT(CONCATENATE("Field!M",A124+9)),"") ->  | N132: =IFERROR(INDIRECT(CONCATENATE("Field!N",A124+9)),"") -> 
A134: UFH05 | B134: =IFERROR(INDIRECT(CONCATENATE("Field!B",A135)),"") -> Pole Vault U20 Men A | I134: =IFERROR(INDIRECT(CONCATENATE("Field!I",A135)),"") -> Pole Vault U20 Men B
A135: =IFERROR(MATCH(A134,Field!A:A,0),"") -> 310 | B135: =IFERROR(INDIRECT(CONCATENATE("Field!B",A135+1)),"") -> Posn | C135: =IFERROR(INDIRECT(CONCATENATE("Field!C",A135+1)),"") -> Bib | D135: =IFERROR(INDIRECT(CONCATENATE("Field!D",A135+1)),"") -> Athlete | E135: =IFERROR(INDIRECT(CONCATENATE("Field!E",A135+1)),"") -> Club | F135: =IFERROR(INDIRECT(CONCATENATE("Field!F",A135+1)),"") -> Perf | G135: =IFERROR(INDIRECT(CONCATENATE("Field!G",A135+1)),"") -> AAA | I135: =IFERROR(INDIRECT(CONCATENATE("Field!I",A135+1)),"") -> Posn | J135: =IFERROR(INDIRECT(CONCATENATE("Field!J",A135+1)),"") -> Bib | K135: =IFERROR(INDIRECT(CONCATENATE("Field!K",A135+1)),"") -> Athlete | L135: =IFERROR(INDIRECT(CONCATENATE("Field!L",A135+1)),"") -> Club | M135: =IFERROR(INDIRECT(CONCATENATE("Field!M",A135+1)),"") -> Perf | N135: =IFERROR(INDIRECT(CONCATENATE("Field!N",A135+1)),"") -> AAA
B136: =IFERROR(INDIRECT(CONCATENATE("Field!B",A135+2)),"") -> 1 | C136: =IFERROR(INDIRECT(CONCATENATE("Field!C",A135+2)),"") -> 4 | D136: =IFERROR(INDIRECT(CONCATENATE("Field!D",A135+2)),"") -> HAJIPANAYI Ross | E136: =IFERROR(INDIRECT(CONCATENATE("Field!E",A135+2)),"") -> SB | F136: =IFERROR(INDIRECT(CONCATENATE("Field!F",A135+2)),"") -> 3.8 | G136: =IFERROR(INDIRECT(CONCATENATE("Field!G",A135+2)),"") ->  | I136: =IFERROR(INDIRECT(CONCATENATE("Field!I",A135+2)),"") ->  | J136: =IFERROR(INDIRECT(CONCATENATE("Field!J",A135+2)),"") ->  | K136: =IFERROR(INDIRECT(CONCATENATE("Field!K",A135+2)),"") ->  | L136: =IFERROR(INDIRECT(CONCATENATE("Field!L",A135+2)),"") ->  | M136: =IFERROR(INDIRECT(CONCATENATE("Field!M",A135+2)),"") -> 0 | N136: =IFERROR(INDIRECT(CONCATENATE("Field!N",A135+2)),"") ->  | R136: =IFERROR(INDIRECT(CONCATENATE("Field!R",$A135+2)),"") -> 1
B137: =IFERROR(INDIRECT(CONCATENATE("Field!B",A135+3)),"") -> 2 | C137: =IFERROR(INDIRECT(CONCATENATE("Field!C",A135+3)),"") -> 1 | D137: =IFERROR(INDIRECT(CONCATENATE("Field!D",A135+3)),"") -> GEORGE Pope | E137: =IFERROR(INDIRECT(CONCATENATE("Field!E",A135+3)),"") -> B&B | F137: =IFERROR(INDIRECT(CONCATENATE("Field!F",A135+3)),"") -> 3.5 | G137: =IFERROR(INDIRECT(CONCATENATE("Field!G",A135+3)),"") ->  | I137: =IFERROR(INDIRECT(CONCATENATE("Field!I",A135+3)),"") ->  | J137: =IFERROR(INDIRECT(CONCATENATE("Field!J",A135+3)),"") ->  | K137: =IFERROR(INDIRECT(CONCATENATE("Field!K",A135+3)),"") ->  | L137: =IFERROR(INDIRECT(CONCATENATE("Field!L",A135+3)),"") ->  | M137: =IFERROR(INDIRECT(CONCATENATE("Field!M",A135+3)),"") -> 0 | N137: =IFERROR(INDIRECT(CONCATENATE("Field!N",A135+3)),"") -> 
B138: =IFERROR(INDIRECT(CONCATENATE("Field!B",A135+4)),"") ->  | C138: =IFERROR(INDIRECT(CONCATENATE("Field!C",A135+4)),"") ->  | D138: =IFERROR(INDIRECT(CONCATENATE("Field!D",A135+4)),"") ->  | E138: =IFERROR(INDIRECT(CONCATENATE("Field!E",A135+4)),"") ->  | F138: =IFERROR(INDIRECT(CONCATENATE("Field!F",A135+4)),"") -> 0 | G138: =IFERROR(INDIRECT(CONCATENATE("Field!G",A135+4)),"") ->  | I138: =IFERROR(INDIRECT(CONCATENATE("Field!I",A135+4)),"") ->  | J138: =IFERROR(INDIRECT(CONCATENATE("Field!J",A135+4)),"") ->  | K138: =IFERROR(INDIRECT(CONCATENATE("Field!K",A135+4)),"") ->  | L138: =IFERROR(INDIRECT(CONCATENATE("Field!L",A135+4)),"") ->  | M138: =IFERROR(INDIRECT(CONCATENATE("Field!M",A135+4)),"") -> 0 | N138: =IFERROR(INDIRECT(CONCATENATE("Field!N",A135+4)),"") -> 
B139: =IFERROR(INDIRECT(CONCATENATE("Field!B",A135+5)),"") ->  | C139: =IFERROR(INDIRECT(CONCATENATE("Field!C",A135+5)),"") ->  | D139: =IFERROR(INDIRECT(CONCATENATE("Field!D",A135+5)),"") ->  | E139: =IFERROR(INDIRECT(CONCATENATE("Field!E",A135+5)),"") ->  | F139: =IFERROR(INDIRECT(CONCATENATE("Field!F",A135+5)),"") -> 0 | G139: =IFERROR(INDIRECT(CONCATENATE("Field!G",A135+5)),"") ->  | I139: =IFERROR(INDIRECT(CONCATENATE("Field!I",A135+5)),"") ->  | J139: =IFERROR(INDIRECT(CONCATENATE("Field!J",A135+5)),"") ->  | K139: =IFERROR(INDIRECT(CONCATENATE("Field!K",A135+5)),"") ->  | L139: =IFERROR(INDIRECT(CONCATENATE("Field!L",A135+5)),"") ->  | M139: =IFERROR(INDIRECT(CONCATENATE("Field!M",A135+5)),"") -> 0 | N139: =IFERROR(INDIRECT(CONCATENATE("Field!N",A135+5)),"") -> 
B140: =IFERROR(INDIRECT(CONCATENATE("Field!B",A135+6)),"") ->  | C140: =IFERROR(INDIRECT(CONCATENATE("Field!C",A135+6)),"") ->  | D140: =IFERROR(INDIRECT(CONCATENATE("Field!D",A135+6)),"") ->  | E140: =IFERROR(INDIRECT(CONCATENATE("Field!E",A135+6)),"") ->  | F140: =IFERROR(INDIRECT(CONCATENATE("Field!F",A135+6)),"") -> 0 | G140: =IFERROR(INDIRECT(CONCATENATE("Field!G",A135+6)),"") ->  | I140: =IFERROR(INDIRECT(CONCATENATE("Field!I",A135+6)),"") ->  | J140: =IFERROR(INDIRECT(CONCATENATE("Field!J",A135+6)),"") ->  | K140: =IFERROR(INDIRECT(CONCATENATE("Field!K",A135+6)),"") ->  | L140: =IFERROR(INDIRECT(CONCATENATE("Field!L",A135+6)),"") ->  | M140: =IFERROR(INDIRECT(CONCATENATE("Field!M",A135+6)),"") -> 0 | N140: =IFERROR(INDIRECT(CONCATENATE("Field!N",A135+6)),"") -> 
B141: =IFERROR(INDIRECT(CONCATENATE("Field!B",A135+7)),"") ->  | C141: =IFERROR(INDIRECT(CONCATENATE("Field!C",A135+7)),"") ->  | D141: =IFERROR(INDIRECT(CONCATENATE("Field!D",A135+7)),"") ->  | E141: =IFERROR(INDIRECT(CONCATENATE("Field!E",A135+7)),"") ->  | F141: =IFERROR(INDIRECT(CONCATENATE("Field!F",A135+7)),"") -> 0 | G141: =IFERROR(INDIRECT(CONCATENATE("Field!G",A135+7)),"") ->  | I141: =IFERROR(INDIRECT(CONCATENATE("Field!I",A135+7)),"") ->  | J141: =IFERROR(INDIRECT(CONCATENATE("Field!J",A135+7)),"") ->  | K141: =IFERROR(INDIRECT(CONCATENATE("Field!K",A135+7)),"") ->  | L141: =IFERROR(INDIRECT(CONCATENATE("Field!L",A135+7)),"") ->  | M141: =IFERROR(INDIRECT(CONCATENATE("Field!M",A135+7)),"") -> 0 | N141: =IFERROR(INDIRECT(CONCATENATE("Field!N",A135+7)),"") -> 
B142: =IFERROR(INDIRECT(CONCATENATE("Field!B",A135+8)),"") ->  | C142: =IFERROR(INDIRECT(CONCATENATE("Field!C",A135+8)),"") ->  | D142: =IFERROR(INDIRECT(CONCATENATE("Field!D",A135+8)),"") ->  | E142: =IFERROR(INDIRECT(CONCATENATE("Field!E",A135+8)),"") ->  | F142: =IFERROR(INDIRECT(CONCATENATE("Field!F",A135+8)),"") -> 0 | G142: =IFERROR(INDIRECT(CONCATENATE("Field!G",A135+8)),"") ->  | I142: =IFERROR(INDIRECT(CONCATENATE("Field!I",A135+8)),"") ->  | J142: =IFERROR(INDIRECT(CONCATENATE("Field!J",A135+8)),"") ->  | K142: =IFERROR(INDIRECT(CONCATENATE("Field!K",A135+8)),"") ->  | L142: =IFERROR(INDIRECT(CONCATENATE("Field!L",A135+8)),"") ->  | M142: =IFERROR(INDIRECT(CONCATENATE("Field!M",A135+8)),"") -> 0 | N142: =IFERROR(INDIRECT(CONCATENATE("Field!N",A135+8)),"") -> 
B143: =IFERROR(INDIRECT(CONCATENATE("Field!B",A135+9)),"") ->  | C143: =IFERROR(INDIRECT(CONCATENATE("Field!C",A135+9)),"") ->  | D143: =IFERROR(INDIRECT(CONCATENATE("Field!D",A135+9)),"") ->  | E143: =IFERROR(INDIRECT(CONCATENATE("Field!E",A135+9)),"") ->  | F143: =IFERROR(INDIRECT(CONCATENATE("Field!F",A135+9)),"") -> 0 | G143: =IFERROR(INDIRECT(CONCATENATE("Field!G",A135+9)),"") ->  | I143: =IFERROR(INDIRECT(CONCATENATE("Field!I",A135+9)),"") ->  | J143: =IFERROR(INDIRECT(CONCATENATE("Field!J",A135+9)),"") ->  | K143: =IFERROR(INDIRECT(CONCATENATE("Field!K",A135+9)),"") ->  | L143: =IFERROR(INDIRECT(CONCATENATE("Field!L",A135+9)),"") ->  | M143: =IFERROR(INDIRECT(CONCATENATE("Field!M",A135+9)),"") -> 0 | N143: =IFERROR(INDIRECT(CONCATENATE("Field!N",A135+9)),"") -> 
A145: UFD11 | B145: =IFERROR(INDIRECT(CONCATENATE("Field!B",A146)),"") -> Shot U20 Men A | I145: =IFERROR(INDIRECT(CONCATENATE("Field!I",A146)),"") -> Shot U20 Men B
A146: =IFERROR(MATCH(A145,Field!A:A,0),"") -> 112 | B146: =IFERROR(INDIRECT(CONCATENATE("Field!B",A146+1)),"") -> Posn | C146: =IFERROR(INDIRECT(CONCATENATE("Field!C",A146+1)),"") -> Bib | D146: =IFERROR(INDIRECT(CONCATENATE("Field!D",A146+1)),"") -> Athlete | E146: =IFERROR(INDIRECT(CONCATENATE("Field!E",A146+1)),"") -> Club | F146: =IFERROR(INDIRECT(CONCATENATE("Field!F",A146+1)),"") -> Perf | G146: =IFERROR(INDIRECT(CONCATENATE("Field!G",A146+1)),"") -> AAA | I146: =IFERROR(INDIRECT(CONCATENATE("Field!I",A146+1)),"") -> Posn | J146: =IFERROR(INDIRECT(CONCATENATE("Field!J",A146+1)),"") -> Bib | K146: =IFERROR(INDIRECT(CONCATENATE("Field!K",A146+1)),"") -> Athlete | L146: =IFERROR(INDIRECT(CONCATENATE("Field!L",A146+1)),"") -> Club | M146: =IFERROR(INDIRECT(CONCATENATE("Field!M",A146+1)),"") -> Perf | N146: =IFERROR(INDIRECT(CONCATENATE("Field!N",A146+1)),"") -> AAA
B147: =IFERROR(INDIRECT(CONCATENATE("Field!B",A146+2)),"") -> 1 | C147: =IFERROR(INDIRECT(CONCATENATE("Field!C",A146+2)),"") -> 4 | D147: =IFERROR(INDIRECT(CONCATENATE("Field!D",A146+2)),"") -> EVANS George | E147: =IFERROR(INDIRECT(CONCATENATE("Field!E",A146+2)),"") -> SB | F147: =IFERROR(INDIRECT(CONCATENATE("Field!F",A146+2)),"") -> 14.7 | G147: =IFERROR(INDIRECT(CONCATENATE("Field!G",A146+2)),"") -> 1 | I147: =IFERROR(INDIRECT(CONCATENATE("Field!I",A146+2)),"") -> 1 | J147: =IFERROR(INDIRECT(CONCATENATE("Field!J",A146+2)),"") -> 44 | K147: =IFERROR(INDIRECT(CONCATENATE("Field!K",A146+2)),"") -> PRAIM-SINGH Billy | L147: =IFERROR(INDIRECT(CONCATENATE("Field!L",A146+2)),"") -> SB | M147: =IFERROR(INDIRECT(CONCATENATE("Field!M",A146+2)),"") -> 13.73 | N147: =IFERROR(INDIRECT(CONCATENATE("Field!N",A146+2)),"") -> 2 | R147: =IFERROR(INDIRECT(CONCATENATE("Field!R",$A146+2)),"") -> 1
B148: =IFERROR(INDIRECT(CONCATENATE("Field!B",A146+3)),"") -> 2 | C148: =IFERROR(INDIRECT(CONCATENATE("Field!C",A146+3)),"") -> 5 | D148: =IFERROR(INDIRECT(CONCATENATE("Field!D",A146+3)),"") -> MASSINGHAM Oliver | E148: =IFERROR(INDIRECT(CONCATENATE("Field!E",A146+3)),"") -> Norfolk | F148: =IFERROR(INDIRECT(CONCATENATE("Field!F",A146+3)),"") -> 13.19 | G148: =IFERROR(INDIRECT(CONCATENATE("Field!G",A146+3)),"") -> 3 | I148: =IFERROR(INDIRECT(CONCATENATE("Field!I",A146+3)),"") -> 2 | J148: =IFERROR(INDIRECT(CONCATENATE("Field!J",A146+3)),"") -> 33 | K148: =IFERROR(INDIRECT(CONCATENATE("Field!K",A146+3)),"") -> HEWITT Oliver | L148: =IFERROR(INDIRECT(CONCATENATE("Field!L",A146+3)),"") -> Read | M148: =IFERROR(INDIRECT(CONCATENATE("Field!M",A146+3)),"") -> 11.1 | N148: =IFERROR(INDIRECT(CONCATENATE("Field!N",A146+3)),"") -> 
B149: =IFERROR(INDIRECT(CONCATENATE("Field!B",A146+4)),"") -> 3 | C149: =IFERROR(INDIRECT(CONCATENATE("Field!C",A146+4)),"") -> 3 | D149: =IFERROR(INDIRECT(CONCATENATE("Field!D",A146+4)),"") -> SPRATLEY-KEMP Alex | E149: =IFERROR(INDIRECT(CONCATENATE("Field!E",A146+4)),"") -> Read | F149: =IFERROR(INDIRECT(CONCATENATE("Field!F",A146+4)),"") -> 11.77 | G149: =IFERROR(INDIRECT(CONCATENATE("Field!G",A146+4)),"") ->  | I149: =IFERROR(INDIRECT(CONCATENATE("Field!I",A146+4)),"") -> 3 | J149: =IFERROR(INDIRECT(CONCATENATE("Field!J",A146+4)),"") -> 66 | K149: =IFERROR(INDIRECT(CONCATENATE("Field!K",A146+4)),"") -> SINGH Jiwandeep | L149: =IFERROR(INDIRECT(CONCATENATE("Field!L",A146+4)),"") -> WSEH | M149: =IFERROR(INDIRECT(CONCATENATE("Field!M",A146+4)),"") -> 7.59 | N149: =IFERROR(INDIRECT(CONCATENATE("Field!N",A146+4)),"") -> 
B150: =IFERROR(INDIRECT(CONCATENATE("Field!B",A146+5)),"") -> 4 | C150: =IFERROR(INDIRECT(CONCATENATE("Field!C",A146+5)),"") -> 1 | D150: =IFERROR(INDIRECT(CONCATENATE("Field!D",A146+5)),"") -> ALADESE Dele | E150: =IFERROR(INDIRECT(CONCATENATE("Field!E",A146+5)),"") -> B&B | F150: =IFERROR(INDIRECT(CONCATENATE("Field!F",A146+5)),"") -> 11.51 | G150: =IFERROR(INDIRECT(CONCATENATE("Field!G",A146+5)),"") ->  | I150: =IFERROR(INDIRECT(CONCATENATE("Field!I",A146+5)),"") -> 4 | J150: =IFERROR(INDIRECT(CONCATENATE("Field!J",A146+5)),"") ->  | K150: =IFERROR(INDIRECT(CONCATENATE("Field!K",A146+5)),"") ->  | L150: =IFERROR(INDIRECT(CONCATENATE("Field!L",A146+5)),"") ->  | M150: =IFERROR(INDIRECT(CONCATENATE("Field!M",A146+5)),"") ->  | N150: =IFERROR(INDIRECT(CONCATENATE("Field!N",A146+5)),"") -> 
B151: =IFERROR(INDIRECT(CONCATENATE("Field!B",A146+6)),"") -> 5 | C151: =IFERROR(INDIRECT(CONCATENATE("Field!C",A146+6)),"") -> 6 | D151: =IFERROR(INDIRECT(CONCATENATE("Field!D",A146+6)),"") -> CAMPBELL Bayley | E151: =IFERROR(INDIRECT(CONCATENATE("Field!E",A146+6)),"") -> WSEH | F151: =IFERROR(INDIRECT(CONCATENATE("Field!F",A146+6)),"") -> 9.93 | G151: =IFERROR(INDIRECT(CONCATENATE("Field!G",A146+6)),"") ->  | I151: =IFERROR(INDIRECT(CONCATENATE("Field!I",A146+6)),"") -> 5 | J151: =IFERROR(INDIRECT(CONCATENATE("Field!J",A146+6)),"") ->  | K151: =IFERROR(INDIRECT(CONCATENATE("Field!K",A146+6)),"") ->  | L151: =IFERROR(INDIRECT(CONCATENATE("Field!L",A146+6)),"") ->  | M151: =IFERROR(INDIRECT(CONCATENATE("Field!M",A146+6)),"") ->  | N151: =IFERROR(INDIRECT(CONCATENATE("Field!N",A146+6)),"") -> 
B152: =IFERROR(INDIRECT(CONCATENATE("Field!B",A146+7)),"") -> 6 | C152: =IFERROR(INDIRECT(CONCATENATE("Field!C",A146+7)),"") ->  | D152: =IFERROR(INDIRECT(CONCATENATE("Field!D",A146+7)),"") ->  | E152: =IFERROR(INDIRECT(CONCATENATE("Field!E",A146+7)),"") ->  | F152: =IFERROR(INDIRECT(CONCATENATE("Field!F",A146+7)),"") ->  | G152: =IFERROR(INDIRECT(CONCATENATE("Field!G",A146+7)),"") ->  | I152: =IFERROR(INDIRECT(CONCATENATE("Field!I",A146+7)),"") -> 6 | J152: =IFERROR(INDIRECT(CONCATENATE("Field!J",A146+7)),"") ->  | K152: =IFERROR(INDIRECT(CONCATENATE("Field!K",A146+7)),"") ->  | L152: =IFERROR(INDIRECT(CONCATENATE("Field!L",A146+7)),"") ->  | M152: =IFERROR(INDIRECT(CONCATENATE("Field!M",A146+7)),"") ->  | N152: =IFERROR(INDIRECT(CONCATENATE("Field!N",A146+7)),"") -> 
B153: =IFERROR(INDIRECT(CONCATENATE("Field!B",A146+8)),"") -> 7 | C153: =IFERROR(INDIRECT(CONCATENATE("Field!C",A146+8)),"") ->  | D153: =IFERROR(INDIRECT(CONCATENATE("Field!D",A146+8)),"") ->  | E153: =IFERROR(INDIRECT(CONCATENATE("Field!E",A146+8)),"") ->  | F153: =IFERROR(INDIRECT(CONCATENATE("Field!F",A146+8)),"") ->  | G153: =IFERROR(INDIRECT(CONCATENATE("Field!G",A146+8)),"") ->  | I153: =IFERROR(INDIRECT(CONCATENATE("Field!I",A146+8)),"") -> 7 | J153: =IFERROR(INDIRECT(CONCATENATE("Field!J",A146+8)),"") ->  | K153: =IFERROR(INDIRECT(CONCATENATE("Field!K",A146+8)),"") ->  | L153: =IFERROR(INDIRECT(CONCATENATE("Field!L",A146+8)),"") ->  | M153: =IFERROR(INDIRECT(CONCATENATE("Field!M",A146+8)),"") ->  | N153: =IFERROR(INDIRECT(CONCATENATE("Field!N",A146+8)),"") -> 
B154: =IFERROR(INDIRECT(CONCATENATE("Field!B",A146+9)),"") -> 8 | C154: =IFERROR(INDIRECT(CONCATENATE("Field!C",A146+9)),"") ->  | D154: =IFERROR(INDIRECT(CONCATENATE("Field!D",A146+9)),"") ->  | E154: =IFERROR(INDIRECT(CONCATENATE("Field!E",A146+9)),"") ->  | F154: =IFERROR(INDIRECT(CONCATENATE("Field!F",A146+9)),"") ->  | G154: =IFERROR(INDIRECT(CONCATENATE("Field!G",A146+9)),"") ->  | I154: =IFERROR(INDIRECT(CONCATENATE("Field!I",A146+9)),"") -> 8 | J154: =IFERROR(INDIRECT(CONCATENATE("Field!J",A146+9)),"") ->  | K154: =IFERROR(INDIRECT(CONCATENATE("Field!K",A146+9)),"") ->  | L154: =IFERROR(INDIRECT(CONCATENATE("Field!L",A146+9)),"") ->  | M154: =IFERROR(INDIRECT(CONCATENATE("Field!M",A146+9)),"") ->  | N154: =IFERROR(INDIRECT(CONCATENATE("Field!N",A146+9)),"") -> 
A156: UFD15 | B156: =IFERROR(INDIRECT(CONCATENATE("Field!B",A157)),"") -> Discus U20 Men A | I156: =IFERROR(INDIRECT(CONCATENATE("Field!I",A157)),"") -> Discus U20 Men B
A157: =IFERROR(MATCH(A156,Field!A:A,0),"") -> 156 | B157: =IFERROR(INDIRECT(CONCATENATE("Field!B",A157+1)),"") -> Posn | C157: =IFERROR(INDIRECT(CONCATENATE("Field!C",A157+1)),"") -> Bib | D157: =IFERROR(INDIRECT(CONCATENATE("Field!D",A157+1)),"") -> Athlete | E157: =IFERROR(INDIRECT(CONCATENATE("Field!E",A157+1)),"") -> Club | F157: =IFERROR(INDIRECT(CONCATENATE("Field!F",A157+1)),"") -> Perf | G157: =IFERROR(INDIRECT(CONCATENATE("Field!G",A157+1)),"") -> AAA | I157: =IFERROR(INDIRECT(CONCATENATE("Field!I",A157+1)),"") -> Posn | J157: =IFERROR(INDIRECT(CONCATENATE("Field!J",A157+1)),"") -> Bib | K157: =IFERROR(INDIRECT(CONCATENATE("Field!K",A157+1)),"") -> Athlete | L157: =IFERROR(INDIRECT(CONCATENATE("Field!L",A157+1)),"") -> Club | M157: =IFERROR(INDIRECT(CONCATENATE("Field!M",A157+1)),"") -> Perf | N157: =IFERROR(INDIRECT(CONCATENATE("Field!N",A157+1)),"") -> AAA
B158: =IFERROR(INDIRECT(CONCATENATE("Field!B",A157+2)),"") -> 1 | C158: =IFERROR(INDIRECT(CONCATENATE("Field!C",A157+2)),"") -> 4 | D158: =IFERROR(INDIRECT(CONCATENATE("Field!D",A157+2)),"") -> EVANS George | E158: =IFERROR(INDIRECT(CONCATENATE("Field!E",A157+2)),"") -> SB | F158: =IFERROR(INDIRECT(CONCATENATE("Field!F",A157+2)),"") -> 56.99 | G158: =IFERROR(INDIRECT(CONCATENATE("Field!G",A157+2)),"") -> 1 | I158: =IFERROR(INDIRECT(CONCATENATE("Field!I",A157+2)),"") -> 1 | J158: =IFERROR(INDIRECT(CONCATENATE("Field!J",A157+2)),"") -> 44 | K158: =IFERROR(INDIRECT(CONCATENATE("Field!K",A157+2)),"") -> THOMAS Nathan | L158: =IFERROR(INDIRECT(CONCATENATE("Field!L",A157+2)),"") -> SB | M158: =IFERROR(INDIRECT(CONCATENATE("Field!M",A157+2)),"") -> 42.84 | N158: =IFERROR(INDIRECT(CONCATENATE("Field!N",A157+2)),"") -> 2 | R158: =IFERROR(INDIRECT(CONCATENATE("Field!R",$A157+2)),"") -> 1
B159: =IFERROR(INDIRECT(CONCATENATE("Field!B",A157+3)),"") -> 2 | C159: =IFERROR(INDIRECT(CONCATENATE("Field!C",A157+3)),"") -> 5 | D159: =IFERROR(INDIRECT(CONCATENATE("Field!D",A157+3)),"") -> MASSINGHAM Oliver | E159: =IFERROR(INDIRECT(CONCATENATE("Field!E",A157+3)),"") -> Norfolk | F159: =IFERROR(INDIRECT(CONCATENATE("Field!F",A157+3)),"") -> 45.25 | G159: =IFERROR(INDIRECT(CONCATENATE("Field!G",A157+3)),"") -> 1 | I159: =IFERROR(INDIRECT(CONCATENATE("Field!I",A157+3)),"") -> 2 | J159: =IFERROR(INDIRECT(CONCATENATE("Field!J",A157+3)),"") -> 66 | K159: =IFERROR(INDIRECT(CONCATENATE("Field!K",A157+3)),"") -> CAMPBELL Bayley | L159: =IFERROR(INDIRECT(CONCATENATE("Field!L",A157+3)),"") -> WSEH | M159: =IFERROR(INDIRECT(CONCATENATE("Field!M",A157+3)),"") -> 34.34 | N159: =IFERROR(INDIRECT(CONCATENATE("Field!N",A157+3)),"") -> 
B160: =IFERROR(INDIRECT(CONCATENATE("Field!B",A157+4)),"") -> 3 | C160: =IFERROR(INDIRECT(CONCATENATE("Field!C",A157+4)),"") -> 1 | D160: =IFERROR(INDIRECT(CONCATENATE("Field!D",A157+4)),"") -> ALADESE Dele | E160: =IFERROR(INDIRECT(CONCATENATE("Field!E",A157+4)),"") -> B&B | F160: =IFERROR(INDIRECT(CONCATENATE("Field!F",A157+4)),"") -> 44.24 | G160: =IFERROR(INDIRECT(CONCATENATE("Field!G",A157+4)),"") -> 2 | I160: =IFERROR(INDIRECT(CONCATENATE("Field!I",A157+4)),"") -> 3 | J160: =IFERROR(INDIRECT(CONCATENATE("Field!J",A157+4)),"") -> 11 | K160: =IFERROR(INDIRECT(CONCATENATE("Field!K",A157+4)),"") -> ADAMS Edward | L160: =IFERROR(INDIRECT(CONCATENATE("Field!L",A157+4)),"") -> B&B | M160: =IFERROR(INDIRECT(CONCATENATE("Field!M",A157+4)),"") -> 22.7 | N160: =IFERROR(INDIRECT(CONCATENATE("Field!N",A157+4)),"") -> 
B161: =IFERROR(INDIRECT(CONCATENATE("Field!B",A157+5)),"") -> 4 | C161: =IFERROR(INDIRECT(CONCATENATE("Field!C",A157+5)),"") -> 3 | D161: =IFERROR(INDIRECT(CONCATENATE("Field!D",A157+5)),"") -> HEWITT Oliver | E161: =IFERROR(INDIRECT(CONCATENATE("Field!E",A157+5)),"") -> Read | F161: =IFERROR(INDIRECT(CONCATENATE("Field!F",A157+5)),"") -> 44.06 | G161: =IFERROR(INDIRECT(CONCATENATE("Field!G",A157+5)),"") -> 2 | I161: =IFERROR(INDIRECT(CONCATENATE("Field!I",A157+5)),"") -> 4 | J161: =IFERROR(INDIRECT(CONCATENATE("Field!J",A157+5)),"") ->  | K161: =IFERROR(INDIRECT(CONCATENATE("Field!K",A157+5)),"") ->  | L161: =IFERROR(INDIRECT(CONCATENATE("Field!L",A157+5)),"") ->  | M161: =IFERROR(INDIRECT(CONCATENATE("Field!M",A157+5)),"") ->  | N161: =IFERROR(INDIRECT(CONCATENATE("Field!N",A157+5)),"") -> 
B162: =IFERROR(INDIRECT(CONCATENATE("Field!B",A157+6)),"") -> 5 | C162: =IFERROR(INDIRECT(CONCATENATE("Field!C",A157+6)),"") -> 6 | D162: =IFERROR(INDIRECT(CONCATENATE("Field!D",A157+6)),"") -> NORRIS Jake | E162: =IFERROR(INDIRECT(CONCATENATE("Field!E",A157+6)),"") -> WSEH | F162: =IFERROR(INDIRECT(CONCATENATE("Field!F",A157+6)),"") -> 38.27 | G162: =IFERROR(INDIRECT(CONCATENATE("Field!G",A157+6)),"") -> 3 | I162: =IFERROR(INDIRECT(CONCATENATE("Field!I",A157+6)),"") -> 5 | J162: =IFERROR(INDIRECT(CONCATENATE("Field!J",A157+6)),"") ->  | K162: =IFERROR(INDIRECT(CONCATENATE("Field!K",A157+6)),"") ->  | L162: =IFERROR(INDIRECT(CONCATENATE("Field!L",A157+6)),"") ->  | M162: =IFERROR(INDIRECT(CONCATENATE("Field!M",A157+6)),"") ->  | N162: =IFERROR(INDIRECT(CONCATENATE("Field!N",A157+6)),"") -> 
B163: =IFERROR(INDIRECT(CONCATENATE("Field!B",A157+7)),"") -> 6 | C163: =IFERROR(INDIRECT(CONCATENATE("Field!C",A157+7)),"") ->  | D163: =IFERROR(INDIRECT(CONCATENATE("Field!D",A157+7)),"") ->  | E163: =IFERROR(INDIRECT(CONCATENATE("Field!E",A157+7)),"") ->  | F163: =IFERROR(INDIRECT(CONCATENATE("Field!F",A157+7)),"") ->  | G163: =IFERROR(INDIRECT(CONCATENATE("Field!G",A157+7)),"") ->  | I163: =IFERROR(INDIRECT(CONCATENATE("Field!I",A157+7)),"") -> 6 | J163: =IFERROR(INDIRECT(CONCATENATE("Field!J",A157+7)),"") ->  | K163: =IFERROR(INDIRECT(CONCATENATE("Field!K",A157+7)),"") ->  | L163: =IFERROR(INDIRECT(CONCATENATE("Field!L",A157+7)),"") ->  | M163: =IFERROR(INDIRECT(CONCATENATE("Field!M",A157+7)),"") ->  | N163: =IFERROR(INDIRECT(CONCATENATE("Field!N",A157+7)),"") -> 
B164: =IFERROR(INDIRECT(CONCATENATE("Field!B",A157+8)),"") -> 7 | C164: =IFERROR(INDIRECT(CONCATENATE("Field!C",A157+8)),"") ->  | D164: =IFERROR(INDIRECT(CONCATENATE("Field!D",A157+8)),"") ->  | E164: =IFERROR(INDIRECT(CONCATENATE("Field!E",A157+8)),"") ->  | F164: =IFERROR(INDIRECT(CONCATENATE("Field!F",A157+8)),"") ->  | G164: =IFERROR(INDIRECT(CONCATENATE("Field!G",A157+8)),"") ->  | I164: =IFERROR(INDIRECT(CONCATENATE("Field!I",A157+8)),"") -> 7 | J164: =IFERROR(INDIRECT(CONCATENATE("Field!J",A157+8)),"") ->  | K164: =IFERROR(INDIRECT(CONCATENATE("Field!K",A157+8)),"") ->  | L164: =IFERROR(INDIRECT(CONCATENATE("Field!L",A157+8)),"") ->  | M164: =IFERROR(INDIRECT(CONCATENATE("Field!M",A157+8)),"") ->  | N164: =IFERROR(INDIRECT(CONCATENATE("Field!N",A157+8)),"") -> 
B165: =IFERROR(INDIRECT(CONCATENATE("Field!B",A157+9)),"") -> 8 | C165: =IFERROR(INDIRECT(CONCATENATE("Field!C",A157+9)),"") ->  | D165: =IFERROR(INDIRECT(CONCATENATE("Field!D",A157+9)),"") ->  | E165: =IFERROR(INDIRECT(CONCATENATE("Field!E",A157+9)),"") ->  | F165: =IFERROR(INDIRECT(CONCATENATE("Field!F",A157+9)),"") ->  | G165: =IFERROR(INDIRECT(CONCATENATE("Field!G",A157+9)),"") ->  | I165: =IFERROR(INDIRECT(CONCATENATE("Field!I",A157+9)),"") -> 8 | J165: =IFERROR(INDIRECT(CONCATENATE("Field!J",A157+9)),"") ->  | K165: =IFERROR(INDIRECT(CONCATENATE("Field!K",A157+9)),"") ->  | L165: =IFERROR(INDIRECT(CONCATENATE("Field!L",A157+9)),"") ->  | M165: =IFERROR(INDIRECT(CONCATENATE("Field!M",A157+9)),"") ->  | N165: =IFERROR(INDIRECT(CONCATENATE("Field!N",A157+9)),"") -> 
A167: UFD01 | B167: =IFERROR(INDIRECT(CONCATENATE("Field!B",A168)),"") -> Hammer U20 Men A | I167: =IFERROR(INDIRECT(CONCATENATE("Field!I",A168)),"") -> Hammer U20 Men B
A168: =IFERROR(MATCH(A167,Field!A:A,0),"") -> 2 | B168: =IFERROR(INDIRECT(CONCATENATE("Field!B",A168+1)),"") -> Posn | C168: =IFERROR(INDIRECT(CONCATENATE("Field!C",A168+1)),"") -> Bib | D168: =IFERROR(INDIRECT(CONCATENATE("Field!D",A168+1)),"") -> Athlete | E168: =IFERROR(INDIRECT(CONCATENATE("Field!E",A168+1)),"") -> Club | F168: =IFERROR(INDIRECT(CONCATENATE("Field!F",A168+1)),"") -> Perf | G168: =IFERROR(INDIRECT(CONCATENATE("Field!G",A168+1)),"") -> AAA | I168: =IFERROR(INDIRECT(CONCATENATE("Field!I",A168+1)),"") -> Posn | J168: =IFERROR(INDIRECT(CONCATENATE("Field!J",A168+1)),"") -> Bib | K168: =IFERROR(INDIRECT(CONCATENATE("Field!K",A168+1)),"") -> Athlete | L168: =IFERROR(INDIRECT(CONCATENATE("Field!L",A168+1)),"") -> Club | M168: =IFERROR(INDIRECT(CONCATENATE("Field!M",A168+1)),"") -> Perf | N168: =IFERROR(INDIRECT(CONCATENATE("Field!N",A168+1)),"") -> AAA
B169: =IFERROR(INDIRECT(CONCATENATE("Field!B",A168+2)),"") -> 1 | C169: =IFERROR(INDIRECT(CONCATENATE("Field!C",A168+2)),"") -> 6 | D169: =IFERROR(INDIRECT(CONCATENATE("Field!D",A168+2)),"") -> NORRIS Jake | E169: =IFERROR(INDIRECT(CONCATENATE("Field!E",A168+2)),"") -> WSEH | F169: =IFERROR(INDIRECT(CONCATENATE("Field!F",A168+2)),"") -> 76.97 | G169: =IFERROR(INDIRECT(CONCATENATE("Field!G",A168+2)),"") -> 1 | I169: =IFERROR(INDIRECT(CONCATENATE("Field!I",A168+2)),"") -> 1 | J169: =IFERROR(INDIRECT(CONCATENATE("Field!J",A168+2)),"") -> 66 | K169: =IFERROR(INDIRECT(CONCATENATE("Field!K",A168+2)),"") -> CAMPBELL Bayley | L169: =IFERROR(INDIRECT(CONCATENATE("Field!L",A168+2)),"") -> WSEH | M169: =IFERROR(INDIRECT(CONCATENATE("Field!M",A168+2)),"") -> 68.72 | N169: =IFERROR(INDIRECT(CONCATENATE("Field!N",A168+2)),"") -> 1 | R169: =IFERROR(INDIRECT(CONCATENATE("Field!R",$A168+2)),"") -> 1
B170: =IFERROR(INDIRECT(CONCATENATE("Field!B",A168+3)),"") -> 2 | C170: =IFERROR(INDIRECT(CONCATENATE("Field!C",A168+3)),"") -> 44 | D170: =IFERROR(INDIRECT(CONCATENATE("Field!D",A168+3)),"") -> PRAIM-SINGH Billy | E170: =IFERROR(INDIRECT(CONCATENATE("Field!E",A168+3)),"") -> SB | F170: =IFERROR(INDIRECT(CONCATENATE("Field!F",A168+3)),"") -> 62.81 | G170: =IFERROR(INDIRECT(CONCATENATE("Field!G",A168+3)),"") -> 1 | I170: =IFERROR(INDIRECT(CONCATENATE("Field!I",A168+3)),"") -> 2 | J170: =IFERROR(INDIRECT(CONCATENATE("Field!J",A168+3)),"") -> 4 | K170: =IFERROR(INDIRECT(CONCATENATE("Field!K",A168+3)),"") -> EVANS George | L170: =IFERROR(INDIRECT(CONCATENATE("Field!L",A168+3)),"") -> SB | M170: =IFERROR(INDIRECT(CONCATENATE("Field!M",A168+3)),"") -> 49.84 | N170: =IFERROR(INDIRECT(CONCATENATE("Field!N",A168+3)),"") -> 
B171: =IFERROR(INDIRECT(CONCATENATE("Field!B",A168+4)),"") -> 3 | C171: =IFERROR(INDIRECT(CONCATENATE("Field!C",A168+4)),"") -> 3 | D171: =IFERROR(INDIRECT(CONCATENATE("Field!D",A168+4)),"") -> HEWITT Oliver | E171: =IFERROR(INDIRECT(CONCATENATE("Field!E",A168+4)),"") -> Read | F171: =IFERROR(INDIRECT(CONCATENATE("Field!F",A168+4)),"") -> 58.1 | G171: =IFERROR(INDIRECT(CONCATENATE("Field!G",A168+4)),"") -> 2 | I171: =IFERROR(INDIRECT(CONCATENATE("Field!I",A168+4)),"") -> 3 | J171: =IFERROR(INDIRECT(CONCATENATE("Field!J",A168+4)),"") -> 33 | K171: =IFERROR(INDIRECT(CONCATENATE("Field!K",A168+4)),"") -> WEBB Daniel | L171: =IFERROR(INDIRECT(CONCATENATE("Field!L",A168+4)),"") -> Read | M171: =IFERROR(INDIRECT(CONCATENATE("Field!M",A168+4)),"") -> 38.69 | N171: =IFERROR(INDIRECT(CONCATENATE("Field!N",A168+4)),"") -> 
B172: =IFERROR(INDIRECT(CONCATENATE("Field!B",A168+5)),"") -> 4 | C172: =IFERROR(INDIRECT(CONCATENATE("Field!C",A168+5)),"") -> 1 | D172: =IFERROR(INDIRECT(CONCATENATE("Field!D",A168+5)),"") -> REEVES-FELLOWS Dylan | E172: =IFERROR(INDIRECT(CONCATENATE("Field!E",A168+5)),"") -> B&B | F172: =IFERROR(INDIRECT(CONCATENATE("Field!F",A168+5)),"") -> 30.17 | G172: =IFERROR(INDIRECT(CONCATENATE("Field!G",A168+5)),"") ->  | I172: =IFERROR(INDIRECT(CONCATENATE("Field!I",A168+5)),"") -> 4 | J172: =IFERROR(INDIRECT(CONCATENATE("Field!J",A168+5)),"") ->  | K172: =IFERROR(INDIRECT(CONCATENATE("Field!K",A168+5)),"") ->  | L172: =IFERROR(INDIRECT(CONCATENATE("Field!L",A168+5)),"") ->  | M172: =IFERROR(INDIRECT(CONCATENATE("Field!M",A168+5)),"") ->  | N172: =IFERROR(INDIRECT(CONCATENATE("Field!N",A168+5)),"") -> 
B173: =IFERROR(INDIRECT(CONCATENATE("Field!B",A168+6)),"") -> 5 | C173: =IFERROR(INDIRECT(CONCATENATE("Field!C",A168+6)),"") ->  | D173: =IFERROR(INDIRECT(CONCATENATE("Field!D",A168+6)),"") ->  | E173: =IFERROR(INDIRECT(CONCATENATE("Field!E",A168+6)),"") ->  | F173: =IFERROR(INDIRECT(CONCATENATE("Field!F",A168+6)),"") ->  | G173: =IFERROR(INDIRECT(CONCATENATE("Field!G",A168+6)),"") ->  | I173: =IFERROR(INDIRECT(CONCATENATE("Field!I",A168+6)),"") -> 5 | J173: =IFERROR(INDIRECT(CONCATENATE("Field!J",A168+6)),"") ->  | K173: =IFERROR(INDIRECT(CONCATENATE("Field!K",A168+6)),"") ->  | L173: =IFERROR(INDIRECT(CONCATENATE("Field!L",A168+6)),"") ->  | M173: =IFERROR(INDIRECT(CONCATENATE("Field!M",A168+6)),"") ->  | N173: =IFERROR(INDIRECT(CONCATENATE("Field!N",A168+6)),"") -> 
B174: =IFERROR(INDIRECT(CONCATENATE("Field!B",A168+7)),"") -> 6 | C174: =IFERROR(INDIRECT(CONCATENATE("Field!C",A168+7)),"") ->  | D174: =IFERROR(INDIRECT(CONCATENATE("Field!D",A168+7)),"") ->  | E174: =IFERROR(INDIRECT(CONCATENATE("Field!E",A168+7)),"") ->  | F174: =IFERROR(INDIRECT(CONCATENATE("Field!F",A168+7)),"") ->  | G174: =IFERROR(INDIRECT(CONCATENATE("Field!G",A168+7)),"") ->  | I174: =IFERROR(INDIRECT(CONCATENATE("Field!I",A168+7)),"") -> 6 | J174: =IFERROR(INDIRECT(CONCATENATE("Field!J",A168+7)),"") ->  | K174: =IFERROR(INDIRECT(CONCATENATE("Field!K",A168+7)),"") ->  | L174: =IFERROR(INDIRECT(CONCATENATE("Field!L",A168+7)),"") ->  | M174: =IFERROR(INDIRECT(CONCATENATE("Field!M",A168+7)),"") ->  | N174: =IFERROR(INDIRECT(CONCATENATE("Field!N",A168+7)),"") -> 
B175: =IFERROR(INDIRECT(CONCATENATE("Field!B",A168+8)),"") -> 7 | C175: =IFERROR(INDIRECT(CONCATENATE("Field!C",A168+8)),"") ->  | D175: =IFERROR(INDIRECT(CONCATENATE("Field!D",A168+8)),"") ->  | E175: =IFERROR(INDIRECT(CONCATENATE("Field!E",A168+8)),"") ->  | F175: =IFERROR(INDIRECT(CONCATENATE("Field!F",A168+8)),"") ->  | G175: =IFERROR(INDIRECT(CONCATENATE("Field!G",A168+8)),"") ->  | I175: =IFERROR(INDIRECT(CONCATENATE("Field!I",A168+8)),"") -> 7 | J175: =IFERROR(INDIRECT(CONCATENATE("Field!J",A168+8)),"") ->  | K175: =IFERROR(INDIRECT(CONCATENATE("Field!K",A168+8)),"") ->  | L175: =IFERROR(INDIRECT(CONCATENATE("Field!L",A168+8)),"") ->  | M175: =IFERROR(INDIRECT(CONCATENATE("Field!M",A168+8)),"") ->  | N175: =IFERROR(INDIRECT(CONCATENATE("Field!N",A168+8)),"") -> 
B176: =IFERROR(INDIRECT(CONCATENATE("Field!B",A168+9)),"") -> 8 | C176: =IFERROR(INDIRECT(CONCATENATE("Field!C",A168+9)),"") ->  | D176: =IFERROR(INDIRECT(CONCATENATE("Field!D",A168+9)),"") ->  | E176: =IFERROR(INDIRECT(CONCATENATE("Field!E",A168+9)),"") ->  | F176: =IFERROR(INDIRECT(CONCATENATE("Field!F",A168+9)),"") ->  | G176: =IFERROR(INDIRECT(CONCATENATE("Field!G",A168+9)),"") ->  | I176: =IFERROR(INDIRECT(CONCATENATE("Field!I",A168+9)),"") -> 8 | J176: =IFERROR(INDIRECT(CONCATENATE("Field!J",A168+9)),"") ->  | K176: =IFERROR(INDIRECT(CONCATENATE("Field!K",A168+9)),"") ->  | L176: =IFERROR(INDIRECT(CONCATENATE("Field!L",A168+9)),"") ->  | M176: =IFERROR(INDIRECT(CONCATENATE("Field!M",A168+9)),"") ->  | N176: =IFERROR(INDIRECT(CONCATENATE("Field!N",A168+9)),"") -> 
A178: UFD05 | B178: =IFERROR(INDIRECT(CONCATENATE("Field!B",A179)),"") -> Javelin U20 Men A | I178: =IFERROR(INDIRECT(CONCATENATE("Field!I",A179)),"") -> Javelin U20 Men B
A179: =IFERROR(MATCH(A178,Field!A:A,0),"") -> 46 | B179: =IFERROR(INDIRECT(CONCATENATE("Field!B",A179+1)),"") -> Posn | C179: =IFERROR(INDIRECT(CONCATENATE("Field!C",A179+1)),"") -> Bib | D179: =IFERROR(INDIRECT(CONCATENATE("Field!D",A179+1)),"") -> Athlete | E179: =IFERROR(INDIRECT(CONCATENATE("Field!E",A179+1)),"") -> Club | F179: =IFERROR(INDIRECT(CONCATENATE("Field!F",A179+1)),"") -> Perf | G179: =IFERROR(INDIRECT(CONCATENATE("Field!G",A179+1)),"") -> AAA | I179: =IFERROR(INDIRECT(CONCATENATE("Field!I",A179+1)),"") -> Posn | J179: =IFERROR(INDIRECT(CONCATENATE("Field!J",A179+1)),"") -> Bib | K179: =IFERROR(INDIRECT(CONCATENATE("Field!K",A179+1)),"") -> Athlete | L179: =IFERROR(INDIRECT(CONCATENATE("Field!L",A179+1)),"") -> Club | M179: =IFERROR(INDIRECT(CONCATENATE("Field!M",A179+1)),"") -> Perf | N179: =IFERROR(INDIRECT(CONCATENATE("Field!N",A179+1)),"") -> AAA
B180: =IFERROR(INDIRECT(CONCATENATE("Field!B",A179+2)),"") -> 1 | C180: =IFERROR(INDIRECT(CONCATENATE("Field!C",A179+2)),"") -> 6 | D180: =IFERROR(INDIRECT(CONCATENATE("Field!D",A179+2)),"") -> NORRIS Jake | E180: =IFERROR(INDIRECT(CONCATENATE("Field!E",A179+2)),"") -> WSEH | F180: =IFERROR(INDIRECT(CONCATENATE("Field!F",A179+2)),"") -> 48.69 | G180: =IFERROR(INDIRECT(CONCATENATE("Field!G",A179+2)),"") -> 3 | I180: =IFERROR(INDIRECT(CONCATENATE("Field!I",A179+2)),"") -> 1 | J180: =IFERROR(INDIRECT(CONCATENATE("Field!J",A179+2)),"") -> 66 | K180: =IFERROR(INDIRECT(CONCATENATE("Field!K",A179+2)),"") -> PRICE Matt | L180: =IFERROR(INDIRECT(CONCATENATE("Field!L",A179+2)),"") -> WSEH | M180: =IFERROR(INDIRECT(CONCATENATE("Field!M",A179+2)),"") -> 45.45 | N180: =IFERROR(INDIRECT(CONCATENATE("Field!N",A179+2)),"") ->  | R180: =IFERROR(INDIRECT(CONCATENATE("Field!R",$A179+2)),"") -> 1
B181: =IFERROR(INDIRECT(CONCATENATE("Field!B",A179+3)),"") -> 2 | C181: =IFERROR(INDIRECT(CONCATENATE("Field!C",A179+3)),"") -> 44 | D181: =IFERROR(INDIRECT(CONCATENATE("Field!D",A179+3)),"") -> PRAIM-SINGH Billy | E181: =IFERROR(INDIRECT(CONCATENATE("Field!E",A179+3)),"") -> SB | F181: =IFERROR(INDIRECT(CONCATENATE("Field!F",A179+3)),"") -> 47.24 | G181: =IFERROR(INDIRECT(CONCATENATE("Field!G",A179+3)),"") ->  | I181: =IFERROR(INDIRECT(CONCATENATE("Field!I",A179+3)),"") -> 2 | J181: =IFERROR(INDIRECT(CONCATENATE("Field!J",A179+3)),"") -> 4 | K181: =IFERROR(INDIRECT(CONCATENATE("Field!K",A179+3)),"") -> EVANS George | L181: =IFERROR(INDIRECT(CONCATENATE("Field!L",A179+3)),"") -> SB | M181: =IFERROR(INDIRECT(CONCATENATE("Field!M",A179+3)),"") -> 36.25 | N181: =IFERROR(INDIRECT(CONCATENATE("Field!N",A179+3)),"") -> 
B182: =IFERROR(INDIRECT(CONCATENATE("Field!B",A179+4)),"") -> 3 | C182: =IFERROR(INDIRECT(CONCATENATE("Field!C",A179+4)),"") -> 11 | D182: =IFERROR(INDIRECT(CONCATENATE("Field!D",A179+4)),"") -> SOFOLARIN Femi | E182: =IFERROR(INDIRECT(CONCATENATE("Field!E",A179+4)),"") -> B&B | F182: =IFERROR(INDIRECT(CONCATENATE("Field!F",A179+4)),"") -> 41.88 | G182: =IFERROR(INDIRECT(CONCATENATE("Field!G",A179+4)),"") ->  | I182: =IFERROR(INDIRECT(CONCATENATE("Field!I",A179+4)),"") -> 3 | J182: =IFERROR(INDIRECT(CONCATENATE("Field!J",A179+4)),"") -> 1 | K182: =IFERROR(INDIRECT(CONCATENATE("Field!K",A179+4)),"") -> ADAMS Edward | L182: =IFERROR(INDIRECT(CONCATENATE("Field!L",A179+4)),"") -> B&B | M182: =IFERROR(INDIRECT(CONCATENATE("Field!M",A179+4)),"") -> 32.17 | N182: =IFERROR(INDIRECT(CONCATENATE("Field!N",A179+4)),"") -> 
B183: =IFERROR(INDIRECT(CONCATENATE("Field!B",A179+5)),"") -> 4 | C183: =IFERROR(INDIRECT(CONCATENATE("Field!C",A179+5)),"") -> 3 | D183: =IFERROR(INDIRECT(CONCATENATE("Field!D",A179+5)),"") -> HEWITT Oliver | E183: =IFERROR(INDIRECT(CONCATENATE("Field!E",A179+5)),"") -> Read | F183: =IFERROR(INDIRECT(CONCATENATE("Field!F",A179+5)),"") -> 36.58 | G183: =IFERROR(INDIRECT(CONCATENATE("Field!G",A179+5)),"") ->  | I183: =IFERROR(INDIRECT(CONCATENATE("Field!I",A179+5)),"") -> 4 | J183: =IFERROR(INDIRECT(CONCATENATE("Field!J",A179+5)),"") ->  | K183: =IFERROR(INDIRECT(CONCATENATE("Field!K",A179+5)),"") ->  | L183: =IFERROR(INDIRECT(CONCATENATE("Field!L",A179+5)),"") ->  | M183: =IFERROR(INDIRECT(CONCATENATE("Field!M",A179+5)),"") ->  | N183: =IFERROR(INDIRECT(CONCATENATE("Field!N",A179+5)),"") -> 
B184: =IFERROR(INDIRECT(CONCATENATE("Field!B",A179+6)),"") -> 5 | C184: =IFERROR(INDIRECT(CONCATENATE("Field!C",A179+6)),"") -> 5 | D184: =IFERROR(INDIRECT(CONCATENATE("Field!D",A179+6)),"") -> MASSINGHAM Oliver | E184: =IFERROR(INDIRECT(CONCATENATE("Field!E",A179+6)),"") -> Norfolk | F184: =IFERROR(INDIRECT(CONCATENATE("Field!F",A179+6)),"") -> 20.02 | G184: =IFERROR(INDIRECT(CONCATENATE("Field!G",A179+6)),"") ->  | I184: =IFERROR(INDIRECT(CONCATENATE("Field!I",A179+6)),"") -> 5 | J184: =IFERROR(INDIRECT(CONCATENATE("Field!J",A179+6)),"") ->  | K184: =IFERROR(INDIRECT(CONCATENATE("Field!K",A179+6)),"") ->  | L184: =IFERROR(INDIRECT(CONCATENATE("Field!L",A179+6)),"") ->  | M184: =IFERROR(INDIRECT(CONCATENATE("Field!M",A179+6)),"") ->  | N184: =IFERROR(INDIRECT(CONCATENATE("Field!N",A179+6)),"") -> 
B185: =IFERROR(INDIRECT(CONCATENATE("Field!B",A179+7)),"") -> 6 | C185: =IFERROR(INDIRECT(CONCATENATE("Field!C",A179+7)),"") -> 2 | D185: =IFERROR(INDIRECT(CONCATENATE("Field!D",A179+7)),"") -> MORGAN-SMITH Charlie | E185: =IFERROR(INDIRECT(CONCATENATE("Field!E",A179+7)),"") -> Craw | F185: =IFERROR(INDIRECT(CONCATENATE("Field!F",A179+7)),"") -> 14.77 | G185: =IFERROR(INDIRECT(CONCATENATE("Field!G",A179+7)),"") ->  | I185: =IFERROR(INDIRECT(CONCATENATE("Field!I",A179+7)),"") -> 6 | J185: =IFERROR(INDIRECT(CONCATENATE("Field!J",A179+7)),"") ->  | K185: =IFERROR(INDIRECT(CONCATENATE("Field!K",A179+7)),"") ->  | L185: =IFERROR(INDIRECT(CONCATENATE("Field!L",A179+7)),"") ->  | M185: =IFERROR(INDIRECT(CONCATENATE("Field!M",A179+7)),"") ->  | N185: =IFERROR(INDIRECT(CONCATENATE("Field!N",A179+7)),"") -> 
B186: =IFERROR(INDIRECT(CONCATENATE("Field!B",A179+8)),"") -> 7 | C186: =IFERROR(INDIRECT(CONCATENATE("Field!C",A179+8)),"") ->  | D186: =IFERROR(INDIRECT(CONCATENATE("Field!D",A179+8)),"") ->  | E186: =IFERROR(INDIRECT(CONCATENATE("Field!E",A179+8)),"") ->  | F186: =IFERROR(INDIRECT(CONCATENATE("Field!F",A179+8)),"") ->  | G186: =IFERROR(INDIRECT(CONCATENATE("Field!G",A179+8)),"") ->  | I186: =IFERROR(INDIRECT(CONCATENATE("Field!I",A179+8)),"") -> 7 | J186: =IFERROR(INDIRECT(CONCATENATE("Field!J",A179+8)),"") ->  | K186: =IFERROR(INDIRECT(CONCATENATE("Field!K",A179+8)),"") ->  | L186: =IFERROR(INDIRECT(CONCATENATE("Field!L",A179+8)),"") ->  | M186: =IFERROR(INDIRECT(CONCATENATE("Field!M",A179+8)),"") ->  | N186: =IFERROR(INDIRECT(CONCATENATE("Field!N",A179+8)),"") -> 
B187: =IFERROR(INDIRECT(CONCATENATE("Field!B",A179+9)),"") -> 8 | C187: =IFERROR(INDIRECT(CONCATENATE("Field!C",A179+9)),"") ->  | D187: =IFERROR(INDIRECT(CONCATENATE("Field!D",A179+9)),"") ->  | E187: =IFERROR(INDIRECT(CONCATENATE("Field!E",A179+9)),"") ->  | F187: =IFERROR(INDIRECT(CONCATENATE("Field!F",A179+9)),"") ->  | G187: =IFERROR(INDIRECT(CONCATENATE("Field!G",A179+9)),"") ->  | I187: =IFERROR(INDIRECT(CONCATENATE("Field!I",A179+9)),"") -> 8 | J187: =IFERROR(INDIRECT(CONCATENATE("Field!J",A179+9)),"") ->  | K187: =IFERROR(INDIRECT(CONCATENATE("Field!K",A179+9)),"") ->  | L187: =IFERROR(INDIRECT(CONCATENATE("Field!L",A179+9)),"") ->  | M187: =IFERROR(INDIRECT(CONCATENATE("Field!M",A179+9)),"") ->  | N187: =IFERROR(INDIRECT(CONCATENATE("Field!N",A179+9)),"") -> 
A189: UTR4 | B189: =IFERROR(INDIRECT(CONCATENATE("Relays!B",A190)),"") -> 4 x 100m U20 Men A | M189: =IFERROR(INDIRECT(CONCATENATE("Relays!i",A190)),"") -> 
A190: =IFERROR(MATCH(A189,Relays!A:A,0),"") -> 35 | B190: =IFERROR(INDIRECT(CONCATENATE("Relays!B",A190+1)),"") -> Posn | C190: =IFERROR(INDIRECT(CONCATENATE("Relays!C",A190+1)),"") -> No. | D190: =IFERROR(INDIRECT(CONCATENATE("Relays!D",A190+1)),"") -> Club | E190: Runners | M190: =IFERROR(INDIRECT(CONCATENATE("Relays!i",A190+1)),"") -> Perf
B191: =IFERROR(INDIRECT(CONCATENATE("Relays!B",A190+2)),"") -> 1 | C191: =IFERROR(INDIRECT(CONCATENATE("Relays!C",A190+2)),"") -> 1 | D191: =IFERROR(INDIRECT(CONCATENATE("Relays!D",A190+2)),"") -> B&B | E191: =IFERROR(INDIRECT(CONCATENATE("Relays!e",A190+2))&" "&INDIRECT(CONCATENATE("Relays!f",A190+2))&" "&INDIRECT(CONCATENATE("Relays!g",A190+2))&" "&INDIRECT(CONCATENATE("Relays!h",A190+2)),"") -> ADESINA Theo KNIGHT Matthew SOFOLARIN Femi LYTTLE Camron | M191: =IFERROR(INDIRECT(CONCATENATE("Relays!i",A190+2)),"") -> 42.52 | R191: =IFERROR(INDIRECT(CONCATENATE("Relays!r",A190+2)),"") -> 0
B192: =IFERROR(INDIRECT(CONCATENATE("Relays!B",A190+3)),"") -> 2 | C192: =IFERROR(INDIRECT(CONCATENATE("Relays!C",A190+3)),"") -> 4 | D192: =IFERROR(INDIRECT(CONCATENATE("Relays!D",A190+3)),"") -> SB | E192: =IFERROR(INDIRECT(CONCATENATE("Relays!e",A190+3))&" "&INDIRECT(CONCATENATE("Relays!f",A190+3))&" "&INDIRECT(CONCATENATE("Relays!g",A190+3))&" "&INDIRECT(CONCATENATE("Relays!h",A190+3)),"") -> SMITH Luke LYON Phoenix BERKELEY Jacob OKOH Chenna | M192: =IFERROR(INDIRECT(CONCATENATE("Relays!i",A190+3)),"") -> 43.14
B193: =IFERROR(INDIRECT(CONCATENATE("Relays!B",A190+4)),"") -> 3 | C193: =IFERROR(INDIRECT(CONCATENATE("Relays!C",A190+4)),"") -> 6 | D193: =IFERROR(INDIRECT(CONCATENATE("Relays!D",A190+4)),"") -> WSEH | E193: =IFERROR(INDIRECT(CONCATENATE("Relays!e",A190+4))&" "&INDIRECT(CONCATENATE("Relays!f",A190+4))&" "&INDIRECT(CONCATENATE("Relays!g",A190+4))&" "&INDIRECT(CONCATENATE("Relays!h",A190+4)),"") -> MABUMGU Victory OJORA Tade ZELLER Joshua AHANON Frank | M193: =IFERROR(INDIRECT(CONCATENATE("Relays!i",A190+4)),"") -> 43.86
B194: =IFERROR(INDIRECT(CONCATENATE("Relays!B",A190+5)),"") -> 4 | C194: =IFERROR(INDIRECT(CONCATENATE("Relays!C",A190+5)),"") -> 5 | D194: =IFERROR(INDIRECT(CONCATENATE("Relays!D",A190+5)),"") -> Norfolk | E194: =IFERROR(INDIRECT(CONCATENATE("Relays!e",A190+5))&" "&INDIRECT(CONCATENATE("Relays!f",A190+5))&" "&INDIRECT(CONCATENATE("Relays!g",A190+5))&" "&INDIRECT(CONCATENATE("Relays!h",A190+5)),"") -> COOPER Ashley VINCENT Luke GREENHALGH James MATSUKA-WILLIAMS Ben | M194: =IFERROR(INDIRECT(CONCATENATE("Relays!i",A190+5)),"") -> 45.31
B195: =IFERROR(INDIRECT(CONCATENATE("Relays!B",A190+6)),"") -> 5 | C195: =IFERROR(INDIRECT(CONCATENATE("Relays!C",A190+6)),"") -> 3 | D195: =IFERROR(INDIRECT(CONCATENATE("Relays!D",A190+6)),"") -> Read | E195: =IFERROR(INDIRECT(CONCATENATE("Relays!e",A190+6))&" "&INDIRECT(CONCATENATE("Relays!f",A190+6))&" "&INDIRECT(CONCATENATE("Relays!g",A190+6))&" "&INDIRECT(CONCATENATE("Relays!h",A190+6)),"") -> JORDAN Ramone MILLAR Jack NAWAH David NORTH Harry X | M195: =IFERROR(INDIRECT(CONCATENATE("Relays!i",A190+6)),"") -> 48.12
B196: =IFERROR(INDIRECT(CONCATENATE("Relays!B",A190+7)),"") -> 6 | C196: =IFERROR(INDIRECT(CONCATENATE("Relays!C",A190+7)),"") -> 0 | D196: =IFERROR(INDIRECT(CONCATENATE("Relays!D",A190+7)),"") ->  | E196: =IFERROR(INDIRECT(CONCATENATE("Relays!e",A190+7))&" "&INDIRECT(CONCATENATE("Relays!f",A190+7))&" "&INDIRECT(CONCATENATE("Relays!g",A190+7))&" "&INDIRECT(CONCATENATE("Relays!h",A190+7)),"") ->  | M196: =IFERROR(INDIRECT(CONCATENATE("Relays!i",A190+7)),"") -> 0
B197: =IFERROR(INDIRECT(CONCATENATE("Relays!B",A190+8)),"") -> 7 | C197: =IFERROR(INDIRECT(CONCATENATE("Relays!C",A190+8)),"") -> 0 | D197: =IFERROR(INDIRECT(CONCATENATE("Relays!D",A190+8)),"") ->  | E197: =IFERROR(INDIRECT(CONCATENATE("Relays!e",A190+8))&" "&INDIRECT(CONCATENATE("Relays!f",A190+8))&" "&INDIRECT(CONCATENATE("Relays!g",A190+8))&" "&INDIRECT(CONCATENATE("Relays!h",A190+8)),"") ->  | M197: =IFERROR(INDIRECT(CONCATENATE("Relays!i",A190+8)),"") -> 0
B198: =IFERROR(INDIRECT(CONCATENATE("Relays!B",A190+9)),"") -> 8 | C198: =IFERROR(INDIRECT(CONCATENATE("Relays!C",A190+9)),"") -> 0 | D198: =IFERROR(INDIRECT(CONCATENATE("Relays!D",A190+9)),"") ->  | E198: =IFERROR(INDIRECT(CONCATENATE("Relays!e",A190+9))&" "&INDIRECT(CONCATENATE("Relays!f",A190+9))&" "&INDIRECT(CONCATENATE("Relays!g",A190+9))&" "&INDIRECT(CONCATENATE("Relays!h",A190+9)),"") ->  | M198: =IFERROR(INDIRECT(CONCATENATE("Relays!i",A190+9)),"") -> 0
A200: UTDR4 | B200: =IFERROR(INDIRECT(CONCATENATE("Relays!B",A201)),"") -> 4 x 400m U20 Men A | M200: =IFERROR(INDIRECT(CONCATENATE("Relays!i",A201)),"") -> 
A201: =IFERROR(MATCH(A200,Relays!A:A,0),"") -> 79 | B201: =IFERROR(INDIRECT(CONCATENATE("Relays!B",A201+1)),"") -> Posn | C201: =IFERROR(INDIRECT(CONCATENATE("Relays!C",A201+1)),"") -> No. | D201: =IFERROR(INDIRECT(CONCATENATE("Relays!D",A201+1)),"") -> Club | E201: Runners | M201: =IFERROR(INDIRECT(CONCATENATE("Relays!i",A201+1)),"") -> Perf
B202: =IFERROR(INDIRECT(CONCATENATE("Relays!B",A201+2)),"") -> 1 | C202: =IFERROR(INDIRECT(CONCATENATE("Relays!C",A201+2)),"") -> 1 | D202: =IFERROR(INDIRECT(CONCATENATE("Relays!D",A201+2)),"") -> B&B | E202: =IFERROR(INDIRECT(CONCATENATE("Relays!e",A201+2))&" "&INDIRECT(CONCATENATE("Relays!f",A201+2))&" "&INDIRECT(CONCATENATE("Relays!g",A201+2))&" "&INDIRECT(CONCATENATE("Relays!h",A201+2)),"") -> POPE William HARRINGTON Angus X GBAGBO Joshua X LUTAKOME Ricky | M202: =IFERROR(INDIRECT(CONCATENATE("RELAYS!K",A201+2)),"") -> 00:03:30.330 | R202: =IFERROR(INDIRECT(CONCATENATE("Relays!r",A201+2)),"") -> 0
B203: =IFERROR(INDIRECT(CONCATENATE("Relays!B",A201+3)),"") -> 2 | C203: =IFERROR(INDIRECT(CONCATENATE("Relays!C",A201+3)),"") -> 6 | D203: =IFERROR(INDIRECT(CONCATENATE("Relays!D",A201+3)),"") -> WSEH | E203: =IFERROR(INDIRECT(CONCATENATE("Relays!e",A201+3))&" "&INDIRECT(CONCATENATE("Relays!f",A201+3))&" "&INDIRECT(CONCATENATE("Relays!g",A201+3))&" "&INDIRECT(CONCATENATE("Relays!h",A201+3)),"") -> TCHANGWA Marvin PEARSON Joshua SPELLMAN Thomas AHANON Frank | M203: =IFERROR(INDIRECT(CONCATENATE("RELAYS!K",A201+3)),"") -> 00:03:33.640
B204: =IFERROR(INDIRECT(CONCATENATE("Relays!B",A201+4)),"") -> 3 | C204: =IFERROR(INDIRECT(CONCATENATE("Relays!C",A201+4)),"") -> 4 | D204: =IFERROR(INDIRECT(CONCATENATE("Relays!D",A201+4)),"") -> SB | E204: =IFERROR(INDIRECT(CONCATENATE("Relays!e",A201+4))&" "&INDIRECT(CONCATENATE("Relays!f",A201+4))&" "&INDIRECT(CONCATENATE("Relays!g",A201+4))&" "&INDIRECT(CONCATENATE("Relays!h",A201+4)),"") -> KADIR Hamza SMITH Luke PAGAN Matthew PAGAN Matthew | M204: =IFERROR(INDIRECT(CONCATENATE("RELAYS!K",A201+4)),"") -> 00:03:34.470
B205: =IFERROR(INDIRECT(CONCATENATE("Relays!B",A201+5)),"") -> 4 | C205: =IFERROR(INDIRECT(CONCATENATE("Relays!C",A201+5)),"") -> 2 | D205: =IFERROR(INDIRECT(CONCATENATE("Relays!D",A201+5)),"") -> Craw | E205: =IFERROR(INDIRECT(CONCATENATE("Relays!e",A201+5))&" "&INDIRECT(CONCATENATE("Relays!f",A201+5))&" "&INDIRECT(CONCATENATE("Relays!g",A201+5))&" "&INDIRECT(CONCATENATE("Relays!h",A201+5)),"") -> CROCKER George MORGAN-SMITH Charlie MORGAN-SMITH Charlie CROCKER George | M205: =IFERROR(INDIRECT(CONCATENATE("RELAYS!K",A201+5)),"") -> 00:03:36.160
B206: =IFERROR(INDIRECT(CONCATENATE("Relays!B",A201+6)),"") -> 5 | C206: =IFERROR(INDIRECT(CONCATENATE("Relays!C",A201+6)),"") -> 5 | D206: =IFERROR(INDIRECT(CONCATENATE("Relays!D",A201+6)),"") -> Norfolk | E206: =IFERROR(INDIRECT(CONCATENATE("Relays!e",A201+6))&" "&INDIRECT(CONCATENATE("Relays!f",A201+6))&" "&INDIRECT(CONCATENATE("Relays!g",A201+6))&" "&INDIRECT(CONCATENATE("Relays!h",A201+6)),"") -> WILLIAMS Charlie X WHITING Edward X MAHONEY William X BENSON Rahim | M206: =IFERROR(INDIRECT(CONCATENATE("RELAYS!K",A201+6)),"") -> 00:03:50.930
B207: =IFERROR(INDIRECT(CONCATENATE("Relays!B",A201+7)),"") -> 6 | C207: =IFERROR(INDIRECT(CONCATENATE("Relays!C",A201+7)),"") -> 0 | D207: =IFERROR(INDIRECT(CONCATENATE("Relays!D",A201+7)),"") ->  | E207: =IFERROR(INDIRECT(CONCATENATE("Relays!e",A201+7))&" "&INDIRECT(CONCATENATE("Relays!f",A201+7))&" "&INDIRECT(CONCATENATE("Relays!g",A201+7))&" "&INDIRECT(CONCATENATE("Relays!h",A201+7)),"") ->  | M207: =IFERROR(INDIRECT(CONCATENATE("RELAYS!K",A201+7)),"") -> 00:00:00
B208: =IFERROR(INDIRECT(CONCATENATE("Relays!B",A201+8)),"") -> 7 | C208: =IFERROR(INDIRECT(CONCATENATE("Relays!C",A201+8)),"") -> 0 | D208: =IFERROR(INDIRECT(CONCATENATE("Relays!D",A201+8)),"") ->  | E208: =IFERROR(INDIRECT(CONCATENATE("Relays!e",A201+8))&" "&INDIRECT(CONCATENATE("Relays!f",A201+8))&" "&INDIRECT(CONCATENATE("Relays!g",A201+8))&" "&INDIRECT(CONCATENATE("Relays!h",A201+8)),"") ->  | M208: =IFERROR(INDIRECT(CONCATENATE("RELAYS!K",A201+8)),"") -> 00:00:00
B209: =IFERROR(INDIRECT(CONCATENATE("Relays!B",A201+9)),"") -> 8 | C209: =IFERROR(INDIRECT(CONCATENATE("Relays!C",A201+9)),"") -> 0 | D209: =IFERROR(INDIRECT(CONCATENATE("Relays!D",A201+9)),"") ->  | E209: =IFERROR(INDIRECT(CONCATENATE("Relays!e",A201+9))&" "&INDIRECT(CONCATENATE("Relays!f",A201+9))&" "&INDIRECT(CONCATENATE("Relays!g",A201+9))&" "&INDIRECT(CONCATENATE("Relays!h",A201+9)),"") ->  | M209: =IFERROR(INDIRECT(CONCATENATE("RELAYS!K",A201+9)),"") -> 00:00:00

Sheet U17Me
A1: UK ATHLETICS :: YOUTH DEVELOPMENT LEAGUE 2017 | B1: =Dashboard!E1 -> UPPER SOUTH Premier 1 MATCH 2 @ Norman Park | L1: =Dashboard!E2 -> 2017-05-28 | R1: =SUM(R2:R300) -> 17
A2: UT06 | B2: =IFERROR(INDIRECT(CONCATENATE("Track1!B",A3)),"") -> 100m U17 Men A | E2: Wind | F2: =Track1!F57 -> -0.3 | I2: =IFERROR(INDIRECT(CONCATENATE("Track1!I",A3)),"") -> 100m U17 Men B | L2: Wind | M2: =Track1!M57 -> -0.2
A3: =IFERROR(MATCH(A2,Track1!A:A,0),"") -> 57 | B3: =IFERROR(INDIRECT(CONCATENATE("Track1!B",A3+1)),"") -> Posn | C3: =IFERROR(INDIRECT(CONCATENATE("Track1!C",A3+1)),"") -> No. | D3: =IFERROR(INDIRECT(CONCATENATE("Track1!D",A3+1)),"") -> Athlete | E3: =IFERROR(INDIRECT(CONCATENATE("Track1!E",A3+1)),"") -> Club | F3: =IFERROR(INDIRECT(CONCATENATE("Track1!F",A3+1)),"") -> Perf | G3: =IFERROR(INDIRECT(CONCATENATE("Track1!G",A3+1)),"") -> AAA | I3: =IFERROR(INDIRECT(CONCATENATE("Track1!I",A3+1)),"") -> Posn | J3: =IFERROR(INDIRECT(CONCATENATE("Track1!J",A3+1)),"") -> No. | K3: =IFERROR(INDIRECT(CONCATENATE("Track1!K",A3+1)),"") -> Athlete | L3: =IFERROR(INDIRECT(CONCATENATE("Track1!L",A3+1)),"") -> Club | M3: =IFERROR(INDIRECT(CONCATENATE("Track1!M",A3+1)),"") -> Perf | N3: =IFERROR(INDIRECT(CONCATENATE("Track1!N",A3+1)),"") -> AAA
B4: =IFERROR(INDIRECT(CONCATENATE("Track1!B",A3+2)),"") -> 1 | C4: =IFERROR(INDIRECT(CONCATENATE("Track1!C",A3+2)),"") -> A | D4: =IFERROR(INDIRECT(CONCATENATE("Track1!D",A3+2)),"") -> REYNOLDS-WARMINGTON Kyle | E4: =IFERROR(INDIRECT(CONCATENATE("Track1!E",A3+2)),"") -> B&B | F4: =IFERROR(INDIRECT(CONCATENATE("Track1!F",A3+2)),"") -> 11.16 | G4: =IFERROR(INDIRECT(CONCATENATE("Track1!G",A3+2)),"") -> 1 | I4: =IFERROR(INDIRECT(CONCATENATE("Track1!I",A3+2)),"") -> 1 | J4: =IFERROR(INDIRECT(CONCATENATE("Track1!J",A3+2)),"") -> EE | K4: =IFERROR(INDIRECT(CONCATENATE("Track1!K",A3+2)),"") -> TAYLOR Harry | L4: =IFERROR(INDIRECT(CONCATENATE("Track1!L",A3+2)),"") -> Norfolk | M4: =IFERROR(INDIRECT(CONCATENATE("Track1!M",A3+2)),"") -> 11.42 | N4: =IFERROR(INDIRECT(CONCATENATE("Track1!N",A3+2)),"") -> 3 | R4: =IFERROR(INDIRECT(CONCATENATE("Track1!R",$A3+2)),"") -> 1
B5: =IFERROR(INDIRECT(CONCATENATE("Track1!B",A3+3)),"") -> 2 | C5: =IFERROR(INDIRECT(CONCATENATE("Track1!C",A3+3)),"") -> E | D5: =IFERROR(INDIRECT(CONCATENATE("Track1!D",A3+3)),"") -> ALBROW Louis | E5: =IFERROR(INDIRECT(CONCATENATE("Track1!E",A3+3)),"") -> Norfolk | F5: =IFERROR(INDIRECT(CONCATENATE("Track1!F",A3+3)),"") -> 11.27 | G5: =IFERROR(INDIRECT(CONCATENATE("Track1!G",A3+3)),"") -> 2 | I5: =IFERROR(INDIRECT(CONCATENATE("Track1!I",A3+3)),"") -> 2 | J5: =IFERROR(INDIRECT(CONCATENATE("Track1!J",A3+3)),"") -> DD | K5: =IFERROR(INDIRECT(CONCATENATE("Track1!K",A3+3)),"") -> THOMAS Robert | L5: =IFERROR(INDIRECT(CONCATENATE("Track1!L",A3+3)),"") -> SB | M5: =IFERROR(INDIRECT(CONCATENATE("Track1!M",A3+3)),"") -> 11.5 | N5: =IFERROR(INDIRECT(CONCATENATE("Track1!N",A3+3)),"") -> 3
B6: =IFERROR(INDIRECT(CONCATENATE("Track1!B",A3+4)),"") -> 3 | C6: =IFERROR(INDIRECT(CONCATENATE("Track1!C",A3+4)),"") -> F | D6: =IFERROR(INDIRECT(CONCATENATE("Track1!D",A3+4)),"") -> ZELLER Joshua | E6: =IFERROR(INDIRECT(CONCATENATE("Track1!E",A3+4)),"") -> WSEH | F6: =IFERROR(INDIRECT(CONCATENATE("Track1!F",A3+4)),"") -> 11.33 | G6: =IFERROR(INDIRECT(CONCATENATE("Track1!G",A3+4)),"") -> 3 | I6: =IFERROR(INDIRECT(CONCATENATE("Track1!I",A3+4)),"") -> 3 | J6: =IFERROR(INDIRECT(CONCATENATE("Track1!J",A3+4)),"") -> AA | K6: =IFERROR(INDIRECT(CONCATENATE("Track1!K",A3+4)),"") -> OGBEDEH Chizute | L6: =IFERROR(INDIRECT(CONCATENATE("Track1!L",A3+4)),"") -> B&B | M6: =IFERROR(INDIRECT(CONCATENATE("Track1!M",A3+4)),"") -> 11.68 | N6: =IFERROR(INDIRECT(CONCATENATE("Track1!N",A3+4)),"") -> 4
B7: =IFERROR(INDIRECT(CONCATENATE("Track1!B",A3+5)),"") -> 4 | C7: =IFERROR(INDIRECT(CONCATENATE("Track1!C",A3+5)),"") -> D | D7: =IFERROR(INDIRECT(CONCATENATE("Track1!D",A3+5)),"") -> AGYEPONG Micah | E7: =IFERROR(INDIRECT(CONCATENATE("Track1!E",A3+5)),"") -> SB | F7: =IFERROR(INDIRECT(CONCATENATE("Track1!F",A3+5)),"") -> 11.35 | G7: =IFERROR(INDIRECT(CONCATENATE("Track1!G",A3+5)),"") -> 3 | I7: =IFERROR(INDIRECT(CONCATENATE("Track1!I",A3+5)),"") -> 4 | J7: =IFERROR(INDIRECT(CONCATENATE("Track1!J",A3+5)),"") -> CC | K7: =IFERROR(INDIRECT(CONCATENATE("Track1!K",A3+5)),"") -> SANTOS Christian | L7: =IFERROR(INDIRECT(CONCATENATE("Track1!L",A3+5)),"") -> Read | M7: =IFERROR(INDIRECT(CONCATENATE("Track1!M",A3+5)),"") -> 12.16 | N7: =IFERROR(INDIRECT(CONCATENATE("Track1!N",A3+5)),"") -> 
B8: =IFERROR(INDIRECT(CONCATENATE("Track1!B",A3+6)),"") -> 5 | C8: =IFERROR(INDIRECT(CONCATENATE("Track1!C",A3+6)),"") -> C | D8: =IFERROR(INDIRECT(CONCATENATE("Track1!D",A3+6)),"") -> HENRY Malachi | E8: =IFERROR(INDIRECT(CONCATENATE("Track1!E",A3+6)),"") -> Read | F8: =IFERROR(INDIRECT(CONCATENATE("Track1!F",A3+6)),"") -> 12.02 | G8: =IFERROR(INDIRECT(CONCATENATE("Track1!G",A3+6)),"") ->  | I8: =IFERROR(INDIRECT(CONCATENATE("Track1!I",A3+6)),"") -> 5 | J8: =IFERROR(INDIRECT(CONCATENATE("Track1!J",A3+6)),"") -> FF | K8: =IFERROR(INDIRECT(CONCATENATE("Track1!K",A3+6)),"") -> SMITH George | L8: =IFERROR(INDIRECT(CONCATENATE("Track1!L",A3+6)),"") -> WSEH | M8: =IFERROR(INDIRECT(CONCATENATE("Track1!M",A3+6)),"") -> 12.73 | N8: =IFERROR(INDIRECT(CONCATENATE("Track1!N",A3+6)),"") -> 
B9: =IFERROR(INDIRECT(CONCATENATE("Track1!B",A3+7)),"") -> 6 | C9: =IFERROR(INDIRECT(CONCATENATE("Track1!C",A3+7)),"") -> B | D9: =IFERROR(INDIRECT(CONCATENATE("Track1!D",A3+7)),"") -> GILL Noel | E9: =IFERROR(INDIRECT(CONCATENATE("Track1!E",A3+7)),"") -> Craw | F9: =IFERROR(INDIRECT(CONCATENATE("Track1!F",A3+7)),"") -> 12.15 | G9: =IFERROR(INDIRECT(CONCATENATE("Track1!G",A3+7)),"") ->  | I9: =IFERROR(INDIRECT(CONCATENATE("Track1!I",A3+7)),"") -> 6 | J9: =IFERROR(INDIRECT(CONCATENATE("Track1!J",A3+7)),"") -> 0 | K9: =IFERROR(INDIRECT(CONCATENATE("Track1!K",A3+7)),"") ->  | L9: =IFERROR(INDIRECT(CONCATENATE("Track1!L",A3+7)),"") ->  | M9: =IFERROR(INDIRECT(CONCATENATE("Track1!M",A3+7)),"") -> 0 | N9: =IFERROR(INDIRECT(CONCATENATE("Track1!N",A3+7)),"") -> 
B10: =IFERROR(INDIRECT(CONCATENATE("Track1!B",A3+8)),"") -> 7 | C10: =IFERROR(INDIRECT(CONCATENATE("Track1!C",A3+8)),"") -> 0 | D10: =IFERROR(INDIRECT(CONCATENATE("Track1!D",A3+8)),"") ->  | E10: =IFERROR(INDIRECT(CONCATENATE("Track1!E",A3+8)),"") ->  | F10: =IFERROR(INDIRECT(CONCATENATE("Track1!F",A3+8)),"") -> 0 | G10: =IFERROR(INDIRECT(CONCATENATE("Track1!G",A3+8)),"") ->  | I10: =IFERROR(INDIRECT(CONCATENATE("Track1!I",A3+8)),"") -> 7 | J10: =IFERROR(INDIRECT(CONCATENATE("Track1!J",A3+8)),"") -> 0 | K10: =IFERROR(INDIRECT(CONCATENATE("Track1!K",A3+8)),"") ->  | L10: =IFERROR(INDIRECT(CONCATENATE("Track1!L",A3+8)),"") ->  | M10: =IFERROR(INDIRECT(CONCATENATE("Track1!M",A3+8)),"") -> 0 | N10: =IFERROR(INDIRECT(CONCATENATE("Track1!N",A3+8)),"") -> 
B11: =IFERROR(INDIRECT(CONCATENATE("Track1!B",A3+9)),"") -> 8 | C11: =IFERROR(INDIRECT(CONCATENATE("Track1!C",A3+9)),"") -> 0 | D11: =IFERROR(INDIRECT(CONCATENATE("Track1!D",A3+9)),"") ->  | E11: =IFERROR(INDIRECT(CONCATENATE("Track1!E",A3+9)),"") ->  | F11: =IFERROR(INDIRECT(CONCATENATE("Track1!F",A3+9)),"") -> 0 | G11: =IFERROR(INDIRECT(CONCATENATE("Track1!G",A3+9)),"") ->  | I11: =IFERROR(INDIRECT(CONCATENATE("Track1!I",A3+9)),"") -> 8 | J11: =IFERROR(INDIRECT(CONCATENATE("Track1!J",A3+9)),"") -> 0 | K11: =IFERROR(INDIRECT(CONCATENATE("Track1!K",A3+9)),"") ->  | L11: =IFERROR(INDIRECT(CONCATENATE("Track1!L",A3+9)),"") ->  | M11: =IFERROR(INDIRECT(CONCATENATE("Track1!M",A3+9)),"") -> 0 | N11: =IFERROR(INDIRECT(CONCATENATE("Track1!N",A3+9)),"") -> 
A13: UT18 | B13: =IFERROR(INDIRECT(CONCATENATE("Track1!B",A14)),"") -> 200m U17 Men A | E13: Wind | F13: =Track1!F189 -> -0.4 | I13: =IFERROR(INDIRECT(CONCATENATE("Track1!I",A14)),"") -> 200m U17 Men B | L13: Wind | M13: =Track1!M189 -> -0.3
A14: =IFERROR(MATCH(A13,Track1!A:A,0),"") -> 189 | B14: =IFERROR(INDIRECT(CONCATENATE("Track1!B",A14+1)),"") -> Posn | C14: =IFERROR(INDIRECT(CONCATENATE("Track1!C",A14+1)),"") -> No. | D14: =IFERROR(INDIRECT(CONCATENATE("Track1!D",A14+1)),"") -> Athlete | E14: =IFERROR(INDIRECT(CONCATENATE("Track1!E",A14+1)),"") -> Club | F14: =IFERROR(INDIRECT(CONCATENATE("Track1!F",A14+1)),"") -> Perf | G14: =IFERROR(INDIRECT(CONCATENATE("Track1!G",A14+1)),"") -> AAA | I14: =IFERROR(INDIRECT(CONCATENATE("Track1!I",A14+1)),"") -> Posn | J14: =IFERROR(INDIRECT(CONCATENATE("Track1!J",A14+1)),"") -> No. | K14: =IFERROR(INDIRECT(CONCATENATE("Track1!K",A14+1)),"") -> Athlete | L14: =IFERROR(INDIRECT(CONCATENATE("Track1!L",A14+1)),"") -> Club | M14: =IFERROR(INDIRECT(CONCATENATE("Track1!M",A14+1)),"") -> Perf | N14: =IFERROR(INDIRECT(CONCATENATE("Track1!N",A14+1)),"") -> AAA
B15: =IFERROR(INDIRECT(CONCATENATE("Track1!B",A14+2)),"") -> 1 | C15: =IFERROR(INDIRECT(CONCATENATE("Track1!C",A14+2)),"") -> A | D15: =IFERROR(INDIRECT(CONCATENATE("Track1!D",A14+2)),"") -> REYNOLDS-WARMINGTON Kyle | E15: =IFERROR(INDIRECT(CONCATENATE("Track1!E",A14+2)),"") -> B&B | F15: =IFERROR(INDIRECT(CONCATENATE("Track1!F",A14+2)),"") -> 22.37 | G15: =IFERROR(INDIRECT(CONCATENATE("Track1!G",A14+2)),"") -> 1 | I15: =IFERROR(INDIRECT(CONCATENATE("Track1!I",A14+2)),"") -> 1 | J15: =IFERROR(INDIRECT(CONCATENATE("Track1!J",A14+2)),"") -> DD | K15: =IFERROR(INDIRECT(CONCATENATE("Track1!K",A14+2)),"") -> KUMAR Joshua | L15: =IFERROR(INDIRECT(CONCATENATE("Track1!L",A14+2)),"") -> SB | M15: =IFERROR(INDIRECT(CONCATENATE("Track1!M",A14+2)),"") -> 23 | N15: =IFERROR(INDIRECT(CONCATENATE("Track1!N",A14+2)),"") -> 2 | R15: =IFERROR(INDIRECT(CONCATENATE("Track1!R",$A14+2)),"") -> 1
B16: =IFERROR(INDIRECT(CONCATENATE("Track1!B",A14+3)),"") -> 2 | C16: =IFERROR(INDIRECT(CONCATENATE("Track1!C",A14+3)),"") -> D | D16: =IFERROR(INDIRECT(CONCATENATE("Track1!D",A14+3)),"") -> AGYEPONG Micah | E16: =IFERROR(INDIRECT(CONCATENATE("Track1!E",A14+3)),"") -> SB | F16: =IFERROR(INDIRECT(CONCATENATE("Track1!F",A14+3)),"") -> 22.56 | G16: =IFERROR(INDIRECT(CONCATENATE("Track1!G",A14+3)),"") -> 1 | I16: =IFERROR(INDIRECT(CONCATENATE("Track1!I",A14+3)),"") -> 2 | J16: =IFERROR(INDIRECT(CONCATENATE("Track1!J",A14+3)),"") -> EE | K16: =IFERROR(INDIRECT(CONCATENATE("Track1!K",A14+3)),"") -> JENNINGS John | L16: =IFERROR(INDIRECT(CONCATENATE("Track1!L",A14+3)),"") -> Norfolk | M16: =IFERROR(INDIRECT(CONCATENATE("Track1!M",A14+3)),"") -> 23.38 | N16: =IFERROR(INDIRECT(CONCATENATE("Track1!N",A14+3)),"") -> 3
B17: =IFERROR(INDIRECT(CONCATENATE("Track1!B",A14+4)),"") -> 3 | C17: =IFERROR(INDIRECT(CONCATENATE("Track1!C",A14+4)),"") -> E | D17: =IFERROR(INDIRECT(CONCATENATE("Track1!D",A14+4)),"") -> ALBROW Louis | E17: =IFERROR(INDIRECT(CONCATENATE("Track1!E",A14+4)),"") -> Norfolk | F17: =IFERROR(INDIRECT(CONCATENATE("Track1!F",A14+4)),"") -> 22.89 | G17: =IFERROR(INDIRECT(CONCATENATE("Track1!G",A14+4)),"") -> 2 | I17: =IFERROR(INDIRECT(CONCATENATE("Track1!I",A14+4)),"") -> 3 | J17: =IFERROR(INDIRECT(CONCATENATE("Track1!J",A14+4)),"") -> AA | K17: =IFERROR(INDIRECT(CONCATENATE("Track1!K",A14+4)),"") -> ADESINA Theo | L17: =IFERROR(INDIRECT(CONCATENATE("Track1!L",A14+4)),"") -> B&B | M17: =IFERROR(INDIRECT(CONCATENATE("Track1!M",A14+4)),"") -> 23.63 | N17: =IFERROR(INDIRECT(CONCATENATE("Track1!N",A14+4)),"") -> 4
B18: =IFERROR(INDIRECT(CONCATENATE("Track1!B",A14+5)),"") -> 4 | C18: =IFERROR(INDIRECT(CONCATENATE("Track1!C",A14+5)),"") -> F | D18: =IFERROR(INDIRECT(CONCATENATE("Track1!D",A14+5)),"") -> PEARSON Joshua | E18: =IFERROR(INDIRECT(CONCATENATE("Track1!E",A14+5)),"") -> WSEH | F18: =IFERROR(INDIRECT(CONCATENATE("Track1!F",A14+5)),"") -> 23.36 | G18: =IFERROR(INDIRECT(CONCATENATE("Track1!G",A14+5)),"") -> 3 | I18: =IFERROR(INDIRECT(CONCATENATE("Track1!I",A14+5)),"") -> 4 | J18: =IFERROR(INDIRECT(CONCATENATE("Track1!J",A14+5)),"") -> FF | K18: =IFERROR(INDIRECT(CONCATENATE("Track1!K",A14+5)),"") -> HIGGINS Samuel | L18: =IFERROR(INDIRECT(CONCATENATE("Track1!L",A14+5)),"") -> WSEH | M18: =IFERROR(INDIRECT(CONCATENATE("Track1!M",A14+5)),"") -> 23.97 | N18: =IFERROR(INDIRECT(CONCATENATE("Track1!N",A14+5)),"") -> 4
B19: =IFERROR(INDIRECT(CONCATENATE("Track1!B",A14+6)),"") -> 5 | C19: =IFERROR(INDIRECT(CONCATENATE("Track1!C",A14+6)),"") -> B | D19: =IFERROR(INDIRECT(CONCATENATE("Track1!D",A14+6)),"") -> GILL Noel | E19: =IFERROR(INDIRECT(CONCATENATE("Track1!E",A14+6)),"") -> Craw | F19: =IFERROR(INDIRECT(CONCATENATE("Track1!F",A14+6)),"") -> 24.5 | G19: =IFERROR(INDIRECT(CONCATENATE("Track1!G",A14+6)),"") ->  | I19: =IFERROR(INDIRECT(CONCATENATE("Track1!I",A14+6)),"") -> 5 | J19: =IFERROR(INDIRECT(CONCATENATE("Track1!J",A14+6)),"") -> CC | K19: =IFERROR(INDIRECT(CONCATENATE("Track1!K",A14+6)),"") -> SAYER Oliver | L19: =IFERROR(INDIRECT(CONCATENATE("Track1!L",A14+6)),"") -> Read | M19: =IFERROR(INDIRECT(CONCATENATE("Track1!M",A14+6)),"") -> 25.46 | N19: =IFERROR(INDIRECT(CONCATENATE("Track1!N",A14+6)),"") -> 
B20: =IFERROR(INDIRECT(CONCATENATE("Track1!B",A14+7)),"") -> 6 | C20: =IFERROR(INDIRECT(CONCATENATE("Track1!C",A14+7)),"") -> C | D20: =IFERROR(INDIRECT(CONCATENATE("Track1!D",A14+7)),"") -> HENRY Malachi | E20: =IFERROR(INDIRECT(CONCATENATE("Track1!E",A14+7)),"") -> Read | F20: =IFERROR(INDIRECT(CONCATENATE("Track1!F",A14+7)),"") -> 24.85 | G20: =IFERROR(INDIRECT(CONCATENATE("Track1!G",A14+7)),"") ->  | I20: =IFERROR(INDIRECT(CONCATENATE("Track1!I",A14+7)),"") -> 6 | J20: =IFERROR(INDIRECT(CONCATENATE("Track1!J",A14+7)),"") -> 0 | K20: =IFERROR(INDIRECT(CONCATENATE("Track1!K",A14+7)),"") ->  | L20: =IFERROR(INDIRECT(CONCATENATE("Track1!L",A14+7)),"") ->  | M20: =IFERROR(INDIRECT(CONCATENATE("Track1!M",A14+7)),"") -> 0 | N20: =IFERROR(INDIRECT(CONCATENATE("Track1!N",A14+7)),"") -> 
B21: =IFERROR(INDIRECT(CONCATENATE("Track1!B",A14+8)),"") -> 7 | C21: =IFERROR(INDIRECT(CONCATENATE("Track1!C",A14+8)),"") -> 0 | D21: =IFERROR(INDIRECT(CONCATENATE("Track1!D",A14+8)),"") ->  | E21: =IFERROR(INDIRECT(CONCATENATE("Track1!E",A14+8)),"") ->  | F21: =IFERROR(INDIRECT(CONCATENATE("Track1!F",A14+8)),"") -> 0 | G21: =IFERROR(INDIRECT(CONCATENATE("Track1!G",A14+8)),"") ->  | I21: =IFERROR(INDIRECT(CONCATENATE("Track1!I",A14+8)),"") -> 7 | J21: =IFERROR(INDIRECT(CONCATENATE("Track1!J",A14+8)),"") -> 0 | K21: =IFERROR(INDIRECT(CONCATENATE("Track1!K",A14+8)),"") ->  | L21: =IFERROR(INDIRECT(CONCATENATE("Track1!L",A14+8)),"") ->  | M21: =IFERROR(INDIRECT(CONCATENATE("Track1!M",A14+8)),"") -> 0 | N21: =IFERROR(INDIRECT(CONCATENATE("Track1!N",A14+8)),"") -> 
B22: =IFERROR(INDIRECT(CONCATENATE("Track1!B",A14+9)),"") -> 8 | C22: =IFERROR(INDIRECT(CONCATENATE("Track1!C",A14+9)),"") -> 0 | D22: =IFERROR(INDIRECT(CONCATENATE("Track1!D",A14+9)),"") ->  | E22: =IFERROR(INDIRECT(CONCATENATE("Track1!E",A14+9)),"") ->  | F22: =IFERROR(INDIRECT(CONCATENATE("Track1!F",A14+9)),"") -> 0 | G22: =IFERROR(INDIRECT(CONCATENATE("Track1!G",A14+9)),"") ->  | I22: =IFERROR(INDIRECT(CONCATENATE("Track1!I",A14+9)),"") -> 8 | J22: =IFERROR(INDIRECT(CONCATENATE("Track1!J",A14+9)),"") -> 0 | K22: =IFERROR(INDIRECT(CONCATENATE("Track1!K",A14+9)),"") ->  | L22: =IFERROR(INDIRECT(CONCATENATE("Track1!L",A14+9)),"") ->  | M22: =IFERROR(INDIRECT(CONCATENATE("Track1!M",A14+9)),"") -> 0 | N22: =IFERROR(INDIRECT(CONCATENATE("Track1!N",A14+9)),"") -> 
A24: UT10 | B24: =IFERROR(INDIRECT(CONCATENATE("Track1!B",A25)),"") -> 400m U17 Men A | I24: =IFERROR(INDIRECT(CONCATENATE("Track1!I",A25)),"") -> 400m U17 Men B
A25: =IFERROR(MATCH(A24,Track1!A:A,0),"") -> 101 | B25: =IFERROR(INDIRECT(CONCATENATE("Track1!B",A25+1)),"") -> Posn | C25: =IFERROR(INDIRECT(CONCATENATE("Track1!C",A25+1)),"") -> No. | D25: =IFERROR(INDIRECT(CONCATENATE("Track1!D",A25+1)),"") -> Athlete | E25: =IFERROR(INDIRECT(CONCATENATE("Track1!E",A25+1)),"") -> Club | F25: =IFERROR(INDIRECT(CONCATENATE("Track1!F",A25+1)),"") -> Perf | G25: =IFERROR(INDIRECT(CONCATENATE("Track1!G",A25+1)),"") -> AAA | I25: =IFERROR(INDIRECT(CONCATENATE("Track1!I",A25+1)),"") -> Posn | J25: =IFERROR(INDIRECT(CONCATENATE("Track1!J",A25+1)),"") -> No. | K25: =IFERROR(INDIRECT(CONCATENATE("Track1!K",A25+1)),"") -> Athlete | L25: =IFERROR(INDIRECT(CONCATENATE("Track1!L",A25+1)),"") -> Club | M25: =IFERROR(INDIRECT(CONCATENATE("Track1!M",A25+1)),"") -> Perf | N25: =IFERROR(INDIRECT(CONCATENATE("Track1!N",A25+1)),"") -> AAA
B26: =IFERROR(INDIRECT(CONCATENATE("Track1!B",A25+2)),"") -> 1 | C26: =IFERROR(INDIRECT(CONCATENATE("Track1!C",A25+2)),"") -> F | D26: =IFERROR(INDIRECT(CONCATENATE("Track1!D",A25+2)),"") -> PEARSON Joshua | E26: =IFERROR(INDIRECT(CONCATENATE("Track1!E",A25+2)),"") -> WSEH | F26: =IFERROR(INDIRECT(CONCATENATE("Track1!F",A25+2)),"") -> 50.42 | G26: =IFERROR(INDIRECT(CONCATENATE("Track1!G",A25+2)),"") -> 1 | I26: =IFERROR(INDIRECT(CONCATENATE("Track1!I",A25+2)),"") -> 1 | J26: =IFERROR(INDIRECT(CONCATENATE("Track1!J",A25+2)),"") -> EE | K26: =IFERROR(INDIRECT(CONCATENATE("Track1!K",A25+2)),"") -> TRY Aiden | L26: =IFERROR(INDIRECT(CONCATENATE("Track1!L",A25+2)),"") -> Norfolk | M26: =IFERROR(INDIRECT(CONCATENATE("Track1!M",A25+2)),"") -> 52.33 | N26: =IFERROR(INDIRECT(CONCATENATE("Track1!N",A25+2)),"") -> 3 | R26: =IFERROR(INDIRECT(CONCATENATE("Track1!R",$A25+2)),"") -> 1
B27: =IFERROR(INDIRECT(CONCATENATE("Track1!B",A25+3)),"") -> 2 | C27: =IFERROR(INDIRECT(CONCATENATE("Track1!C",A25+3)),"") -> E | D27: =IFERROR(INDIRECT(CONCATENATE("Track1!D",A25+3)),"") -> LEONARD Alfie | E27: =IFERROR(INDIRECT(CONCATENATE("Track1!E",A25+3)),"") -> Norfolk | F27: =IFERROR(INDIRECT(CONCATENATE("Track1!F",A25+3)),"") -> 51.26 | G27: =IFERROR(INDIRECT(CONCATENATE("Track1!G",A25+3)),"") -> 2 | I27: =IFERROR(INDIRECT(CONCATENATE("Track1!I",A25+3)),"") -> 2 | J27: =IFERROR(INDIRECT(CONCATENATE("Track1!J",A25+3)),"") -> DD | K27: =IFERROR(INDIRECT(CONCATENATE("Track1!K",A25+3)),"") -> MOHAMMADIAN Mittio | L27: =IFERROR(INDIRECT(CONCATENATE("Track1!L",A25+3)),"") -> SB | M27: =IFERROR(INDIRECT(CONCATENATE("Track1!M",A25+3)),"") -> 52.37 | N27: =IFERROR(INDIRECT(CONCATENATE("Track1!N",A25+3)),"") -> 3
B28: =IFERROR(INDIRECT(CONCATENATE("Track1!B",A25+4)),"") -> 3 | C28: =IFERROR(INDIRECT(CONCATENATE("Track1!C",A25+4)),"") -> D | D28: =IFERROR(INDIRECT(CONCATENATE("Track1!D",A25+4)),"") -> KHORASSANDJIAN Anthony | E28: =IFERROR(INDIRECT(CONCATENATE("Track1!E",A25+4)),"") -> SB | F28: =IFERROR(INDIRECT(CONCATENATE("Track1!F",A25+4)),"") -> 52.73 | G28: =IFERROR(INDIRECT(CONCATENATE("Track1!G",A25+4)),"") -> 3 | I28: =IFERROR(INDIRECT(CONCATENATE("Track1!I",A25+4)),"") -> 3 | J28: =IFERROR(INDIRECT(CONCATENATE("Track1!J",A25+4)),"") -> AA | K28: =IFERROR(INDIRECT(CONCATENATE("Track1!K",A25+4)),"") -> POPE George | L28: =IFERROR(INDIRECT(CONCATENATE("Track1!L",A25+4)),"") -> B&B | M28: =IFERROR(INDIRECT(CONCATENATE("Track1!M",A25+4)),"") -> 53.95 | N28: =IFERROR(INDIRECT(CONCATENATE("Track1!N",A25+4)),"") -> 4
B29: =IFERROR(INDIRECT(CONCATENATE("Track1!B",A25+5)),"") -> 4 | C29: =IFERROR(INDIRECT(CONCATENATE("Track1!C",A25+5)),"") -> A | D29: =IFERROR(INDIRECT(CONCATENATE("Track1!D",A25+5)),"") -> SUCKLING Robert | E29: =IFERROR(INDIRECT(CONCATENATE("Track1!E",A25+5)),"") -> B&B | F29: =IFERROR(INDIRECT(CONCATENATE("Track1!F",A25+5)),"") -> 52.96 | G29: =IFERROR(INDIRECT(CONCATENATE("Track1!G",A25+5)),"") -> 4 | I29: =IFERROR(INDIRECT(CONCATENATE("Track1!I",A25+5)),"") -> 4 | J29: =IFERROR(INDIRECT(CONCATENATE("Track1!J",A25+5)),"") -> FF | K29: =IFERROR(INDIRECT(CONCATENATE("Track1!K",A25+5)),"") -> TCHANGWA Marvin | L29: =IFERROR(INDIRECT(CONCATENATE("Track1!L",A25+5)),"") -> WSEH | M29: =IFERROR(INDIRECT(CONCATENATE("Track1!M",A25+5)),"") -> 54.22 | N29: =IFERROR(INDIRECT(CONCATENATE("Track1!N",A25+5)),"") -> 4
B30: =IFERROR(INDIRECT(CONCATENATE("Track1!B",A25+6)),"") -> 5 | C30: =IFERROR(INDIRECT(CONCATENATE("Track1!C",A25+6)),"") -> C | D30: =IFERROR(INDIRECT(CONCATENATE("Track1!D",A25+6)),"") -> NORTH Harry | E30: =IFERROR(INDIRECT(CONCATENATE("Track1!E",A25+6)),"") -> Read | F30: =IFERROR(INDIRECT(CONCATENATE("Track1!F",A25+6)),"") -> 53.21 | G30: =IFERROR(INDIRECT(CONCATENATE("Track1!G",A25+6)),"") -> 4 | I30: =IFERROR(INDIRECT(CONCATENATE("Track1!I",A25+6)),"") -> 5 | J30: =IFERROR(INDIRECT(CONCATENATE("Track1!J",A25+6)),"") -> CC | K30: =IFERROR(INDIRECT(CONCATENATE("Track1!K",A25+6)),"") -> MATTHEWS Oliver | L30: =IFERROR(INDIRECT(CONCATENATE("Track1!L",A25+6)),"") -> Read | M30: =IFERROR(INDIRECT(CONCATENATE("Track1!M",A25+6)),"") -> 55.7 | N30: =IFERROR(INDIRECT(CONCATENATE("Track1!N",A25+6)),"") -> 
B31: =IFERROR(INDIRECT(CONCATENATE("Track1!B",A25+7)),"") -> 6 | C31: =IFERROR(INDIRECT(CONCATENATE("Track1!C",A25+7)),"") -> B | D31: =IFERROR(INDIRECT(CONCATENATE("Track1!D",A25+7)),"") -> SMITH Joe | E31: =IFERROR(INDIRECT(CONCATENATE("Track1!E",A25+7)),"") -> Craw | F31: =IFERROR(INDIRECT(CONCATENATE("Track1!F",A25+7)),"") -> 53.38 | G31: =IFERROR(INDIRECT(CONCATENATE("Track1!G",A25+7)),"") -> 4 | I31: =IFERROR(INDIRECT(CONCATENATE("Track1!I",A25+7)),"") -> 6 | J31: =IFERROR(INDIRECT(CONCATENATE("Track1!J",A25+7)),"") -> BB | K31: =IFERROR(INDIRECT(CONCATENATE("Track1!K",A25+7)),"") -> GADSON Samuel | L31: =IFERROR(INDIRECT(CONCATENATE("Track1!L",A25+7)),"") -> Craw | M31: =IFERROR(INDIRECT(CONCATENATE("Track1!M",A25+7)),"") -> 58.82 | N31: =IFERROR(INDIRECT(CONCATENATE("Track1!N",A25+7)),"") -> 
B32: =IFERROR(INDIRECT(CONCATENATE("Track1!B",A25+8)),"") -> 7 | C32: =IFERROR(INDIRECT(CONCATENATE("Track1!C",A25+8)),"") -> 0 | D32: =IFERROR(INDIRECT(CONCATENATE("Track1!D",A25+8)),"") ->  | E32: =IFERROR(INDIRECT(CONCATENATE("Track1!E",A25+8)),"") ->  | F32: =IFERROR(INDIRECT(CONCATENATE("Track1!F",A25+8)),"") -> 0 | G32: =IFERROR(INDIRECT(CONCATENATE("Track1!G",A25+8)),"") ->  | I32: =IFERROR(INDIRECT(CONCATENATE("Track1!I",A25+8)),"") -> 7 | J32: =IFERROR(INDIRECT(CONCATENATE("Track1!J",A25+8)),"") -> 0 | K32: =IFERROR(INDIRECT(CONCATENATE("Track1!K",A25+8)),"") ->  | L32: =IFERROR(INDIRECT(CONCATENATE("Track1!L",A25+8)),"") ->  | M32: =IFERROR(INDIRECT(CONCATENATE("Track1!M",A25+8)),"") -> 0 | N32: =IFERROR(INDIRECT(CONCATENATE("Track1!N",A25+8)),"") -> 
B33: =IFERROR(INDIRECT(CONCATENATE("Track1!B",A25+9)),"") -> 8 | C33: =IFERROR(INDIRECT(CONCATENATE("Track1!C",A25+9)),"") -> 0 | D33: =IFERROR(INDIRECT(CONCATENATE("Track1!D",A25+9)),"") ->  | E33: =IFERROR(INDIRECT(CONCATENATE("Track1!E",A25+9)),"") ->  | F33: =IFERROR(INDIRECT(CONCATENATE("Track1!F",A25+9)),"") -> 0 | G33: =IFERROR(INDIRECT(CONCATENATE("Track1!G",A25+9)),"") ->  | I33: =IFERROR(INDIRECT(CONCATENATE("Track1!I",A25+9)),"") -> 8 | J33: =IFERROR(INDIRECT(CONCATENATE("Track1!J",A25+9)),"") -> 0 | K33: =IFERROR(INDIRECT(CONCATENATE("Track1!K",A25+9)),"") ->  | L33: =IFERROR(INDIRECT(CONCATENATE("Track1!L",A25+9)),"") ->  | M33: =IFERROR(INDIRECT(CONCATENATE("Track1!M",A25+9)),"") -> 0 | N33: =IFERROR(INDIRECT(CONCATENATE("Track1!N",A25+9)),"") -> 
A35: UTD82 | B35: =IFERROR(INDIRECT(CONCATENATE("Track1!B",A36)),"") -> 800m U17 Men A | I35: =IFERROR(INDIRECT(CONCATENATE("Track1!I",A36)),"") -> 800m U17 Men B
A36: =IFERROR(MATCH(A35,Track1!A:A,0),"") -> 233 | B36: =IFERROR(INDIRECT(CONCATENATE("Track1!B",A36+1)),"") -> Posn | C36: =IFERROR(INDIRECT(CONCATENATE("Track1!C",A36+1)),"") -> No. | D36: =IFERROR(INDIRECT(CONCATENATE("Track1!D",A36+1)),"") -> Athlete | E36: =IFERROR(INDIRECT(CONCATENATE("Track1!E",A36+1)),"") -> Club | F36: =IFERROR(INDIRECT(CONCATENATE("Track1!F",A36+1)),"") -> Perf | G36: =IFERROR(INDIRECT(CONCATENATE("Track1!G",A36+1)),"") -> AAA | I36: =IFERROR(INDIRECT(CONCATENATE("Track1!I",A36+1)),"") -> Posn | J36: =IFERROR(INDIRECT(CONCATENATE("Track1!J",A36+1)),"") -> No. | K36: =IFERROR(INDIRECT(CONCATENATE("Track1!K",A36+1)),"") -> Athlete | L36: =IFERROR(INDIRECT(CONCATENATE("Track1!L",A36+1)),"") -> Club | M36: =IFERROR(INDIRECT(CONCATENATE("Track1!M",A36+1)),"") -> Perf | N36: =IFERROR(INDIRECT(CONCATENATE("Track1!N",A36+1)),"") -> AAA
B37: =IFERROR(INDIRECT(CONCATENATE("Track1!B",A36+2)),"") -> 1 | C37: =IFERROR(INDIRECT(CONCATENATE("Track1!C",A36+2)),"") -> A | D37: =IFERROR(INDIRECT(CONCATENATE("Track1!D",A36+2)),"") -> HARRINGTON Angus | E37: =IFERROR(INDIRECT(CONCATENATE("Track1!E",A36+2)),"") -> B&B | F37: =IFERROR(INDIRECT(CONCATENATE("Track1!T",A36+2)),"") -> 00:01:58 | G37: =IFERROR(INDIRECT(CONCATENATE("Track1!G",A36+2)),"") ->  | I37: =IFERROR(INDIRECT(CONCATENATE("Track1!I",A36+2)),"") -> 1 | J37: =IFERROR(INDIRECT(CONCATENATE("Track1!J",A36+2)),"") -> AA | K37: =IFERROR(INDIRECT(CONCATENATE("Track1!K",A36+2)),"") -> GUY Peter | L37: =IFERROR(INDIRECT(CONCATENATE("Track1!L",A36+2)),"") -> B&B | M37: =IFERROR(INDIRECT(CONCATENATE("Track1!U",A36+2)),"") -> 00:01:59.920 | N37: =IFERROR(INDIRECT(CONCATENATE("Track1!N",A36+2)),"") ->  | R37: =IFERROR(INDIRECT(CONCATENATE("Track1!R",$A36+2)),"") -> 1
B38: =IFERROR(INDIRECT(CONCATENATE("Track1!B",A36+3)),"") -> 2 | C38: =IFERROR(INDIRECT(CONCATENATE("Track1!C",A36+3)),"") -> B | D38: =IFERROR(INDIRECT(CONCATENATE("Track1!D",A36+3)),"") -> SMITH Joe | E38: =IFERROR(INDIRECT(CONCATENATE("Track1!E",A36+3)),"") -> Craw | F38: =IFERROR(INDIRECT(CONCATENATE("Track1!T",A36+3)),"") -> 00:01:58.770 | G38: =IFERROR(INDIRECT(CONCATENATE("Track1!G",A36+3)),"") ->  | I38: =IFERROR(INDIRECT(CONCATENATE("Track1!I",A36+3)),"") -> 2 | J38: =IFERROR(INDIRECT(CONCATENATE("Track1!J",A36+3)),"") -> DD | K38: =IFERROR(INDIRECT(CONCATENATE("Track1!K",A36+3)),"") -> SHIRET Frederick | L38: =IFERROR(INDIRECT(CONCATENATE("Track1!L",A36+3)),"") -> SB | M38: =IFERROR(INDIRECT(CONCATENATE("Track1!U",A36+3)),"") -> 00:02:01.710 | N38: =IFERROR(INDIRECT(CONCATENATE("Track1!N",A36+3)),"") -> 
B39: =IFERROR(INDIRECT(CONCATENATE("Track1!B",A36+4)),"") -> 3 | C39: =IFERROR(INDIRECT(CONCATENATE("Track1!C",A36+4)),"") -> C | D39: =IFERROR(INDIRECT(CONCATENATE("Track1!D",A36+4)),"") -> STEVENI Eddie | E39: =IFERROR(INDIRECT(CONCATENATE("Track1!E",A36+4)),"") -> Read | F39: =IFERROR(INDIRECT(CONCATENATE("Track1!T",A36+4)),"") -> 00:02:00.610 | G39: =IFERROR(INDIRECT(CONCATENATE("Track1!G",A36+4)),"") ->  | I39: =IFERROR(INDIRECT(CONCATENATE("Track1!I",A36+4)),"") -> 3 | J39: =IFERROR(INDIRECT(CONCATENATE("Track1!J",A36+4)),"") -> EE | K39: =IFERROR(INDIRECT(CONCATENATE("Track1!K",A36+4)),"") -> WHITE Jack | L39: =IFERROR(INDIRECT(CONCATENATE("Track1!L",A36+4)),"") -> Norfolk | M39: =IFERROR(INDIRECT(CONCATENATE("Track1!U",A36+4)),"") -> 00:02:07.430 | N39: =IFERROR(INDIRECT(CONCATENATE("Track1!N",A36+4)),"") -> 
B40: =IFERROR(INDIRECT(CONCATENATE("Track1!B",A36+5)),"") -> 4 | C40: =IFERROR(INDIRECT(CONCATENATE("Track1!C",A36+5)),"") -> D | D40: =IFERROR(INDIRECT(CONCATENATE("Track1!D",A36+5)),"") -> MOHAMMADIAN Mittio | E40: =IFERROR(INDIRECT(CONCATENATE("Track1!E",A36+5)),"") -> SB | F40: =IFERROR(INDIRECT(CONCATENATE("Track1!T",A36+5)),"") -> 00:02:05.490 | G40: =IFERROR(INDIRECT(CONCATENATE("Track1!G",A36+5)),"") ->  | I40: =IFERROR(INDIRECT(CONCATENATE("Track1!I",A36+5)),"") -> 4 | J40: =IFERROR(INDIRECT(CONCATENATE("Track1!J",A36+5)),"") -> FF | K40: =IFERROR(INDIRECT(CONCATENATE("Track1!K",A36+5)),"") -> KUSELAN Vaitshnavan | L40: =IFERROR(INDIRECT(CONCATENATE("Track1!L",A36+5)),"") -> WSEH | M40: =IFERROR(INDIRECT(CONCATENATE("Track1!U",A36+5)),"") -> 00:02:14.850 | N40: =IFERROR(INDIRECT(CONCATENATE("Track1!N",A36+5)),"") -> 
B41: =IFERROR(INDIRECT(CONCATENATE("Track1!B",A36+6)),"") -> 5 | C41: =IFERROR(INDIRECT(CONCATENATE("Track1!C",A36+6)),"") -> E | D41: =IFERROR(INDIRECT(CONCATENATE("Track1!D",A36+6)),"") -> WHITING Ed | E41: =IFERROR(INDIRECT(CONCATENATE("Track1!E",A36+6)),"") -> Norfolk | F41: =IFERROR(INDIRECT(CONCATENATE("Track1!T",A36+6)),"") -> 00:02:05.990 | G41: =IFERROR(INDIRECT(CONCATENATE("Track1!G",A36+6)),"") ->  | I41: =IFERROR(INDIRECT(CONCATENATE("Track1!I",A36+6)),"") -> 5 | J41: =IFERROR(INDIRECT(CONCATENATE("Track1!J",A36+6)),"") -> 0 | K41: =IFERROR(INDIRECT(CONCATENATE("Track1!K",A36+6)),"") ->  | L41: =IFERROR(INDIRECT(CONCATENATE("Track1!L",A36+6)),"") ->  | M41: =IFERROR(INDIRECT(CONCATENATE("Track1!U",A36+6)),"") -> 00:00:00 | N41: =IFERROR(INDIRECT(CONCATENATE("Track1!N",A36+6)),"") -> 
B42: =IFERROR(INDIRECT(CONCATENATE("Track1!B",A36+7)),"") -> 6 | C42: =IFERROR(INDIRECT(CONCATENATE("Track1!C",A36+7)),"") -> F | D42: =IFERROR(INDIRECT(CONCATENATE("Track1!D",A36+7)),"") -> DAINES Matthew | E42: =IFERROR(INDIRECT(CONCATENATE("Track1!E",A36+7)),"") -> WSEH | F42: =IFERROR(INDIRECT(CONCATENATE("Track1!T",A36+7)),"") -> 00:02:13.480 | G42: =IFERROR(INDIRECT(CONCATENATE("Track1!G",A36+7)),"") ->  | I42: =IFERROR(INDIRECT(CONCATENATE("Track1!I",A36+7)),"") -> 6 | J42: =IFERROR(INDIRECT(CONCATENATE("Track1!J",A36+7)),"") -> 0 | K42: =IFERROR(INDIRECT(CONCATENATE("Track1!K",A36+7)),"") ->  | L42: =IFERROR(INDIRECT(CONCATENATE("Track1!L",A36+7)),"") ->  | M42: =IFERROR(INDIRECT(CONCATENATE("Track1!U",A36+7)),"") -> 00:00:00 | N42: =IFERROR(INDIRECT(CONCATENATE("Track1!N",A36+7)),"") -> 
B43: =IFERROR(INDIRECT(CONCATENATE("Track1!B",A36+8)),"") -> 7 | C43: =IFERROR(INDIRECT(CONCATENATE("Track1!C",A36+8)),"") -> 0 | D43: =IFERROR(INDIRECT(CONCATENATE("Track1!D",A36+8)),"") ->  | E43: =IFERROR(INDIRECT(CONCATENATE("Track1!E",A36+8)),"") ->  | F43: =IFERROR(INDIRECT(CONCATENATE("Track1!T",A36+8)),"") -> 00:00:00 | G43: =IFERROR(INDIRECT(CONCATENATE("Track1!G",A36+8)),"") ->  | I43: =IFERROR(INDIRECT(CONCATENATE("Track1!I",A36+8)),"") -> 7 | J43: =IFERROR(INDIRECT(CONCATENATE("Track1!J",A36+8)),"") -> 0 | K43: =IFERROR(INDIRECT(CONCATENATE("Track1!K",A36+8)),"") ->  | L43: =IFERROR(INDIRECT(CONCATENATE("Track1!L",A36+8)),"") ->  | M43: =IFERROR(INDIRECT(CONCATENATE("Track1!U",A36+8)),"") -> 00:00:00 | N43: =IFERROR(INDIRECT(CONCATENATE("Track1!N",A36+8)),"") -> 
B44: =IFERROR(INDIRECT(CONCATENATE("Track1!B",A36+9)),"") -> 8 | C44: =IFERROR(INDIRECT(CONCATENATE("Track1!C",A36+9)),"") -> 0 | D44: =IFERROR(INDIRECT(CONCATENATE("Track1!D",A36+9)),"") ->  | E44: =IFERROR(INDIRECT(CONCATENATE("Track1!E",A36+9)),"") ->  | F44: =IFERROR(INDIRECT(CONCATENATE("Track1!T",A36+9)),"") -> 00:00:00 | G44: =IFERROR(INDIRECT(CONCATENATE("Track1!G",A36+9)),"") ->  | I44: =IFERROR(INDIRECT(CONCATENATE("Track1!I",A36+9)),"") -> 8 | J44: =IFERROR(INDIRECT(CONCATENATE("Track1!J",A36+9)),"") -> 0 | K44: =IFERROR(INDIRECT(CONCATENATE("Track1!K",A36+9)),"") ->  | L44: =IFERROR(INDIRECT(CONCATENATE("Track1!L",A36+9)),"") ->  | M44: =IFERROR(INDIRECT(CONCATENATE("Track1!U",A36+9)),"") -> 00:00:00 | N44: =IFERROR(INDIRECT(CONCATENATE("Track1!N",A36+9)),"") -> 
A46: UTD02 | B46: =IFERROR(INDIRECT(CONCATENATE("Track2!B",A47)),"") -> 1500m U17 Men A | I46: =IFERROR(INDIRECT(CONCATENATE("Track2!I",A47)),"") -> 1500m U17 Men B
A47: =IFERROR(MATCH(A46,Track2!A:A,0),"") -> 13 | B47: =IFERROR(INDIRECT(CONCATENATE("Track2!B",A47+1)),"") -> Posn | C47: =IFERROR(INDIRECT(CONCATENATE("Track2!C",A47+1)),"") -> No. | D47: =IFERROR(INDIRECT(CONCATENATE("Track2!D",A47+1)),"") -> Athlete | E47: =IFERROR(INDIRECT(CONCATENATE("Track2!E",A47+1)),"") -> Club | F47: =IFERROR(INDIRECT(CONCATENATE("Track2!F",A47+1)),"") -> Perf | G47: =IFERROR(INDIRECT(CONCATENATE("Track2!G",A47+1)),"") -> AAA | I47: =IFERROR(INDIRECT(CONCATENATE("Track2!I",A47+1)),"") -> Posn | J47: =IFERROR(INDIRECT(CONCATENATE("Track2!J",A47+1)),"") -> No. | K47: =IFERROR(INDIRECT(CONCATENATE("Track2!K",A47+1)),"") -> Athlete | L47: =IFERROR(INDIRECT(CONCATENATE("Track2!L",A47+1)),"") -> Club | M47: =IFERROR(INDIRECT(CONCATENATE("Track2!M",A47+1)),"") -> Perf | N47: =IFERROR(INDIRECT(CONCATENATE("Track2!N",A47+1)),"") -> AAA
B48: =IFERROR(INDIRECT(CONCATENATE("Track2!B",A47+2)),"") -> 1 | C48: =IFERROR(INDIRECT(CONCATENATE("Track2!C",A47+2)),"") -> A | D48: =IFERROR(INDIRECT(CONCATENATE("Track2!D",A47+2)),"") -> FRANCIS Matthew | E48: =IFERROR(INDIRECT(CONCATENATE("Track2!E",A47+2)),"") -> B&B | F48: =IFERROR(INDIRECT(CONCATENATE("Track2!F",A47+2)),"") -> 00:04:07.980 | G48: =IFERROR(INDIRECT(CONCATENATE("Track2!G",A47+2)),"") ->  | I48: =IFERROR(INDIRECT(CONCATENATE("Track2!I",A47+2)),"") -> 1 | J48: =IFERROR(INDIRECT(CONCATENATE("Track2!J",A47+2)),"") -> DD | K48: =IFERROR(INDIRECT(CONCATENATE("Track2!K",A47+2)),"") -> HARPER Jamie | L48: =IFERROR(INDIRECT(CONCATENATE("Track2!L",A47+2)),"") -> SB | M48: =IFERROR(INDIRECT(CONCATENATE("Track2!M",A47+2)),"") -> 00:04:20.970 | N48: =IFERROR(INDIRECT(CONCATENATE("Track2!N",A47+2)),"") ->  | R48: =IFERROR(INDIRECT(CONCATENATE("Track2!R",$A47+2)),"") -> 1
B49: =IFERROR(INDIRECT(CONCATENATE("Track2!B",A47+3)),"") -> 2 | C49: =IFERROR(INDIRECT(CONCATENATE("Track2!C",A47+3)),"") -> D | D49: =IFERROR(INDIRECT(CONCATENATE("Track2!D",A47+3)),"") -> WINFIELD Ben | E49: =IFERROR(INDIRECT(CONCATENATE("Track2!E",A47+3)),"") -> SB | F49: =IFERROR(INDIRECT(CONCATENATE("Track2!F",A47+3)),"") -> 00:04:08.680 | G49: =IFERROR(INDIRECT(CONCATENATE("Track2!G",A47+3)),"") ->  | I49: =IFERROR(INDIRECT(CONCATENATE("Track2!I",A47+3)),"") -> 2 | J49: =IFERROR(INDIRECT(CONCATENATE("Track2!J",A47+3)),"") -> AA | K49: =IFERROR(INDIRECT(CONCATENATE("Track2!K",A47+3)),"") -> GARDINER Benjamin | L49: =IFERROR(INDIRECT(CONCATENATE("Track2!L",A47+3)),"") -> B&B | M49: =IFERROR(INDIRECT(CONCATENATE("Track2!M",A47+3)),"") -> 00:04:26.910 | N49: =IFERROR(INDIRECT(CONCATENATE("Track2!N",A47+3)),"") -> 
B50: =IFERROR(INDIRECT(CONCATENATE("Track2!B",A47+4)),"") -> 3 | C50: =IFERROR(INDIRECT(CONCATENATE("Track2!C",A47+4)),"") -> E | D50: =IFERROR(INDIRECT(CONCATENATE("Track2!D",A47+4)),"") -> WHITE Jack | E50: =IFERROR(INDIRECT(CONCATENATE("Track2!E",A47+4)),"") -> Norfolk | F50: =IFERROR(INDIRECT(CONCATENATE("Track2!F",A47+4)),"") -> 00:04:08.770 | G50: =IFERROR(INDIRECT(CONCATENATE("Track2!G",A47+4)),"") ->  | I50: =IFERROR(INDIRECT(CONCATENATE("Track2!I",A47+4)),"") -> 3 | J50: =IFERROR(INDIRECT(CONCATENATE("Track2!J",A47+4)),"") -> FF | K50: =IFERROR(INDIRECT(CONCATENATE("Track2!K",A47+4)),"") -> KULLAR Pavit | L50: =IFERROR(INDIRECT(CONCATENATE("Track2!L",A47+4)),"") -> WSEH | M50: =IFERROR(INDIRECT(CONCATENATE("Track2!M",A47+4)),"") -> 00:04:29.080 | N50: =IFERROR(INDIRECT(CONCATENATE("Track2!N",A47+4)),"") -> 
B51: =IFERROR(INDIRECT(CONCATENATE("Track2!B",A47+5)),"") -> 4 | C51: =IFERROR(INDIRECT(CONCATENATE("Track2!C",A47+5)),"") -> F | D51: =IFERROR(INDIRECT(CONCATENATE("Track2!D",A47+5)),"") -> BROOKLING Daniel | E51: =IFERROR(INDIRECT(CONCATENATE("Track2!E",A47+5)),"") -> WSEH | F51: =IFERROR(INDIRECT(CONCATENATE("Track2!F",A47+5)),"") -> 00:04:11.200 | G51: =IFERROR(INDIRECT(CONCATENATE("Track2!G",A47+5)),"") ->  | I51: =IFERROR(INDIRECT(CONCATENATE("Track2!I",A47+5)),"") -> 4 | J51: =IFERROR(INDIRECT(CONCATENATE("Track2!J",A47+5)),"") ->  | K51: =IFERROR(INDIRECT(CONCATENATE("Track2!K",A47+5)),"") ->  | L51: =IFERROR(INDIRECT(CONCATENATE("Track2!L",A47+5)),"") ->  | M51: =IFERROR(INDIRECT(CONCATENATE("Track2!M",A47+5)),"") -> X | N51: =IFERROR(INDIRECT(CONCATENATE("Track2!N",A47+5)),"") -> 
B52: =IFERROR(INDIRECT(CONCATENATE("Track2!B",A47+6)),"") -> 5 | C52: =IFERROR(INDIRECT(CONCATENATE("Track2!C",A47+6)),"") -> C | D52: =IFERROR(INDIRECT(CONCATENATE("Track2!D",A47+6)),"") -> STEVENI Eddie | E52: =IFERROR(INDIRECT(CONCATENATE("Track2!E",A47+6)),"") -> Read | F52: =IFERROR(INDIRECT(CONCATENATE("Track2!F",A47+6)),"") -> 00:04:14.610 | G52: =IFERROR(INDIRECT(CONCATENATE("Track2!G",A47+6)),"") ->  | I52: =IFERROR(INDIRECT(CONCATENATE("Track2!I",A47+6)),"") -> 5 | J52: =IFERROR(INDIRECT(CONCATENATE("Track2!J",A47+6)),"") ->  | K52: =IFERROR(INDIRECT(CONCATENATE("Track2!K",A47+6)),"") ->  | L52: =IFERROR(INDIRECT(CONCATENATE("Track2!L",A47+6)),"") ->  | M52: =IFERROR(INDIRECT(CONCATENATE("Track2!M",A47+6)),"") -> X | N52: =IFERROR(INDIRECT(CONCATENATE("Track2!N",A47+6)),"") -> 
B53: =IFERROR(INDIRECT(CONCATENATE("Track2!B",A47+7)),"") -> 6 | C53: =IFERROR(INDIRECT(CONCATENATE("Track2!C",A47+7)),"") ->  | D53: =IFERROR(INDIRECT(CONCATENATE("Track2!D",A47+7)),"") ->  | E53: =IFERROR(INDIRECT(CONCATENATE("Track2!E",A47+7)),"") ->  | F53: =IFERROR(INDIRECT(CONCATENATE("Track2!F",A47+7)),"") -> X | G53: =IFERROR(INDIRECT(CONCATENATE("Track2!G",A47+7)),"") ->  | I53: =IFERROR(INDIRECT(CONCATENATE("Track2!I",A47+7)),"") -> 6 | J53: =IFERROR(INDIRECT(CONCATENATE("Track2!J",A47+7)),"") ->  | K53: =IFERROR(INDIRECT(CONCATENATE("Track2!K",A47+7)),"") ->  | L53: =IFERROR(INDIRECT(CONCATENATE("Track2!L",A47+7)),"") ->  | M53: =IFERROR(INDIRECT(CONCATENATE("Track2!M",A47+7)),"") -> X | N53: =IFERROR(INDIRECT(CONCATENATE("Track2!N",A47+7)),"") -> 
B54: =IFERROR(INDIRECT(CONCATENATE("Track2!B",A47+8)),"") -> 7 | C54: =IFERROR(INDIRECT(CONCATENATE("Track2!C",A47+8)),"") ->  | D54: =IFERROR(INDIRECT(CONCATENATE("Track2!D",A47+8)),"") ->  | E54: =IFERROR(INDIRECT(CONCATENATE("Track2!E",A47+8)),"") ->  | F54: =IFERROR(INDIRECT(CONCATENATE("Track2!F",A47+8)),"") -> X | G54: =IFERROR(INDIRECT(CONCATENATE("Track2!G",A47+8)),"") ->  | I54: =IFERROR(INDIRECT(CONCATENATE("Track2!I",A47+8)),"") -> 7 | J54: =IFERROR(INDIRECT(CONCATENATE("Track2!J",A47+8)),"") ->  | K54: =IFERROR(INDIRECT(CONCATENATE("Track2!K",A47+8)),"") ->  | L54: =IFERROR(INDIRECT(CONCATENATE("Track2!L",A47+8)),"") ->  | M54: =IFERROR(INDIRECT(CONCATENATE("Track2!M",A47+8)),"") -> X | N54: =IFERROR(INDIRECT(CONCATENATE("Track2!N",A47+8)),"") -> 
B55: =IFERROR(INDIRECT(CONCATENATE("Track2!B",A47+9)),"") -> 8 | C55: =IFERROR(INDIRECT(CONCATENATE("Track2!C",A47+9)),"") ->  | D55: =IFERROR(INDIRECT(CONCATENATE("Track2!D",A47+9)),"") ->  | E55: =IFERROR(INDIRECT(CONCATENATE("Track2!E",A47+9)),"") ->  | F55: =IFERROR(INDIRECT(CONCATENATE("Track2!F",A47+9)),"") -> X | G55: =IFERROR(INDIRECT(CONCATENATE("Track2!G",A47+9)),"") ->  | I55: =IFERROR(INDIRECT(CONCATENATE("Track2!I",A47+9)),"") -> 8 | J55: =IFERROR(INDIRECT(CONCATENATE("Track2!J",A47+9)),"") ->  | K55: =IFERROR(INDIRECT(CONCATENATE("Track2!K",A47+9)),"") ->  | L55: =IFERROR(INDIRECT(CONCATENATE("Track2!L",A47+9)),"") ->  | M55: =IFERROR(INDIRECT(CONCATENATE("Track2!M",A47+9)),"") -> X | N55: =IFERROR(INDIRECT(CONCATENATE("Track2!N",A47+9)),"") -> 
A57: UTD05 | B57: =IFERROR(INDIRECT(CONCATENATE("Track2!B",A58)),"") -> 3000m U17 Men A | I57: =IFERROR(INDIRECT(CONCATENATE("Track2!I",A58)),"") -> 3000m U17 Men B
A58: =IFERROR(MATCH(A57,Track2!A:A,0),"") -> 46 | B58: =IFERROR(INDIRECT(CONCATENATE("Track2!B",A58+1)),"") -> Posn | C58: =IFERROR(INDIRECT(CONCATENATE("Track2!C",A58+1)),"") -> No. | D58: =IFERROR(INDIRECT(CONCATENATE("Track2!D",A58+1)),"") -> Athlete | E58: =IFERROR(INDIRECT(CONCATENATE("Track2!E",A58+1)),"") -> Club | F58: =IFERROR(INDIRECT(CONCATENATE("Track2!F",A58+1)),"") -> Perf | G58: =IFERROR(INDIRECT(CONCATENATE("Track2!G",A58+1)),"") -> AAA | I58: =IFERROR(INDIRECT(CONCATENATE("Track2!I",A58+1)),"") -> Posn | J58: =IFERROR(INDIRECT(CONCATENATE("Track2!J",A58+1)),"") -> No. | K58: =IFERROR(INDIRECT(CONCATENATE("Track2!K",A58+1)),"") -> Athlete | L58: =IFERROR(INDIRECT(CONCATENATE("Track2!L",A58+1)),"") -> Club | M58: =IFERROR(INDIRECT(CONCATENATE("Track2!M",A58+1)),"") -> Perf | N58: =IFERROR(INDIRECT(CONCATENATE("Track2!N",A58+1)),"") -> AAA
B59: =IFERROR(INDIRECT(CONCATENATE("Track2!B",A58+2)),"") -> 1 | C59: =IFERROR(INDIRECT(CONCATENATE("Track2!C",A58+2)),"") -> D | D59: =IFERROR(INDIRECT(CONCATENATE("Track2!D",A58+2)),"") -> STONE David | E59: =IFERROR(INDIRECT(CONCATENATE("Track2!E",A58+2)),"") -> SB | F59: =IFERROR(INDIRECT(CONCATENATE("Track2!F",A58+2)),"") -> 00:09:05.280 | G59: =IFERROR(INDIRECT(CONCATENATE("Track2!G",A58+2)),"") ->  | I59: =IFERROR(INDIRECT(CONCATENATE("Track2!I",A58+2)),"") -> 1 | J59: =IFERROR(INDIRECT(CONCATENATE("Track2!J",A58+2)),"") -> AA | K59: =IFERROR(INDIRECT(CONCATENATE("Track2!K",A58+2)),"") -> LUNDY Keir | L59: =IFERROR(INDIRECT(CONCATENATE("Track2!L",A58+2)),"") -> B&B | M59: =IFERROR(INDIRECT(CONCATENATE("Track2!M",A58+2)),"") -> 00:10:52.420 | N59: =IFERROR(INDIRECT(CONCATENATE("Track2!N",A58+2)),"") ->  | R59: =IFERROR(INDIRECT(CONCATENATE("Track2!R",$A58+2)),"") -> 1
B60: =IFERROR(INDIRECT(CONCATENATE("Track2!B",A58+3)),"") -> 2 | C60: =IFERROR(INDIRECT(CONCATENATE("Track2!C",A58+3)),"") -> E | D60: =IFERROR(INDIRECT(CONCATENATE("Track2!D",A58+3)),"") -> MAHONEY William | E60: =IFERROR(INDIRECT(CONCATENATE("Track2!E",A58+3)),"") -> Norfolk | F60: =IFERROR(INDIRECT(CONCATENATE("Track2!F",A58+3)),"") -> 00:09:16.160 | G60: =IFERROR(INDIRECT(CONCATENATE("Track2!G",A58+3)),"") ->  | I60: =IFERROR(INDIRECT(CONCATENATE("Track2!I",A58+3)),"") -> 2 | J60: =IFERROR(INDIRECT(CONCATENATE("Track2!J",A58+3)),"") ->  | K60: =IFERROR(INDIRECT(CONCATENATE("Track2!K",A58+3)),"") ->  | L60: =IFERROR(INDIRECT(CONCATENATE("Track2!L",A58+3)),"") ->  | M60: =IFERROR(INDIRECT(CONCATENATE("Track2!M",A58+3)),"") -> X | N60: =IFERROR(INDIRECT(CONCATENATE("Track2!N",A58+3)),"") -> 
B61: =IFERROR(INDIRECT(CONCATENATE("Track2!B",A58+4)),"") -> 3 | C61: =IFERROR(INDIRECT(CONCATENATE("Track2!C",A58+4)),"") -> A | D61: =IFERROR(INDIRECT(CONCATENATE("Track2!D",A58+4)),"") -> MYATT Callum | E61: =IFERROR(INDIRECT(CONCATENATE("Track2!E",A58+4)),"") -> B&B | F61: =IFERROR(INDIRECT(CONCATENATE("Track2!F",A58+4)),"") -> 00:09:35.460 | G61: =IFERROR(INDIRECT(CONCATENATE("Track2!G",A58+4)),"") ->  | I61: =IFERROR(INDIRECT(CONCATENATE("Track2!I",A58+4)),"") -> 3 | J61: =IFERROR(INDIRECT(CONCATENATE("Track2!J",A58+4)),"") ->  | K61: =IFERROR(INDIRECT(CONCATENATE("Track2!K",A58+4)),"") ->  | L61: =IFERROR(INDIRECT(CONCATENATE("Track2!L",A58+4)),"") ->  | M61: =IFERROR(INDIRECT(CONCATENATE("Track2!M",A58+4)),"") -> X | N61: =IFERROR(INDIRECT(CONCATENATE("Track2!N",A58+4)),"") -> 
B62: =IFERROR(INDIRECT(CONCATENATE("Track2!B",A58+5)),"") -> 4 | C62: =IFERROR(INDIRECT(CONCATENATE("Track2!C",A58+5)),"") -> B | D62: =IFERROR(INDIRECT(CONCATENATE("Track2!D",A58+5)),"") -> HEWITT Hugo | E62: =IFERROR(INDIRECT(CONCATENATE("Track2!E",A58+5)),"") -> Craw | F62: =IFERROR(INDIRECT(CONCATENATE("Track2!F",A58+5)),"") -> 00:09:38.630 | G62: =IFERROR(INDIRECT(CONCATENATE("Track2!G",A58+5)),"") ->  | I62: =IFERROR(INDIRECT(CONCATENATE("Track2!I",A58+5)),"") -> 4 | J62: =IFERROR(INDIRECT(CONCATENATE("Track2!J",A58+5)),"") ->  | K62: =IFERROR(INDIRECT(CONCATENATE("Track2!K",A58+5)),"") ->  | L62: =IFERROR(INDIRECT(CONCATENATE("Track2!L",A58+5)),"") ->  | M62: =IFERROR(INDIRECT(CONCATENATE("Track2!M",A58+5)),"") -> X | N62: =IFERROR(INDIRECT(CONCATENATE("Track2!N",A58+5)),"") -> 
B63: =IFERROR(INDIRECT(CONCATENATE("Track2!B",A58+6)),"") -> 5 | C63: =IFERROR(INDIRECT(CONCATENATE("Track2!C",A58+6)),"") -> C | D63: =IFERROR(INDIRECT(CONCATENATE("Track2!D",A58+6)),"") -> ROLLINGS Ben | E63: =IFERROR(INDIRECT(CONCATENATE("Track2!E",A58+6)),"") -> Read | F63: =IFERROR(INDIRECT(CONCATENATE("Track2!F",A58+6)),"") -> 00:10:10.190 | G63: =IFERROR(INDIRECT(CONCATENATE("Track2!G",A58+6)),"") ->  | I63: =IFERROR(INDIRECT(CONCATENATE("Track2!I",A58+6)),"") -> 5 | J63: =IFERROR(INDIRECT(CONCATENATE("Track2!J",A58+6)),"") ->  | K63: =IFERROR(INDIRECT(CONCATENATE("Track2!K",A58+6)),"") ->  | L63: =IFERROR(INDIRECT(CONCATENATE("Track2!L",A58+6)),"") ->  | M63: =IFERROR(INDIRECT(CONCATENATE("Track2!M",A58+6)),"") -> X | N63: =IFERROR(INDIRECT(CONCATENATE("Track2!N",A58+6)),"") -> 
B64: =IFERROR(INDIRECT(CONCATENATE("Track2!B",A58+7)),"") -> 6 | C64: =IFERROR(INDIRECT(CONCATENATE("Track2!C",A58+7)),"") ->  | D64: =IFERROR(INDIRECT(CONCATENATE("Track2!D",A58+7)),"") ->  | E64: =IFERROR(INDIRECT(CONCATENATE("Track2!E",A58+7)),"") ->  | F64: =IFERROR(INDIRECT(CONCATENATE("Track2!F",A58+7)),"") -> X | G64: =IFERROR(INDIRECT(CONCATENATE("Track2!G",A58+7)),"") ->  | I64: =IFERROR(INDIRECT(CONCATENATE("Track2!I",A58+7)),"") -> 6 | J64: =IFERROR(INDIRECT(CONCATENATE("Track2!J",A58+7)),"") ->  | K64: =IFERROR(INDIRECT(CONCATENATE("Track2!K",A58+7)),"") ->  | L64: =IFERROR(INDIRECT(CONCATENATE("Track2!L",A58+7)),"") ->  | M64: =IFERROR(INDIRECT(CONCATENATE("Track2!M",A58+7)),"") -> X | N64: =IFERROR(INDIRECT(CONCATENATE("Track2!N",A58+7)),"") -> 
B65: =IFERROR(INDIRECT(CONCATENATE("Track2!B",A58+8)),"") -> 7 | C65: =IFERROR(INDIRECT(CONCATENATE("Track2!C",A58+8)),"") ->  | D65: =IFERROR(INDIRECT(CONCATENATE("Track2!D",A58+8)),"") ->  | E65: =IFERROR(INDIRECT(CONCATENATE("Track2!E",A58+8)),"") ->  | F65: =IFERROR(INDIRECT(CONCATENATE("Track2!F",A58+8)),"") -> X | G65: =IFERROR(INDIRECT(CONCATENATE("Track2!G",A58+8)),"") ->  | I65: =IFERROR(INDIRECT(CONCATENATE("Track2!I",A58+8)),"") -> 7 | J65: =IFERROR(INDIRECT(CONCATENATE("Track2!J",A58+8)),"") ->  | K65: =IFERROR(INDIRECT(CONCATENATE("Track2!K",A58+8)),"") ->  | L65: =IFERROR(INDIRECT(CONCATENATE("Track2!L",A58+8)),"") ->  | M65: =IFERROR(INDIRECT(CONCATENATE("Track2!M",A58+8)),"") -> X | N65: =IFERROR(INDIRECT(CONCATENATE("Track2!N",A58+8)),"") -> 
B66: =IFERROR(INDIRECT(CONCATENATE("Track2!B",A58+9)),"") -> 8 | C66: =IFERROR(INDIRECT(CONCATENATE("Track2!C",A58+9)),"") ->  | D66: =IFERROR(INDIRECT(CONCATENATE("Track2!D",A58+9)),"") ->  | E66: =IFERROR(INDIRECT(CONCATENATE("Track2!E",A58+9)),"") ->  | F66: =IFERROR(INDIRECT(CONCATENATE("Track2!F",A58+9)),"") -> X | G66: =IFERROR(INDIRECT(CONCATENATE("Track2!G",A58+9)),"") ->  | I66: =IFERROR(INDIRECT(CONCATENATE("Track2!I",A58+9)),"") -> 8 | J66: =IFERROR(INDIRECT(CONCATENATE("Track2!J",A58+9)),"") ->  | K66: =IFERROR(INDIRECT(CONCATENATE("Track2!K",A58+9)),"") ->  | L66: =IFERROR(INDIRECT(CONCATENATE("Track2!L",A58+9)),"") ->  | M66: =IFERROR(INDIRECT(CONCATENATE("Track2!M",A58+9)),"") -> X | N66: =IFERROR(INDIRECT(CONCATENATE("Track2!N",A58+9)),"") -> 
A68: UT15 | B68: =IFERROR(INDIRECT(CONCATENATE("Track1!B",A69)),"") -> 100m Hurdles U17 Men A | E68: Wind | F68: =Track1!F156 -> 0.4 | I68: =IFERROR(INDIRECT(CONCATENATE("Track1!I",A69)),"") -> 100m Hurdles U17 Men B | L68: Wind | M68: =Track1!M156 -> 0.8
A69: =IFERROR(MATCH(A68,Track1!A:A,0),"") -> 156 | B69: =IFERROR(INDIRECT(CONCATENATE("Track1!B",A69+1)),"") -> Posn | C69: =IFERROR(INDIRECT(CONCATENATE("Track1!C",A69+1)),"") -> No. | D69: =IFERROR(INDIRECT(CONCATENATE("Track1!D",A69+1)),"") -> Athlete | E69: =IFERROR(INDIRECT(CONCATENATE("Track1!E",A69+1)),"") -> Club | F69: =IFERROR(INDIRECT(CONCATENATE("Track1!F",A69+1)),"") -> Perf | G69: =IFERROR(INDIRECT(CONCATENATE("Track1!G",A69+1)),"") -> AAA | I69: =IFERROR(INDIRECT(CONCATENATE("Track1!I",A69+1)),"") -> Posn | J69: =IFERROR(INDIRECT(CONCATENATE("Track1!J",A69+1)),"") -> No. | K69: =IFERROR(INDIRECT(CONCATENATE("Track1!K",A69+1)),"") -> Athlete | L69: =IFERROR(INDIRECT(CONCATENATE("Track1!L",A69+1)),"") -> Club | M69: =IFERROR(INDIRECT(CONCATENATE("Track1!M",A69+1)),"") -> Perf | N69: =IFERROR(INDIRECT(CONCATENATE("Track1!N",A69+1)),"") -> AAA
B70: =IFERROR(INDIRECT(CONCATENATE("Track1!B",A69+2)),"") -> 1 | C70: =IFERROR(INDIRECT(CONCATENATE("Track1!C",A69+2)),"") -> F | D70: =IFERROR(INDIRECT(CONCATENATE("Track1!D",A69+2)),"") -> ZELLER Joshua | E70: =IFERROR(INDIRECT(CONCATENATE("Track1!E",A69+2)),"") -> WSEH | F70: =IFERROR(INDIRECT(CONCATENATE("Track1!F",A69+2)),"") -> 13.3 | G70: =IFERROR(INDIRECT(CONCATENATE("Track1!G",A69+2)),"") -> 1 | I70: =IFERROR(INDIRECT(CONCATENATE("Track1!I",A69+2)),"") -> 1 | J70: =IFERROR(INDIRECT(CONCATENATE("Track1!J",A69+2)),"") -> AA | K70: =IFERROR(INDIRECT(CONCATENATE("Track1!K",A69+2)),"") -> COTTELL Rico | L70: =IFERROR(INDIRECT(CONCATENATE("Track1!L",A69+2)),"") -> B&B | M70: =IFERROR(INDIRECT(CONCATENATE("Track1!M",A69+2)),"") -> 14.13 | N70: =IFERROR(INDIRECT(CONCATENATE("Track1!N",A69+2)),"") -> 3 | R70: =IFERROR(INDIRECT(CONCATENATE("Track1!R",$A69+2)),"") -> 1
B71: =IFERROR(INDIRECT(CONCATENATE("Track1!B",A69+3)),"") -> 2 | C71: =IFERROR(INDIRECT(CONCATENATE("Track1!C",A69+3)),"") -> A | D71: =IFERROR(INDIRECT(CONCATENATE("Track1!D",A69+3)),"") -> WATSON Joshua | E71: =IFERROR(INDIRECT(CONCATENATE("Track1!E",A69+3)),"") -> B&B | F71: =IFERROR(INDIRECT(CONCATENATE("Track1!F",A69+3)),"") -> 13.4 | G71: =IFERROR(INDIRECT(CONCATENATE("Track1!G",A69+3)),"") -> 1 | I71: =IFERROR(INDIRECT(CONCATENATE("Track1!I",A69+3)),"") -> 2 | J71: =IFERROR(INDIRECT(CONCATENATE("Track1!J",A69+3)),"") -> FF | K71: =IFERROR(INDIRECT(CONCATENATE("Track1!K",A69+3)),"") -> CLARK Max | L71: =IFERROR(INDIRECT(CONCATENATE("Track1!L",A69+3)),"") -> WSEH | M71: =IFERROR(INDIRECT(CONCATENATE("Track1!M",A69+3)),"") -> 15.22 | N71: =IFERROR(INDIRECT(CONCATENATE("Track1!N",A69+3)),"") -> 4
B72: =IFERROR(INDIRECT(CONCATENATE("Track1!B",A69+4)),"") -> 3 | C72: =IFERROR(INDIRECT(CONCATENATE("Track1!C",A69+4)),"") -> D | D72: =IFERROR(INDIRECT(CONCATENATE("Track1!D",A69+4)),"") -> LAFEUILLE Tyriq | E72: =IFERROR(INDIRECT(CONCATENATE("Track1!E",A69+4)),"") -> SB | F72: =IFERROR(INDIRECT(CONCATENATE("Track1!F",A69+4)),"") -> 15.44 | G72: =IFERROR(INDIRECT(CONCATENATE("Track1!G",A69+4)),"") ->  | I72: =IFERROR(INDIRECT(CONCATENATE("Track1!I",A69+4)),"") -> 3 | J72: =IFERROR(INDIRECT(CONCATENATE("Track1!J",A69+4)),"") -> DD | K72: =IFERROR(INDIRECT(CONCATENATE("Track1!K",A69+4)),"") -> PARKER Ted | L72: =IFERROR(INDIRECT(CONCATENATE("Track1!L",A69+4)),"") -> SB | M72: =IFERROR(INDIRECT(CONCATENATE("Track1!M",A69+4)),"") -> 15.25 | N72: =IFERROR(INDIRECT(CONCATENATE("Track1!N",A69+4)),"") -> 4
B73: =IFERROR(INDIRECT(CONCATENATE("Track1!B",A69+5)),"") -> 4 | C73: =IFERROR(INDIRECT(CONCATENATE("Track1!C",A69+5)),"") -> C | D73: =IFERROR(INDIRECT(CONCATENATE("Track1!D",A69+5)),"") -> ANIMASHAUN Daniel | E73: =IFERROR(INDIRECT(CONCATENATE("Track1!E",A69+5)),"") -> Read | F73: =IFERROR(INDIRECT(CONCATENATE("Track1!F",A69+5)),"") -> 17.5 | G73: =IFERROR(INDIRECT(CONCATENATE("Track1!G",A69+5)),"") ->  | I73: =IFERROR(INDIRECT(CONCATENATE("Track1!I",A69+5)),"") -> 4 | J73: =IFERROR(INDIRECT(CONCATENATE("Track1!J",A69+5)),"") -> 0 | K73: =IFERROR(INDIRECT(CONCATENATE("Track1!K",A69+5)),"") ->  | L73: =IFERROR(INDIRECT(CONCATENATE("Track1!L",A69+5)),"") ->  | M73: =IFERROR(INDIRECT(CONCATENATE("Track1!M",A69+5)),"") -> 0 | N73: =IFERROR(INDIRECT(CONCATENATE("Track1!N",A69+5)),"") -> 
B74: =IFERROR(INDIRECT(CONCATENATE("Track1!B",A69+6)),"") -> 5 | C74: =IFERROR(INDIRECT(CONCATENATE("Track1!C",A69+6)),"") -> 0 | D74: =IFERROR(INDIRECT(CONCATENATE("Track1!D",A69+6)),"") ->  | E74: =IFERROR(INDIRECT(CONCATENATE("Track1!E",A69+6)),"") ->  | F74: =IFERROR(INDIRECT(CONCATENATE("Track1!F",A69+6)),"") -> 0 | G74: =IFERROR(INDIRECT(CONCATENATE("Track1!G",A69+6)),"") ->  | I74: =IFERROR(INDIRECT(CONCATENATE("Track1!I",A69+6)),"") -> 5 | J74: =IFERROR(INDIRECT(CONCATENATE("Track1!J",A69+6)),"") -> 0 | K74: =IFERROR(INDIRECT(CONCATENATE("Track1!K",A69+6)),"") ->  | L74: =IFERROR(INDIRECT(CONCATENATE("Track1!L",A69+6)),"") ->  | M74: =IFERROR(INDIRECT(CONCATENATE("Track1!M",A69+6)),"") -> 0 | N74: =IFERROR(INDIRECT(CONCATENATE("Track1!N",A69+6)),"") -> 
B75: =IFERROR(INDIRECT(CONCATENATE("Track1!B",A69+7)),"") -> 6 | C75: =IFERROR(INDIRECT(CONCATENATE("Track1!C",A69+7)),"") -> 0 | D75: =IFERROR(INDIRECT(CONCATENATE("Track1!D",A69+7)),"") ->  | E75: =IFERROR(INDIRECT(CONCATENATE("Track1!E",A69+7)),"") ->  | F75: =IFERROR(INDIRECT(CONCATENATE("Track1!F",A69+7)),"") -> 0 | G75: =IFERROR(INDIRECT(CONCATENATE("Track1!G",A69+7)),"") ->  | I75: =IFERROR(INDIRECT(CONCATENATE("Track1!I",A69+7)),"") -> 6 | J75: =IFERROR(INDIRECT(CONCATENATE("Track1!J",A69+7)),"") -> 0 | K75: =IFERROR(INDIRECT(CONCATENATE("Track1!K",A69+7)),"") ->  | L75: =IFERROR(INDIRECT(CONCATENATE("Track1!L",A69+7)),"") ->  | M75: =IFERROR(INDIRECT(CONCATENATE("Track1!M",A69+7)),"") -> 0 | N75: =IFERROR(INDIRECT(CONCATENATE("Track1!N",A69+7)),"") -> 
B76: =IFERROR(INDIRECT(CONCATENATE("Track1!B",A69+8)),"") -> 7 | C76: =IFERROR(INDIRECT(CONCATENATE("Track1!C",A69+8)),"") -> 0 | D76: =IFERROR(INDIRECT(CONCATENATE("Track1!D",A69+8)),"") ->  | E76: =IFERROR(INDIRECT(CONCATENATE("Track1!E",A69+8)),"") ->  | F76: =IFERROR(INDIRECT(CONCATENATE("Track1!F",A69+8)),"") -> 0 | G76: =IFERROR(INDIRECT(CONCATENATE("Track1!G",A69+8)),"") ->  | I76: =IFERROR(INDIRECT(CONCATENATE("Track1!I",A69+8)),"") -> 7 | J76: =IFERROR(INDIRECT(CONCATENATE("Track1!J",A69+8)),"") -> 0 | K76: =IFERROR(INDIRECT(CONCATENATE("Track1!K",A69+8)),"") ->  | L76: =IFERROR(INDIRECT(CONCATENATE("Track1!L",A69+8)),"") ->  | M76: =IFERROR(INDIRECT(CONCATENATE("Track1!M",A69+8)),"") -> 0 | N76: =IFERROR(INDIRECT(CONCATENATE("Track1!N",A69+8)),"") -> 
B77: =IFERROR(INDIRECT(CONCATENATE("Track1!B",A69+9)),"") -> 8 | C77: =IFERROR(INDIRECT(CONCATENATE("Track1!C",A69+9)),"") -> 0 | D77: =IFERROR(INDIRECT(CONCATENATE("Track1!D",A69+9)),"") ->  | E77: =IFERROR(INDIRECT(CONCATENATE("Track1!E",A69+9)),"") ->  | F77: =IFERROR(INDIRECT(CONCATENATE("Track1!F",A69+9)),"") -> 0 | G77: =IFERROR(INDIRECT(CONCATENATE("Track1!G",A69+9)),"") ->  | I77: =IFERROR(INDIRECT(CONCATENATE("Track1!I",A69+9)),"") -> 8 | J77: =IFERROR(INDIRECT(CONCATENATE("Track1!J",A69+9)),"") -> 0 | K77: =IFERROR(INDIRECT(CONCATENATE("Track1!K",A69+9)),"") ->  | L77: =IFERROR(INDIRECT(CONCATENATE("Track1!L",A69+9)),"") ->  | M77: =IFERROR(INDIRECT(CONCATENATE("Track1!M",A69+9)),"") -> 0 | N77: =IFERROR(INDIRECT(CONCATENATE("Track1!N",A69+9)),"") -> 
A79: UT02 | B79: =IFERROR(INDIRECT(CONCATENATE("Track1!B",A80)),"") -> 400m Hurdles U17 Men A | I79: =IFERROR(INDIRECT(CONCATENATE("Track1!I",A80)),"") -> 400m Hurdles U17 Men B
A80: =IFERROR(MATCH(A79,Track1!A:A,0),"") -> 13 | B80: =IFERROR(INDIRECT(CONCATENATE("Track1!B",A80+1)),"") -> Posn | C80: =IFERROR(INDIRECT(CONCATENATE("Track1!C",A80+1)),"") -> No. | D80: =IFERROR(INDIRECT(CONCATENATE("Track1!D",A80+1)),"") -> Athlete | E80: =IFERROR(INDIRECT(CONCATENATE("Track1!E",A80+1)),"") -> Club | F80: =IFERROR(INDIRECT(CONCATENATE("Track1!F",A80+1)),"") -> Perf | G80: =IFERROR(INDIRECT(CONCATENATE("Track1!G",A80+1)),"") -> AAA | I80: =IFERROR(INDIRECT(CONCATENATE("Track1!I",A80+1)),"") -> Posn | J80: =IFERROR(INDIRECT(CONCATENATE("Track1!J",A80+1)),"") -> No. | K80: =IFERROR(INDIRECT(CONCATENATE("Track1!K",A80+1)),"") -> Athlete | L80: =IFERROR(INDIRECT(CONCATENATE("Track1!L",A80+1)),"") -> Club | M80: =IFERROR(INDIRECT(CONCATENATE("Track1!M",A80+1)),"") -> Perf | N80: =IFERROR(INDIRECT(CONCATENATE("Track1!N",A80+1)),"") -> AAA
B81: =IFERROR(INDIRECT(CONCATENATE("Track1!B",A80+2)),"") -> 1 | C81: =IFERROR(INDIRECT(CONCATENATE("Track1!C",A80+2)),"") -> A | D81: =IFERROR(INDIRECT(CONCATENATE("Track1!D",A80+2)),"") -> CORRY Coleman | E81: =IFERROR(INDIRECT(CONCATENATE("Track1!E",A80+2)),"") -> B&B | F81: =IFERROR(INDIRECT(CONCATENATE("Track1!F",A80+2)),"") -> 56.96 | G81: =IFERROR(INDIRECT(CONCATENATE("Track1!G",A80+2)),"") -> 2 | I81: =IFERROR(INDIRECT(CONCATENATE("Track1!I",A80+2)),"") -> 1 | J81: =IFERROR(INDIRECT(CONCATENATE("Track1!J",A80+2)),"") -> AA | K81: =IFERROR(INDIRECT(CONCATENATE("Track1!K",A80+2)),"") -> RAJU Caelan | L81: =IFERROR(INDIRECT(CONCATENATE("Track1!L",A80+2)),"") -> B&B | M81: =IFERROR(INDIRECT(CONCATENATE("Track1!M",A80+2)),"") -> 63.18 | N81: =IFERROR(INDIRECT(CONCATENATE("Track1!N",A80+2)),"") ->  | R81: =IFERROR(INDIRECT(CONCATENATE("Track1!R",$A80+2)),"") -> 1
B82: =IFERROR(INDIRECT(CONCATENATE("Track1!B",A80+3)),"") -> 2 | C82: =IFERROR(INDIRECT(CONCATENATE("Track1!C",A80+3)),"") -> D | D82: =IFERROR(INDIRECT(CONCATENATE("Track1!D",A80+3)),"") -> LAFEUILLE Tyriq | E82: =IFERROR(INDIRECT(CONCATENATE("Track1!E",A80+3)),"") -> SB | F82: =IFERROR(INDIRECT(CONCATENATE("Track1!F",A80+3)),"") -> 59.22 | G82: =IFERROR(INDIRECT(CONCATENATE("Track1!G",A80+3)),"") ->  | I82: =IFERROR(INDIRECT(CONCATENATE("Track1!I",A80+3)),"") -> 2 | J82: =IFERROR(INDIRECT(CONCATENATE("Track1!J",A80+3)),"") -> DD | K82: =IFERROR(INDIRECT(CONCATENATE("Track1!K",A80+3)),"") -> PARKER Ted | L82: =IFERROR(INDIRECT(CONCATENATE("Track1!L",A80+3)),"") -> SB | M82: =IFERROR(INDIRECT(CONCATENATE("Track1!M",A80+3)),"") -> 64.86 | N82: =IFERROR(INDIRECT(CONCATENATE("Track1!N",A80+3)),"") -> 
B83: =IFERROR(INDIRECT(CONCATENATE("Track1!B",A80+4)),"") -> 3 | C83: =IFERROR(INDIRECT(CONCATENATE("Track1!C",A80+4)),"") -> E | D83: =IFERROR(INDIRECT(CONCATENATE("Track1!D",A80+4)),"") -> WILLIAMS Charlie | E83: =IFERROR(INDIRECT(CONCATENATE("Track1!E",A80+4)),"") -> Norfolk | F83: =IFERROR(INDIRECT(CONCATENATE("Track1!F",A80+4)),"") -> 65.3 | G83: =IFERROR(INDIRECT(CONCATENATE("Track1!G",A80+4)),"") ->  | I83: =IFERROR(INDIRECT(CONCATENATE("Track1!I",A80+4)),"") -> 3 | J83: =IFERROR(INDIRECT(CONCATENATE("Track1!J",A80+4)),"") -> FF | K83: =IFERROR(INDIRECT(CONCATENATE("Track1!K",A80+4)),"") -> MELBOURNE Abraham | L83: =IFERROR(INDIRECT(CONCATENATE("Track1!L",A80+4)),"") -> WSEH | M83: =IFERROR(INDIRECT(CONCATENATE("Track1!M",A80+4)),"") -> 66.49 | N83: =IFERROR(INDIRECT(CONCATENATE("Track1!N",A80+4)),"") -> 
B84: =IFERROR(INDIRECT(CONCATENATE("Track1!B",A80+5)),"") -> 4 | C84: =IFERROR(INDIRECT(CONCATENATE("Track1!C",A80+5)),"") -> F | D84: =IFERROR(INDIRECT(CONCATENATE("Track1!D",A80+5)),"") -> KUSELAN Vaitshnavan | E84: =IFERROR(INDIRECT(CONCATENATE("Track1!E",A80+5)),"") -> WSEH | F84: =IFERROR(INDIRECT(CONCATENATE("Track1!F",A80+5)),"") -> 67.19 | G84: =IFERROR(INDIRECT(CONCATENATE("Track1!G",A80+5)),"") ->  | I84: =IFERROR(INDIRECT(CONCATENATE("Track1!I",A80+5)),"") -> 4 | J84: =IFERROR(INDIRECT(CONCATENATE("Track1!J",A80+5)),"") -> 0 | K84: =IFERROR(INDIRECT(CONCATENATE("Track1!K",A80+5)),"") ->  | L84: =IFERROR(INDIRECT(CONCATENATE("Track1!L",A80+5)),"") ->  | M84: =IFERROR(INDIRECT(CONCATENATE("Track1!M",A80+5)),"") -> 0 | N84: =IFERROR(INDIRECT(CONCATENATE("Track1!N",A80+5)),"") -> 
B85: =IFERROR(INDIRECT(CONCATENATE("Track1!B",A80+6)),"") -> 5 | C85: =IFERROR(INDIRECT(CONCATENATE("Track1!C",A80+6)),"") -> C | D85: =IFERROR(INDIRECT(CONCATENATE("Track1!D",A80+6)),"") -> ANIMASHAUN Daniel | E85: =IFERROR(INDIRECT(CONCATENATE("Track1!E",A80+6)),"") -> Read | F85: =IFERROR(INDIRECT(CONCATENATE("Track1!F",A80+6)),"") -> 73.88 | G85: =IFERROR(INDIRECT(CONCATENATE("Track1!G",A80+6)),"") ->  | I85: =IFERROR(INDIRECT(CONCATENATE("Track1!I",A80+6)),"") -> 5 | J85: =IFERROR(INDIRECT(CONCATENATE("Track1!J",A80+6)),"") -> 0 | K85: =IFERROR(INDIRECT(CONCATENATE("Track1!K",A80+6)),"") ->  | L85: =IFERROR(INDIRECT(CONCATENATE("Track1!L",A80+6)),"") ->  | M85: =IFERROR(INDIRECT(CONCATENATE("Track1!M",A80+6)),"") -> 0 | N85: =IFERROR(INDIRECT(CONCATENATE("Track1!N",A80+6)),"") -> 
B86: =IFERROR(INDIRECT(CONCATENATE("Track1!B",A80+7)),"") -> 6 | C86: =IFERROR(INDIRECT(CONCATENATE("Track1!C",A80+7)),"") -> 0 | D86: =IFERROR(INDIRECT(CONCATENATE("Track1!D",A80+7)),"") ->  | E86: =IFERROR(INDIRECT(CONCATENATE("Track1!E",A80+7)),"") ->  | F86: =IFERROR(INDIRECT(CONCATENATE("Track1!F",A80+7)),"") -> 0 | G86: =IFERROR(INDIRECT(CONCATENATE("Track1!G",A80+7)),"") ->  | I86: =IFERROR(INDIRECT(CONCATENATE("Track1!I",A80+7)),"") -> 6 | J86: =IFERROR(INDIRECT(CONCATENATE("Track1!J",A80+7)),"") -> 0 | K86: =IFERROR(INDIRECT(CONCATENATE("Track1!K",A80+7)),"") ->  | L86: =IFERROR(INDIRECT(CONCATENATE("Track1!L",A80+7)),"") ->  | M86: =IFERROR(INDIRECT(CONCATENATE("Track1!M",A80+7)),"") -> 0 | N86: =IFERROR(INDIRECT(CONCATENATE("Track1!N",A80+7)),"") -> 
B87: =IFERROR(INDIRECT(CONCATENATE("Track1!B",A80+8)),"") -> 7 | C87: =IFERROR(INDIRECT(CONCATENATE("Track1!C",A80+8)),"") -> 0 | D87: =IFERROR(INDIRECT(CONCATENATE("Track1!D",A80+8)),"") ->  | E87: =IFERROR(INDIRECT(CONCATENATE("Track1!E",A80+8)),"") ->  | F87: =IFERROR(INDIRECT(CONCATENATE("Track1!F",A80+8)),"") -> 0 | G87: =IFERROR(INDIRECT(CONCATENATE("Track1!G",A80+8)),"") ->  | I87: =IFERROR(INDIRECT(CONCATENATE("Track1!I",A80+8)),"") -> 7 | J87: =IFERROR(INDIRECT(CONCATENATE("Track1!J",A80+8)),"") -> 0 | K87: =IFERROR(INDIRECT(CONCATENATE("Track1!K",A80+8)),"") ->  | L87: =IFERROR(INDIRECT(CONCATENATE("Track1!L",A80+8)),"") ->  | M87: =IFERROR(INDIRECT(CONCATENATE("Track1!M",A80+8)),"") -> 0 | N87: =IFERROR(INDIRECT(CONCATENATE("Track1!N",A80+8)),"") -> 
B88: =IFERROR(INDIRECT(CONCATENATE("Track1!B",A80+9)),"") -> 8 | C88: =IFERROR(INDIRECT(CONCATENATE("Track1!C",A80+9)),"") -> 0 | D88: =IFERROR(INDIRECT(CONCATENATE("Track1!D",A80+9)),"") ->  | E88: =IFERROR(INDIRECT(CONCATENATE("Track1!E",A80+9)),"") ->  | F88: =IFERROR(INDIRECT(CONCATENATE("Track1!F",A80+9)),"") -> 0 | G88: =IFERROR(INDIRECT(CONCATENATE("Track1!G",A80+9)),"") ->  | I88: =IFERROR(INDIRECT(CONCATENATE("Track1!I",A80+9)),"") -> 8 | J88: =IFERROR(INDIRECT(CONCATENATE("Track1!J",A80+9)),"") -> 0 | K88: =IFERROR(INDIRECT(CONCATENATE("Track1!K",A80+9)),"") ->  | L88: =IFERROR(INDIRECT(CONCATENATE("Track1!L",A80+9)),"") ->  | M88: =IFERROR(INDIRECT(CONCATENATE("Track1!M",A80+9)),"") -> 0 | N88: =IFERROR(INDIRECT(CONCATENATE("Track1!N",A80+9)),"") -> 
A90: UTD12 | B90: =IFERROR(INDIRECT(CONCATENATE("Track2!B",A91)),"") -> 1500m s/c U17 Men A | I90: =IFERROR(INDIRECT(CONCATENATE("Track2!I",A91)),"") -> 1500m s/c U17 Men B
A91: =IFERROR(MATCH(A90,Track2!A:A,0),"") -> 123 | B91: =IFERROR(INDIRECT(CONCATENATE("Track2!B",A91+1)),"") -> Posn | C91: =IFERROR(INDIRECT(CONCATENATE("Track2!C",A91+1)),"") -> No. | D91: =IFERROR(INDIRECT(CONCATENATE("Track2!D",A91+1)),"") -> Athlete | E91: =IFERROR(INDIRECT(CONCATENATE("Track2!E",A91+1)),"") -> Club | F91: =IFERROR(INDIRECT(CONCATENATE("Track2!F",A91+1)),"") -> Perf | G91: =IFERROR(INDIRECT(CONCATENATE("Track2!G",A91+1)),"") -> AAA | I91: =IFERROR(INDIRECT(CONCATENATE("Track2!I",A91+1)),"") -> Posn | J91: =IFERROR(INDIRECT(CONCATENATE("Track2!J",A91+1)),"") -> No. | K91: =IFERROR(INDIRECT(CONCATENATE("Track2!K",A91+1)),"") -> Athlete | L91: =IFERROR(INDIRECT(CONCATENATE("Track2!L",A91+1)),"") -> Club | M91: =IFERROR(INDIRECT(CONCATENATE("Track2!M",A91+1)),"") -> Perf | N91: =IFERROR(INDIRECT(CONCATENATE("Track2!N",A91+1)),"") -> AAA
B92: =IFERROR(INDIRECT(CONCATENATE("Track2!B",A91+2)),"") -> 1 | C92: =IFERROR(INDIRECT(CONCATENATE("Track2!C",A91+2)),"") -> A | D92: =IFERROR(INDIRECT(CONCATENATE("Track2!D",A91+2)),"") -> ENSER Aaron | E92: =IFERROR(INDIRECT(CONCATENATE("Track2!E",A91+2)),"") -> B&B | F92: =IFERROR(INDIRECT(CONCATENATE("Track2!F",A91+2)),"") -> 00:04:29.430 | G92: =IFERROR(INDIRECT(CONCATENATE("Track2!G",A91+2)),"") ->  | I92: =IFERROR(INDIRECT(CONCATENATE("Track2!I",A91+2)),"") -> 1 | J92: =IFERROR(INDIRECT(CONCATENATE("Track2!J",A91+2)),"") -> FF | K92: =IFERROR(INDIRECT(CONCATENATE("Track2!K",A91+2)),"") -> MCARTHUR Oliver | L92: =IFERROR(INDIRECT(CONCATENATE("Track2!L",A91+2)),"") -> WSEH | M92: =IFERROR(INDIRECT(CONCATENATE("Track2!M",A91+2)),"") -> 00:04:37.350 | N92: =IFERROR(INDIRECT(CONCATENATE("Track2!N",A91+2)),"") ->  | R92: =IFERROR(INDIRECT(CONCATENATE("Track2!R",$A91+2)),"") -> 1
B93: =IFERROR(INDIRECT(CONCATENATE("Track2!B",A91+3)),"") -> 2 | C93: =IFERROR(INDIRECT(CONCATENATE("Track2!C",A91+3)),"") -> B | D93: =IFERROR(INDIRECT(CONCATENATE("Track2!D",A91+3)),"") -> COOPER Maxwell | E93: =IFERROR(INDIRECT(CONCATENATE("Track2!E",A91+3)),"") -> Craw | F93: =IFERROR(INDIRECT(CONCATENATE("Track2!F",A91+3)),"") -> 00:04:32.940 | G93: =IFERROR(INDIRECT(CONCATENATE("Track2!G",A91+3)),"") ->  | I93: =IFERROR(INDIRECT(CONCATENATE("Track2!I",A91+3)),"") -> 2 | J93: =IFERROR(INDIRECT(CONCATENATE("Track2!J",A91+3)),"") -> AA | K93: =IFERROR(INDIRECT(CONCATENATE("Track2!K",A91+3)),"") -> REID Prince | L93: =IFERROR(INDIRECT(CONCATENATE("Track2!L",A91+3)),"") -> B&B | M93: =IFERROR(INDIRECT(CONCATENATE("Track2!M",A91+3)),"") -> 00:05:01.510 | N93: =IFERROR(INDIRECT(CONCATENATE("Track2!N",A91+3)),"") -> 
B94: =IFERROR(INDIRECT(CONCATENATE("Track2!B",A91+4)),"") -> 3 | C94: =IFERROR(INDIRECT(CONCATENATE("Track2!C",A91+4)),"") -> F | D94: =IFERROR(INDIRECT(CONCATENATE("Track2!D",A91+4)),"") -> HUDSON Shaun | E94: =IFERROR(INDIRECT(CONCATENATE("Track2!E",A91+4)),"") -> WSEH | F94: =IFERROR(INDIRECT(CONCATENATE("Track2!F",A91+4)),"") -> 00:04:37.290 | G94: =IFERROR(INDIRECT(CONCATENATE("Track2!G",A91+4)),"") ->  | I94: =IFERROR(INDIRECT(CONCATENATE("Track2!I",A91+4)),"") -> 3 | J94: =IFERROR(INDIRECT(CONCATENATE("Track2!J",A91+4)),"") ->  | K94: =IFERROR(INDIRECT(CONCATENATE("Track2!K",A91+4)),"") ->  | L94: =IFERROR(INDIRECT(CONCATENATE("Track2!L",A91+4)),"") ->  | M94: =IFERROR(INDIRECT(CONCATENATE("Track2!M",A91+4)),"") -> X | N94: =IFERROR(INDIRECT(CONCATENATE("Track2!N",A91+4)),"") -> 
B95: =IFERROR(INDIRECT(CONCATENATE("Track2!B",A91+5)),"") -> 4 | C95: =IFERROR(INDIRECT(CONCATENATE("Track2!C",A91+5)),"") ->  | D95: =IFERROR(INDIRECT(CONCATENATE("Track2!D",A91+5)),"") ->  | E95: =IFERROR(INDIRECT(CONCATENATE("Track2!E",A91+5)),"") ->  | F95: =IFERROR(INDIRECT(CONCATENATE("Track2!F",A91+5)),"") -> X | G95: =IFERROR(INDIRECT(CONCATENATE("Track2!G",A91+5)),"") ->  | I95: =IFERROR(INDIRECT(CONCATENATE("Track2!I",A91+5)),"") -> 4 | J95: =IFERROR(INDIRECT(CONCATENATE("Track2!J",A91+5)),"") ->  | K95: =IFERROR(INDIRECT(CONCATENATE("Track2!K",A91+5)),"") ->  | L95: =IFERROR(INDIRECT(CONCATENATE("Track2!L",A91+5)),"") ->  | M95: =IFERROR(INDIRECT(CONCATENATE("Track2!M",A91+5)),"") -> X | N95: =IFERROR(INDIRECT(CONCATENATE("Track2!N",A91+5)),"") -> 
B96: =IFERROR(INDIRECT(CONCATENATE("Track2!B",A91+6)),"") -> 5 | C96: =IFERROR(INDIRECT(CONCATENATE("Track2!C",A91+6)),"") ->  | D96: =IFERROR(INDIRECT(CONCATENATE("Track2!D",A91+6)),"") ->  | E96: =IFERROR(INDIRECT(CONCATENATE("Track2!E",A91+6)),"") ->  | F96: =IFERROR(INDIRECT(CONCATENATE("Track2!F",A91+6)),"") -> X | G96: =IFERROR(INDIRECT(CONCATENATE("Track2!G",A91+6)),"") ->  | I96: =IFERROR(INDIRECT(CONCATENATE("Track2!I",A91+6)),"") -> 5 | J96: =IFERROR(INDIRECT(CONCATENATE("Track2!J",A91+6)),"") ->  | K96: =IFERROR(INDIRECT(CONCATENATE("Track2!K",A91+6)),"") ->  | L96: =IFERROR(INDIRECT(CONCATENATE("Track2!L",A91+6)),"") ->  | M96: =IFERROR(INDIRECT(CONCATENATE("Track2!M",A91+6)),"") -> X | N96: =IFERROR(INDIRECT(CONCATENATE("Track2!N",A91+6)),"") -> 
B97: =IFERROR(INDIRECT(CONCATENATE("Track2!B",A91+7)),"") -> 6 | C97: =IFERROR(INDIRECT(CONCATENATE("Track2!C",A91+7)),"") ->  | D97: =IFERROR(INDIRECT(CONCATENATE("Track2!D",A91+7)),"") ->  | E97: =IFERROR(INDIRECT(CONCATENATE("Track2!E",A91+7)),"") ->  | F97: =IFERROR(INDIRECT(CONCATENATE("Track2!F",A91+7)),"") -> X | G97: =IFERROR(INDIRECT(CONCATENATE("Track2!G",A91+7)),"") ->  | I97: =IFERROR(INDIRECT(CONCATENATE("Track2!I",A91+7)),"") -> 6 | J97: =IFERROR(INDIRECT(CONCATENATE("Track2!J",A91+7)),"") ->  | K97: =IFERROR(INDIRECT(CONCATENATE("Track2!K",A91+7)),"") ->  | L97: =IFERROR(INDIRECT(CONCATENATE("Track2!L",A91+7)),"") ->  | M97: =IFERROR(INDIRECT(CONCATENATE("Track2!M",A91+7)),"") -> X | N97: =IFERROR(INDIRECT(CONCATENATE("Track2!N",A91+7)),"") -> 
B98: =IFERROR(INDIRECT(CONCATENATE("Track2!B",A91+8)),"") -> 7 | C98: =IFERROR(INDIRECT(CONCATENATE("Track2!C",A91+8)),"") ->  | D98: =IFERROR(INDIRECT(CONCATENATE("Track2!D",A91+8)),"") ->  | E98: =IFERROR(INDIRECT(CONCATENATE("Track2!E",A91+8)),"") ->  | F98: =IFERROR(INDIRECT(CONCATENATE("Track2!F",A91+8)),"") -> X | G98: =IFERROR(INDIRECT(CONCATENATE("Track2!G",A91+8)),"") ->  | I98: =IFERROR(INDIRECT(CONCATENATE("Track2!I",A91+8)),"") -> 7 | J98: =IFERROR(INDIRECT(CONCATENATE("Track2!J",A91+8)),"") ->  | K98: =IFERROR(INDIRECT(CONCATENATE("Track2!K",A91+8)),"") ->  | L98: =IFERROR(INDIRECT(CONCATENATE("Track2!L",A91+8)),"") ->  | M98: =IFERROR(INDIRECT(CONCATENATE("Track2!M",A91+8)),"") -> X | N98: =IFERROR(INDIRECT(CONCATENATE("Track2!N",A91+8)),"") -> 
B99: =IFERROR(INDIRECT(CONCATENATE("Track2!B",A91+9)),"") -> 8 | C99: =IFERROR(INDIRECT(CONCATENATE("Track2!C",A91+9)),"") ->  | D99: =IFERROR(INDIRECT(CONCATENATE("Track2!D",A91+9)),"") ->  | E99: =IFERROR(INDIRECT(CONCATENATE("Track2!E",A91+9)),"") ->  | F99: =IFERROR(INDIRECT(CONCATENATE("Track2!F",A91+9)),"") -> X | G99: =IFERROR(INDIRECT(CONCATENATE("Track2!G",A91+9)),"") ->  | I99: =IFERROR(INDIRECT(CONCATENATE("Track2!I",A91+9)),"") -> 8 | J99: =IFERROR(INDIRECT(CONCATENATE("Track2!J",A91+9)),"") ->  | K99: =IFERROR(INDIRECT(CONCATENATE("Track2!K",A91+9)),"") ->  | L99: =IFERROR(INDIRECT(CONCATENATE("Track2!L",A91+9)),"") ->  | M99: =IFERROR(INDIRECT(CONCATENATE("Track2!M",A91+9)),"") -> X | N99: =IFERROR(INDIRECT(CONCATENATE("Track2!N",A91+9)),"") -> 
A101: UFW02 | B101: =IFERROR(INDIRECT(CONCATENATE("Field!B",A102)),"") -> Long Jump U17 Men A | I101: =IFERROR(INDIRECT(CONCATENATE("Field!I",A102)),"") -> Long Jump U17 Men B
A102: =IFERROR(MATCH(A101,Field!A:A,0),"") -> 189 | B102: =IFERROR(INDIRECT(CONCATENATE("Field!B",A102+1)),"") -> Posn | C102: =IFERROR(INDIRECT(CONCATENATE("Field!C",A102+1)),"") -> Bib | D102: =IFERROR(INDIRECT(CONCATENATE("Field!D",A102+1)),"") -> Athlete | E102: =IFERROR(INDIRECT(CONCATENATE("Field!E",A102+1)),"") -> Club | F102: =IFERROR(INDIRECT(CONCATENATE("Field!F",A102+1)),"") -> Perf | G102: =IFERROR(INDIRECT(CONCATENATE("Field!G",A102+1)),"") -> AAA | I102: =IFERROR(INDIRECT(CONCATENATE("Field!I",A102+1)),"") -> Posn | J102: =IFERROR(INDIRECT(CONCATENATE("Field!J",A102+1)),"") -> Bib | K102: =IFERROR(INDIRECT(CONCATENATE("Field!K",A102+1)),"") -> Athlete | L102: =IFERROR(INDIRECT(CONCATENATE("Field!L",A102+1)),"") -> Club | M102: =IFERROR(INDIRECT(CONCATENATE("Field!M",A102+1)),"") -> Perf | N102: =IFERROR(INDIRECT(CONCATENATE("Field!N",A102+1)),"") -> AAA
B103: =IFERROR(INDIRECT(CONCATENATE("Field!B",A102+2)),"") -> 1 | C103: =IFERROR(INDIRECT(CONCATENATE("Field!C",A102+2)),"") -> A | D103: =IFERROR(INDIRECT(CONCATENATE("Field!D",A102+2)),"") -> SUTTON Ben | E103: =IFERROR(INDIRECT(CONCATENATE("Field!E",A102+2)),"") -> B&B | F103: =IFERROR(INDIRECT(CONCATENATE("Field!F",A102+2)),"") -> 6.36 | G103: =IFERROR(INDIRECT(CONCATENATE("Field!G",A102+2)),"") -> 1 | I103: =IFERROR(INDIRECT(CONCATENATE("Field!I",A102+2)),"") -> 1 | J103: =IFERROR(INDIRECT(CONCATENATE("Field!J",A102+2)),"") -> AA | K103: =IFERROR(INDIRECT(CONCATENATE("Field!K",A102+2)),"") -> THORNE harrison | L103: =IFERROR(INDIRECT(CONCATENATE("Field!L",A102+2)),"") -> B&B | M103: =IFERROR(INDIRECT(CONCATENATE("Field!M",A102+2)),"") -> 6.1 | N103: =IFERROR(INDIRECT(CONCATENATE("Field!N",A102+2)),"") -> 3 | R103: =IFERROR(INDIRECT(CONCATENATE("Field!R",$A102+2)),"") -> 1
B104: =IFERROR(INDIRECT(CONCATENATE("Field!B",A102+3)),"") -> 2 | C104: =IFERROR(INDIRECT(CONCATENATE("Field!C",A102+3)),"") -> DD | D104: =IFERROR(INDIRECT(CONCATENATE("Field!D",A102+3)),"") -> THOMAS Robert | E104: =IFERROR(INDIRECT(CONCATENATE("Field!E",A102+3)),"") -> SB | F104: =IFERROR(INDIRECT(CONCATENATE("Field!F",A102+3)),"") -> 6.06 | G104: =IFERROR(INDIRECT(CONCATENATE("Field!G",A102+3)),"") -> 3 | I104: =IFERROR(INDIRECT(CONCATENATE("Field!I",A102+3)),"") -> 2 | J104: =IFERROR(INDIRECT(CONCATENATE("Field!J",A102+3)),"") -> D | K104: =IFERROR(INDIRECT(CONCATENATE("Field!K",A102+3)),"") -> ADEBAKIN Michael | L104: =IFERROR(INDIRECT(CONCATENATE("Field!L",A102+3)),"") -> SB | M104: =IFERROR(INDIRECT(CONCATENATE("Field!M",A102+3)),"") -> 5.92 | N104: =IFERROR(INDIRECT(CONCATENATE("Field!N",A102+3)),"") -> 4
B105: =IFERROR(INDIRECT(CONCATENATE("Field!B",A102+4)),"") -> 3 | C105: =IFERROR(INDIRECT(CONCATENATE("Field!C",A102+4)),"") -> E | D105: =IFERROR(INDIRECT(CONCATENATE("Field!D",A102+4)),"") -> ALBROW Louis | E105: =IFERROR(INDIRECT(CONCATENATE("Field!E",A102+4)),"") -> Norfolk | F105: =IFERROR(INDIRECT(CONCATENATE("Field!F",A102+4)),"") -> 5.53 | G105: =IFERROR(INDIRECT(CONCATENATE("Field!G",A102+4)),"") ->  | I105: =IFERROR(INDIRECT(CONCATENATE("Field!I",A102+4)),"") -> 3 | J105: =IFERROR(INDIRECT(CONCATENATE("Field!J",A102+4)),"") -> C | K105: =IFERROR(INDIRECT(CONCATENATE("Field!K",A102+4)),"") -> MATTHEWS Oliver | L105: =IFERROR(INDIRECT(CONCATENATE("Field!L",A102+4)),"") -> Read | M105: =IFERROR(INDIRECT(CONCATENATE("Field!M",A102+4)),"") -> 5.09 | N105: =IFERROR(INDIRECT(CONCATENATE("Field!N",A102+4)),"") -> 
B106: =IFERROR(INDIRECT(CONCATENATE("Field!B",A102+5)),"") -> 4 | C106: =IFERROR(INDIRECT(CONCATENATE("Field!C",A102+5)),"") -> B | D106: =IFERROR(INDIRECT(CONCATENATE("Field!D",A102+5)),"") -> HAYWARD Morgan | E106: =IFERROR(INDIRECT(CONCATENATE("Field!E",A102+5)),"") -> Craw | F106: =IFERROR(INDIRECT(CONCATENATE("Field!F",A102+5)),"") -> 5.49 | G106: =IFERROR(INDIRECT(CONCATENATE("Field!G",A102+5)),"") ->  | I106: =IFERROR(INDIRECT(CONCATENATE("Field!I",A102+5)),"") -> 4 | J106: =IFERROR(INDIRECT(CONCATENATE("Field!J",A102+5)),"") ->  | K106: =IFERROR(INDIRECT(CONCATENATE("Field!K",A102+5)),"") ->  | L106: =IFERROR(INDIRECT(CONCATENATE("Field!L",A102+5)),"") ->  | M106: =IFERROR(INDIRECT(CONCATENATE("Field!M",A102+5)),"") ->  | N106: =IFERROR(INDIRECT(CONCATENATE("Field!N",A102+5)),"") -> 
B107: =IFERROR(INDIRECT(CONCATENATE("Field!B",A102+6)),"") -> 5 | C107: =IFERROR(INDIRECT(CONCATENATE("Field!C",A102+6)),"") -> CC | D107: =IFERROR(INDIRECT(CONCATENATE("Field!D",A102+6)),"") -> SAYER Oliver | E107: =IFERROR(INDIRECT(CONCATENATE("Field!E",A102+6)),"") -> Read | F107: =IFERROR(INDIRECT(CONCATENATE("Field!F",A102+6)),"") -> 5.38 | G107: =IFERROR(INDIRECT(CONCATENATE("Field!G",A102+6)),"") ->  | I107: =IFERROR(INDIRECT(CONCATENATE("Field!I",A102+6)),"") -> 5 | J107: =IFERROR(INDIRECT(CONCATENATE("Field!J",A102+6)),"") ->  | K107: =IFERROR(INDIRECT(CONCATENATE("Field!K",A102+6)),"") ->  | L107: =IFERROR(INDIRECT(CONCATENATE("Field!L",A102+6)),"") ->  | M107: =IFERROR(INDIRECT(CONCATENATE("Field!M",A102+6)),"") ->  | N107: =IFERROR(INDIRECT(CONCATENATE("Field!N",A102+6)),"") -> 
B108: =IFERROR(INDIRECT(CONCATENATE("Field!B",A102+7)),"") -> 6 | C108: =IFERROR(INDIRECT(CONCATENATE("Field!C",A102+7)),"") -> F | D108: =IFERROR(INDIRECT(CONCATENATE("Field!D",A102+7)),"") -> LAMBERT Kam-Cheung | E108: =IFERROR(INDIRECT(CONCATENATE("Field!E",A102+7)),"") -> WSEH | F108: =IFERROR(INDIRECT(CONCATENATE("Field!F",A102+7)),"") -> 4.99 | G108: =IFERROR(INDIRECT(CONCATENATE("Field!G",A102+7)),"") ->  | I108: =IFERROR(INDIRECT(CONCATENATE("Field!I",A102+7)),"") -> 6 | J108: =IFERROR(INDIRECT(CONCATENATE("Field!J",A102+7)),"") ->  | K108: =IFERROR(INDIRECT(CONCATENATE("Field!K",A102+7)),"") ->  | L108: =IFERROR(INDIRECT(CONCATENATE("Field!L",A102+7)),"") ->  | M108: =IFERROR(INDIRECT(CONCATENATE("Field!M",A102+7)),"") ->  | N108: =IFERROR(INDIRECT(CONCATENATE("Field!N",A102+7)),"") -> 
B109: =IFERROR(INDIRECT(CONCATENATE("Field!B",A102+8)),"") -> 7 | C109: =IFERROR(INDIRECT(CONCATENATE("Field!C",A102+8)),"") ->  | D109: =IFERROR(INDIRECT(CONCATENATE("Field!D",A102+8)),"") ->  | E109: =IFERROR(INDIRECT(CONCATENATE("Field!E",A102+8)),"") ->  | F109: =IFERROR(INDIRECT(CONCATENATE("Field!F",A102+8)),"") ->  | G109: =IFERROR(INDIRECT(CONCATENATE("Field!G",A102+8)),"") ->  | I109: =IFERROR(INDIRECT(CONCATENATE("Field!I",A102+8)),"") -> 7 | J109: =IFERROR(INDIRECT(CONCATENATE("Field!J",A102+8)),"") ->  | K109: =IFERROR(INDIRECT(CONCATENATE("Field!K",A102+8)),"") ->  | L109: =IFERROR(INDIRECT(CONCATENATE("Field!L",A102+8)),"") ->  | M109: =IFERROR(INDIRECT(CONCATENATE("Field!M",A102+8)),"") ->  | N109: =IFERROR(INDIRECT(CONCATENATE("Field!N",A102+8)),"") -> 
B110: =IFERROR(INDIRECT(CONCATENATE("Field!B",A102+9)),"") -> 8 | C110: =IFERROR(INDIRECT(CONCATENATE("Field!C",A102+9)),"") ->  | D110: =IFERROR(INDIRECT(CONCATENATE("Field!D",A102+9)),"") ->  | E110: =IFERROR(INDIRECT(CONCATENATE("Field!E",A102+9)),"") ->  | F110: =IFERROR(INDIRECT(CONCATENATE("Field!F",A102+9)),"") ->  | G110: =IFERROR(INDIRECT(CONCATENATE("Field!G",A102+9)),"") ->  | I110: =IFERROR(INDIRECT(CONCATENATE("Field!I",A102+9)),"") -> 8 | J110: =IFERROR(INDIRECT(CONCATENATE("Field!J",A102+9)),"") ->  | K110: =IFERROR(INDIRECT(CONCATENATE("Field!K",A102+9)),"") ->  | L110: =IFERROR(INDIRECT(CONCATENATE("Field!L",A102+9)),"") ->  | M110: =IFERROR(INDIRECT(CONCATENATE("Field!M",A102+9)),"") ->  | N110: =IFERROR(INDIRECT(CONCATENATE("Field!N",A102+9)),"") -> 
A112: UFH04 | B112: =IFERROR(INDIRECT(CONCATENATE("Field!B",A113)),"") -> High Jump U17 Men A | I112: =IFERROR(INDIRECT(CONCATENATE("Field!I",A113)),"") -> High Jump U17 Men B
A113: =IFERROR(MATCH(A112,Field!A:A,0),"") -> 299 | B113: =IFERROR(INDIRECT(CONCATENATE("Field!B",A113+1)),"") -> Posn | C113: =IFERROR(INDIRECT(CONCATENATE("Field!C",A113+1)),"") -> Bib | D113: =IFERROR(INDIRECT(CONCATENATE("Field!D",A113+1)),"") -> Athlete | E113: =IFERROR(INDIRECT(CONCATENATE("Field!E",A113+1)),"") -> Club | F113: =IFERROR(INDIRECT(CONCATENATE("Field!F",A113+1)),"") -> Perf | G113: =IFERROR(INDIRECT(CONCATENATE("Field!G",A113+1)),"") -> AAA | I113: =IFERROR(INDIRECT(CONCATENATE("Field!I",A113+1)),"") -> Posn | J113: =IFERROR(INDIRECT(CONCATENATE("Field!J",A113+1)),"") -> Bib | K113: =IFERROR(INDIRECT(CONCATENATE("Field!K",A113+1)),"") -> Athlete | L113: =IFERROR(INDIRECT(CONCATENATE("Field!L",A113+1)),"") -> Club | M113: =IFERROR(INDIRECT(CONCATENATE("Field!M",A113+1)),"") -> Perf | N113: =IFERROR(INDIRECT(CONCATENATE("Field!N",A113+1)),"") -> AAA
B114: =IFERROR(INDIRECT(CONCATENATE("Field!B",A113+2)),"") -> 1 | C114: =IFERROR(INDIRECT(CONCATENATE("Field!C",A113+2)),"") -> A | D114: =IFERROR(INDIRECT(CONCATENATE("Field!D",A113+2)),"") -> COTTELL Rico | E114: =IFERROR(INDIRECT(CONCATENATE("Field!E",A113+2)),"") -> B&B | F114: =IFERROR(INDIRECT(CONCATENATE("Field!F",A113+2)),"") -> 1.8 | G114: =IFERROR(INDIRECT(CONCATENATE("Field!G",A113+2)),"") -> 3 | I114: =IFERROR(INDIRECT(CONCATENATE("Field!I",A113+2)),"") -> 1 | J114: =IFERROR(INDIRECT(CONCATENATE("Field!J",A113+2)),"") -> AA | K114: =IFERROR(INDIRECT(CONCATENATE("Field!K",A113+2)),"") -> GLEADALL Pedro | L114: =IFERROR(INDIRECT(CONCATENATE("Field!L",A113+2)),"") -> B&B | M114: =IFERROR(INDIRECT(CONCATENATE("Field!M",A113+2)),"") -> 1.8 | N114: =IFERROR(INDIRECT(CONCATENATE("Field!N",A113+2)),"") -> 3 | R114: =IFERROR(INDIRECT(CONCATENATE("Field!R",$A113+2)),"") -> 1
B115: =IFERROR(INDIRECT(CONCATENATE("Field!B",A113+3)),"") -> 2 | C115: =IFERROR(INDIRECT(CONCATENATE("Field!C",A113+3)),"") -> E | D115: =IFERROR(INDIRECT(CONCATENATE("Field!D",A113+3)),"") -> LEONARD Alfie | E115: =IFERROR(INDIRECT(CONCATENATE("Field!E",A113+3)),"") -> Norfolk | F115: =IFERROR(INDIRECT(CONCATENATE("Field!F",A113+3)),"") -> 1.7 | G115: =IFERROR(INDIRECT(CONCATENATE("Field!G",A113+3)),"") -> 4 | I115: =IFERROR(INDIRECT(CONCATENATE("Field!I",A113+3)),"") -> 2 | J115: =IFERROR(INDIRECT(CONCATENATE("Field!J",A113+3)),"") -> EE | K115: =IFERROR(INDIRECT(CONCATENATE("Field!K",A113+3)),"") -> BEADLE Kai | L115: =IFERROR(INDIRECT(CONCATENATE("Field!L",A113+3)),"") -> Norfolk | M115: =IFERROR(INDIRECT(CONCATENATE("Field!M",A113+3)),"") -> 1.65 | N115: =IFERROR(INDIRECT(CONCATENATE("Field!N",A113+3)),"") -> 
B116: =IFERROR(INDIRECT(CONCATENATE("Field!B",A113+4)),"") -> 3 | C116: =IFERROR(INDIRECT(CONCATENATE("Field!C",A113+4)),"") -> D | D116: =IFERROR(INDIRECT(CONCATENATE("Field!D",A113+4)),"") -> BELLISARIO Ben | E116: =IFERROR(INDIRECT(CONCATENATE("Field!E",A113+4)),"") -> SB | F116: =IFERROR(INDIRECT(CONCATENATE("Field!F",A113+4)),"") -> 1.7 | G116: =IFERROR(INDIRECT(CONCATENATE("Field!G",A113+4)),"") -> 4 | I116: =IFERROR(INDIRECT(CONCATENATE("Field!I",A113+4)),"") -> 3 | J116: =IFERROR(INDIRECT(CONCATENATE("Field!J",A113+4)),"") -> DD | K116: =IFERROR(INDIRECT(CONCATENATE("Field!K",A113+4)),"") -> HARPER Jamie | L116: =IFERROR(INDIRECT(CONCATENATE("Field!L",A113+4)),"") -> SB | M116: =IFERROR(INDIRECT(CONCATENATE("Field!M",A113+4)),"") -> 1.65 | N116: =IFERROR(INDIRECT(CONCATENATE("Field!N",A113+4)),"") -> 
B117: =IFERROR(INDIRECT(CONCATENATE("Field!B",A113+5)),"") -> 4 | C117: =IFERROR(INDIRECT(CONCATENATE("Field!C",A113+5)),"") -> F | D117: =IFERROR(INDIRECT(CONCATENATE("Field!D",A113+5)),"") -> LAMBERT Kam-Cheung | E117: =IFERROR(INDIRECT(CONCATENATE("Field!E",A113+5)),"") -> WSEH | F117: =IFERROR(INDIRECT(CONCATENATE("Field!F",A113+5)),"") -> 1.65 | G117: =IFERROR(INDIRECT(CONCATENATE("Field!G",A113+5)),"") ->  | I117: =IFERROR(INDIRECT(CONCATENATE("Field!I",A113+5)),"") -> 4 | J117: =IFERROR(INDIRECT(CONCATENATE("Field!J",A113+5)),"") -> FF | K117: =IFERROR(INDIRECT(CONCATENATE("Field!K",A113+5)),"") -> RICE Anthony | L117: =IFERROR(INDIRECT(CONCATENATE("Field!L",A113+5)),"") -> WSEH | M117: =IFERROR(INDIRECT(CONCATENATE("Field!M",A113+5)),"") -> 1.55 | N117: =IFERROR(INDIRECT(CONCATENATE("Field!N",A113+5)),"") -> 
B118: =IFERROR(INDIRECT(CONCATENATE("Field!B",A113+6)),"") -> 5 | C118: =IFERROR(INDIRECT(CONCATENATE("Field!C",A113+6)),"") -> C | D118: =IFERROR(INDIRECT(CONCATENATE("Field!D",A113+6)),"") -> CABLE Joel | E118: =IFERROR(INDIRECT(CONCATENATE("Field!E",A113+6)),"") -> Read | F118: =IFERROR(INDIRECT(CONCATENATE("Field!F",A113+6)),"") -> 1.65 | G118: =IFERROR(INDIRECT(CONCATENATE("Field!G",A113+6)),"") ->  | I118: =IFERROR(INDIRECT(CONCATENATE("Field!I",A113+6)),"") ->  | J118: =IFERROR(INDIRECT(CONCATENATE("Field!J",A113+6)),"") ->  | K118: =IFERROR(INDIRECT(CONCATENATE("Field!K",A113+6)),"") ->  | L118: =IFERROR(INDIRECT(CONCATENATE("Field!L",A113+6)),"") ->  | M118: =IFERROR(INDIRECT(CONCATENATE("Field!M",A113+6)),"") -> 0 | N118: =IFERROR(INDIRECT(CONCATENATE("Field!N",A113+6)),"") -> 
B119: =IFERROR(INDIRECT(CONCATENATE("Field!B",A113+7)),"") ->  | C119: =IFERROR(INDIRECT(CONCATENATE("Field!C",A113+7)),"") ->  | D119: =IFERROR(INDIRECT(CONCATENATE("Field!D",A113+7)),"") ->  | E119: =IFERROR(INDIRECT(CONCATENATE("Field!E",A113+7)),"") ->  | F119: =IFERROR(INDIRECT(CONCATENATE("Field!F",A113+7)),"") -> 0 | G119: =IFERROR(INDIRECT(CONCATENATE("Field!G",A113+7)),"") ->  | I119: =IFERROR(INDIRECT(CONCATENATE("Field!I",A113+7)),"") ->  | J119: =IFERROR(INDIRECT(CONCATENATE("Field!J",A113+7)),"") ->  | K119: =IFERROR(INDIRECT(CONCATENATE("Field!K",A113+7)),"") ->  | L119: =IFERROR(INDIRECT(CONCATENATE("Field!L",A113+7)),"") ->  | M119: =IFERROR(INDIRECT(CONCATENATE("Field!M",A113+7)),"") -> 0 | N119: =IFERROR(INDIRECT(CONCATENATE("Field!N",A113+7)),"") -> 
B120: =IFERROR(INDIRECT(CONCATENATE("Field!B",A113+8)),"") ->  | C120: =IFERROR(INDIRECT(CONCATENATE("Field!C",A113+8)),"") ->  | D120: =IFERROR(INDIRECT(CONCATENATE("Field!D",A113+8)),"") ->  | E120: =IFERROR(INDIRECT(CONCATENATE("Field!E",A113+8)),"") ->  | F120: =IFERROR(INDIRECT(CONCATENATE("Field!F",A113+8)),"") -> 0 | G120: =IFERROR(INDIRECT(CONCATENATE("Field!G",A113+8)),"") ->  | I120: =IFERROR(INDIRECT(CONCATENATE("Field!I",A113+8)),"") ->  | J120: =IFERROR(INDIRECT(CONCATENATE("Field!J",A113+8)),"") ->  | K120: =IFERROR(INDIRECT(CONCATENATE("Field!K",A113+8)),"") ->  | L120: =IFERROR(INDIRECT(CONCATENATE("Field!L",A113+8)),"") ->  | M120: =IFERROR(INDIRECT(CONCATENATE("Field!M",A113+8)),"") -> 0 | N120: =IFERROR(INDIRECT(CONCATENATE("Field!N",A113+8)),"") -> 
B121: =IFERROR(INDIRECT(CONCATENATE("Field!B",A113+9)),"") ->  | C121: =IFERROR(INDIRECT(CONCATENATE("Field!C",A113+9)),"") ->  | D121: =IFERROR(INDIRECT(CONCATENATE("Field!D",A113+9)),"") ->  | E121: =IFERROR(INDIRECT(CONCATENATE("Field!E",A113+9)),"") ->  | F121: =IFERROR(INDIRECT(CONCATENATE("Field!F",A113+9)),"") -> 0 | G121: =IFERROR(INDIRECT(CONCATENATE("Field!G",A113+9)),"") ->  | I121: =IFERROR(INDIRECT(CONCATENATE("Field!I",A113+9)),"") ->  | J121: =IFERROR(INDIRECT(CONCATENATE("Field!J",A113+9)),"") ->  | K121: =IFERROR(INDIRECT(CONCATENATE("Field!K",A113+9)),"") ->  | L121: =IFERROR(INDIRECT(CONCATENATE("Field!L",A113+9)),"") ->  | M121: =IFERROR(INDIRECT(CONCATENATE("Field!M",A113+9)),"") -> 0 | N121: =IFERROR(INDIRECT(CONCATENATE("Field!N",A113+9)),"") -> 
A123: UFW06 | B123: =IFERROR(INDIRECT(CONCATENATE("Field!B",A124)),"") -> Triple Jump U17 Men A | I123: =IFERROR(INDIRECT(CONCATENATE("Field!I",A124)),"") -> Triple Jump U17 Men B
A124: =IFERROR(MATCH(A123,Field!A:A,0),"") -> 233 | B124: =IFERROR(INDIRECT(CONCATENATE("Field!B",A124+1)),"") -> Posn | C124: =IFERROR(INDIRECT(CONCATENATE("Field!C",A124+1)),"") -> Bib | D124: =IFERROR(INDIRECT(CONCATENATE("Field!D",A124+1)),"") -> Athlete | E124: =IFERROR(INDIRECT(CONCATENATE("Field!E",A124+1)),"") -> Club | F124: =IFERROR(INDIRECT(CONCATENATE("Field!F",A124+1)),"") -> Perf | G124: =IFERROR(INDIRECT(CONCATENATE("Field!G",A124+1)),"") -> AAA | I124: =IFERROR(INDIRECT(CONCATENATE("Field!I",A124+1)),"") -> Posn | J124: =IFERROR(INDIRECT(CONCATENATE("Field!J",A124+1)),"") -> Bib | K124: =IFERROR(INDIRECT(CONCATENATE("Field!K",A124+1)),"") -> Athlete | L124: =IFERROR(INDIRECT(CONCATENATE("Field!L",A124+1)),"") -> Club | M124: =IFERROR(INDIRECT(CONCATENATE("Field!M",A124+1)),"") -> Perf | N124: =IFERROR(INDIRECT(CONCATENATE("Field!N",A124+1)),"") -> AAA
B125: =IFERROR(INDIRECT(CONCATENATE("Field!B",A124+2)),"") -> 1 | C125: =IFERROR(INDIRECT(CONCATENATE("Field!C",A124+2)),"") -> A | D125: =IFERROR(INDIRECT(CONCATENATE("Field!D",A124+2)),"") -> GBAGBO Joshua | E125: =IFERROR(INDIRECT(CONCATENATE("Field!E",A124+2)),"") -> B&B | F125: =IFERROR(INDIRECT(CONCATENATE("Field!F",A124+2)),"") -> 12.44 | G125: =IFERROR(INDIRECT(CONCATENATE("Field!G",A124+2)),"") -> 3 | I125: =IFERROR(INDIRECT(CONCATENATE("Field!I",A124+2)),"") -> 1 | J125: =IFERROR(INDIRECT(CONCATENATE("Field!J",A124+2)),"") -> EE | K125: =IFERROR(INDIRECT(CONCATENATE("Field!K",A124+2)),"") -> WILLIAMS Charlie | L125: =IFERROR(INDIRECT(CONCATENATE("Field!L",A124+2)),"") -> Norfolk | M125: =IFERROR(INDIRECT(CONCATENATE("Field!M",A124+2)),"") -> 11.47 | N125: =IFERROR(INDIRECT(CONCATENATE("Field!N",A124+2)),"") -> 4 | R125: =IFERROR(INDIRECT(CONCATENATE("Field!R",$A124+2)),"") -> 1
B126: =IFERROR(INDIRECT(CONCATENATE("Field!B",A124+3)),"") -> 2 | C126: =IFERROR(INDIRECT(CONCATENATE("Field!C",A124+3)),"") -> D | D126: =IFERROR(INDIRECT(CONCATENATE("Field!D",A124+3)),"") -> UMEUGOJI Odera | E126: =IFERROR(INDIRECT(CONCATENATE("Field!E",A124+3)),"") -> SB | F126: =IFERROR(INDIRECT(CONCATENATE("Field!F",A124+3)),"") -> 12.2 | G126: =IFERROR(INDIRECT(CONCATENATE("Field!G",A124+3)),"") -> 3 | I126: =IFERROR(INDIRECT(CONCATENATE("Field!I",A124+3)),"") -> 2 | J126: =IFERROR(INDIRECT(CONCATENATE("Field!J",A124+3)),"") -> AA | K126: =IFERROR(INDIRECT(CONCATENATE("Field!K",A124+3)),"") -> OKWESA Nana | L126: =IFERROR(INDIRECT(CONCATENATE("Field!L",A124+3)),"") -> B&B | M126: =IFERROR(INDIRECT(CONCATENATE("Field!M",A124+3)),"") -> 11.46 | N126: =IFERROR(INDIRECT(CONCATENATE("Field!N",A124+3)),"") -> 4
B127: =IFERROR(INDIRECT(CONCATENATE("Field!B",A124+4)),"") -> 3 | C127: =IFERROR(INDIRECT(CONCATENATE("Field!C",A124+4)),"") -> E | D127: =IFERROR(INDIRECT(CONCATENATE("Field!D",A124+4)),"") -> MCLELLAN Tristan | E127: =IFERROR(INDIRECT(CONCATENATE("Field!E",A124+4)),"") -> Norfolk | F127: =IFERROR(INDIRECT(CONCATENATE("Field!F",A124+4)),"") -> 11.97 | G127: =IFERROR(INDIRECT(CONCATENATE("Field!G",A124+4)),"") -> 4 | I127: =IFERROR(INDIRECT(CONCATENATE("Field!I",A124+4)),"") -> 3 | J127: =IFERROR(INDIRECT(CONCATENATE("Field!J",A124+4)),"") -> CC | K127: =IFERROR(INDIRECT(CONCATENATE("Field!K",A124+4)),"") -> LOCKHART Taylor | L127: =IFERROR(INDIRECT(CONCATENATE("Field!L",A124+4)),"") -> Read | M127: =IFERROR(INDIRECT(CONCATENATE("Field!M",A124+4)),"") -> 10.04 | N127: =IFERROR(INDIRECT(CONCATENATE("Field!N",A124+4)),"") -> 
B128: =IFERROR(INDIRECT(CONCATENATE("Field!B",A124+5)),"") -> 4 | C128: =IFERROR(INDIRECT(CONCATENATE("Field!C",A124+5)),"") -> B | D128: =IFERROR(INDIRECT(CONCATENATE("Field!D",A124+5)),"") -> HAYWARD Morgan | E128: =IFERROR(INDIRECT(CONCATENATE("Field!E",A124+5)),"") -> Craw | F128: =IFERROR(INDIRECT(CONCATENATE("Field!F",A124+5)),"") -> 11.89 | G128: =IFERROR(INDIRECT(CONCATENATE("Field!G",A124+5)),"") -> 4 | I128: =IFERROR(INDIRECT(CONCATENATE("Field!I",A124+5)),"") -> 4 | J128: =IFERROR(INDIRECT(CONCATENATE("Field!J",A124+5)),"") ->  | K128: =IFERROR(INDIRECT(CONCATENATE("Field!K",A124+5)),"") ->  | L128: =IFERROR(INDIRECT(CONCATENATE("Field!L",A124+5)),"") ->  | M128: =IFERROR(INDIRECT(CONCATENATE("Field!M",A124+5)),"") ->  | N128: =IFERROR(INDIRECT(CONCATENATE("Field!N",A124+5)),"") -> 
B129: =IFERROR(INDIRECT(CONCATENATE("Field!B",A124+6)),"") -> 5 | C129: =IFERROR(INDIRECT(CONCATENATE("Field!C",A124+6)),"") -> F | D129: =IFERROR(INDIRECT(CONCATENATE("Field!D",A124+6)),"") -> LAMBERT Kam-Cheung | E129: =IFERROR(INDIRECT(CONCATENATE("Field!E",A124+6)),"") -> WSEH | F129: =IFERROR(INDIRECT(CONCATENATE("Field!F",A124+6)),"") -> 11.38 | G129: =IFERROR(INDIRECT(CONCATENATE("Field!G",A124+6)),"") ->  | I129: =IFERROR(INDIRECT(CONCATENATE("Field!I",A124+6)),"") -> 5 | J129: =IFERROR(INDIRECT(CONCATENATE("Field!J",A124+6)),"") ->  | K129: =IFERROR(INDIRECT(CONCATENATE("Field!K",A124+6)),"") ->  | L129: =IFERROR(INDIRECT(CONCATENATE("Field!L",A124+6)),"") ->  | M129: =IFERROR(INDIRECT(CONCATENATE("Field!M",A124+6)),"") ->  | N129: =IFERROR(INDIRECT(CONCATENATE("Field!N",A124+6)),"") -> 
B130: =IFERROR(INDIRECT(CONCATENATE("Field!B",A124+7)),"") -> 6 | C130: =IFERROR(INDIRECT(CONCATENATE("Field!C",A124+7)),"") -> C | D130: =IFERROR(INDIRECT(CONCATENATE("Field!D",A124+7)),"") -> SAYER Oliver | E130: =IFERROR(INDIRECT(CONCATENATE("Field!E",A124+7)),"") -> Read | F130: =IFERROR(INDIRECT(CONCATENATE("Field!F",A124+7)),"") -> 11.2 | G130: =IFERROR(INDIRECT(CONCATENATE("Field!G",A124+7)),"") ->  | I130: =IFERROR(INDIRECT(CONCATENATE("Field!I",A124+7)),"") -> 6 | J130: =IFERROR(INDIRECT(CONCATENATE("Field!J",A124+7)),"") ->  | K130: =IFERROR(INDIRECT(CONCATENATE("Field!K",A124+7)),"") ->  | L130: =IFERROR(INDIRECT(CONCATENATE("Field!L",A124+7)),"") ->  | M130: =IFERROR(INDIRECT(CONCATENATE("Field!M",A124+7)),"") ->  | N130: =IFERROR(INDIRECT(CONCATENATE("Field!N",A124+7)),"") -> 
B131: =IFERROR(INDIRECT(CONCATENATE("Field!B",A124+8)),"") -> 7 | C131: =IFERROR(INDIRECT(CONCATENATE("Field!C",A124+8)),"") ->  | D131: =IFERROR(INDIRECT(CONCATENATE("Field!D",A124+8)),"") ->  | E131: =IFERROR(INDIRECT(CONCATENATE("Field!E",A124+8)),"") ->  | F131: =IFERROR(INDIRECT(CONCATENATE("Field!F",A124+8)),"") ->  | G131: =IFERROR(INDIRECT(CONCATENATE("Field!G",A124+8)),"") ->  | I131: =IFERROR(INDIRECT(CONCATENATE("Field!I",A124+8)),"") -> 7 | J131: =IFERROR(INDIRECT(CONCATENATE("Field!J",A124+8)),"") ->  | K131: =IFERROR(INDIRECT(CONCATENATE("Field!K",A124+8)),"") ->  | L131: =IFERROR(INDIRECT(CONCATENATE("Field!L",A124+8)),"") ->  | M131: =IFERROR(INDIRECT(CONCATENATE("Field!M",A124+8)),"") ->  | N131: =IFERROR(INDIRECT(CONCATENATE("Field!N",A124+8)),"") -> 
